Workbook

Sheet Instructions
B12: The goal of this tool is to to assist policymakers in planning and prioritizing coastal marsh areas for adaptation and conservation.
B14: This tool was prepared by Warren Pinnacle Consulting, Inc. in the course of performing work contracted for and sponsored by the New York State Energy Research and Development Authority (hereafter NYSERDA). The opinions expressed here do not necessarily reflect those of NYSERDA or the State of New York, and reference to any specific product, service, process, or method does not constitute an implied or expressed recommendation or endorsement of it. Further, NYSERDA, the State of New York, and the contractor make no warranties or representations, expressed or implied, as to the fitness for particular purpose or merchantability of any product, apparatus, or service, or the usefulness, completeness, or accuracy of any processes, methods, or other information contained, described, disclosed, or referred to in this report. NYSERDA, the State of New York, and the contractor make no representation that the use of any product, apparatus, process, method, or other information will not infringe privately owned rights and will assume no liability for any loss, injury, or damage resulting from, or occurring in connection with, the use of information contained, described, disclosed, or referred to in this tool.
B151: to unprotect cells password "SLAMM"

Sheet Model Summary
A11: Site details | G11: ="Scenarios Included: "&'Data Setup'!C4 -> Scenarios Included: 4
C12: Site Name | D12: Historic Pct. Annual Marsh Loss (yr-1) | H12: Scenario Name
B13: ='Data Setup'!S5 -> P1 | C13: ='Data Setup'!T5 -> P1 Accabonac | D13: ='Model Inputs'!C102 -> 0 | G13: Scen. 1 | H13: ='Data Setup'!D7 -> No Migration | I13: (no-action base case)
B14: ='Data Setup'!S6 -> P2 | C14: ='Data Setup'!T6 -> P2 Nappeauge | D14: ='Model Inputs'!C103 -> 0 | G14: Scen. 2 | H14: ='Data Setup'!D8 -> Migr. Undeveloped
B15: ='Data Setup'!S7 -> P3 | C15: ='Data Setup'!T7 -> P3 Ashamonaque | D15: ='Model Inputs'!C104 -> 0 | G15: Scen. 3 | H15: ='Data Setup'!D9 -> Migr. All Dry
B16: ='Data Setup'!S8 -> P4 | C16: ='Data Setup'!T8 -> P4 Orient | D16: ='Model Inputs'!C105 -> 0 | G16: Scen. 4 | H16: ='Data Setup'!D10 -> Thin Layer Depo.
B17: ='Data Setup'!S9 -> P5 | C17: ='Data Setup'!T9 -> P5 Mashomack | D17: ='Model Inputs'!C106 -> 0
B18: ='Data Setup'!S10 -> P6 | C18: ='Data Setup'!T10 -> P6 Flanders | D18: ='Model Inputs'!C107 -> 0
B19: ='Data Setup'!S11 -> P7 | C19: ='Data Setup'!T11 -> P7 Cedar Beach | D19: ='Model Inputs'!C108 -> 0
B20: ='Data Setup'!S12 -> S1 | C20: ='Data Setup'!T12 -> S1 Carmans | D20: ='Model Inputs'!C109 -> 0
B21: ='Data Setup'!S13 -> S2 | C21: ='Data Setup'!T13 -> S2 Thorne / Gardiner | D21: ='Model Inputs'!C110 -> 0
B22: ='Data Setup'!S14 -> S3 | C22: ='Data Setup'!T14 -> S3 Weesuck | D22: ='Model Inputs'!C111 -> 0 | G22: Scenario Details:
B23: ='Data Setup'!S15 -> S4 | C23: ='Data Setup'!T15 -> S4 Smith Pt. | D23: ='Model Inputs'!C112 -> 0 | G23: Scenario 1, No Migration: Marsh remains in its current footprint only with no migration to upland whether it be developed or not.
B24: ='Data Setup'!S16 -> S5 | C24: ='Data Setup'!T16 -> S5 Mastic | D24: ='Model Inputs'!C113 -> 0 | G24: Scenario 2, Migration to Undeveloped Land: Marsh is allowed to migrate onto undeveloped upland in the case of SLR.
B25: ='Data Setup'!S17 -> S6 | C25: ='Data Setup'!T17 -> S6 Thorne | D25: ='Model Inputs'!C114 -> 0 | G25: Scenario 3, Migration to all dry land. Marsh is allowed to migrate onto adjacent upland regardless of development status.
B26: ='Data Setup'!S18 -> S7 | C26: ='Data Setup'!T18 -> S7 Timber | D26: ='Model Inputs'!C115 -> 0 | G26: Scenario 4, Thin Layer Deposition. 20 cm of sediment is added to marsh lands (where accessible) to build elevation capital.
B27: ='Data Setup'!S19 -> S8 | C27: ='Data Setup'!T19 -> S8 W. Sayville | D27: ='Model Inputs'!C116 -> 0
B28: ='Data Setup'!S20 -> S9 | C28: ='Data Setup'!T20 -> S9 Pepperrige | D28: ='Model Inputs'!C117 -> 0
B29: ='Data Setup'!S21 -> S10 | C29: ='Data Setup'!T21 -> S10 Stokes | D29: ='Model Inputs'!C118 -> 0
B30: ='Data Setup'!S22 -> S11 | C30: ='Data Setup'!T22 -> S11 Captree | D30: ='Model Inputs'!C119 -> 0
B31: ='Data Setup'!S23 -> S12 | C31: ='Data Setup'!T23 -> S12 Shinnecock | D31: ='Model Inputs'!C120 -> 0
B32: ='Data Setup'!S24 -> L1 | C32: ='Data Setup'!T24 -> L1 Wading | D32: ='Model Inputs'!C121 -> 0
B33: ='Data Setup'!S25 -> L2 | C33: ='Data Setup'!T25 -> L2 Sunken | D33: ='Model Inputs'!C122 -> 0
B34: ='Data Setup'!S26 -> L3 | C34: ='Data Setup'!T26 -> L3 Crab | D34: ='Model Inputs'!C123 -> 0
B35: ='Data Setup'!S27 -> L4 | C35: ='Data Setup'!T27 -> L4 Flax | D35: ='Model Inputs'!C124 -> 0
C37: (information only, to change model inputs use the next tab)

Sheet Model Inputs
I2: 1. Fill in relative ranks of ecosystem services - these weight the importance of each ecosystem service within the overall analysis. Enter zero if a service has no weight (this will negate all site-specific ranks for that service). The total does not have to equal 100.
I6: 2. Provide weights for each service at each site. Enter zero to give no weight, higher numbers to give more weight. The total does not have to equal 100.
A9: Ecosystem Service Valuation | I9: 3. Press the Calulate button to run the tool. Excel will temporarily freeze. See progress at the lower left of the window.
C11: Beginning Year: | D11: 2016 | E11: End Year: | F11: 2100
C15: Nutrient Sequestration | F15: Recreation | I15: Habitat | L15: Other
C16: Carbon Sequestration | D16: Nitrogen Sequestration | E16: Phosphorus Sequestration | F16: Marsh Land Recreation (human use) | G16: Natural services to under-served communities | H16: Nekton habitat (proximate to fishing areas) | I16: Nekton habitat (General) | J16: Habitat fragmentation/connectivity | K16: Bird Habitat (high marsh) | L16: Wave Attenuation | M16: Political/ Cultural/ Historic value | N16: Total Relative Rank
B17: Ecoservice Relative Rank | C17: 8.303249397 | D17: 9.025271084 | E17: 6.859206024 | F17: 4.151624699 | G17: 3 | H17: 8 | I17: 14.98195 | J17: 19.49458554 | K17: 10 | L17: 12.81588494 | M17: 5.054151807 | N17: =SUM(C17:M17) -> 101.6859235
C18: Site-specific "Quality of Habitat:" should not reflect the numbers of acres of a particular land-cover type
A19: Site 1 | B19: P1 Accabonac | C19: 4 | D19: 4 | E19: 4 | F19: 4 | G19: 2 | H19: 4 | I19: 4 | J19: 6 | K19: 4 | L19: 3 | M19: 4
A20: Site 2 | B20: P2 Nappeauge | C20: 4 | D20: 1 | E20: 1 | F20: 4 | G20: 2 | H20: 4 | I20: 4 | J20: 6 | K20: 4 | L20: 0.5 | M20: 4
A21: Site 3 | B21: P3 Ashamonaque | C21: 4 | D21: 3 | E21: 3 | F21: 4 | G21: 2 | H21: 4 | I21: 4 | J21: 6 | K21: 4 | L21: 1.5 | M21: 4
A22: Site 4 | B22: P4 Orient | C22: 4 | D22: 3 | E22: 4 | F22: 4 | G22: 2 | H22: 4 | I22: 4 | J22: 6 | K22: 4 | L22: 2 | M22: 4
A23: Site 5 | B23: P5 Mashomack | C23: 4 | D23: 1 | E23: 1 | F23: 4 | G23: 2 | H23: 4 | I23: 4 | J23: 6 | K23: 4 | L23: 0 | M23: 4
A24: Site 6 | B24: P6 Flanders | C24: 4 | D24: 2 | E24: 2 | F24: 4 | G24: 2 | H24: 4 | I24: 4 | J24: 6 | K24: 4 | L24: 1.5 | M24: 4
A25: Site 7 | B25: P7 Cedar Beach | C25: 4 | D25: 4 | E25: 4 | F25: 4 | G25: 2 | H25: 4 | I25: 4 | J25: 6 | K25: 4 | L25: 2 | M25: 4
A26: Site 8 | B26: S1 Carmans | C26: 4 | D26: 6 | E26: 5 | F26: 4 | G26: 2 | H26: 4 | I26: 4 | J26: 6 | K26: 4 | L26: 3 | M26: 4
A27: Site 9 | B27: S2 Thorne / Gardiner | C27: 4 | D27: 6 | E27: 4 | F27: 4 | G27: 2 | H27: 4 | I27: 4 | J27: 6 | K27: 4 | L27: 4 | M27: 4
A28: Site 10 | B28: S3 Weesuck | C28: 4 | D28: 6 | E28: 5 | F28: 4 | G28: 2 | H28: 4 | I28: 4 | J28: 6 | K28: 4 | L28: 3 | M28: 4
A29: Site 11 | B29: S4 Smith Pt. | C29: 4 | D29: 7 | E29: 5 | F29: 4 | G29: 2 | H29: 4 | I29: 4 | J29: 6 | K29: 4 | L29: 4 | M29: 4
A30: Site 12 | B30: S5 Mastic | C30: 4 | D30: 8 | E30: 5 | F30: 4 | G30: 2 | H30: 4 | I30: 4 | J30: 6 | K30: 4 | L30: 5 | M30: 4
A31: Site 13 | B31: S6 Thorne | C31: 4 | D31: 8 | E31: 5 | F31: 4 | G31: 2 | H31: 4 | I31: 4 | J31: 6 | K31: 4 | L31: 4 | M31: 4
A32: Site 14 | B32: S7 Timber | C32: 4 | D32: 10 | E32: 10 | F32: 4 | G32: 2 | H32: 4 | I32: 4 | J32: 6 | K32: 4 | L32: 4 | M32: 4
A33: Site 15 | B33: S8 W. Sayville | C33: 4 | D33: 10 | E33: 10 | F33: 4 | G33: 2 | H33: 4 | I33: 4 | J33: 6 | K33: 4 | L33: 5 | M33: 4
A34: Site 16 | B34: S9 Pepperrige | C34: 4 | D34: 8 | E34: 5 | F34: 4 | G34: 2 | H34: 4 | I34: 4 | J34: 6 | K34: 4 | L34: 5 | M34: 4
A35: Site 17 | B35: S10 Stokes | C35: 4 | D35: 8 | E35: 8 | F35: 4 | G35: 2 | H35: 4 | I35: 4 | J35: 6 | K35: 4 | L35: 4 | M35: 4
A36: Site 18 | B36: S11 Captree | C36: 4 | D36: 1 | E36: 1 | F36: 4 | G36: 2 | H36: 4 | I36: 4 | J36: 6 | K36: 4 | L36: 0.1 | M36: 4
A37: Site 19 | B37: S12 Shinnecock | C37: 4 | D37: 2 | E37: 3 | F37: 4 | G37: 2 | H37: 4 | I37: 4 | J37: 6 | K37: 4 | L37: 2 | M37: 4
A38: Site 20 | B38: L1 Wading | C38: 4 | D38: 4 | E38: 4 | F38: 4 | G38: 2 | H38: 4 | I38: 4 | J38: 6 | K38: 4 | L38: 2 | M38: 4
A39: Site 21 | B39: L2 Sunken | C39: 4 | D39: 4 | E39: 4 | F39: 4 | G39: 2 | H39: 4 | I39: 4 | J39: 6 | K39: 4 | L39: 2 | M39: 4
A40: Site 22 | B40: L3 Crab | C40: 4 | D40: 5 | E40: 5 | F40: 4 | G40: 2 | H40: 4 | I40: 4 | J40: 6 | K40: 4 | L40: 3 | M40: 4
A41: Site 23 | B41: L4 Flax | C41: 4 | D41: 2 | E41: 1 | F41: 4 | G41: 2 | H41: 4 | I41: 4 | J41: 6 | K41: 4 | L41: 1.5 | M41: 4
B44: Total spent: | C44: =SUM(C19:C41) -> 92 | D44: =SUM(D19:D41) -> 113 | E44: 99 | F44: =SUM(F19:F41) -> 92 | G44: =SUM(G19:G41) -> 46 | H44: =SUM(H19:H41) -> 92 | I44: 92 | J44: 138 | K44: 92 | L44: =SUM(L19:L41) -> 62.1 | M44: 92
B48: Discount Factors | C48: Discount Factors | G48: Discount Rate: | H48: 0
D49: Year | E49: Discount Factor
C50: Timestep 1 | D50: 2016 | E50: 1 | G50: 2016 | H50: 1
C51: Timestep 2 | D51: 2020 | E51: 1 | G51: 2020 | H51: =(1/((1+$H$48)^(G51-$G$50))) -> 1
C52: Timestep 3 | D52: 2040 | E52: 1 | G52: 2040 | H52: 1
C53: Timestep 4 | D53: 2050 | E53: 1 | G53: 2050 | H53: 1
C54: Timestep 5 | D54: 2065 | E54: 1 | G54: 2065 | H54: 1
C55: Timestep 6 | D55: 2075 | E55: 1 | G55: 2075 | H55: 1
C56: Timestep 7 | D56: 2085 | E56: 1 | G56: 2085 | H56: 1
C57: Timestep 8 | D57: 2100 | E57: 1 | G57: 2100 | H57: 1
C58: Timestep 9
C59: Timestep 10 | G59: Example discount rate calcuation
D60: interpolates within up to 10 timesteps | G60: that can be copied into the discount
G61: factors table to the left.
C67: Adaptation Strategy Costs (millions of dollars per parcel)
C68: ='Model Summary'!H13 -> No Migration | D68: ='Model Summary'!H14 -> Migr. Undeveloped | E68: ='Model Summary'!H15 -> Migr. All Dry | F68: ='Model Summary'!H16 -> Thin Layer Depo.
B69: Cost Details | C69: no cost, existing marsh footprint | D69: purchase undeveloped land or easement when required | E69: purchase developed and undeveloped land when required | F69: thin layer deposition costs
A70: Site 1 | B70: =B19 -> P1 Accabonac | C70: N / A | D70: 71.084871 | E70: 74.175621 | F70: 4.826712833 | I70: Rough Assumption $500,000 per acre purchase, 1.5 million developed for dev acre purchase and restoration
A71: Site 2 | B71: P2 Nappeauge | C71: N / A | D71: 68.97826975 | E71: 93.46404475 | F71: 7.5979176
A72: Site 3 | B72: P3 Ashamonaque | C72: N / A | D72: 139.525113 | E72: 147.054588 | F72: 2.33364612 | I72: TLD is assumed to cost $549300 per acre; see Suffolk_TLD_Accounting.xlsx
A73: Site 4 | B73: P4 Orient | C73: N / A | D73: 34.4620575 | E73: 35.3538825 | F73: 21.57944276
A74: Site 5 | B74: P5 Mashomack | C74: N / A | D74: 112.34054 | E74: 117.20009 | F74: 19.73762612
A75: Site 6 | B75: P6 Flanders | C75: N / A | D75: 379.9702888 | E75: 407.5631638 | F75: 11.47489073
A76: Site 7 | B76: P7 Cedar Beach | C76: N / A | D76: 158.9901333 | E76: 174.1003083 | F76: 1.312675943
A77: Site 8 | B77: S1 Carmans | C77: N / A | D77: 245.642735 | E77: 259.341935 | F77: 10.21648563
A78: Site 9 | B78: S2 Thorne / Gardiner | C78: N / A | D78: 79.62335225 | E78: 81.43932725 | F78: 1.2210939
A79: Site 10 | B79: S3 Weesuck | C79: N / A | D79: 168.3758245 | E79: 178.2266995 | F79: 1.862168198
A80: Site 11 | B80: S4 Smith Pt. | C80: N / A | D80: 16.901222 | E80: 22.140272 | F80: 0.1322851725
A81: Site 12 | B81: S5 Mastic | C81: N / A | D81: 227.6445243 | E81: 240.5628243 | F81: 3.50046918
A82: Site 13 | B82: S6 Thorne | C82: N / A | D82: 20.79499175 | E82: 33.14516675 | F82: 1.58742207
A83: Site 14 | B83: S7 Timber | C83: N / A | D83: 54.313818 | E83: 56.881143 | F83: 2.262415643
A84: Site 15 | B84: S8 W. Sayville | C84: N / A | D84: 57.17747425 | E84: 59.48544925 | F84: 0.61054695
A85: Site 16 | B85: S9 Pepperrige | C85: N / A | D85: 26.368732 | E85: 36.347182 | F85: 2.798340188
A86: Site 17 | B86: S10 Stokes | C86: N / A | D86: 38.21269075 | E86: 48.20036575 | F86: 1.689179895
A87: Site 18 | B87: S11 Captree | C87: N / A | D87: 24.832145 | E87: 40.17932 | F87: 52.08983062
A88: Site 19 | B88: S12 Shinnecock | C88: N / A | D88: 172.8265175 | E88: 236.8119425 | F88: 9.72804807
A89: Site 20 | B89: L1 Wading | C89: N / A | D89: 46.7656215 | E89: 59.7865965 | F89: 5.420300145
A90: Site 21 | B90: L2 Sunken | C90: N / A | D90: 20.694648 | E90: 22.744773 | F90: 2.540553698
A91: Site 22 | B91: L3 Crab | C91: N / A | D91: 42.28856125 | E91: 51.18956125 | F91: 6.461621888
A92: Site 23 | B92: L4 Flax | C92: N / A | D92: 135.8267203 | E92: 196.0992703 | F92: 9.901036373
B96: Total Strategy Cost | C96: =SUM(C70:C81) -> 0 | D96: =SUM(D70:D81) -> 1703.538931 | E96: =SUM(E70:E81) -> 1830.622756 | F96: =SUM(F70:F81) -> 85.79541419 | G96: =SUM(G70:G81) -> 0
B101: ='Model Summary'!C12 -> Site Name | C101: Historic Pct. Annual Marsh Loss (yr-1)
A102: ='Model Summary'!B13 -> P1 | B102: =B70 -> P1 Accabonac | C102: 0 | D102: not available
A103: ='Model Summary'!B14 -> P2 | B103: =B71 -> P2 Nappeauge | C103: 0 | D103: not available
A104: ='Model Summary'!B15 -> P3 | B104: P3 Ashamonaque | C104: 0 | D104: not available
A105: ='Model Summary'!B16 -> P4 | B105: P4 Orient | C105: 0 | D105: not available
A106: ='Model Summary'!B17 -> P5 | B106: P5 Mashomack | C106: 0 | D106: not available
A107: ='Model Summary'!B18 -> P6 | B107: P6 Flanders | C107: 0 | D107: not available
A108: ='Model Summary'!B19 -> P7 | B108: P7 Cedar Beach | C108: 0 | D108: not available
A109: ='Model Summary'!B20 -> S1 | B109: S1 Carmans | C109: 0 | D109: not available
A110: ='Model Summary'!B21 -> S2 | B110: S2 Thorne / Gardiner | C110: 0 | D110: not available
A111: ='Model Summary'!B22 -> S3 | B111: S3 Weesuck | C111: 0 | D111: not available
A112: ='Model Summary'!B23 -> S4 | B112: S4 Smith Pt. | C112: 0 | D112: not available
A113: ='Model Summary'!B24 -> S5 | B113: S5 Mastic | C113: 0 | D113: not available
A114: ='Model Summary'!B25 -> S6 | B114: S6 Thorne | C114: 0 | D114: not available
A115: ='Model Summary'!B26 -> S7 | B115: S7 Timber | C115: 0 | D115: not available
A116: ='Model Summary'!B27 -> S8 | B116: S8 W. Sayville | C116: 0 | D116: not available
A117: ='Model Summary'!B28 -> S9 | B117: S9 Pepperrige | C117: 0 | D117: not available
A118: ='Model Summary'!B29 -> S10 | B118: S10 Stokes | C118: 0 | D118: not available
A119: ='Model Summary'!B30 -> S11 | B119: S11 Captree | C119: 0 | D119: not available
A120: ='Model Summary'!B31 -> S12 | B120: S12 Shinnecock | C120: 0 | D120: not available
A121: ='Model Summary'!B32 -> L1 | B121: L1 Wading | C121: 0 | D121: not available
A122: ='Model Summary'!B33 -> L2 | B122: L2 Sunken | C122: 0 | D122: not available
A123: ='Model Summary'!B34 -> L3 | B123: L3 Crab | C123: 0 | D123: not available
A124: ='Model Summary'!B35 -> L4 | B124: L4 Flax | C124: 0 | D124: not available

Sheet Model Outputs
N7: =MAX(N573:N664) -> 0 | P7: =MAX(P573:P664) -> 0
C9: Sort By | D9: 2 | F9: 3
H12: Nutrient Sequestration | K12: Recreation and Human Use | N12: Habitat | Q12: Other Wetland Benefits
H13: 8.303249397 | I13: 9.025271084 | J13: 6.859206024 | K13: 4.151624699 | L13: 3 | M13: 8 | N13: 14.98195 | O13: 19.49458554 | P13: 10 | Q13: 12.81588494 | R13: 5.054151807
A14: # | B14: Site number | C14: Site Name | D14: Adaptation Strategy | E14: Run Identification | F14: DMMT Run Time | G14: Overall Benefit | H14: Carbon Sequestration | I14: Nitrogen Sequestration | J14: Phosphorus Sequestration | K14: Marsh Land Recreation | L14: Natural Areas for Underserved Communities | M14: Nekton Habitat Proximate to Fishing Areas | N14: Nekton Habitat (General) | O14: Habitat connectivity / Frag | P14: Bird Habitat (high marsh) | Q14: Wave Attenuation | R14: Political/Cultural/Historic value | S14: Incremental Benefit | T14: Cost of Strategy (millions) | U14: Cost per Unit Benefit | V14: Benefit per Unit Cost
A15: 22 | B15: Site 1 | C15: P1 Accabonac | D15: No Migration | E15: Default | F15: 2017-10-27T09:48:07 | G15: =SUM(H15:R15) -> 7855.150514 | H15: 613.6969397 | I15: 608.145619 | J15: 524.6234329 | K15: 298.4940029 | L15: 250.3206185 | M15: 692.2340706 | N15: 1296.377029 | O15: 1592.12722 | P15: 669.5152932 | Q15: 887.8968189 | R15: 421.7194688 | S15: N / A | T15: N / A | U15: N / A | V15: N / A
A16: 21 | B16: Site 2 | C16: P2 Nappeauge | D16: No Migration | E16: Default | F16: 2017-10-27T09:48:07 | G16: 7884.39774 | H16: 835.400575 | I16: 204.1726671 | J16: 172.5528553 | K16: 385.5138131 | L16: 372.7341972 | M16: 702.3476154 | N16: 1315.317107 | O16: 2306.462158 | P16: 801.7235519 | Q16: 160.2214616 | R16: 627.9517388 | S16: N / A | T16: N / A | U16: N / A | V16: N / A
A17: 20 | B17: Site 3 | C17: P3 Ashamonaque | D17: No Migration | E17: Default | F17: 2017-10-27T09:48:07 | G17: 5735.138849 | H17: 365.2921776 | I17: 267.4257502 | J17: 216.1535491 | K17: 150.6443091 | L17: 154.9756988 | M17: 683.4773175 | N17: 1279.977874 | O17: 923.8322168 | P17: 313.8378186 | Q17: 1118.4319 | R17: 261.0902361 | S17: N / A | T17: N / A | U17: N / A | V17: N / A
A18: 19 | B18: Site 4 | C18: P4 Orient | D18: No Migration | E18: Default | F18: 2017-10-27T09:48:07 | G18: 10269.75568 | H18: 962.394496 | I18: 709.2721117 | J18: 799.255026 | K18: 444.6095673 | L18: 410.6239508 | M18: 763.4795183 | N18: 1429.801496 | O18: 2510.31816 | P18: 955.4376242 | Q18: 592.7784661 | R18: 691.7852609 | S18: N / A | T18: N / A | U18: N / A | V18: N / A
A19: 18 | B19: Site 5 | C19: P5 Mashomack | D19: No Migration | E19: Default | F19: 2017-10-27T09:48:07 | G19: 3981.10334 | H19: 324.6238813 | I19: 78.40394742 | J19: 60.14863212 | K19: 116.18504 | L19: 140.4873733 | M19: 691.1977133 | N19: 1294.436198 | O19: 813.5951655 | P19: 225.3438856 | Q19: 0 | R19: 236.6815039 | S19: N / A | T19: N / A | U19: N / A | V19: N / A
A20: 17 | B20: Site 6 | C20: P6 Flanders | D20: No Migration | E20: Default | F20: 2017-10-27T09:48:07 | G20: 10404.18786 | H20: 1064.799444 | I20: 527.3222974 | J20: 455.1212837 | K20: 518.4424092 | L20: 436.6767804 | M20: 749.340909 | N20: 1403.323504 | O20: 2737.507263 | P20: 1159.315145 | Q20: 616.6619101 | R20: 735.6769129 | S20: N / A | T20: N / A | U20: N / A | V20: N / A
A21: 16 | B21: Site 7 | C21: P7 Cedar Beach | D21: No Migration | E21: Default | F21: 2017-10-27T09:48:07 | G21: 2849.849161 | H21: 60.13094287 | I21: 57.55906581 | J21: 47.23920393 | K21: 25.71837785 | L21: 30.48700039 | M21: 651.9731167 | N21: 1220.978579 | O21: 176.0467208 | P21: 46.1359166 | Q21: 482.2182602 | R21: 51.36197605 | S21: N / A | T21: N / A | U21: N / A | V21: N / A
A22: 15 | B22: Site 8 | C22: S1 Carmans | D22: No Migration | E22: Default | F22: 2017-10-27T09:48:07 | G22: 18492.4923 | H22: 1688.325092 | I22: 2501.306289 | J22: 1754.014047 | K22: 772.4901517 | L22: 682.7504717 | M22: 859.1712167 | N22: 1609.007526 | O22: 4246.705611 | P22: 1716.405808 | Q22: 1512.074577 | R22: 1150.24151 | S22: N / A | T22: N / A | U22: N / A | V22: N / A
A23: 14 | B23: Site 9 | C23: S2 Thome | D23: No Migration | E23: Default | F23: 2017-10-27T09:48:07 | G23: 4057.121112 | H23: 151.280429 | I23: 224.2309211 | J23: 128.6559425 | K23: 73.12041585 | L23: 63.11153102 | M23: 662.8740685 | N23: 1241.393269 | O23: 382.4237658 | P23: 161.4806745 | Q23: 862.2250083 | R23: 106.3250862 | S23: N / A | T23: N / A | U23: N / A | V23: N / A
A24: 13 | B24: Site 10 | C24: S3 Weesuck | D24: No Migration | E24: Default | F24: 2017-10-27T09:48:07 | G24: 3174.92312 | H24: 113.2703431 | I24: 167.6526669 | J24: 120.0345722 | K24: 54.50445511 | L24: 47.74128143 | M24: 653.5859984 | N24: 1223.999093 | O24: 290.2946077 | P24: 119.4403299 | Q24: 303.9692106 | R24: 80.43056127 | S24: N / A | T24: N / A | U24: N / A | V24: N / A
A25: 12 | B25: Site 11 | C25: S4 Smith Pt. | D25: No Migration | E25: Default | F25: 2017-10-27T09:48:07 | G25: 3819.056202 | H25: 97.52881972 | I25: 168.3266665 | J25: 103.2366485 | K25: 46.85477086 | L25: 41.25623888 | M25: 653.7673954 | N25: 1224.338804 | O25: 258.090531 | P25: 102.3901536 | Q25: 1053.761075 | R25: 69.5050981 | S25: N / A | T25: N / A | U25: N / A | V25: N / A
A26: 11 | B26: Site 12 | C26: S5 Mastic | D26: No Migration | E26: Default | F26: 2017-10-27T09:48:07 | G26: 10266.77001 | H26: 779.2639419 | I26: 1538.485663 | J26: 812.567247 | K26: 360.2466962 | L26: 318.8936853 | M26: 741.6114382 | N26: 1388.848186 | O26: 1947.862536 | P26: 796.3674359 | Q26: 1045.377477 | R26: 537.2456986 | S26: N / A | T26: N / A | U26: N / A | V26: N / A
A27: 10 | B27: Site 13 | C27: S6 Thorne | D27: No Migration | E27: Default | F27: 2017-10-27T09:48:07 | G27: 4279.562159 | H27: 143.6629575 | I27: 281.6654337 | J27: 150.0438409 | K27: 67.71140255 | L27: 63.3796577 | M27: 665.3362529 | N27: 1246.004309 | O27: 376.6117644 | P27: 142.9640138 | Q27: 1035.405723 | R27: 106.7768038 | S27: N / A | T27: N / A | U27: N / A | V27: N / A
A28: 9 | B28: Site 14 | C28: S7 Timber | D28: No Migration | E28: Default | F28: 2017-10-27T09:48:07 | G28: 3361.4877 | H28: 83.04093664 | I28: 202.0448264 | J28: 170.6692392 | K28: 38.23958787 | L28: 38.42950402 | M28: 660.600182 | N28: 1237.134862 | O28: 224.9591993 | P28: 77.22893317 | Q28: 564.39758 | R28: 64.74284906 | S28: N / A | T28: N / A | U28: N / A | V28: N / A
A29: 8 | B29: Site 15 | C29: S8 W. Sayville | D29: No Migration | E29: Default | F29: 2017-10-27T09:48:07 | G29: 7521.274914 | H29: 258.5640426 | I29: 635.1566084 | J29: 542.9116075 | K29: 122.7743714 | L29: 112.2595401 | M29: 683.9610067 | N29: 1280.8837 | O29: 685.0287006 | P29: 262.7638622 | Q29: 2747.845888 | R29: 189.1255858 | S29: N / A | T29: N / A | U29: N / A | V29: N / A
A30: 7 | B30: Site 16 | C30: S9 Pepperrige | D30: No Migration | E30: Default | F30: 2017-10-27T09:48:07 | G30: 7698.119876 | H30: 449.6405723 | I30: 883.9121681 | J30: 472.3999109 | K30: 213.7232383 | L30: 194.7800052 | M30: 715.9927929 | N30: 1340.871028 | O30: 1180.870494 | P30: 458.2650839 | Q30: 1459.515344 | R30: 328.1492384 | S30: N / A | T30: N / A | U30: N / A | V30: N / A
A31: 6 | B31: Site 17 | C31: S10 Stokes | D31: No Migration | E31: Default | F31: 2017-10-27T09:48:07 | G31: 2896.573199 | H31: 59.38159509 | I31: 114.0584727 | J31: 94.73574307 | K31: 26.17619737 | L31: 29.81182327 | M31: 648.4168886 | N31: 1214.318676 | O31: 182.0015613 | P31: 48.19930497 | Q31: 429.2484436 | R31: 50.22449348 | S31: N / A | T31: N / A | U31: N / A | V31: N / A
A32: 5 | B32: Site 18 | C32: S11 Captree | D32: No Migration | E32: Default | F32: 2017-10-27T09:48:07 | G32: 8092.195819 | H32: 813.3170014 | I32: 197.3762596 | J32: 166.1873326 | K32: 371.4005301 | L32: 382.6189761 | M32: 855.2743523 | N32: 1601.709698 | O32: 2285.847443 | P32: 737.6054931 | Q32: 36.25393655 | R32: 644.6047964 | S32: N / A | T32: N / A | U32: N / A | V32: N / A
A33: 4 | B33: Site 19 | C33: S12 Shinnecock | D33: No Migration | E33: Default | F33: 2017-10-27T09:48:07 | G33: 3506.735617 | H33: 171.6518124 | I33: 83.11155638 | J33: 104.6476379 | K33: 77.76703182 | L33: 81.98460449 | M33: 665.0678305 | N33: 1245.501623 | O33: 496.0849128 | P33: 151.9589397 | Q33: 290.8387896 | R33: 138.120879 | S33: N / A | T33: N / A | U33: N / A | V33: N / A
A34: 3 | B34: Site 20 | C34: L1 Wading | D34: No Migration | E34: Default | F34: 2017-10-27T09:48:07 | G34: 6547.407968 | H34: 421.0962114 | I34: 412.6175771 | J34: 351.4921562 | K34: 198.1915304 | L34: 186.3334007 | M34: 662.3773867 | N34: 1240.463111 | O34: 1221.997257 | P34: 417.3635049 | Q34: 1121.556734 | R34: 313.9190979 | S34: N / A | T34: N / A | U34: N / A | V34: N / A
A35: 2 | B35: Site 21 | C35: L2 Sunken | D35: No Migration | E35: Default | F35: 2017-10-27T09:48:07 | G35: 4659.973739 | H35: 225.8325499 | I35: 221.2844966 | J35: 188.5022385 | K35: 106.2879682 | L35: 99.93302883 | M35: 653.0885755 | N35: 1223.067548 | O35: 643.8256175 | P35: 223.8216017 | Q35: 905.9712155 | R35: 168.3588994 | S35: N / A | T35: N / A | U35: N / A | V35: N / A
A36: 1 | B36: Site 22 | C36: L3 Crab | D36: No Migration | E36: Default | F36: 2017-10-27T09:48:07 | G36: 9477.849772 | H36: 656.0739277 | I36: 809.7905571 | J36: 696.3403404 | K36: 316.3967865 | L36: 275.1236579 | M36: 660.261293 | N36: 1236.50021 | O36: 1831.18344 | P36: 696.0272947 | Q36: 1836.646687 | R36: 463.5055776 | S36: N / A | T36: N / A | U36: N / A | V36: N / A
A37: 0 | B37: Site 23 | C37: L4 Flax | D37: No Migration | E37: Default | F37: 2017-10-27T09:48:07 | G37: 3178.503523 | H37: 141.4482135 | I37: 68.26325755 | J37: 28.37866933 | K37: 62.56399161 | L37: 68.45787483 | M37: 652.7764203 | N37: 1222.482961 | O37: 439.2190213 | P37: 119.5463648 | Q37: 260.0345847 | R37: 115.3321639 | S37: N / A | T37: N / A | U37: N / A | V37: N / A
A38: 22 | B38: Site 1 | C38: P1 Accabonac | D38: Migr. Undeveloped | E38: Default | F38: 2017-10-27T09:48:07 | G38: 9034.919918 | H38: 733.2841945 | I38: 725.992028 | J38: 625.7114649 | K38: 355.800337 | L38: 301.1987131 | M38: 696.2401313 | N38: 1303.879354 | O38: 1922.51503 | P38: 794.1870103 | Q38: 1068.676982 | R38: 507.4346733 | S38: 1179.769405 | T38: 71.084871 | U38: 0.06025319077 | V38: 16.59663143
A39: 21 | B39: Site 2 | C39: P2 Nappeauge | D39: Migr. Undeveloped | E39: Default | F39: 2017-10-27T09:48:07 | G39: 11950.90342 | H39: 1397.396757 | I39: 341.956584 | J39: 290.0446883 | K39: 650.7179918 | L39: 620.0242155 | M39: 731.6095499 | N39: 1370.117212 | O39: 3874.248206 | P39: 1362.930434 | Q39: 267.2922761 | R39: 1044.565503 | S39: 4066.505677 | T39: 68.97826975 | U39: 0.01696254112 | V39: 58.95343115
A40: 20 | B40: Site 3 | C40: P3 Ashamonaque | D40: Migr. Undeveloped | E40: Default | F40: 2017-10-27T09:48:07 | G40: 8757.285451 | H40: 635.575736 | I40: 467.1170511 | J40: 387.3446797 | K40: 279.9669481 | L40: 270.2239823 | M40: 695.6418159 | N40: 1302.758863 | O40: 1656.57936 | P40: 594.6481012 | Q40: 2012.177905 | R40: 455.2510094 | S40: 3022.146603 | T40: 139.525113 | U40: 0.04616755285 | V40: 21.66023405
A41: 19 | B41: Site 4 | C41: P4 Orient | D41: Migr. Undeveloped | E41: Default | F41: 2017-10-27T09:48:07 | G41: 14140.35512 | H41: 1403.927119 | I41: 1034.358267 | J41: 1168.840143 | K41: 652.9783455 | L41: 603.1555359 | M41: 787.9900006 | N41: 1475.703349 | O41: 3723.047811 | P41: 1399.224852 | Q41: 874.9831502 | R41: 1016.146547 | S41: 3870.599443 | T41: 34.4620575 | U41: 0.008903545306 | V41: 112.3148101
A42: 18 | B42: Site 5 | C42: P5 Mashomack | D42: Migr. Undeveloped | E42: Default | F42: 2017-10-27T09:48:07 | G42: 4818.978803 | H42: 444.1279155 | I42: 107.7592689 | J42: 85.24002209 | K42: 172.9258019 | L42: 192.3788144 | M42: 700.7180152 | N42: 1312.265283 | O42: 1132.691804 | P42: 346.7679667 | Q42: 0 | R42: 324.1039109 | S42: 837.8754631 | T42: 112.34054 | U42: 0.1340778492 | V42: 7.458353531
A43: 17 | B43: Site 6 | C43: P6 Flanders | D43: Migr. Undeveloped | E43: Default | F43: 2017-10-27T09:48:07 | G43: 12375.8406 | H43: 1310.724551 | I43: 648.4989732 | J43: 559.0702788 | K43: 636.3025408 | L43: 541.279915 | M43: 759.2631373 | N43: 1421.905295 | O43: 3406.741184 | P43: 1415.771775 | Q43: 764.3793334 | R43: 911.9036202 | S43: 1971.652745 | T43: 379.9702888 | U43: 0.1927166382 | V43: 5.188965567
A44: 16 | B44: Site 7 | C44: P7 Cedar Beach | D44: Migr. Undeveloped | E44: Default | F44: 2017-10-27T09:48:07 | G44: 3482.520502 | H44: 101.9490397 | I44: 98.76216702 | J44: 82.55582894 | K44: 45.71997392 | L44: 48.28159167 | M44: 654.3149646 | N44: 1225.364261 | O44: 288.5768896 | P44: 89.62229093 | Q44: 766.0326638 | R44: 81.34083126 | S44: 632.6713412 | T44: 158.9901333 | U44: 0.2512997237 | V44: 3.979311976
A45: 15 | B45: Site 8 | C45: S1 Carmans | D45: Migr. Undeveloped | E45: Default | F45: 2017-10-27T09:48:07 | G45: 21455.77703 | H45: 1981.758423 | I45: 2933.570031 | J45: 2061.723564 | K45: 911.5931857 | L45: 810.6046472 | M45: 884.959171 | N45: 1657.301756 | O45: 5029.923123 | P45: 2013.232172 | Q45: 1805.471305 | R45: 1365.639648 | S45: 2963.284727 | T45: 245.642735 | U45: 0.08289542101 | V45: 12.0633925
A46: 14 | B46: Site 9 | C46: S2 Thome | D46: Migr. Undeveloped | E46: Default | F46: 2017-10-27T09:48:07 | G46: 5364.604019 | H46: 239.467845 | I46: 354.1009728 | J46: 202.5863879 | K46: 114.884117 | L46: 101.6198536 | M46: 670.8447801 | N46: 1256.320369 | O46: 614.8198961 | P46: 250.4362489 | Q46: 1388.322826 | R46: 171.2007222 | S46: 1307.482907 | T46: 79.62335225 | U46: 0.06089819745 | V46: 16.42084728
A47: 13 | B47: Site 10 | C47: S3 Weesuck | D47: Migr. Undeveloped | E47: Default | F47: 2017-10-27T09:48:07 | G47: =SUM(H47:R47) -> 4034.581494 | H47: 186.830094 | I47: 276.4845185 | J47: 197.9162811 | K47: 89.85491545 | L47: 78.83646942 | M47: 656.3911738 | N47: 1229.252468 | O47: 487.5135938 | P47: 196.7322374 | Q47: 501.9525805 | R47: 132.8171615 | S47: 859.6583735 | T47: 168.3758245 | U47: 0.1958636473 | V47: 5.105592659
A48: 12 | B48: Site 11 | C48: S4 Smith Pt. | D48: Migr. Undeveloped | E48: Default | F48: 2017-10-27T09:48:07 | G48: 5023.318104 | H48: 157.367837 | I48: 271.4494691 | J48: 166.3681351 | K48: 75.46746197 | L48: 66.83875134 | M48: 657.9519305 | N48: 1232.175366 | O48: 411.5095733 | P48: 164.3991556 | Q48: 1707.186026 | R48: 112.6043986 | S48: 1204.261902 | T48: 16.901222 | U48: 0.01403450692 | V48: 71.25294857
A49: 11 | B49: Site 12 | C49: S5 Mastic | D49: Migr. Undeveloped | E49: Default | F49: 2017-10-27T09:48:07 | G49: 14522.4169 | H49: 1167.0672 | I49: 2300.038254 | J49: 1219.05115 | K49: 543.9655722 | L49: 488.106781 | M49: 770.8248307 | N49: 1443.557384 | O49: 2964.18519 | P49: 1187.930561 | Q49: 1615.368049 | R49: 822.3219231 | S49: 4255.64689 | T49: 227.6445243 | U49: 0.05349234327 | V49: 18.69426424
A50: 10 | B50: Site 13 | C50: S6 Thorne | D50: Migr. Undeveloped | E50: Default | F50: 2017-10-27T09:48:07 | G50: 5355.059364 | H50: 208.4758038 | I50: 409.1422623 | J50: 218.2162647 | K50: 98.5691777 | L50: 91.35436687 | M50: 670.5721748 | N50: 1255.809849 | O50: 547.2706612 | P50: 209.3262237 | Q50: 1492.416301 | R50: 153.9062795 | S50: 1075.497205 | T50: 20.79499175 | U50: 0.01933523551 | V50: 51.71904937
A51: 9 | B51: Site 14 | C51: S7 Timber | D51: Migr. Undeveloped | E51: Default | F51: 2017-10-27T09:48:07 | G51: 4999.371712 | H51: 175.4373596 | I51: 428.2077458 | J51: 363.1424131 | K51: 81.61794063 | L51: 79.53121915 | M51: 670.8539454 | N51: 1256.337533 | O51: 474.0618189 | P51: 168.1533443 | Q51: 1168.040774 | R51: 133.9876183 | S51: 1637.884013 | T51: 54.313818 | U51: 0.03316096718 | V51: 30.15593588
A52: 8 | B52: Site 15 | C52: S8 W. Sayville | D52: Migr. Undeveloped | E52: Default | F52: 2017-10-27T09:48:07 | G52: 9404.848802 | H52: 344.8966743 | I52: 846.9281277 | J52: 723.610702 | K52: 163.582397 | L52: 150.1121498 | M52: 691.3428426 | N52: 1294.707988 | O52: 913.0001174 | P52: 349.3837504 | Q52: 3674.387523 | R52: 252.896531 | S52: 1883.573889 | T52: 57.17747425 | U52: 0.03035584353 | V52: 32.94258646
A53: 7 | B53: Site 16 | C53: S9 Pepperrige | D53: Migr. Undeveloped | E53: Default | F53: 2017-10-27T09:48:07 | G53: 10943.14547 | H53: 704.0098196 | I53: 1383.638006 | J53: 739.2665713 | K53: 334.3863573 | L53: 305.456598 | M53: 740.5172891 | N53: 1386.799125 | O53: 1829.58443 | P53: 716.0478639 | Q53: 2288.8314 | R53: 514.6080056 | S53: 3245.025589 | T53: 26.368732 | U53: 0.008125893394 | V53: 123.0633915
A54: 6 | B54: Site 17 | C54: S10 Stokes | D54: Migr. Undeveloped | E54: Default | F54: 2017-10-27T09:48:07 | G54: 3834.045189 | H54: 117.0825804 | I54: 227.6958546 | J54: 192.1250075 | K54: 53.76171182 | L54: 54.48996192 | M54: 651.7419853 | N54: 1220.545729 | O54: 332.2595886 | P54: 107.963561 | Q54: 784.5790287 | R54: 91.80017984 | S54: 937.4719901 | T54: 38.21269075 | U54: 0.0407614213 | V54: 24.53300125
A55: 5 | B55: Site 18 | C55: S11 Captree | D55: Migr. Undeveloped | E55: Default | F55: 2017-10-27T09:48:07 | G55: 8556.307082 | H55: 880.0574216 | I55: 213.8504307 | J55: 180.3521084 | K55: 403.5784163 | L55: 410.6228433 | M55: 860.3348073 | N55: 1611.186633 | O55: 2457.272746 | P55: 808.3609188 | Q55: 38.90736071 | R55: 691.7833951 | S55: 464.1112627 | T55: 24.832145 | U55: 0.05350472396 | V55: 18.68993849
A56: 4 | B56: Site 19 | C56: S12 Shinnecock | D56: Migr. Undeveloped | E56: Default | F56: 2017-10-27T09:48:07 | G56: 4522.464263 | H56: 282.2770215 | I56: 137.5687178 | J56: 174.6386423 | K56: 130.6247748 | L56: 129.3570176 | M56: 669.9972492 | N56: 1254.733161 | O56: 800.0844354 | P56: 266.3617388 | Q56: 458.8915036 | R56: 217.9300014 | S56: 1015.728646 | T56: 172.8265175 | U56: 0.1701502839 | V56: 5.877157398
A57: 3 | B57: Site 20 | C57: L1 Wading | D57: Migr. Undeveloped | E57: Default | F57: 2017-10-27T09:48:07 | G57: 6787.883949 | H57: 442.587349 | I57: 433.5576756 | J57: 369.2060959 | K57: 208.125197 | L57: 196.2048111 | M57: 662.5248971 | N57: 1240.73936 | O57: 1285.841184 | P57: 437.5741447 | Q57: 1180.973601 | R57: 330.5496336 | S57: 240.4759819 | T57: 46.7656215 | U57: 0.19447107 | V57: 5.142153021
A58: 2 | B58: Site 21 | C58: L2 Sunken | D58: Migr. Undeveloped | E58: Default | F58: 2017-10-27T09:48:07 | G58: 5437.057217 | H58: 288.3028249 | I58: 282.3621736 | J58: 240.3904929 | K58: 135.4835058 | L58: 127.9878492 | M58: 653.9690734 | N58: 1224.716495 | O58: 823.4147959 | P58: 284.4965216 | Q58: 1160.310146 | R58: 215.6233397 | S58: 777.083478 | T58: 20.694648 | U58: 0.02663117745 | V58: 37.54997321
A59: 1 | B59: Site 22 | C59: L3 Crab | D59: Migr. Undeveloped | E59: Default | F59: 2017-10-27T09:48:07 | G59: 9935.579617 | H59: 694.7703419 | I59: 857.1257113 | J59: 736.598807 | K59: 334.5341926 | L59: 292.3969051 | M59: 660.4420092 | N59: 1236.838645 | O59: 1944.381048 | P59: 733.9279071 | Q59: 1951.957934 | R59: 492.6061155 | S59: 457.7298451 | T59: 42.28856125 | U59: 0.09238759873 | V59: 10.82396354
A60: 0 | B60: Site 23 | C60: L4 Flax | D60: Migr. Undeveloped | E60: Default | F60: 2017-10-27T09:48:07 | G60: 3475.291559 | H60: 174.0008839 | I60: 84.13477205 | J60: 35.09839164 | K60: 77.64886529 | L60: 83.33364809 | M60: 653.0824365 | N60: 1223.056051 | O60: 537.2240633 | P60: 150.3899357 | Q60: 316.9288757 | R60: 140.393636 | S60: 296.7880361 | T60: 135.8267203 | U60: 0.4576556456 | V60: 2.185048977
A61: 22 | B61: Site 1 | C61: P1 Accabonac | D61: Migr. All Dry | E61: Default | F61: 2017-10-27T09:48:07 | G61: 9092.98044 | H61: 739.1345231 | I61: 731.7803827 | J61: 630.7008661 | K61: 358.6393477 | L61: 303.616837 | M61: 696.7311275 | N61: 1304.798864 | O61: 1938.301193 | P61: 800.4997049 | Q61: 1077.269065 | R61: 511.5085285 | S61: 1237.829926 | T61: 74.175621 | U61: 0.05992391962 | V61: 16.68782694
A62: 21 | B62: Site 2 | C62: P2 Nappeauge | D62: Migr. All Dry | E62: Default | F62: 2017-10-27T09:48:07 | G62: 12300.77543 | H62: 1444.697234 | I62: 353.5924619 | J62: 300.0080509 | K62: 673.2796284 | L62: 640.3571803 | M62: 734.1462916 | N62: 1374.867879 | O62: 4013.298124 | P62: 1411.611799 | Q62: 276.0959759 | R62: 1078.8208 | S62: 4416.377685 | T62: 93.46404475 | U62: 0.0211630552 | V62: 47.25215666
A63: 20 | B63: Site 3 | C63: P3 Ashamonaque | D63: Migr. All Dry | E63: Default | F63: 2017-10-27T09:48:07 | G63: 9124.726922 | H63: 668.5480557 | I63: 491.5661735 | J63: 408.4003922 | K63: 295.9306483 | L63: 283.9265689 | M63: 697.5433951 | N63: 1306.320033 | O63: 1745.682456 | P63: 630.0036559 | Q63: 2118.46955 | R63: 478.3359937 | S63: 3389.588073 | T63: 147.054588 | U63: 0.04338420623 | V63: 23.04986277
A64: 19 | B64: Site 4 | C64: P4 Orient | D64: Migr. All Dry | E64: Default | F64: 2017-10-27T09:48:07 | G64: 14372.95744 | H64: 1429.834425 | I64: 1053.467255 | J64: 1190.641964 | K64: 665.3143452 | L64: 614.3352783 | M64: 789.665156 | N64: 1478.840485 | O64: 3798.715554 | P64: 1425.759273 | Q64: 891.4024559 | R64: 1034.981252 | S64: 4103.201767 | T64: 35.3538825 | U64: 0.008616169641 | V64: 116.0608532
A65: 18 | B65: Site 5 | C65: P5 Mashomack | D65: Migr. All Dry | E65: Default | F65: 2017-10-27T09:48:07 | G65: 4840.708404 | H65: 447.2001093 | I65: 108.5170725 | J65: 85.89104857 | K65: 174.4037933 | L65: 193.6744641 | M65: 700.8597196 | N65: 1312.530659 | O65: 1141.339454 | P65: 350.0053694 | Q65: 0 | R65: 326.2867143 | S65: 859.6050643 | T65: 117.20009 | U65: 0.1363417863 | V65: 7.334508568
A66: 17 | B66: Site 6 | C66: P6 Flanders | D66: Migr. All Dry | E66: Default | F66: 2017-10-27T09:48:07 | G66: 12576.51201 | H66: 1335.49718 | I66: 660.7210029 | J66: 569.5709808 | K66: 648.2227084 | L66: 551.7214062 | M66: 760.4729998 | N66: 1424.171057 | O66: 3475.622707 | P66: 1441.892891 | Q66: 779.1244952 | R66: 929.4945807 | S66: 2172.324151 | T66: 407.5631638 | U66: 0.1876161822 | V66: 5.33003064
A67: 16 | B67: Site 7 | C67: P7 Cedar Beach | D67: Migr. All Dry | E67: Default | F67: 2017-10-27T09:48:07 | G67: 3631.005176 | H67: 111.4276016 | I67: 108.0523763 | J67: 90.47239746 | K67: 50.18494011 | L67: 52.46819097 | M67: 655.7526201 | N67: 1228.056621 | O67: 314.2904212 | P67: 99.03981773 | Q67: 832.8661224 | R67: 88.39406739 | S67: 781.1560154 | T67: 174.1003083 | U67: 0.2228752065 | V67: 4.486815809
A68: 15 | B68: Site 8 | C68: S1 Carmans | D68: Migr. All Dry | E68: Default | F68: 2017-10-27T09:48:07 | G68: 21782.7393 | H68: 2013.170852 | I68: 2979.777561 | J68: 2094.558357 | K68: 926.4160459 | L68: 824.4278942 | M68: 888.7627282 | N68: 1664.424844 | O68: 5120.483441 | P68: 2044.597096 | Q68: 1837.192566 | R68: 1388.92791 | S68: 3290.246997 | T68: 259.341935 | U68: 0.07882141834 | V68: 12.68690695
A69: 14 | B69: Site 9 | C69: S2 Thome | D69: Migr. All Dry | E69: Default | F69: 2017-10-27T09:48:07 | G69: 5666.295994 | H69: 259.3968176 | I69: 383.4446747 | J69: 219.2873099 | K69: 124.3170614 | L69: 110.3321004 | M69: 673.3908225 | N69: 1261.088454 | O69: 671.302704 | P69: 270.5087659 | Q69: 1507.348889 | R69: 185.8783949 | S69: 1609.174883 | T69: 81.43932725 | U69: 0.05060937014 | V69: 19.75918683
A70: 13 | B70: Site 10 | C70: S3 Weesuck | D70: Migr. All Dry | E70: Default | F70: 2017-10-27T09:48:07 | G70: 4226.225758 | H70: 203.0101699 | I70: 300.4109732 | J70: 215.0279838 | K70: 97.61827377 | L70: 85.70059017 | M70: 657.3769503 | N70: 1231.098575 | O70: 532.2850098 | P70: 213.6594637 | Q70: 545.6565043 | R70: 144.3812642 | S70: 1051.302638 | T70: 178.2266995 | U70: 0.1695293943 | V70: 5.898682077
A71: 12 | B71: Site 11 | C71: S4 Smith Pt. | D71: Migr. All Dry | E71: Default | F71: 2017-10-27T09:48:07 | G71: 5500.857198 | H71: 180.9789117 | I71: 312.2065837 | J71: 191.3696639 | K71: 86.81625176 | L71: 76.81551104 | M71: 659.3621637 | N71: 1234.816371 | O71: 477.8477189 | P71: 189.2205791 | Q71: 1962.011025 | R71: 129.412418 | S71: 1681.800996 | T71: 22.140272 | U71: 0.01316462058 | V71: 75.96117139
A72: 11 | B72: Site 12 | C72: S5 Mastic | D72: Migr. All Dry | E72: Default | F72: 2017-10-27T09:48:07 | G72: 16367.30007 | H72: 1329.541482 | I72: 2618.595625 | J72: 1388.754466 | K72: 620.5513826 | L72: 559.7695179 | M72: 786.7034103 | N72: 1473.293895 | O72: 3440.61102 | P72: 1349.663019 | Q72: 1856.762879 | R72: 943.0533734 | S72: 6100.530065 | T72: 240.5628243 | U72: 0.03943310199 | V72: 25.3594049
A73: 10 | B73: Site 13 | C73: S6 Thorne | D73: Migr. All Dry | E73: Default | F73: 2017-10-27T09:48:07 | G73: 5607.618685 | H73: 223.8279853 | I73: 439.5256679 | J73: 234.5875896 | K73: 106.0224825 | L73: 97.69333045 | M73: 671.739482 | N73: 1257.995916 | O73: 589.7558777 | P73: 225.9115378 | Q73: 1595.973174 | R73: 164.5856409 | S73: 1328.056525 | T73: 33.14516675 | U73: 0.0249576476 | V73: 40.06787884
A74: 9 | B74: Site 14 | C74: S7 Timber | D74: Migr. All Dry | E74: Default | F74: 2017-10-27T09:48:07 | G74: 5098.588943 | H74: 180.9967081 | I74: 441.8365607 | J74: 374.7630301 | K74: 84.24078361 | L74: 81.97863655 | M74: 671.5409281 | N74: 1257.624076 | O74: 489.8111521 | P74: 173.7013036 | Q74: 1203.98494 | R74: 138.1108247 | S74: 1737.101244 | T74: 56.881143 | U74: 0.03274486344 | V74: 30.53914095
A75: 8 | B75: Site 15 | C75: S8 W. Sayville | D75: Migr. All Dry | E75: Default | F75: 2017-10-27T09:48:07 | G75: 9926.554203 | H75: 368.3476606 | I75: 904.401441 | J75: 772.5974556 | K75: 174.6358606 | L75: 160.4569712 | M75: 694.0682508 | N75: 1299.811979 | O75: 981.5821207 | P75: 372.7237451 | Q75: 3927.604089 | R75: 270.3246303 | S75: 2405.27929 | T75: 59.48544925 | U75: 0.02473120253 | V75: 40.43475035
A76: 7 | B76: Site 16 | C76: S9 Pepperrige | D76: Migr. All Dry | E76: Default | F76: 2017-10-27T09:48:07 | G76: 12516.39416 | H76: 824.8024888 | I76: 1621.120563 | J76: 866.2042335 | K76: 391.8214532 | L76: 357.7431206 | M76: 752.5032173 | N76: 1409.245697 | O76: 2170.358218 | P76: 839.2771206 | Q76: 2680.622036 | R76: 602.6960132 | S76: 4818.274284 | T76: 36.347182 | U76: 0.007543609985 | V76: 132.5625267
A77: 6 | B77: Site 17 | C77: S10 Stokes | D77: Migr. All Dry | E77: Default | F77: 2017-10-27T09:48:07 | G77: 4281.729456 | H77: 143.9143514 | I77: 280.3565531 | J77: 237.0659512 | K77: 66.44973397 | L77: 66.24423312 | M77: 653.112522 | N77: 1223.112394 | O77: 411.1316953 | P77: 134.9151689 | Q77: 953.8240504 | R77: 111.6028035 | S77: 1385.156257 | T77: 48.20036575 | U77: 0.03479778219 | V77: 28.73746362
A78: 5 | B78: Site 18 | C78: S11 Captree | D78: Migr. All Dry | E78: Default | F78: 2017-10-27T09:48:07 | G78: 8624.402535 | H78: 889.2323303 | I78: 216.0938009 | J78: 182.2587679 | K78: 407.8710685 | L78: 414.7337313 | M78: 861.8529655 | N78: 1614.029754 | O78: 2483.023449 | P78: 817.3007121 | Q78: 39.2968758 | R78: 698.7090792 | S78: 532.2067155 | T78: 40.17932 | U78: 0.07549570276 | V78: 13.24578702
A79: 4 | B79: Site 19 | C79: S12 Shinnecock | D79: Migr. All Dry | E79: Default | F79: 2017-10-27T09:48:07 | G79: =SUM(H79:R79) -> 4552.066223 | H79: 285.5123107 | I79: 139.170556 | J79: 176.711824 | K79: 132.1988499 | L79: 130.686135 | M79: 670.0904059 | N79: 1254.90762 | O79: 809.1355923 | P79: 269.87722 | Q79: 463.6065214 | R79: 220.1691884 | S79: 1045.330606 | T79: 236.8119425 | U79: 0.2265426279 | V79: 4.414180277
A80: 3 | B80: Site 20 | C80: L1 Wading | D80: Migr. All Dry | E80: Default | F80: 2017-10-27T09:48:07 | G80: 6868.44779 | H80: 449.357801 | I80: 440.047505 | J80: 374.5831941 | K80: 211.0906807 | L80: 199.6417876 | M80: 662.5464907 | N80: 1240.7798 | O80: 1309.444248 | P80: 442.9552581 | Q80: 1201.661058 | R80: 336.3399672 | S80: 321.0398227 | T80: 59.7865965 | U80: 0.1862279763 | V80: 5.36976248
A81: 2 | B81: Site 21 | C81: L2 Sunken | D81: Migr. All Dry | E81: Default | F81: 2017-10-27T09:48:07 | G81: 5931.276329 | H81: 327.3726885 | I81: 320.4596638 | J81: 272.6494458 | K81: 153.5874625 | L81: 145.8437705 | M81: 654.0950466 | N81: 1224.95241 | O81: 942.9130193 | P81: 321.5092382 | Q81: 1322.188064 | R81: 245.7055188 | S81: 1271.302589 | T81: 22.744773 | U81: 0.01789092006 | V81: 55.89427467
A82: 1 | B82: Site 22 | C82: L3 Crab | D82: Migr. All Dry | E82: Default | F82: 2017-10-27T09:48:07 | G82: 10066.31837 | H82: 705.7741311 | I82: 870.5825859 | J82: 748.0402394 | K82: 339.6875606 | L82: 297.3171812 | M82: 660.4547461 | N82: 1236.862498 | O82: 1977.21973 | P82: 744.6800208 | Q82: 1984.804286 | R82: 500.8953895 | S82: 588.4685975 | T82: 51.18956125 | U82: 0.08698775341 | V82: 11.49587109
A83: 0 | B83: Site 23 | C83: L4 Flax | D83: Migr. All Dry | E83: Default | F83: 2017-10-27T09:48:07 | G83: 3488.03409 | H83: 175.3786523 | I83: 84.80452253 | J83: 35.38089856 | K83: 78.28119378 | L83: 83.97548093 | M83: 653.0832283 | N83: 1223.057534 | O83: 541.5554699 | P83: 151.6585197 | Q83: 319.3836473 | R83: 141.4749429 | S83: 309.530567 | T83: 196.0992703 | U83: 0.6335376573 | V83: 1.578438138
A84: 22 | B84: Site 1 | C84: P1 Accabonac | D84: Thin Layer Depo. | E84: Default | F84: 2017-10-27T09:48:07 | G84: 7878.823851 | H84: 615.6531855 | I84: 609.8289377 | J84: 525.8124805 | K84: 299.0569394 | L84: 251.9000927 | M84: 690.6515227 | N84: 1293.413323 | O84: 1605.31511 | P84: 669.302815 | Q84: 893.5090097 | R84: 424.3804362 | S84: 23.67333777 | T84: 4.826712833 | U84: 0.2038881411 | V84: 4.904650141
A85: 21 | B85: Site 2 | C85: P2 Nappeauge | D85: Thin Layer Depo. | E85: Default | F85: 2017-10-27T09:48:07 | G85: 7948.320443 | H85: 843.4368357 | I85: 206.0372236 | J85: 174.0320747 | K85: 388.6584659 | L85: 377.5624668 | M85: 701.1933404 | N85: 1313.155446 | O85: 2339.992345 | P85: 805.8542465 | Q85: 162.3119898 | R85: 636.086008 | S85: 63.92270248 | T85: 7.5979176 | U85: 0.1188610197 | V85: 8.413187119
A86: 20 | B86: Site 3 | C86: P3 Ashamonaque | D86: Thin Layer Depo. | E86: Default | F86: 2017-10-27T09:48:07 | G86: 5765.066494 | H86: 367.3719562 | I86: 268.8259945 | J86: 217.2119399 | K86: 151.3613338 | L86: 156.4184041 | M86: 682.8806759 | N86: 1278.860518 | O86: 934.6672175 | P86: 314.3247158 | Q86: 1129.622952 | R86: 263.5207866 | S86: 29.92764507 | T86: 2.33364612 | U86: 0.07797626959 | V86: 12.82441447
A87: 19 | B87: Site 4 | C87: P4 Orient | D87: Thin Layer Depo. | E87: Default | F87: 2017-10-27T09:48:07 | G87: 10467.36171 | H87: 982.2317369 | I87: 722.8852637 | J87: 813.4310258 | K87: 452.0609606 | L87: 423.3845277 | M87: 762.0666877 | N87: 1427.155626 | O87: 2595.86785 | P87: 963.4039656 | Q87: 611.5908363 | R87: 713.2832252 | S87: 197.6060282 | T87: 21.57944276 | U87: 0.1092043747 | V87: 9.157142307
A88: 18 | B88: Site 5 | C88: P5 Mashomack | D88: Thin Layer Depo. | E88: Default | F88: 2017-10-27T09:48:07 | G88: 4030.957938 | H88: 330.3565066 | I88: 79.66824071 | J88: 61.0788123 | K88: 118.02517 | L88: 144.7358384 | M88: 690.9530249 | N88: 1293.977959 | O88: 842.456757 | P88: 225.8666626 | Q88: 0 | R88: 243.8389664 | S88: 49.85459769 | T88: 19.73762612 | U88: 0.3959038291 | V88: 2.525865947
A89: 17 | B89: Site 6 | C89: P6 Flanders | D89: Thin Layer Depo. | E89: Default | F89: 2017-10-27T09:48:07 | G89: 10476.28758 | H89: 1072.033898 | I89: 530.4744265 | J89: 457.3950997 | K89: 520.6454414 | L89: 442.2760286 | M89: 746.7079316 | N89: 1398.392612 | O89: 2779.424804 | P89: 1159.258276 | Q89: 624.5690014 | R89: 745.110063 | S89: 72.09972326 | T89: 11.47489073 | U89: 0.1591530482 | V89: 6.283260115
A90: 16 | B90: Site 7 | C90: P7 Cedar Beach | D90: Thin Layer Depo. | E90: Default | F90: 2017-10-27T09:48:07 | G90: 2850.37528 | H90: 60.09810852 | I90: 57.5093318 | J90: 47.18358675 | K90: 25.68304555 | L90: 30.5301212 | M90: 651.170857 | N90: 1219.476153 | O90: 178.3651109 | P90: 45.95463709 | Q90: 482.9697068 | R90: 51.43462242 | S90: 0.5261197594 | T90: 1.312675943 | U90: 2.495013577 | V90: 0.4007994223
A91: 15 | B91: Site 8 | C91: S1 Carmans | D91: Thin Layer Depo. | E91: Default | F91: 2017-10-27T09:48:07 | G91: 18549.54368 | H91: 1693.006451 | I91: 2507.448805 | J91: 1757.729448 | K91: 773.9395548 | L91: 686.326086 | M91: 858.4466703 | N91: 1607.650636 | O91: 4271.938397 | P91: 1716.512438 | Q91: 1520.279785 | R91: 1156.265409 | S91: 57.05138006 | T91: 10.21648563 | U91: 0.1790751708 | V91: 5.584247081
A92: 14 | B92: Site 9 | C92: S2 Thome | D92: Thin Layer Depo. | E92: Default | F92: 2017-10-27T09:48:07 | G92: 4067.212313 | H92: 151.7619106 | I92: 224.8645764 | J92: 128.9640475 | K92: 73.27142325 | L92: 63.47543056 | M92: 662.9334553 | N92: 1241.504485 | O92: 384.798985 | P92: 161.5032684 | Q92: 867.1965767 | R92: 106.938154 | S92: 10.0912011 | T92: 1.2210939 | U92: 0.1210058038 | V92: 8.264066421
A93: 13 | B93: Site 10 | C93: S3 Weesuck | D93: Thin Layer Depo. | E93: Default | F93: 2017-10-27T09:48:07 | G93: 3182.138029 | H93: 113.676604 | I93: 168.1264722 | J93: 120.2631542 | K93: 54.56971685 | L93: 48.17233905 | M93: 653.0583771 | N93: 1223.010994 | O93: 294.3041865 | P93: 119.0856547 | Q93: 306.7137585 | R93: 81.15677148 | S93: 7.214908545 | T93: 1.862168198 | U93: 0.2581000419 | V93: 3.874466632
A94: 12 | B94: Site 11 | C94: S4 Smith Pt. | D94: Thin Layer Depo. | E94: Default | F94: 2017-10-27T09:48:07 | G94: 3821.156951 | H94: 97.60168865 | I94: 168.438726 | J94: 103.2951756 | K94: 46.87777964 | L94: 41.31100364 | M94: 653.7145934 | N94: 1224.239919 | O94: 258.5263314 | P94: 102.3945041 | Q94: 1055.159868 | R94: 69.59736122 | S94: 2.100748731 | T94: 0.1322851725 | U94: 0.06297048788 | V94: 15.88045501
A95: 11 | B95: Site 12 | C95: S5 Mastic | D95: Thin Layer Depo. | E95: Default | F95: 2017-10-27T09:48:07 | G95: 10290.19354 | H95: 781.0083125 | I95: 1541.525799 | J95: 813.9378322 | K95: 360.7778293 | L95: 320.2437958 | M95: 741.248456 | N95: 1388.168413 | O95: 1957.484109 | P95: 796.3535191 | Q95: 1049.925222 | R95: 539.520253 | S95: 23.42353527 | T95: 3.50046918 | U95: 0.1494423937 | V95: 6.691541639
A96: 10 | B96: Site 13 | C96: S6 Thorne | D96: Thin Layer Depo. | E96: Default | F96: 2017-10-27T09:48:07 | G96: 4294.99356 | H96: 144.3090523 | I96: 282.7942011 | J96: 150.5547534 | K96: 67.9102388 | L96: 63.87555002 | M96: 665.4112353 | N96: 1246.144732 | O96: 379.9031663 | P96: 142.971489 | Q96: 1043.506899 | R96: 107.6122422 | S96: 15.43140016 | T96: 1.58742207 | U96: 0.102869607 | V96: 9.721044232
A97: 9 | B97: Site 14 | C97: S7 Timber | D97: Thin Layer Depo. | E97: Default | F97: 2017-10-27T09:48:07 | G97: 3387.028282 | H97: 84.1163811 | I97: 204.398915 | J97: 172.3805591 | K97: 38.57392986 | L97: 39.248202 | M97: 660.7392457 | N97: 1237.395293 | O97: 230.3705297 | P97: 77.26165819 | Q97: 576.4214447 | R97: 66.12212368 | S97: 25.54058201 | T97: 2.262415643 | U97: 0.08858120938 | V97: 11.28907595
A98: 8 | B98: Site 15 | C98: S8 W. Sayville | D98: Thin Layer Depo. | E98: Default | F98: 2017-10-27T09:48:07 | G98: 7528.281616 | H98: 258.8067925 | I98: 635.7031497 | J98: 543.3267283 | K98: 122.8591387 | L98: 112.425783 | M98: 683.9788913 | N98: 1280.917194 | O98: 686.1159959 | P98: 262.827167 | Q98: 2751.915118 | R98: 189.4056581 | S98: 7.006702562 | T98: 0.61054695 | U98: 0.08713755787 | V98: 11.47610771
A99: 7 | B99: Site 16 | C99: S9 Pepperrige | D99: Thin Layer Depo. | E99: Default | F99: 2017-10-27T09:48:07 | G99: 7715.630938 | H99: 450.7030426 | I99: 885.7717065 | J99: 473.2440452 | K99: 214.052771 | L99: 195.5903742 | M99: 715.7725815 | N99: 1340.458628 | O99: 1186.643001 | P99: 458.2927494 | Q99: 1465.587557 | R99: 329.5144811 | S99: 17.51106193 | T99: 2.798340188 | U99: 0.1598041397 | V99: 6.25766017
A100: 6 | B100: Site 17 | C100: S10 Stokes | D100: Thin Layer Depo. | E100: Default | F100: 2017-10-27T09:48:07 | G100: 2888.689756 | H100: 58.69711331 | I100: 112.587913 | J100: 93.347588 | K100: 25.75510503 | L100: 29.7063401 | M100: 648.195464 | N100: 1213.904004 | O100: 181.7938359 | P100: 46.92597388 | Q100: 427.7296344 | R100: 50.04678416 | S100: 0 | T100: 1.689179895 | U100: N / A | V100: 0
A101: 5 | B101: Site 18 | C101: S11 Captree | D101: Thin Layer Depo. | E101: Default | F101: 2017-10-27T09:48:07 | G101: 8307.656876 | H101: 837.4849388 | I101: 202.6485105 | J101: 169.9989319 | K101: 378.803869 | L101: 401.2369753 | M101: 852.5770792 | N101: 1596.658396 | O101: 2416.580811 | P101: 737.6784724 | Q101: 38.01803035 | R101: 675.9708612 | S101: 215.4610567 | T101: 52.08983062 | U101: 0.2417598401 | V101: 4.13633629
A102: 4 | B102: Site 19 | C102: S12 Shinnecock | D102: Thin Layer Depo. | E102: Default | F102: 2017-10-27T09:48:07 | G102: 3558.793418 | H102: 175.9773823 | I102: 85.02023076 | J102: 106.7553061 | K102: 79.15771862 | L102: 85.18588517 | M102: 665.2458816 | N102: 1245.835067 | O102: 517.5398461 | P102: 152.3666984 | Q102: 302.1952703 | R102: 143.5141318 | S102: 52.05780069 | T102: 9.72804807 | U102: 0.1868701317 | V102: 5.351309976
A103: 3 | B103: Site 20 | C103: L1 Wading | D103: Thin Layer Depo. | E103: Default | F103: 2017-10-27T09:48:07 | G103: 6568.713871 | H103: 422.6722262 | I103: 413.992293 | J103: 352.4854031 | K103: 198.673515 | L103: 187.5490837 | M103: 661.0426832 | N103: 1237.963553 | O103: 1232.130412 | P103: 417.3634869 | Q103: 1128.874034 | R103: 315.9671801 | S103: 21.3059036 | T103: 5.420300145 | U103: 0.2544036736 | V103: 3.930760849
A104: 2 | B104: Site 21 | C104: L2 Sunken | D104: Thin Layer Depo. | E104: Default | F104: 2017-10-27T09:48:07 | G104: 4665.063138 | H104: 226.1419533 | I104: 221.5543474 | J104: 188.6971692 | K104: 106.3825401 | L104: 100.1717944 | M104: 652.9450316 | N104: 1222.798727 | O104: 645.6533218 | P104: 223.8212892 | Q104: 908.1358123 | R104: 168.7611518 | S104: 5.089398868 | T104: 2.540553698 | U104: 0.4991854172 | V104: 2.003263648
A105: 1 | B105: Site 22 | C105: L3 Crab | D105: Thin Layer Depo. | E105: Default | F105: 2017-10-27T09:48:07 | G105: 9494.628894 | H105: 657.2364096 | I105: 811.0577207 | J105: 697.2554803 | K105: 316.7518868 | L105: 276.021185 | M105: 659.2986448 | N105: 1234.697416 | O105: 1838.62939 | P105: 696.0247829 | Q105: 1842.63832 | R105: 465.017657 | S105: 16.77912207 | T105: 6.461621888 | U105: 0.3850989259 | V105: 2.596735365
A106: 0 | B106: Site 23 | C106: L4 Flax | D106: Thin Layer Depo. | E106: Default | F106: 2017-10-27T09:48:07 | G106: 3199.106774 | H106: 143.2046889 | I106: 69.02934201 | J106: 28.65543378 | K106: 63.10122977 | L106: 69.81263055 | M106: 652.2234494 | N106: 1221.447388 | O106: 449.255314 | P106: 119.5467313 | Q106: 265.2160215 | R106: 117.6145443 | S106: 20.60325086 | T106: 9.901036373 | U106: 0.4805569976 | V106: 2.080918611
A108: 22
A109: 21
A110: 20
A111: 19
A112: 18
A113: 17
A114: 16
A115: 15
A116: 14
A117: 13
A118: 12
A119: 11
A120: 10
A121: 9
A122: 8
A123: 7
A124: 6
A125: 5
A126: 4
A127: 3
A128: 2
A129: 1
A130: 0
A131: 22
A132: 21
A133: 20
A134: 19
A135: 18
A136: 17
A137: 16
A138: 15
A139: 14
A140: 13
A141: 12
A142: 11
A143: 10
A144: 9
A145: 8
A146: 7
A147: 6
A148: 5
A149: 4
A150: 3
A151: 2
A152: 1
A153: 0
A154: 22
A155: 21
A156: 20
A157: 19
A158: 18
A159: 17
A160: 16
A161: 15
A162: 14
A163: 13
A164: 12
A165: 11
A166: 10
A167: 9
A168: 8
A169: 7
A170: 6
A171: 5
A172: 4
A173: 3
A174: 2
A175: 1
A176: 0
A177: 22
A178: 21
A179: 20
A180: 19
A181: 18
A182: 17
A183: 16
A184: 15
A185: 14
A186: 13
A187: 12
A188: 11
A189: 10
A190: 9
A191: 8
A192: 7
A193: 6
A194: 5
A195: 4
A196: 3
A197: 2
A198: 1
A199: 0
A201: 22
A202: 21
A203: 20
A204: 19
A205: 18
A206: 17
A207: 16
A208: 15
A209: 14
A210: 13
A211: 12
... 81 more rows

Sheet Ecosystem Service Benefits
C1: Graphs for DMMT Run 'Default' run on 10/27/2017 9:48:07 AM

Sheet Adaptation Strategy Benefits
B49: This 'Current Utility' graph is for DMMT Run 'Default' run on 10/27/2017 9:48:07 AM

Sheet Utility1
A1: N Points | B1: 2
A3: X Axis | B3: Utility [0..1] | D3: Function Name: | E3: Carbon Sequestration
A4: 0 | B4: =IF(A4>$E$9,1,0) -> 0 | D4: Optional Function Description: | E4: Linear function of marsh area and marsh type
A5: 1000000 | B5: =IF(A5>$E$9,1,0) -> 1
D6: Number of X Categories | E6: 3
E8: Cat # | F8: Weight | G8: description
D9: X1 | E9: 6 | F9: 1 | G9: Tidal Fresh acres
D10: X2 | E10: 33 | F10: 0.75 | G10: (aggregated) transitional acres
D11: X3 | E11: 32 | F11: 0.3225806452 | G11: salt marsh acres
D12: etc. | G12: (agg = trans + IFM)
D14: having both weights at 100% results in additive acrage

Sheet Utility2
A1: N Points | B1: 2
A3: X Axis | B3: Utility [0..1] | D3: Function Name: | E3: Nitrogen Sequestration
A4: 0 | B4: =IF(A4>$E$9,1,0) -> 0 | D4: Optional Function Description: | E4: Linear function of marsh area and marsh type
A5: 1000000 | B5: =IF(A5>$E$9,1,0) -> 1
D6: Number of X Categories | E6: 3
E8: Cat # | F8: Weight | G8: description
D9: X1 | E9: 6 | F9: 1 | G9: Tidal Fresh acres
D10: X2 | E10: 33 | F10: 0.7926829268 | G10: (aggregated) transitional acres
D11: X3 | E11: 32 | F11: 0.2926829268 | G11: salt marsh acres
D12: etc. | G12: (agg = trans + IFM)
D14: having both weights at 100% results in additive acrage

Sheet Utility3
A1: N Points | B1: 2
A3: X Axis | B3: Utility [0..1] | D3: Function Name: | E3: Phosphorus Sequestration
A4: 0 | B4: =IF(A4>$E$9,1,0) -> 0 | D4: Optional Function Description: | E4: Linear function of marsh area and marsh type
A5: 1000000 | B5: =IF(A5>$E$9,1,0) -> 1
D6: Number of X Categories | E6: 3
E8: Cat # | F8: Weight | G8: description
D9: X1 | E9: 6 | F9: 0.7 | G9: Tidal Fresh acres
D10: X2 | E10: 33 | F10: 1 | G10: (aggregated) transitional acres
D11: X3 | E11: 32 | F11: 0.3 | G11: salt marsh acres
D12: etc. | G12: (agg = trans + IFM)
D14: having both weights at 100% results in additive acrage

Sheet Utility4
A1: N Points | B1: 2
A3: X Axis | B3: Utility [0..1] | D3: Function Name: | E3: Marsh Land Recreation
A4: 0 | B4: =IF(A4>$E$9,1,0) -> 0 | D4: Optional Function Description: | E4: U=0 if Area < 1, upward utility to 60 acres then flat
A5: 1000 | B5: 1
D6: Number of X Categories | E6: 2
E8: Cat # | F8: Weight | G8: description
D9: X1 | E9: 32 | F9: 0.25 | G9: (aggregated) saltmarsh acres
D10: X2 | E10: 33 | F10: 1 | G10: (aggregated) transitional acres
D11: X3
D12: etc.
D14: having both weights at 100% results in additive acrage

Sheet Utility5
A1: N Points | B1: 2
A3: X Axis | B3: Utility [0..1] | D3: Function Name: | E3: Natural Areas for Underserved Communities
A4: 0 | B4: =IF(A4>$E$9,1,0) -> 0 | D4: Optional Function Description: | E4: Linear function of marsh area and marsh type
A5: 1000000 | B5: =IF(A5>$E$9,1,0) -> 1
D6: Number of X Categories | E6: 3
E8: Cat # | F8: Weight | G8: description
D9: X1 | E9: 6 | F9: 1 | G9: Tidal Fresh acres
D10: X2 | E10: 33 | F10: 1 | G10: (aggregated) transitional acres
D11: X3 | E11: 32 | F11: 1 | G11: salt marsh acres
D12: etc. | G12: (agg = trans + IFM)
D14: having both weights at 100% results in additive acrage

Sheet Utility6
A1: N Points | B1: 2
A3: X Axis | B3: Utility [0..1] | D3: Function Name: | E3: Nekton Habitat Proximate to Fishing Areas
A4: 0 | B4: 0.5 | D4: Optional Function Description: | E4: Linear function of marsh to open water interface
A5: 400000 | B5: =IF(A5>$E$9,1,0) -> 1
D6: Number of X Categories | E6: 1
E8: Cat # | F8: Weight | G8: description
D9: X1 | E9: 35 | F9: 1 | G9: marsh-to OW interface
D10: X2
D11: X3
D12: etc.
D14: having both weights at 100% results in additive acrage

Sheet Utility7
A1: N Points | B1: 2
A3: X Axis | B3: Utility [0..1] | D3: Function Name: | E3: Nekton Habitat (General)
A4: 0 | B4: 0.5 | D4: Optional Function Description: | E4: Linear function of marsh to open water interface
A5: 400000 | B5: =IF(A5>$E$9,1,0) -> 1
D6: Number of X Categories | E6: 1
E8: Cat # | F8: Weight | G8: description
D9: X1 | E9: 35 | F9: 1 | G9: marsh-to OW interface
D10: X2
D11: X3
D12: etc.
D14: having both weights at 100% results in additive acrage

Sheet Utility8
A1: N Points | B1: 2
A3: X Axis | B3: Utility [0..1] | D3: Function Name: | E3: Habitat connectivity / Frag
A4: 0 | B4: 0 | D4: Optional Function Description: | E4: Non Fragmentation Metric weighted by Wetland Area
A5: 1000 | B5: 1
D6: Number of X Categories | E6: 1
E8: Cat # | F8: Weight | G8: description
D9: X1 | E9: 36 | F9: 1
D10: X2
D11: X3
D12: etc.

Sheet Utility9
A1: N Points | B1: 2
A3: X Axis | B3: Utility [0..1] | D3: Function Name: | E3: Bird Habitat (high marsh)
A4: 0 | B4: =IF(A4>$E$9,1,0) -> 0 | D4: Optional Function Description: | E4: Linear function of irregularly-flooded marsh & transitional
A5: 8000 | B5: =IF(A5>$E$9,1,0) -> 1
D6: Number of X Categories | E6: 1
E8: Cat # | F8: Weight | G8: description
D9: X1 | E9: 33 | F9: 1 | G9: Acres of salt & trans. Marshes
D10: X2
D11: X3
D12: etc.
D14: having both weights at 100% results in additive acrage

Sheet Utility10
A1: N Points | B1: 2
A3: X Axis | B3: Utility [0..1] | D3: Function Name: | E3: Wave Attenuation
A4: 0 | B4: =IF(A4>$E$9,1,0) -> 0 | D4: Optional Function Description: | E4: Linear function of marsh Width
A5: 4000 | B5: =IF(A5>$E$9,1,0) -> 1
D6: Number of X Categories | E6: 1
E8: Cat # | F8: Weight | G8: description
D9: X1 | E9: 38 | F9: 1 | G9: Width of salt & trans. Marshes
D10: X2
D11: X3
D12: etc.
D14: having both weights at 100% results in additive acrage

Sheet Utility11
A1: N Points | B1: 2
A3: X Axis | B3: Utility [0..1] | D3: Function Name: | E3: Political/Cultural/Historic value
A4: 0 | B4: =IF(A4>$E$9,1,0) -> 0 | D4: Optional Function Description: | E4: Linear function of marsh Width
A5: 1000000 | B5: =IF(A5>$E$9,1,0) -> 1
D6: Number of X Categories | E6: 3
E8: Cat # | F8: Weight | G8: description
D9: X1 | E9: 6 | F9: 1 | G9: Tidal Fresh acres
D10: X2 | E10: 33 | F10: 1 | G10: (aggregated) transitional acres
D11: X3 | E11: 32 | F11: 1 | G11: salt marsh acres
D12: etc. | G12: (agg = trans + IFM)
D14: having both weights at 100% results in additive acrage

Sheet Data Setup
B2: NSites | C2: 23 | E2: NYears | F2: 7 | H2: NSims | I2: 50 | K2: NCats | L2: 38 | N2: NUtil Functions | O2: 11
B4: NScenarios | C4: 4 | N4: Utility output Summaries | R4: ID | S4: Site ID | T4: Parcel
O5: (For dropdown sort menu) | R5: 1 | S5: P1 | T5: P1 Accabonac
B6: Scenario | C6: Num | D6: Name | E6: Start Row in Raw SLAMM Results | N6: Site number | R6: 2 | S6: P2 | T6: P2 Nappeauge
B7: Scenario | C7: 1 | D7: No Migration | E7: 16105 | G7: Base Case | N7: Site Name | R7: 3 | S7: P3 | T7: P3 Ashamonaque
B8: Scenario | C8: 2 | D8: Migr. Undeveloped | E8: 8054 | N8: Adaptation Strategy | R8: 4 | S8: P4 | T8: P4 Orient
B9: Scenario | C9: 3 | D9: Migr. All Dry | E9: 3 | N9: Run Identification | R9: 5 | S9: P5 | T9: P5 Mashomack
B10: Scenario | C10: 4 | D10: Thin Layer Depo. | E10: 24156 | N10: DMMT Run Time | R10: 6 | S10: P6 | T10: P6 Flanders
N11: Overall Benefit (descending) | R11: 7 | S11: P7 | T11: P7 Cedar Beach
N12: Incremental Benefit | R12: 8 | S12: S1 | T12: S1 Carmans
N13: Cost of Strategy (millions) | R13: 9 | S13: S2 | T13: S2 Thorne / Gardiner
N14: Cost per Unit Benefit | R14: 10 | S14: S3 | T14: S3 Weesuck
N15: Benefit per Unit Cost | R15: 11 | S15: S4 | T15: S4 Smith Pt.
R16: 12 | S16: S5 | T16: S5 Mastic
R17: 13 | S17: S6 | T17: S6 Thorne
R18: 14 | S18: S7 | T18: S7 Timber
R19: 15 | S19: S8 | T19: S8 W. Sayville
B20: Do not Edit This Item | R20: 16 | S20: S9 | T20: S9 Pepperrige
B21: Use Marsh Loss Rates | D21: FALSE | R21: 17 | S21: S10 | T21: S10 Stokes
R22: 18 | S22: S11 | T22: S11 Captree
R23: 19 | S23: S12 | T23: S12 Shinnecock
R24: 20 | S24: L1 | T24: L1 Wading
R25: 21 | S25: L2 | T25: L2 Sunken
R26: 22 | S26: L3 | T26: L3 Crab
R27: 23 | S27: L4 | T27: L4 Flax

Sheet Marsh to Open Water
A1: Site Desc. | B1: (All)
C3: Values
A4: Strategy | B4: Date | C4: Average of Marsh OW (m) | D4: Average of Aggregated Saltmarsh | E4: Average of Aggregated Transitional | F4: Min of Marsh OW (m) | G4: Max of Marsh OW (m)2 | J4: M/OW | K4: Total Marsh | M4: Date | N4: M/OW to Tmarsh | P4: =M4 -> Date | Q4: =J4 -> M/OW
A5: Migr. Dev. | B5: 2010 | C5: 14116.5 | D5: 12.89643261 | E5: 86.81640652 | F5: 720 | G5: 66530 | J5: =C5 -> 14116.5 | K5: =SUM(E5,D5) -> 99.71283913 | M5: =B5 -> 2010 | N5: =J5/K5 -> 141.5715381 | P5: =M5 -> 2010 | Q5: =J5 -> 14116.5
B6: 2025 | C6: 22092.23478 | D6: 19.872 | E6: 82.63598913 | F6: 1390 | G6: 179050 | J6: =C6 -> 22092.23478 | K6: =SUM(E6,D6) -> 102.5079891 | M6: =B6 -> 2025 | N6: =J6/K6 -> 215.5171999 | P6: 2025 | Q6: 22092.23478
B7: 2040 | C7: 33265.07391 | D7: 33.2745913 | E7: 74.31183696 | F7: 1500 | G7: 278305 | J7: 33265.07391 | K7: 107.5864283 | M7: 2040 | N7: 309.1939611 | P7: 2040 | Q7: 33265.07391
B8: 2055 | C8: 46936.32174 | D8: 45.45185435 | E8: 63.58839565 | F8: 2230 | G8: 334595 | J8: 46936.32174 | K8: 109.04025 | M8: 2055 | N8: 430.4495059 | P8: 2055 | Q8: 46936.32174
B9: 2070 | C9: 54773.42174 | D9: 54.72136739 | E9: 54.23134783 | F9: 2755 | G9: 331910 | J9: 54773.42174 | K9: 108.9527152 | M9: 2070 | N9: 502.7265418 | P9: 2070 | Q9: 54773.42174
B10: 2085 | C10: 56846.8 | D10: 60.25691739 | E10: 46.59751957 | F10: 3180 | G10: 336835 | J10: 56846.8 | K10: 106.854437 | M10: 2085 | N10: 532.0022417 | P10: 2085 | Q10: 56846.8
B11: 2100 | C11: 58101.3913 | D11: 62.34547391 | E11: 40.92591522 | F11: 3910 | G11: 337525 | J11: 58101.3913 | K11: 103.2713891 | M11: 2100 | N11: 562.6087902 | P11: 2100 | Q11: 58101.3913
A12: Migr. Undev. | B12: 2010 | C12: 14116.53478 | D12: 12.89646522 | E12: 86.22916304 | F12: 720 | G12: 66530 | J12: 14116.53478 | K12: 99.12562826 | M12: 2010 | N12: 142.4105454 | P12: 2010 | Q12: 14116.53478
B13: 2025 | C13: 21973.56522 | D13: 19.66675435 | E13: 81.71581522 | F13: 1390 | G13: 178770 | J13: 21973.56522 | K13: 101.3825696 | M13: 2025 | N13: 216.7390836 | P13: 2025 | Q13: 21973.56522
B14: 2040 | C14: 32997.1087 | D14: 32.75433913 | E14: 72.52538696 | F14: 1480 | G14: 277030 | J14: 32997.1087 | K14: 105.2797261 | M14: 2040 | N14: 313.4232005 | P14: 2040 | Q14: 32997.1087
B15: 2055 | C15: 46243.75652 | D15: 44.1361 | E15: 60.75104565 | F15: 2210 | G15: 331700 | J15: 46243.75652 | K15: 104.8871457 | M15: 2055 | N15: 440.8905995 | P15: 2055 | Q15: 46243.75652
B16: 2070 | C16: 53027.02609 | D16: 52.07385652 | E16: 50.38234348 | F16: 2705 | G16: 328485 | J16: 53027.02609 | K16: 102.4562 | M16: 2070 | N16: 517.5580012 | P16: 2070 | Q16: 53027.02609
B17: 2085 | C17: 53755.7913 | D17: 56.08910435 | E17: 42.26163043 | F17: 3130 | G17: 332860 | J17: 53755.7913 | K17: 98.35073478 | M17: 2085 | N17: 546.5723405 | P17: 2085 | Q17: 53755.7913
B18: 2100 | C18: 53655.43913 | D18: 56.98391087 | E18: 36.33367609 | F18: 3860 | G18: 334240 | J18: 53655.43913 | K18: 93.31758696 | M18: 2100 | N18: 574.97671 | P18: 2100 | Q18: 53655.43913
A19: No Migration | B19: 2010 | C19: 18295.37826 | D19: 14.85136522 | E19: 81.82895 | F19: 1510 | G19: 105740 | J19: 18295.37826 | K19: 96.68031522 | M19: 2010 | N19: 189.2358152 | P19: 2010 | Q19: 18295.37826
B20: 2025 | C20: 21998.04348 | D20: 19.5283413 | E20: 76.34799783 | F20: 1470 | G20: 178925 | J20: 21998.04348 | K20: 95.87633913 | M20: 2025 | N20: 229.4418381 | P20: 2025 | Q20: 21998.04348
B21: 2040 | C21: 32510.57391 | D21: 30.72498696 | E21: 61.76638478 | F21: 1675 | G21: 269020 | J21: 32510.57391 | K21: 92.49137174 | M21: 2040 | N21: 351.4984512 | P21: 2040 | Q21: 32510.57391
B22: 2055 | C22: 43717.63913 | D22: 37.11418043 | E22: 44.64332391 | F22: 2095 | G22: 313650 | J22: 43717.63913 | K22: 81.75750435 | M22: 2055 | N22: 534.7232585 | P22: 2055 | Q22: 43717.63913
B23: 2070 | C23: 45382.3 | D23: 37.22466739 | E23: 29.61576739 | F23: 880 | G23: 302560 | J23: 45382.3 | K23: 66.84043478 | M23: 2070 | N23: 678.9647636 | P23: 2070 | Q23: 45382.3
B24: 2085 | C24: 39726 | D24: 32.9131087 | E24: 19.87371087 | F24: 50 | G24: 315880 | J24: 39726 | K24: 52.78681957 | M24: 2085 | N24: 752.5742283 | P24: 2085 | Q24: 39726
B25: 2100 | C25: 33631.78696 | D25: 27.90761957 | E25: 13.84512609 | F25: 10 | G25: 302380 | J25: 33631.78696 | K25: 41.75274565 | M25: 2100 | N25: 805.4988105 | P25: 2100 | Q25: 33631.78696
A26: Thin Layer | B26: 2010 | C26: 16846.04348 | D26: 15.55258478 | E26: 81.92191087 | F26: 1470 | G26: 86430 | J26: 16846.04348 | K26: 97.47449565 | M26: 2010 | N26: 172.8251412 | P26: 2010 | Q26: 16846.04348
B27: 2025 | C27: 20633.81739 | D27: 20.3663913 | E27: 76.44167609 | F27: 1430 | G27: 171250 | J27: 20633.81739 | K27: 96.80806739 | M27: 2025 | N27: 213.1415072 | P27: 2025 | Q27: 20633.81739
B28: 2040 | C28: 31310.71304 | D28: 31.89000217 | E28: 61.84852609 | F28: 1585 | G28: 271085 | J28: 31310.71304 | K28: 93.73852826 | M28: 2040 | N28: 334.0218118 | P28: 2040 | Q28: 31310.71304
B29: 2055 | C29: 43388.4 | D29: 38.4157 | E29: 44.68817174 | F29: 1920 | G29: 315200 | J29: 43388.4 | K29: 83.10387174 | M29: 2055 | N29: 522.0984184 | P29: 2055 | Q29: 43388.4
B30: 2070 | C30: 45509.93913 | D30: 38.38176304 | E30: 29.64526087 | F30: 880 | G30: 305120 | J30: 45509.93913 | K30: 68.02702391 | M30: 2070 | N30: 668.9979439 | P30: 2070 | Q30: 45509.93913
B31: 2085 | C31: 40062.70435 | D31: 33.85658913 | E31: 19.88962174 | F31: 50 | G31: 318380 | J31: 40062.70435 | K31: 53.74621087 | M31: 2085 | N31: 745.4051867 | P31: 2085 | Q31: 40062.70435
B32: 2100 | C32: 34005.8087 | D32: 28.6479913 | E32: 13.85477391 | F32: 10 | G32: 305490 | J32: 34005.8087 | K32: 42.50276522 | M32: 2100 | N32: 800.0846185 | P32: 2100 | Q32: 34005.8087
A33: (blank) | B33: (blank)
F35: =MIN(F5:F32) -> 10 | G35: =MAX(G5:G32) -> 337525

Sheet Raw SLAMM Results
H1: C1 (ha) | I1: C2 (ha) | J1: C3 (ha) | K1: C4 (ha) | L1: C5 (ha) | M1: C6 (ha) | N1: C7 (ha) | O1: C8 (ha) | P1: C9 (ha) | Q1: C10 (ha) | R1: C11 (ha) | S1: C12 (ha) | T1: C13 (ha) | U1: C14 (ha) | V1: C15 (ha) | W1: C16 (ha) | X1: C17 (ha) | Y1: C18 (ha) | Z1: C19 (ha) | AA1: C20 (ha) | AB1: C21 (ha) | AC1: C22 (ha) | AD1: C23 (ha) | AE1: C24 (ha) | AF1: C25 (ha) | AG1: C26 (ha) | AH1: C27 (ha) | AI1: C28 (ha) | AJ1: C29 (ha) | AK1: C30 (ha) | AL1: C31 (ha) | AM1: C32 (ha) | AN1: C33 (ha) | AO1: C34 (ha) | AP1: C35 (ha) | AQ1: C36 | AR1: C37 | AS1: C38
A2: Strategy | B2: Date | C2: Site Desc. | D2: Scenario | E2: Parameters | F2: Protection | G2: SLR (eustatic) | H2: Developed Dry Land | I2: Undeveloped Dry Land | J2: Swamp | K2: Cypress Swamp | L2: Inland-Fresh Marsh | M2: Tidal-Fresh Marsh | N2: Trans. Salt Marsh | O2: Regularly-Flooded Marsh | P2: Mangrove | Q2: Estuarine Beach | R2: Tidal Flat | S2: Ocean Beach | T2: Ocean Flat | U2: Rocky Intertidal | V2: Inland Open Water | W2: Riverine Tidal | X2: Estuarine Open Water | Y2: Tidal Creek | Z2: Open Ocean | AA2: Irreg.-Flooded Marsh | AB2: Not Used | AC2: Inland Shore | AD2: Tidal Swamp | AE2: Blank | AF2: Flooded Developed Dry Land | AG2: Flooded Forest | AH2: SAV (sq.km) | AI2: Aggregated Non Tidal | AJ2: Aggregated Freshwater Non-Tidal | AK2: Aggregated Open Water | AL2: Aggregated Low Tidal | AM2: Aggregated Saltmarsh | AN2: Aggregated Transitional | AO2: Aggregated Freshwater Tidal | AP2: Marsh OW (m) | AQ2: Non Frag. Area (unitless) | AR2: Edge Density (m/m2) | AS2: Marsh Width (m, if lengths input) | AU2: db Site Num
A3: Migr. Dev. | B3: 2010 | C3: P1 Accabonac | D3: Iteration 1 | E3: N A | F3: N A | G3: N A | H3: 39.405 | I3: 219.225 | J3: 1.1025 | K3: 0 | L3: 0.0975 | M3: 0.175 | N3: 3.31 | O3: 7.43 | P3: 0 | Q3: 0 | R3: 0 | S3: 11.2525 | T3: 0 | U3: 0 | V3: 0 | W3: 0 | X3: 123.165 | Y3: 0 | Z3: 10.9475 | AA3: 104.7875 | AB3: 0 | AC3: 0 | AD3: 8.345 | AE3: 0 | AF3: 0 | AG3: 0 | AH3: -9999 | AI3: 258.63 | AJ3: 1.2 | AK3: 134.1125 | AL3: 11.2525 | AM3: 7.43 | AN3: 108.0975 | AO3: 8.52 | AP3: 14710 | AQ3: 111.80935 | AR3: 0.030103066 | AS3: 372.66935 | AU3: 1 | AW3: DB # | AX3: id | AY3: ID2 | AZ3: Name | BA3: Area | BB3: Full Name | BC3: Brief Name
A4: Migr. Dev. | B4: 2025 | C4: P1 Accabonac | D4: Iteration 1 | E4: N A | F4: N A | G4: N A | H4: 38.555 | I4: 208.3075 | J4: 1.1025 | K4: 0 | L4: 0.0975 | M4: 0.175 | N4: 6.6875 | O4: 17.165 | P4: 0 | Q4: 0 | R4: 0.7225 | S4: 18.32 | T4: 0 | U4: 0 | V4: 0 | W4: 0 | X4: 123.325 | Y4: 0 | Z4: 11.195 | AA4: 95.745 | AB4: 0 | AC4: 0 | AD4: 7.845 | AE4: 0 | AF4: 0 | AG4: 0 | AH4: -9999 | AI4: 246.8625 | AJ4: 1.2 | AK4: 134.52 | AL4: 19.0425 | AM4: 17.165 | AN4: 102.4325 | AO4: 8.02 | AP4: 19345 | AQ4: 114.90775 | AR4: 0.035600827 | AS4: 385.79839 | AU4: 1 | AW4: Site 2 | AX4: 1 | AY4: P1 | AZ4: Accabonac Harbor | BA4: Peconic | BB4: =AY4&" "&AZ4 -> P1 Accabonac Harbor | BC4: P1 Accabonac
A5: Migr. Dev. | B5: 2040 | C5: P1 Accabonac | D5: Iteration 1 | E5: N A | F5: N A | G5: N A | H5: 37.2175 | I5: 188.515 | J5: 1.1025 | K5: 0 | L5: 0.02 | M5: 0.17 | N5: 16.345 | O5: 57.365 | P5: 0 | Q5: 0 | R5: 6.125 | S5: 25.4625 | T5: 0 | U5: 0 | V5: 0 | W5: 0 | X5: 124.6625 | Y5: 0 | Z5: 11.6875 | AA5: 55.8 | AB5: 0 | AC5: 0 | AD5: 4.77 | AE5: 0 | AF5: 0 | AG5: 0 | AH5: -9999 | AI5: 225.7325 | AJ5: 1.1225 | AK5: 136.35 | AL5: 31.5875 | AM5: 57.365 | AN5: 72.145 | AO5: 4.94 | AP5: 44830 | AQ5: 120.68837 | AR5: 0.058366749 | AS5: 417.77419 | AU5: 1 | AW5: Site 23 | AX5: 2 | AY5: P2 | AZ5: Nappeaugue/Lazy Point | BA5: Peconic | BB5: =AY5&" "&AZ5 -> P2 Nappeaugue/Lazy Point | BC5: P2 Nappeauge
A6: Migr. Dev. | B6: 2055 | C6: P1 Accabonac | D6: Iteration 1 | E6: N A | F6: N A | G6: N A | H6: 35.38 | I6: 168.2625 | J6: 0.46 | K6: 0 | L6: 0 | M6: 0.12 | N6: 20.8475 | O6: 64.4175 | P6: 0 | Q6: 0 | R6: 41.38 | S6: 28.855 | T6: 0 | U6: 0 | V6: 0 | W6: 0 | X6: 134.8925 | Y6: 0 | Z6: 13.3775 | AA6: 19.67 | AB6: 0 | AC6: 0 | AD6: 1.58 | AE6: 0 | AF6: 0 | AG6: 0 | AH6: -9999 | AI6: 203.6425 | AJ6: 0.46 | AK6: 148.27 | AL6: 70.235 | AM6: 64.4175 | AN6: 40.5175 | AO6: 1.7 | AP6: 85660 | AQ6: 90.658185 | AR6: 0.1126172 | AS6: 338.5 | AU6: 1 | AW6: Site 7 | AX6: 3 | AY6: P3 | AZ6: Ashamonaque/Pipes Cove | BA6: Peconic | BB6: P3 Ashamonaque/Pipes Cove | BC6: P3 Ashamonaque
A7: Migr. Dev. | B7: 2070 | C7: P1 Accabonac | D7: Iteration 1 | E7: N A | F7: N A | G7: N A | H7: 31.9425 | I7: 147.5425 | J7: 0.215 | K7: 0 | L7: 0 | M7: 0.04 | N7: 19.9725 | O7: 46.065 | P7: 0 | Q7: 0 | R7: 51.8225 | S7: 26.63 | T7: 0 | U7: 0 | V7: 0 | W7: 0 | X7: 179.9425 | Y7: 0 | Z7: 20.4825 | AA7: 4.21 | AB7: 0 | AC7: 0 | AD7: 0.3775 | AE7: 0 | AF7: 0 | AG7: 0 | AH7: -9999 | AI7: 179.485 | AJ7: 0.215 | AK7: 200.425 | AL7: 78.4525 | AM7: 46.065 | AN7: 24.1825 | AO7: 0.4175 | AP7: 51325 | AQ7: 60.440702 | AR7: 0.11571047 | AS7: 226.60484 | AU7: 1 | AW7: Site 15 | AX7: 4 | AY7: P4 | AZ7: Orient Point | BA7: Peconic | BB7: P4 Orient Point | BC7: P4 Orient
A8: Migr. Dev. | B8: 2085 | C8: P1 Accabonac | D8: Iteration 1 | E8: N A | F8: N A | G8: N A | H8: 27.1775 | I8: 123.8775 | J8: 0.0025 | K8: 0 | L8: 0 | M8: 0.0025 | N8: 23.845 | O8: 33.3375 | P8: 0 | Q8: 0 | R8: 35.6475 | S8: 19.77 | T8: 0 | U8: 0 | V8: 0 | W8: 0 | X8: 232.6575 | Y8: 0 | Z8: 32.14 | AA8: 0.665 | AB8: 0 | AC8: 0 | AD8: 0.12 | AE8: 0 | AF8: 0 | AG8: 0 | AH8: -9999 | AI8: 151.055 | AJ8: 0.0025 | AK8: 264.7975 | AL8: 55.4175 | AM8: 33.3375 | AN8: 24.51 | AO8: 0.1225 | AP8: 39925 | AQ8: 49.690743 | AR8: 0.11683665 | AS8: 186.60484 | AU8: 1 | AW8: Site 5 | AX8: 5 | AY8: P5 | AZ8: Mashomack Preserve | BA8: Peconic | BB8: P5 Mashomack Preserve | BC8: P5 Mashomack
A9: Migr. Dev. | B9: 2100 | C9: P1 Accabonac | D9: Iteration 1 | E9: N A | F9: N A | G9: N A | H9: 21.39 | I9: 97.6725 | J9: 0 | K9: 0 | L9: 0 | M9: 0 | N9: 27.0475 | O9: 32.7675 | P9: 0 | Q9: 0 | R9: 24.405 | S9: 15.8625 | T9: 0 | U9: 0 | V9: 0 | W9: 0 | X9: 268.9225 | Y9: 0 | Z9: 40.99 | AA9: 0.135 | AB9: 0 | AC9: 0 | AD9: 0.05 | AE9: 0 | AF9: 0 | AG9: 0 | AH9: -9999 | AI9: 119.0625 | AJ9: 0 | AK9: 309.9125 | AL9: 40.2675 | AM9: 32.7675 | AN9: 27.1825 | AO9: 0.05 | AP9: 30690 | AQ9: 52.379767 | AR9: 0.10502085 | AS9: 193.3871 | AU9: 1 | AW9: Site 1 | AX9: 6 | AY9: P6 | AZ9: Flanders Bay/Hubbard County Park | BA9: Peconic | BB9: P6 Flanders Bay/Hubbard County Park | BC9: P6 Flanders
A10: Migr. Dev. | B10: 2010 | C10: P2 Nappeauge | D10: Iteration 1 | E10: N A | F10: N A | G10: N A | H10: 98.8975 | I10: 1136.965 | J10: 81.9075 | K10: 0 | L10: 12.75 | M10: 1.22 | N10: 49.4025 | O10: 17.7425 | P10: 0 | Q10: 6.95 | R10: 0.225 | S10: 30.9175 | T10: 0 | U10: 0 | V10: 15.4275 | W10: 0 | X10: 362.8875 | Y10: 0 | Z10: 513.55 | AA10: 100.3775 | AB10: 0 | AC10: 0 | AD10: 6.615 | AE10: 0 | AF10: 0 | AG10: 0 | AH10: -9999 | AI10: 1235.8625 | AJ10: 94.6575 | AK10: 891.865 | AL10: 38.0925 | AM10: 17.7425 | AN10: 149.78 | AO10: 7.835 | AP10: 4385 | AQ10: 164.18632 | AR10: 0.024255893 | AS10: 395.10024 | AU10: 2 | AW10: Site 3 | AX10: 7 | AY10: P7 | AZ10: Cedar Beach - Southold | BA10: Peconic | BB10: P7 Cedar Beach - Southold | BC10: P7 Cedar Beach
A11: Migr. Dev. | B11: 2025 | C11: P2 Nappeauge | D11: Iteration 1 | E11: N A | F11: N A | G11: N A | H11: 97.7275 | I11: 1112.2175 | J11: 80.3675 | K11: 0 | L11: 12.43 | M11: 1.22 | N11: 51.485 | O11: 57.3725 | P11: 0 | Q11: 6.6675 | R11: 1.615 | S11: 30.36 | T11: 0 | U11: 0 | V11: 15.4275 | W11: 0 | X11: 363.43 | Y11: 0 | Z11: 515.48 | AA11: 85.2675 | AB11: 0 | AC11: 0 | AD11: 4.7675 | AE11: 0 | AF11: 0 | AG11: 0 | AH11: -9999 | AI11: 1209.945 | AJ11: 92.7975 | AK11: 894.3375 | AL11: 38.6425 | AM11: 57.3725 | AN11: 136.7525 | AO11: 5.9875 | AP11: 13300 | AQ11: 183.97201 | AR11: 0.048964652 | AS11: 457.84198 | AU11: 2 | AW11: Site 17 | AX11: 11 | AY11: S1 | AZ11: Carmans River/ Fire Place Creek | BA11: South Shore | BB11: S1 Carmans River/ Fire Place Creek | BC11: S1 Carmans
A12: Migr. Dev. | B12: 2040 | C12: P2 Nappeauge | D12: Iteration 1 | E12: N A | F12: N A | G12: N A | H12: 94.21 | I12: 1067.0475 | J12: 73.915 | K12: 0 | L12: 12.2925 | M12: 1.18 | N12: 65.46 | O12: 120.245 | P12: 0 | Q12: 5.59 | R12: 19.9275 | S12: 29.015 | T12: 0 | U12: 0 | V12: 15.385 | W12: 0 | X12: 366.71 | Y12: 0 | Z12: 518.4825 | AA12: 44.1475 | AB12: 0 | AC12: 0 | AD12: 2.2275 | AE12: 0 | AF12: 0 | AG12: 0 | AH12: -9999 | AI12: 1161.2575 | AJ12: 86.2075 | AK12: 900.5775 | AL12: 54.5325 | AM12: 120.245 | AN12: 109.6075 | AO12: 3.4075 | AP12: 77025 | AQ12: 209.59603 | AR12: 0.076344237 | AS12: 542.10495 | AU12: 2 | AW12: Site 19 | AX12: 12 | AY12: S2 | AZ12: Thorne Preserve | BA12: South Shore | BB12: S2 Thorne Preserve | BC12: S2 Thome
A13: Migr. Dev. | B13: 2055 | C13: P2 Nappeauge | D13: Iteration 1 | E13: N A | F13: N A | G13: N A | H13: 87.305 | I13: 982.4475 | J13: 68.1375 | K13: 0 | L13: 10.89 | M13: 0.5675 | N13: 105.6675 | O13: 132.7375 | P13: 0 | Q13: 3.4325 | R13: 73.1075 | S13: 26.71 | T13: 0 | U13: 0 | V13: 15.3125 | W13: 0 | X13: 390.555 | Y13: 0 | Z13: 522.56 | AA13: 15.7 | AB13: 0 | AC13: 0 | AD13: 0.705 | AE13: 0 | AF13: 0 | AG13: 0 | AH13: -9999 | AI13: 1069.7525 | AJ13: 79.0275 | AK13: 928.4275 | AL13: 103.25 | AM13: 132.7375 | AN13: 121.3675 | AO13: 1.2725 | AP13: 128105 | AQ13: 225.7368 | AR13: 0.092864365 | AS13: 599.30425 | AU13: 2 | AW13: Site 22 | AX13: 13 | AY13: S3 | AZ13: Weesuck Creek/ Pine Neck Preserve | BA13: South Shore | BB13: S3 Weesuck Creek/ Pine Neck Preserve | BC13: S3 Weesuck
A14: Migr. Dev. | B14: 2070 | C14: P2 Nappeauge | D14: Iteration 1 | E14: N A | F14: N A | G14: N A | H14: 69.785 | I14: 812.81 | J14: 38.43 | K14: 0 | L14: 10.8575 | M14: 0.05 | N14: 192.8125 | O14: 147.945 | P14: 0 | Q14: 1.045 | R14: 99.6175 | S14: 45.7975 | T14: 0 | U14: 0 | V14: 15.12 | W14: 0 | X14: 467.64 | Y14: 0 | Z14: 529.085 | AA14: 4.7475 | AB14: 0 | AC14: 0 | AD14: 0.0925 | AE14: 0 | AF14: 0 | AG14: 0 | AH14: -9999 | AI14: 882.595 | AJ14: 49.2875 | AK14: 1011.845 | AL14: 146.46 | AM14: 147.945 | AN14: 197.56 | AO14: 0.1425 | AP14: 135565 | AQ14: 312.63524 | AR14: 0.077938389 | AS14: 814.87028 | AU14: 2 | AW14: Site 10 | AX14: 14 | AY14: S4 | AZ14: Smith Point County Park-North | BA14: South Shore | BB14: S4 Smith Point County Park-North | BC14: S4 Smith Pt.
A15: Migr. Dev. | B15: 2085 | C15: P2 Nappeauge | D15: Iteration 1 | E15: N A | F15: N A | G15: N A | H15: 59.7875 | I15: 668.13 | J15: 24.115 | K15: 0 | L15: 10.835 | M15: 0 | N15: 106.1775 | O15: 235.0075 | P15: 0 | Q15: 0.3375 | R15: 107.5975 | S15: 93.7 | T15: 0 | U15: 0 | V15: 14.77 | W15: 0 | X15: 569.96 | Y15: 0 | Z15: 544.0275 | AA15: 1.3825 | AB15: 0 | AC15: 0 | AD15: 0.0075 | AE15: 0 | AF15: 0 | AG15: 0 | AH15: -9999 | AI15: 727.9175 | AJ15: 34.95 | AK15: 1128.7575 | AL15: 201.635 | AM15: 235.0075 | AN15: 107.56 | AO15: 0.0075 | AP15: 162155 | AQ15: 303.01795 | AR15: 0.094054456 | AS15: 807.94222 | AU15: 2 | AW15: Site 16 | AX15: 15 | AY15: S5 | AZ15: Mastic Beach | BA15: South Shore | BB15: S5 Mastic Beach | BC15: S5 Mastic
A16: Migr. Dev. | B16: 2100 | C16: P2 Nappeauge | D16: Iteration 1 | E16: N A | F16: N A | G16: N A | H16: 44.8 | I16: 514.53 | J16: 3.5875 | K16: 0 | L16: 0.0025 | M16: 0 | N16: 137.315 | O16: 142.015 | P16: 0 | Q16: 0.11 | R16: 196.7675 | S16: 114.565 | T16: 0 | U16: 0 | V16: 14.77 | W16: 0 | X16: 681.0825 | Y16: 0 | Z16: 585.7975 | AA16: 0.4925 | AB16: 0 | AC16: 0 | AD16: 0 | AE16: 0 | AF16: 0 | AG16: 0 | AH16: -9999 | AI16: 559.33 | AJ16: 3.59 | AK16: 1281.65 | AL16: 311.4425 | AM16: 142.015 | AN16: 137.8075 | AO16: 0 | AP16: 184140 | AQ16: 241.34055 | AR16: 0.1118459 | AS16: 659.95873 | AU16: 2 | AW16: Site 13 | AX16: 16 | AY16: S6 | AZ16: Thorne Preserve/Gardiner Co Park | BA16: South Shore | BB16: S6 Thorne Preserve/Gardiner Co Park | BC16: S6 Thorne
A17: Migr. Dev. | B17: 2010 | C17: P3 Ashamonaque | D17: Iteration 1 | E17: N A | F17: N A | G17: N A | H17: 82.7975 | I17: 477.15 | J17: 38.8975 | K17: 0 | L17: 18.1825 | M17: 4.8375 | N17: 18.6875 | O17: 5.205 | P17: 0 | Q17: 15.5575 | R17: 0.0325 | S17: 0 | T17: 0 | U17: 0 | V17: 7.125 | W17: 0 | X17: 211.275 | Y17: 0 | Z17: 0 | AA17: 35.8725 | AB17: 0 | AC17: 0 | AD17: 0.47 | AE17: 0 | AF17: 0 | AG17: 0 | AH17: -9999 | AI17: 559.9475 | AJ17: 57.08 | AK17: 218.4 | AL17: 15.59 | AM17: 5.205 | AN17: 54.56 | AO17: 5.3075 | AP17: 9795 | AQ17: 61.284111 | AR17: 0.045276886 | AS17: 841.76056 | AU17: 3 | AW17: Site 11 | AX17: 17 | AY17: S7 | AZ17: Timber Point | BA17: South Shore | BB17: S7 Timber Point | BC17: S7 Timber
A18: Migr. Dev. | B18: 2025 | C18: P3 Ashamonaque | D18: Iteration 1 | E18: N A | F18: N A | G18: N A | H18: 82.1525 | I18: 469.49 | J18: 38.525 | K18: 0 | L18: 17.6775 | M18: 4.8025 | N18: 17.78 | O18: 19.0575 | P18: 0 | Q18: 14.3425 | R18: 0.87 | S18: 0 | T18: 0 | U18: 0 | V18: 7.065 | W18: 0 | X18: 212.9325 | Y18: 0 | Z18: 0 | AA18: 31.1875 | AB18: 0 | AC18: 0 | AD18: 0.2075 | AE18: 0 | AF18: 0 | AG18: 0 | AH18: -9999 | AI18: 551.6425 | AJ18: 56.2025 | AK18: 219.9975 | AL18: 15.2125 | AM18: 19.0575 | AN18: 48.9675 | AO18: 5.01 | AP18: 21920 | AQ18: 65.601881 | AR18: 0.083114208 | AS18: 958.09859 | AU18: 3 | AW18: Site 8 | AX18: 18 | AY18: S8 | AZ18: West Sayville | BA18: South Shore | BB18: S8 West Sayville | BC18: S8 W. Sayville
A19: Migr. Dev. | B19: 2040 | C19: P3 Ashamonaque | D19: Iteration 1 | E19: N A | F19: N A | G19: N A | H19: 79.845 | I19: 450.895 | J19: 38.1325 | K19: 0 | L19: 16.045 | M19: 3.785 | N19: 28.395 | O19: 39.9875 | P19: 0 | Q19: 11.475 | R19: 5.4625 | S19: 0 | T19: 0 | U19: 0 | V19: 6.84 | W19: 0 | X19: 218.7275 | Y19: 0 | Z19: 0 | AA19: 16.4225 | AB19: 0 | AC19: 0 | AD19: 0.0775 | AE19: 0 | AF19: 0 | AG19: 0 | AH19: -9999 | AI19: 530.74 | AJ19: 54.1775 | AK19: 225.5675 | AL19: 16.9375 | AM19: 39.9875 | AN19: 44.8175 | AO19: 3.8625 | AP19: 35460 | AQ19: 78.602549 | AR19: 0.093532001 | AS19: 1194.4366 | AU19: 3 | AW19: Site 21 | AX19: 19 | AY19: S9 | AZ19: Pepperridge Hall | BA19: South Shore | BB19: S9 Pepperridge Hall | BC19: S9 Pepperrige
A20: Migr. Dev. | B20: 2055 | C20: P3 Ashamonaque | D20: Iteration 1 | E20: N A | F20: N A | G20: N A | H20: 73.6675 | I20: 378.65 | J20: 15.92 | K20: 0 | L20: 0.5875 | M20: 1.0775 | N20: 122.0875 | O20: 53.0625 | P20: 0 | Q20: 8.51 | R20: 20.43 | S20: 0 | T20: 0 | U20: 0 | V20: 4.9525 | W20: 0 | X20: 232.04 | Y20: 0 | Z20: 0 | AA20: 5.0475 | AB20: 0 | AC20: 0 | AD20: 0.0575 | AE20: 0 | AF20: 0 | AG20: 0 | AH20: -9999 | AI20: 452.3175 | AJ20: 16.5075 | AK20: 236.9925 | AL20: 28.94 | AM20: 53.0625 | AN20: 127.135 | AO20: 1.135 | AP20: 56705 | AQ20: 167.36833 | AR20: 0.063803613 | AS20: 2537.993 | AU20: 3 | AW20: Site 12 | AX20: 20 | AY20: S10 | AZ20: Stokes/Pouges | BA20: South Shore | BB20: S10 Stokes/Pouges | BC20: S10 Stokes
A21: Migr. Dev. | B21: 2070 | C21: P3 Ashamonaque | D21: Iteration 1 | E21: N A | F21: N A | G21: N A | H21: 63.49 | I21: 317.3875 | J21: 10.7825 | K21: 0 | L21: 0.1 | M21: 0.0975 | N21: 91.2625 | O21: 130.9875 | P21: 0 | Q21: 5.64 | R21: 31.9125 | S21: 0 | T21: 0 | U21: 0 | V21: 1.84 | W21: 0 | X21: 261.6075 | Y21: 0 | Z21: 0 | AA21: 0.935 | AB21: 0 | AC21: 0 | AD21: 0.0475 | AE21: 0 | AF21: 0 | AG21: 0 | AH21: -9999 | AI21: 380.8775 | AJ21: 10.8825 | AK21: 263.4475 | AL21: 37.5525 | AM21: 130.9875 | AN21: 92.1975 | AO21: 0.145 | AP21: 63670 | AQ21: 203.92222 | AR21: 0.0715327 | AS21: 3143.4507 | AU21: 3 | AW21: Site 14 | AX21: 22 | AY21: S11 | AZ21: Captree Island | BA21: South Shore | BB21: S11 Captree Island | BC21: S11 Captree
A22: Migr. Dev. | B22: 2085 | C22: P3 Ashamonaque | D22: Iteration 1 | E22: N A | F22: N A | G22: N A | H22: 49.6525 | I22: 252.355 | J22: 7.55 | K22: 0 | L22: 0.0325 | M22: 0 | N22: 98.59 | O22: 126.12 | P22: 0 | Q22: 3.0575 | R22: 77.15 | S22: 0 | T22: 0 | U22: 0 | V22: 1.035 | W22: 0 | X22: 300.1875 | Y22: 0 | Z22: 0 | AA22: 0.315 | AB22: 0 | AC22: 0 | AD22: 0.045 | AE22: 0 | AF22: 0 | AG22: 0 | AH22: -9999 | AI22: 302.0075 | AJ22: 7.5825 | AK22: 301.2225 | AL22: 80.2075 | AM22: 126.12 | AN22: 98.905 | AO22: 0.045 | AP22: 113095 | AQ22: 197.67642 | AR22: 0.099304522 | AS22: 3169.3662 | AU22: 3 | AW22: Site 20 | AX22: 23 | AY22: S12 | AZ22: Shinnecock Nation | BA22: South Shore | BB22: S12 Shinnecock Nation | BC22: S12 Shinnecock
A23: Migr. Dev. | B23: 2100 | C23: P3 Ashamonaque | D23: Iteration 1 | E23: N A | F23: N A | G23: N A | H23: 39.525 | I23: 197.0375 | J23: 5.495 | K23: 0 | L23: 0.02 | M23: 0 | N23: 83.5025 | O23: 140.465 | P23: 0 | Q23: 1.4825 | R23: 64.475 | S23: 0 | T23: 0 | U23: 0 | V23: 0.9375 | W23: 0 | X23: 382.9625 | Y23: 0 | Z23: 0 | AA23: 0.1525 | AB23: 0 | AC23: 0 | AD23: 0.035 | AE23: 0 | AF23: 0 | AG23: 0 | AH23: -9999 | AI23: 236.5625 | AJ23: 5.515 | AK23: 383.9 | AL23: 65.9575 | AM23: 140.465 | AN23: 83.655 | AO23: 0.035 | AP23: 110795 | AQ23: 196.46401 | AR23: 0.10079422 | AS23: 3156.6197 | AU23: 3 | AW23: Site 6 | AX23: 31 | AY23: L1 | AZ23: Wading River | BA23: LIS | BB23: L1 Wading River | BC23: L1 Wading
A24: Migr. Dev. | B24: 2010 | C24: P4 Orient | D24: Iteration 1 | E24: N A | F24: N A | G24: N A | H24: 77.4875 | I24: 616.2875 | J24: 1.725 | K24: 0 | L24: 0.9825 | M24: 4.2075 | N24: 25.06 | O24: 24.105 | P24: 0 | Q24: 29.055 | R24: 1.7425 | S24: 28.8275 | T24: 0 | U24: 0 | V24: 5.3025 | W24: 0 | X24: 503.445 | Y24: 0 | Z24: 340.74 | AA24: 155.525 | AB24: 0 | AC24: 0 | AD24: 4.7225 | AE24: 0 | AF24: 0 | AG24: 0 | AH24: -9999 | AI24: 693.775 | AJ24: 2.7075 | AK24: 849.4875 | AL24: 59.625 | AM24: 24.105 | AN24: 180.585 | AO24: 8.93 | AP24: 37175 | AQ24: 197.90675 | AR24: 0.044414127 | AS24: 409.38 | AU24: 4 | AW24: Site 18 | AX24: 32 | AY24: L2 | AZ24: Sunken Meadow State Park | BA24: LIS | BB24: L2 Sunken Meadow State Park | BC24: L2 Sunken
A25: Migr. Dev. | B25: 2025 | C25: P4 Orient | D25: Iteration 1 | E25: N A | F25: N A | G25: N A | H25: 76.765 | I25: 594.2125 | J25: 1.7 | K25: 0 | L25: 0.895 | M25: 2.7075 | N25: 36.27 | O25: 46.9175 | P25: 0 | Q25: 25.015 | R25: 6.745 | S25: 26.2375 | T25: 0 | U25: 0 | V25: 4.9725 | W25: 0 | X25: 510.12 | Y25: 0 | Z25: 345.985 | AA25: 136.8825 | AB25: 0 | AC25: 0 | AD25: 3.79 | AE25: 0 | AF25: 0 | AG25: 0 | AH25: -9999 | AI25: 670.9775 | AJ25: 2.595 | AK25: 861.0775 | AL25: 57.9975 | AM25: 46.9175 | AN25: 173.1525 | AO25: 6.4975 | AP25: 58265 | AQ25: 207.03339 | AR25: 0.058744712 | AS25: 440.14 | AU25: 4 | AW25: Site 9 | AX25: 33 | AY25: L3 | AZ25: Crab Meadow | BA25: LIS | BB25: L3 Crab Meadow | BC25: L3 Crab
A26: Migr. Dev. | B26: 2040 | C26: P4 Orient | D26: Iteration 1 | E26: N A | F26: N A | G26: N A | H26: 74.51 | I26: 545.4275 | J26: 1.335 | K26: 0 | L26: 0.73 | M26: 0.41 | N26: 53.0375 | O26: 114.23 | P26: 0 | Q26: 17.855 | R26: 30.9175 | S26: 28.3075 | T26: 0 | U26: 0 | V26: 4.8775 | W26: 0 | X26: 527.4875 | Y26: 0 | Z26: 351.4525 | AA26: 66.46 | AB26: 0 | AC26: 0 | AD26: 2.1775 | AE26: 0 | AF26: 0 | AG26: 0 | AH26: -9999 | AI26: 619.9375 | AJ26: 2.065 | AK26: 883.8175 | AL26: 77.08 | AM26: 114.23 | AN26: 119.4975 | AO26: 2.5875 | AP26: 121375 | AQ26: 208.81345 | AR26: 0.088593241 | AS26: 467.455 | AU26: 4 | AW26: Site 4 | AX26: 34 | AY26: L4 | AZ26: Flax Pond | BA26: LIS | BB26: L4 Flax Pond | BC26: L4 Flax
A27: Migr. Dev. | B27: 2055 | C27: P4 Orient | D27: Iteration 1 | E27: N A | F27: N A | G27: N A | H27: 69.2825 | I27: 463.935 | J27: 1.055 | K27: 0 | L27: 0.0175 | M27: 0.0425 | N27: 73.9375 | O27: 118.3125 | P27: 0 | Q27: 11.775 | R27: 90.7275 | S27: 43.5575 | T27: 0 | U27: 0 | V27: 2.245 | W27: 0 | X27: 575.0675 | Y27: 0 | Z27: 356.98 | AA27: 11.3125 | AB27: 0 | AC27: 0 | AD27: 0.9675 | AE27: 0 | AF27: 0 | AG27: 0 | AH27: -9999 | AI27: 533.2175 | AJ27: 1.0725 | AK27: 934.2925 | AL27: 146.06 | AM27: 118.3125 | AN27: 85.25 | AO27: 1.01 | AP27: 184025 | AQ27: 170.42424 | AR27: 0.13245254 | AS27: 407.125 | AU27: 4
A28: Migr. Dev. | B28: 2070 | C28: P4 Orient | D28: Iteration 1 | E28: N A | F28: N A | G28: N A | H28: 62.6575 | I28: 388.84 | J28: 0.785 | K28: 0 | L28: 0 | M28: 0.0125 | N28: 71.53 | O28: 92.4625 | P28: 0 | Q28: 7.2925 | R28: 99.01 | S28: 45.625 | T28: 0 | U28: 0 | V28: 1.5425 | W28: 0 | X28: 678.245 | Y28: 0 | Z28: 368.9625 | AA28: 1.9 | AB28: 0 | AC28: 0 | AD28: 0.35 | AE28: 0 | AF28: 0 | AG28: 0 | AH28: -9999 | AI28: 451.4975 | AJ28: 0.785 | AK28: 1048.75 | AL28: 151.9275 | AM28: 92.4625 | AN28: 73.43 | AO28: 0.3625 | AP28: 110645 | AQ28: 141.68054 | AR28: 0.11916157 | AS28: 331.785 | AU28: 4
A29: Migr. Dev. | B29: 2085 | C29: P4 Orient | D29: Iteration 1 | E29: N A | F29: N A | G29: N A | H29: 54.83 | I29: 329.54 | J29: 0.2475 | K29: 0 | L29: 0 | M29: 0.01 | N29: 58.065 | O29: 84.505 | P29: 0 | Q29: 4.1425 | R29: 74.735 | S29: 39.8075 | T29: 0 | U29: 0 | V29: 1.095 | W29: 0 | X29: 784.3875 | Y29: 0 | Z29: 387.1275 | AA29: 0.5775 | AB29: 0 | AC29: 0 | AD29: 0.145 | AE29: 0 | AF29: 0 | AG29: 0 | AH29: -9999 | AI29: 384.37 | AJ29: 0.2475 | AK29: 1172.61 | AL29: 118.685 | AM29: 84.505 | AN29: 58.6425 | AO29: 0.155 | AP29: 90440 | AQ29: 123.72007 | AR29: 0.11118174 | AS29: 286.295 | AU29: 4
A30: Migr. Dev. | B30: 2100 | C30: P4 Orient | D30: Iteration 1 | E30: N A | F30: N A | G30: N A | H30: 48.1725 | I30: 286.245 | J30: 0.145 | K30: 0 | L30: 0 | M30: 0.01 | N30: 49.04 | O30: 68.5975 | P30: 0 | Q30: 2.1925 | R30: 66.7325 | S30: 28.5525 | T30: 0 | U30: 0 | V30: 0.785 | W30: 0 | X30: 864.6275 | Y30: 0 | Z30: 403.925 | AA30: 0.135 | AB30: 0 | AC30: 0 | AD30: 0.055 | AE30: 0 | AF30: 0 | AG30: 0 | AH30: -9999 | AI30: 334.4175 | AJ30: 0.145 | AK30: 1269.3375 | AL30: 97.4775 | AM30: 68.5975 | AN30: 49.175 | AO30: 0.065 | AP30: 77825 | AQ30: 101.63372 | AR30: 0.11250398 | AS30: 235.545 | AU30: 4
A31: Migr. Dev. | B31: 2010 | C31: P5 Mashomack | D31: Iteration 1 | E31: N A | F31: N A | G31: N A | H31: 10.825 | I31: 724.24 | J31: 17.1675 | K31: 0 | L31: 1.2925 | M31: 6.94 | N31: 7.6125 | O31: 19.1925 | P31: 0 | Q31: 31.215 | R31: 0.0775 | S31: 4.805 | T31: 0 | U31: 0 | V31: 3.3375 | W31: 0 | X31: 245.355 | Y31: 0 | Z31: 38.81 | AA31: 33.205 | AB31: 0 | AC31: 0 | AD31: 1.46 | AE31: 0 | AF31: 0 | AG31: 0 | AH31: -9999 | AI31: 735.065 | AJ31: 18.46 | AK31: 287.5025 | AL31: 36.0975 | AM31: 19.1925 | AN31: 40.8175 | AO31: 8.4 | AP31: 24310 | AQ31: 60.016269 | AR31: 0.08673637 | AS31: 240.04 | AU31: 5
A32: Migr. Dev. | B32: 2025 | C32: P5 Mashomack | D32: Iteration 1 | E32: N A | F32: N A | G32: N A | H32: 10.8025 | I32: 718.8075 | J32: 17.1675 | K32: 0 | L32: 1.2075 | M32: 6.8425 | N32: 10.2575 | O32: 27.4275 | P32: 0 | Q32: 28 | R32: 1.0825 | S32: 3.49 | T32: 0 | U32: 0 | V32: 3.08 | W32: 0 | X32: 249.1625 | Y32: 0 | Z32: 40.14 | AA32: 26.7375 | AB32: 0 | AC32: 0 | AD32: 1.33 | AE32: 0 | AF32: 0 | AG32: 0 | AH32: -9999 | AI32: 729.61 | AJ32: 18.375 | AK32: 292.3825 | AL32: 32.5725 | AM32: 27.4275 | AN32: 36.995 | AO32: 8.1725 | AP32: 29345 | AQ32: 63.076087 | AR32: 0.095643023 | AS32: 257.69 | AU32: 5
A33: Migr. Dev. | B33: 2040 | C33: P5 Mashomack | D33: Iteration 1 | E33: N A | F33: N A | G33: N A | H33: 10.395 | I33: 705.725 | J33: 17.085 | K33: 0 | L33: 0.5225 | M33: 6.145 | N33: 17.42 | O33: 41.1025 | P33: 0 | Q33: 21.5275 | R33: 6.3225 | S33: 2.345 | T33: 0 | U33: 0 | V33: 2.9275 | W33: 0 | X33: 258.1575 | Y33: 0 | Z33: 41.36 | AA33: 13.4475 | AB33: 0 | AC33: 0 | AD33: 1.0525 | AE33: 0 | AF33: 0 | AG33: 0 | AH33: -9999 | AI33: 716.12 | AJ33: 17.6075 | AK33: 302.445 | AL33: 30.195 | AM33: 41.1025 | AN33: 30.8675 | AO33: 7.1975 | AP33: 48170 | AQ33: 66.734579 | AR33: 0.11997696 | AS33: 287.88 | AU33: 5
A34: Migr. Dev. | B34: 2055 | C34: P5 Mashomack | D34: Iteration 1 | E34: N A | F34: N A | G34: N A | H34: 9.6825 | I34: 688.0825 | J34: 16.9025 | K34: 0 | L34: 0.015 | M34: 4.4275 | N34: 20.6425 | O34: 39.195 | P34: 0 | Q34: 15.525 | R34: 21.5525 | S34: 2.4275 | T34: 0 | U34: 0 | V34: 1.7675 | W34: 0 | X34: 275.8225 | Y34: 0 | Z34: 42.4825 | AA34: 6.5775 | AB34: 0 | AC34: 0 | AD34: 0.4325 | AE34: 0 | AF34: 0 | AG34: 0 | AH34: -9999 | AI34: 697.765 | AJ34: 16.9175 | AK34: 320.0725 | AL34: 39.505 | AM34: 39.195 | AN34: 27.22 | AO34: 4.86 | AP34: 51570 | AQ34: 57.910502 | AR34: 0.14947948 | AS34: 265.66 | AU34: 5
A35: Migr. Dev. | B35: 2070 | C35: P5 Mashomack | D35: Iteration 1 | E35: N A | F35: N A | G35: N A | H35: 9.2925 | I35: 666.005 | J35: 15.685 | K35: 0 | L35: 0 | M35: 1.465 | N35: 21.2175 | O35: 37.6125 | P35: 0 | Q35: 8.76 | R35: 24.11 | S35: 3.9575 | T35: 0 | U35: 0 | V35: 1.255 | W35: 0 | X35: 308.8 | Y35: 0 | Z35: 43.7625 | AA35: 3.5525 | AB35: 0 | AC35: 0 | AD35: 0.06 | AE35: 0 | AF35: 0 | AG35: 0 | AH35: -9999 | AI35: 675.2975 | AJ35: 15.685 | AK35: 353.8175 | AL35: 36.8275 | AM35: 37.6125 | AN35: 24.77 | AO35: 1.525 | AP35: 54130 | AQ35: 50.724419 | AR35: 0.16795489 | AS35: 249.53 | AU35: 5
A36: Migr. Dev. | B36: 2085 | C36: P5 Mashomack | D36: Iteration 1 | E36: N A | F36: N A | G36: N A | H36: 8.8 | I36: 641.4425 | J36: 7.635 | K36: 0 | L36: 0 | M36: 0.32 | N36: 30.2675 | O36: 35.405 | P36: 0 | Q36: 3.37 | R36: 23.77 | S36: 4.6575 | T36: 0 | U36: 0 | V36: 0.6025 | W36: 0 | X36: 342.3075 | Y36: 0 | Z36: 45.835 | AA36: 1.1025 | AB36: 0 | AC36: 0 | AD36: 0.02 | AE36: 0 | AF36: 0 | AG36: 0 | AH36: -9999 | AI36: 650.2425 | AJ36: 7.635 | AK36: 388.745 | AL36: 31.7975 | AM36: 35.405 | AN36: 31.37 | AO36: 0.34 | AP36: 56295 | AQ36: 54.252864 | AR36: 0.15662121 | AS36: 267.1 | AU36: 5
A37: Migr. Dev. | B37: 2100 | C37: P5 Mashomack | D37: Iteration 1 | E37: N A | F37: N A | G37: N A | H37: 8.135 | I37: 612.65 | J37: 5.7675 | K37: 0 | L37: 0 | M37: 0.195 | N37: 23.86 | O37: 39.11 | P37: 0 | Q37: 1.005 | R37: 23.8475 | S37: 9.8425 | T37: 0 | U37: 0 | V37: 0.1 | W37: 0 | X37: 372.715 | Y37: 0 | Z37: 48.0475 | AA37: 0.245 | AB37: 0 | AC37: 0 | AD37: 0.015 | AE37: 0 | AF37: 0 | AG37: 0 | AH37: -9999 | AI37: 620.785 | AJ37: 5.7675 | AK37: 420.8625 | AL37: 34.695 | AM37: 39.11 | AN37: 24.105 | AO37: 0.21 | AP37: 52980 | AQ37: 51.304239 | AR37: 0.15633181 | AS37: 252.86 | AU37: 5
A38: Migr. Dev. | B38: 2010 | C38: P6 Flanders | D38: Iteration 1 | E38: N A | F38: N A | G38: N A | H38: 61.8275 | I38: 386.4775 | J38: 6.1525 | K38: 0 | L38: 0.18 | M38: 0 | N38: 8.5625 | O38: 20.15 | P38: 0 | Q38: 9.175 | R38: 1.0525 | S38: 0 | T38: 0 | U38: 0 | V38: 5.5125 | W38: 0 | X38: 261.9825 | Y38: 0 | Z38: 0 | AA38: 179.7775 | AB38: 0 | AC38: 0 | AD38: 7.8375 | AE38: 0 | AF38: 0 | AG38: 0 | AH38: -9999 | AI38: 448.305 | AJ38: 6.3325 | AK38: 267.495 | AL38: 10.2275 | AM38: 20.15 | AN38: 188.34 | AO38: 7.8375 | AP38: 39740 | AQ38: 199.00885 | AR38: 0.03872368 | AS38: 534.58974 | AU38: 6
A39: Migr. Dev. | B39: 2025 | C39: P6 Flanders | D39: Iteration 1 | E39: N A | F39: N A | G39: N A | H39: 61.515 | I39: 379.345 | J39: 6.015 | K39: 0 | L39: 0.18 | M39: 0 | N39: 12.095 | O39: 35.84 | P39: 0 | Q39: 8.2775 | R39: 3.945 | S39: 0 | T39: 0 | U39: 0 | V39: 5.45 | W39: 0 | X39: 264.6875 | Y39: 0 | Z39: 0 | AA39: 163.67 | AB39: 0 | AC39: 0 | AD39: 7.6675 | AE39: 0 | AF39: 0 | AG39: 0 | AH39: -9999 | AI39: 440.86 | AJ39: 6.195 | AK39: 270.1375 | AL39: 12.2225 | AM39: 35.84 | AN39: 175.765 | AO39: 7.6675 | AP39: 51770 | AQ39: 199.73342 | AR39: 0.04718225 | AS39: 542.57692 | AU39: 6
A40: Migr. Dev. | B40: 2040 | C40: P6 Flanders | D40: Iteration 1 | E40: N A | F40: N A | G40: N A | H40: 59.0825 | I40: 352.7425 | J40: 5.8925 | K40: 0 | L40: 0.18 | M40: 0 | N40: 33.345 | O40: 100.0275 | P40: 0 | Q40: 6.64 | R40: 10.97 | S40: 0 | T40: 0 | U40: 0 | V40: 4.5975 | W40: 0 | X40: 273.74 | Y40: 0 | Z40: 0 | AA40: 96.0025 | AB40: 0 | AC40: 0 | AD40: 5.4675 | AE40: 0 | AF40: 0 | AG40: 0 | AH40: -9999 | AI40: 411.825 | AJ40: 6.0725 | AK40: 278.3375 | AL40: 17.61 | AM40: 100.0275 | AN40: 129.3475 | AO40: 5.4675 | AP40: 81150 | AQ40: 212.53621 | AR40: 0.060898093 | AS40: 588.14103 | AU40: 6
A41: Migr. Dev. | B41: 2055 | C41: P6 Flanders | D41: Iteration 1 | E41: N A | F41: N A | G41: N A | H41: 54.1225 | I41: 314.775 | J41: 5.8175 | K41: 0 | L41: 0.18 | M41: 0 | N41: 49.1225 | O41: 115.19 | P41: 0 | Q41: 4.22 | R41: 66.49 | S41: 0 | T41: 0 | U41: 0 | V41: 3.635 | W41: 0 | X41: 298.1425 | Y41: 0 | Z41: 0 | AA41: 35.105 | AB41: 0 | AC41: 0 | AD41: 1.8875 | AE41: 0 | AF41: 0 | AG41: 0 | AH41: -9999 | AI41: 368.8975 | AJ41: 5.9975 | AK41: 301.7775 | AL41: 70.71 | AM41: 115.19 | AN41: 84.2275 | AO41: 1.8875 | AP41: 147890 | AQ41: 172.23294 | AR41: 0.11122394 | AS41: 511.32692 | AU41: 6
A42: Migr. Dev. | B42: 2070 | C42: P6 Flanders | D42: Iteration 1 | E42: N A | F42: N A | G42: N A | H42: 48.885 | I42: 273.7725 | J42: 5.33 | K42: 0 | L42: 0 | M42: 0 | N42: 47.9 | O42: 93.4075 | P42: 0 | Q42: 2.03 | R42: 90.3275 | S42: 0 | T42: 0 | U42: 0 | V42: 3.5425 | W42: 0 | X42: 373.9 | Y42: 0 | Z42: 0 | AA42: 9.145 | AB42: 0 | AC42: 0 | AD42: 0.4475 | AE42: 0 | AF42: 0 | AG42: 0 | AH42: -9999 | AI42: 322.6575 | AJ42: 5.33 | AK42: 377.4425 | AL42: 92.3575 | AM42: 93.4075 | AN42: 57.045 | AO42: 0.4475 | AP42: 108610 | AQ42: 127.83556 | AR42: 0.12271647 | AS42: 385.77564 | AU42: 6
A43: Migr. Dev. | B43: 2085 | C43: P6 Flanders | D43: Iteration 1 | E43: N A | F43: N A | G43: N A | H43: 41.81 | I43: 233.105 | J43: 4.1775 | K43: 0 | L43: 0 | M43: 0 | N43: 48.895 | O43: 78.2825 | P43: 0 | Q43: 0.8475 | R43: 66.675 | S43: 0 | T43: 0 | U43: 0 | V43: 3.315 | W43: 0 | X43: 468.925 | Y43: 0 | Z43: 0 | AA43: 2.5025 | AB43: 0 | AC43: 0 | AD43: 0.1525 | AE43: 0 | AF43: 0 | AG43: 0 | AH43: -9999 | AI43: 274.915 | AJ43: 4.1775 | AK43: 472.24 | AL43: 67.5225 | AM43: 78.2825 | AN43: 51.3975 | AO43: 0.1525 | AP43: 99125 | AQ43: 109.59834 | AR43: 0.12651527 | AS43: 332.51282 | AU43: 6
A44: Migr. Dev. | B44: 2100 | C44: P6 Flanders | D44: Iteration 1 | E44: N A | F44: N A | G44: N A | H44: 35.9875 | I44: 199.9 | J44: 3.53 | K44: 0 | L44: 0 | M44: 0 | N44: 39.6725 | O44: 70.175 | P44: 0 | Q44: 0.325 | R44: 55.7 | S44: 0 | T44: 0 | U44: 0 | V44: 3.2 | W44: 0 | X44: 539.3375 | Y44: 0 | Z44: 0 | AA44: 0.7925 | AB44: 0 | AC44: 0 | AD44: 0.0675 | AE44: 0 | AF44: 0 | AG44: 0 | AH44: -9999 | AI44: 235.8875 | AJ44: 3.53 | AK44: 542.5375 | AL44: 56.025 | AM44: 70.175 | AN44: 40.465 | AO44: 0.0675 | AP44: 79070 | AQ44: 93.610602 | AR44: 0.12598518 | AS44: 283.69231 | AU44: 6
A45: Migr. Dev. | B45: 2010 | C45: P7 Cedar Beach | D45: Iteration 1 | E45: N A | F45: N A | G45: N A | H45: 18.375 | I45: 80.44 | J45: 2.7975 | K45: 0 | L45: 0 | M45: 0.1725 | N45: 5.95 | O45: 2.265 | P45: 0 | Q45: 7.2975 | R45: 2.7675 | S45: 0 | T45: 0 | U45: 0 | V45: 0.065 | W45: 0 | X45: 29.315 | Y45: 0 | Z45: 0 | AA45: 8.145 | AB45: 0 | AC45: 0 | AD45: 0 | AE45: 0 | AF45: 0 | AG45: 0 | AH45: -9999 | AI45: 98.815 | AJ45: 2.7975 | AK45: 29.38 | AL45: 10.065 | AM45: 2.265 | AN45: 14.095 | AO45: 0.1725 | AP45: 1390 | AQ45: 16.138376 | AR45: 0.027582035 | AS45: 355.65217 | AU45: 7
A46: Migr. Dev. | B46: 2025 | C46: P7 Cedar Beach | D46: Iteration 1 | E46: N A | F46: N A | G46: N A | H46: 18.2375 | I46: 78.445 | J46: 2.7975 | K46: 0 | L46: 0 | M46: 0.105 | N46: 4.37 | O46: 7.33 | P46: 0 | Q46: 6.7 | R46: 1.27 | S46: 0 | T46: 0 | U46: 0 | V46: 0.065 | W46: 0 | X46: 31.9575 | Y46: 0 | Z46: 0 | AA46: 6.3125 | AB46: 0 | AC46: 0 | AD46: 0 | AE46: 0 | AF46: 0 | AG46: 0 | AH46: -9999 | AI46: 96.6825 | AJ46: 2.7975 | AK46: 32.0225 | AL46: 7.97 | AM46: 7.33 | AN46: 10.6825 | AO46: 0.105 | AP46: 6950 | AQ46: 16.282002 | AR46: 0.088533186 | AS46: 391.57609 | AU46: 7
A47: Migr. Dev. | B47: 2040 | C47: P7 Cedar Beach | D47: Iteration 1 | E47: N A | F47: N A | G47: N A | H47: 17.695 | I47: 74 | J47: 2.7975 | K47: 0 | L47: 0 | M47: 0.03 | N47: 6.12 | O47: 12.4375 | P47: 0 | Q47: 5.455 | R47: 2.57 | S47: 0 | T47: 0 | U47: 0 | V47: 0.065 | W47: 0 | X47: 35.04 | Y47: 0 | Z47: 0 | AA47: 1.38 | AB47: 0 | AC47: 0 | AD47: 0 | AE47: 0 | AF47: 0 | AG47: 0 | AH47: -9999 | AI47: 91.695 | AJ47: 2.7975 | AK47: 35.105 | AL47: 8.025 | AM47: 12.4375 | AN47: 7.5 | AO47: 0.03 | AP47: 12900 | AQ47: 17.205617 | AR47: 0.11749092 | AS47: 433.42391 | AU47: 7
A48: Migr. Dev. | B48: 2055 | C48: P7 Cedar Beach | D48: Iteration 1 | E48: N A | F48: N A | G48: N A | H48: 16.2625 | I48: 69.08 | J48: 2.7975 | K48: 0 | L48: 0 | M48: 0.0075 | N48: 7.39 | O48: 9.94 | P48: 0 | Q48: 4.59 | R48: 7.73 | S48: 0 | T48: 0 | U48: 0 | V48: 0.075 | W48: 0 | X48: 39.355 | Y48: 0 | Z48: 0 | AA48: 0.3625 | AB48: 0 | AC48: 0 | AD48: 0 | AE48: 0 | AF48: 0 | AG48: 0 | AH48: -9999 | AI48: 85.3425 | AJ48: 2.7975 | AK48: 39.43 | AL48: 12.32 | AM48: 9.94 | AN48: 7.7525 | AO48: 0.0075 | AP48: 14730 | AQ48: 14.474325 | AR48: 0.15268362 | AS48: 384.61957 | AU48: 7
A49: Migr. Dev. | B49: 2070 | C49: P7 Cedar Beach | D49: Iteration 1 | E49: N A | F49: N A | G49: N A | H49: 14.17 | I49: 63.7 | J49: 2.7975 | K49: 0 | L49: 0 | M49: 0 | N49: 7.63 | O49: 10.6925 | P49: 0 | Q49: 3.57 | R49: 5.6125 | S49: 0 | T49: 0 | U49: 0 | V49: 0.07 | W49: 0 | X49: 49.25 | Y49: 0 | Z49: 0 | AA49: 0.0975 | AB49: 0 | AC49: 0 | AD49: 0 | AE49: 0 | AF49: 0 | AG49: 0 | AH49: -9999 | AI49: 77.87 | AJ49: 2.7975 | AK49: 49.32 | AL49: 9.1825 | AM49: 10.6925 | AN49: 7.7275 | AO49: 0 | AP49: 13520 | AQ49: 15.204479 | AR49: 0.14647123 | AS49: 400.43478 | AU49: 7
A50: Migr. Dev. | B50: 2085 | C50: P7 Cedar Beach | D50: Iteration 1 | E50: N A | F50: N A | G50: N A | H50: 12.54 | I50: 55.0075 | J50: 0 | K50: 0 | L50: 0 | M50: 0 | N50: 13.1125 | O50: 11.27 | P50: 0 | Q50: 2.235 | R50: 5.9575 | S50: 0 | T50: 0 | U50: 0 | V50: 0 | W50: 0 | X50: 57.4225 | Y50: 0 | Z50: 0 | AA50: 0.045 | AB50: 0 | AC50: 0 | AD50: 0 | AE50: 0 | AF50: 0 | AG50: 0 | AH50: -9999 | AI50: 67.5475 | AJ50: 0 | AK50: 57.4225 | AL50: 8.1925 | AM50: 11.27 | AN50: 13.1575 | AO50: 0 | AP50: 13605 | AQ50: 21.414492 | AR50: 0.10496367 | AS50: 531.03261 | AU50: 7
A51: Migr. Dev. | B51: 2100 | C51: P7 Cedar Beach | D51: Iteration 1 | E51: N A | F51: N A | G51: N A | H51: 10.41 | I51: 46.9025 | J51: 0 | K51: 0 | L51: 0 | M51: 0 | N51: 10.235 | O51: 16.4325 | P51: 0 | Q51: 0.665 | R51: 6.8325 | S51: 0 | T51: 0 | U51: 0 | V51: 0 | W51: 0 | X51: 66.0875 | Y51: 0 | Z51: 0 | AA51: 0.025 | AB51: 0 | AC51: 0 | AD51: 0 | AE51: 0 | AF51: 0 | AG51: 0 | AH51: -9999 | AI51: 57.3125 | AJ51: 0 | AK51: 66.0875 | AL51: 7.4975 | AM51: 16.4325 | AN51: 10.26 | AO51: 0 | AP51: 14120 | AQ51: 23.318118 | AR51: 0.10712747 | AS51: 580.27174 | AU51: 7
A52: Migr. Dev. | B52: 2010 | C52: S1 Carmans | D52: Iteration 1 | E52: N A | F52: N A | G52: N A | H52: 101.87 | I52: 806.7825 | J52: 54.5325 | K52: 0 | L52: 0.49 | M52: 9.4875 | N52: 23.8025 | O52: 28.8875 | P52: 0 | Q52: 5.57 | R52: 0.07 | S52: 0 | T52: 0 | U52: 0 | V52: 11.515 | W52: 0 | X52: 207.995 | Y52: 0 | Z52: 0 | AA52: 314.91 | AB52: 0 | AC52: 0 | AD52: 53.285 | AE52: 0 | AF52: 0 | AG52: 0 | AH52: -9999 | AI52: 908.6525 | AJ52: 55.0225 | AK52: 219.51 | AL52: 5.64 | AM52: 28.8875 | AN52: 338.7125 | AO52: 62.7725 | AP52: 32235 | AQ52: 367.58128 | AR52: 0.021947161 | AS52: 765.83333 | AU52: 11
A53: Migr. Dev. | B53: 2025 | C53: S1 Carmans | D53: Iteration 1 | E53: N A | F53: N A | G53: N A | H53: 99.47 | I53: 788.105 | J53: 53.4575 | K53: 0 | L53: 0.49 | M53: 9.4525 | N53: 36.0275 | O53: 102.58 | P53: 0 | Q53: 4.015 | R53: 11.32 | S53: 0 | T53: 0 | U53: 0 | V53: 11.4525 | W53: 0 | X53: 210.31 | Y53: 0 | Z53: 0 | AA53: 244.8725 | AB53: 0 | AC53: 0 | AD53: 47.645 | AE53: 0 | AF53: 0 | AG53: 0 | AH53: -9999 | AI53: 887.575 | AJ53: 53.9475 | AK53: 221.7625 | AL53: 15.335 | AM53: 102.58 | AN53: 280.9 | AO53: 57.0975 | AP53: 81030 | AQ53: 374.73143 | AR53: 0.038762383 | AS53: 798.91667 | AU53: 11
A54: Migr. Dev. | B54: 2040 | C54: S1 Carmans | D54: Iteration 1 | E54: N A | F54: N A | G54: N A | H54: 95.5125 | I54: 747.1325 | J54: 50.7425 | K54: 0 | L54: 0.49 | M54: 9.3175 | N54: 54.26 | O54: 202.38 | P54: 0 | Q54: 2 | R54: 95.58 | S54: 0 | T54: 0 | U54: 0 | V54: 11.2575 | W54: 0 | X54: 226.93 | Y54: 0 | Z54: 0 | AA54: 89.0975 | AB54: 0 | AC54: 0 | AD54: 34.4975 | AE54: 0 | AF54: 0 | AG54: 0 | AH54: -9999 | AI54: 842.645 | AJ54: 51.2325 | AK54: 238.1875 | AL54: 97.58 | AM54: 202.38 | AN54: 143.3575 | AO54: 43.815 | AP54: 277400 | AQ54: 310.21451 | AR54: 0.10267705 | AS54: 720.28646 | AU54: 11
A55: Migr. Dev. | B55: 2055 | C55: S1 Carmans | D55: Iteration 1 | E55: N A | F55: N A | G55: N A | H55: 90.46 | I55: 699.72 | J55: 40.2075 | K55: 0 | L55: 0.49 | M55: 9.15 | N55: 65.7925 | O55: 131.1775 | P55: 0 | Q55: 0.5225 | R55: 195.6425 | S55: 0 | T55: 0 | U55: 0 | V55: 10.7425 | W55: 0 | X55: 330.71 | Y55: 0 | Z55: 0 | AA55: 27.04 | AB55: 0 | AC55: 0 | AD55: 17.5425 | AE55: 0 | AF55: 0 | AG55: 0 | AH55: -9999 | AI55: 790.18 | AJ55: 40.6975 | AK55: 341.4525 | AL55: 196.165 | AM55: 131.1775 | AN55: 92.8325 | AO55: 26.6925 | AP55: 259840 | AQ55: 189.74062 | AR55: 0.15086636 | AS55: 466.6875 | AU55: 11
A56: Migr. Dev. | B56: 2070 | C56: S1 Carmans | D56: Iteration 1 | E56: N A | F56: N A | G56: N A | H56: 85.395 | I56: 646.165 | J56: 26.925 | K56: 0 | L56: 0.49 | M56: 8.7725 | N56: 71.92 | O56: 91.59 | P56: 0 | Q56: 0.05 | R56: 126.3325 | S56: 0 | T56: 0 | U56: 0 | V56: 10.665 | W56: 0 | X56: 531.7925 | Y56: 0 | Z56: 0 | AA56: 11.4025 | AB56: 0 | AC56: 0 | AD56: 7.6975 | AE56: 0 | AF56: 0 | AG56: 0 | AH56: -9999 | AI56: 731.56 | AJ56: 27.415 | AK56: 542.4575 | AL56: 126.3825 | AM56: 91.59 | AN56: 83.3225 | AO56: 16.47 | AP56: 125815 | AQ56: 158.27623 | AR56: 0.11291613 | AS56: 364.40104 | AU56: 11
A57: Migr. Dev. | B57: 2085 | C57: S1 Carmans | D57: Iteration 1 | E57: N A | F57: N A | G57: N A | H57: 80.0125 | I57: 588.975 | J57: 17.645 | K57: 0 | L57: 0.49 | M57: 8.5925 | N57: 71.8575 | O57: 83.375 | P57: 0 | Q57: 0.0175 | R57: 89.195 | S57: 0 | T57: 0 | U57: 0 | V57: 10.6325 | W57: 0 | X57: 660.6 | Y57: 0 | Z57: 0 | AA57: 3.425 | AB57: 0 | AC57: 0 | AD57: 4.38 | AE57: 0 | AF57: 0 | AG57: 0 | AH57: -9999 | AI57: 668.9875 | AJ57: 18.135 | AK57: 671.2325 | AL57: 89.2125 | AM57: 83.375 | AN57: 75.2825 | AO57: 12.9725 | AP57: 104845 | AQ57: 144.91779 | AR57: 0.10919581 | AS57: 330.53646 | AU57: 11
A58: Migr. Dev. | B58: 2100 | C58: S1 Carmans | D58: Iteration 1 | E58: N A | F58: N A | G58: N A | H58: 75.315 | I58: 531.0775 | J58: 14.51 | K58: 0 | L58: 0.49 | M58: 8.5675 | N58: 65.725 | O58: 75.27 | P58: 0 | Q58: 0.005 | R58: 81.765 | S58: 0 | T58: 0 | U58: 0 | V58: 10.6325 | W58: 0 | X58: 751.4325 | Y58: 0 | Z58: 0 | AA58: 1.3925 | AB58: 0 | AC58: 0 | AD58: 3.015 | AE58: 0 | AF58: 0 | AG58: 0 | AH58: -9999 | AI58: 606.3925 | AJ58: 15 | AK58: 762.065 | AL58: 81.77 | AM58: 75.27 | AN58: 67.1175 | AO58: 11.5825 | AP58: 85745 | AQ58: 131.60527 | AR58: 0.10506111 | AS58: 296.64063 | AU58: 11
A59: Migr. Dev. | B59: 2010 | C59: S2 Thome | D59: Iteration 1 | E59: N A | F59: N A | G59: N A | H59: 38.415 | I59: 98.06 | J59: 0.47 | K59: 0 | L59: 0.1125 | M59: 0 | N59: 7.5 | O59: 4.1375 | P59: 0 | Q59: 0.0125 | R59: 0 | S59: 0 | T59: 0 | U59: 0 | V59: 6.3075 | W59: 0 | X59: 36.0025 | Y59: 0 | Z59: 0 | AA59: 24.37 | AB59: 0 | AC59: 0 | AD59: 11.5875 | AE59: 0 | AF59: 0 | AG59: 0 | AH59: -9999 | AI59: 136.475 | AJ59: 0.5825 | AK59: 42.31 | AL59: 0.0125 | AM59: 4.1375 | AN59: 31.87 | AO59: 11.5875 | AP59: 4110 | AQ59: 34.762955 | AR59: 0.033354162 | AS59: 334.95349 | AU59: 12
A60: Migr. Dev. | B60: 2025 | C60: S2 Thome | D60: Iteration 1 | E60: N A | F60: N A | G60: N A | H60: 37.7175 | I60: 91.245 | J60: 0.4275 | K60: 0 | L60: 0.1125 | M60: 0 | N60: 12.215 | O60: 12.125 | P60: 0 | Q60: 0 | R60: 2.2525 | S60: 0 | T60: 0 | U60: 0 | V60: 6.2325 | W60: 0 | X60: 36.41 | Y60: 0 | Z60: 0 | AA60: 19.6825 | AB60: 0 | AC60: 0 | AD60: 8.555 | AE60: 0 | AF60: 0 | AG60: 0 | AH60: -9999 | AI60: 128.9625 | AJ60: 0.54 | AK60: 42.6425 | AL60: 2.2525 | AM60: 12.125 | AN60: 31.8975 | AO60: 8.555 | AP60: 12350 | AQ60: 40.787398 | AR60: 0.063740133 | AS60: 409.51163 | AU60: 12
A61: Migr. Dev. | B61: 2040 | C61: S2 Thome | D61: Iteration 1 | E61: N A | F61: N A | G61: N A | H61: 35.71 | I61: 79.115 | J61: 0.39 | K61: 0 | L61: 0 | M61: 0 | N61: 18.13 | O61: 22.3775 | P61: 0 | Q61: 0 | R61: 10.9975 | S61: 0 | T61: 0 | U61: 0 | V61: 5.865 | W61: 0 | X61: 39.6975 | Y61: 0 | Z61: 0 | AA61: 10.79 | AB61: 0 | AC61: 0 | AD61: 3.9025 | AE61: 0 | AF61: 0 | AG61: 0 | AH61: -9999 | AI61: 114.825 | AJ61: 0.39 | AK61: 45.5625 | AL61: 10.9975 | AM61: 22.3775 | AN61: 28.92 | AO61: 3.9025 | AP61: 31785 | AQ61: 44.96821 | AR61: 0.10304596 | AS61: 477.18605 | AU61: 12
A62: Migr. Dev. | B62: 2055 | C62: S2 Thome | D62: Iteration 1 | E62: N A | F62: N A | G62: N A | H62: 32.045 | I62: 66.2425 | J62: 0.3275 | K62: 0 | L62: 0 | M62: 0 | N62: 18.855 | O62: 25.51 | P62: 0 | Q62: 0 | R62: 21.1425 | S62: 0 | T62: 0 | U62: 0 | V62: 5.3125 | W62: 0 | X62: 52.4825 | Y62: 0 | Z62: 0 | AA62: 3.715 | AB62: 0 | AC62: 0 | AD62: 1.3425 | AE62: 0 | AF62: 0 | AG62: 0 | AH62: -9999 | AI62: 98.2875 | AJ62: 0.3275 | AK62: 57.795 | AL62: 21.1425 | AM62: 25.51 | AN62: 22.57 | AO62: 1.3425 | AP62: 37650 | AQ62: 40.864896 | AR62: 0.12439684 | AS62: 447.25581 | AU62: 12
A63: Migr. Dev. | B63: 2070 | C63: S2 Thome | D63: Iteration 1 | E63: N A | F63: N A | G63: N A | H63: 27.6 | I63: 53.5825 | J63: 0.2275 | K63: 0 | L63: 0 | M63: 0 | N63: 17.9775 | O63: 21.445 | P63: 0 | Q63: 0 | R63: 24.155 | S63: 0 | T63: 0 | U63: 0 | V63: 4.66 | W63: 0 | X63: 75.6575 | Y63: 0 | Z63: 0 | AA63: 1.365 | AB63: 0 | AC63: 0 | AD63: 0.305 | AE63: 0 | AF63: 0 | AG63: 0 | AH63: -9999 | AI63: 81.1825 | AJ63: 0.2275 | AK63: 80.3175 | AL63: 24.155 | AM63: 21.445 | AN63: 19.3425 | AO63: 0.305 | AP63: 29725 | AQ63: 35.010412 | AR63: 0.11807539 | AS63: 379.4186 | AU63: 12
A64: Migr. Dev. | B64: 2085 | C64: S2 Thome | D64: Iteration 1 | E64: N A | F64: N A | G64: N A | H64: 22.37 | I64: 41.4675 | J64: 0.02 | K64: 0 | L64: 0 | M64: 0 | N64: 17.695 | O64: 19.0975 | P64: 0 | Q64: 0 | R64: 20.5375 | S64: 0 | T64: 0 | U64: 0 | V64: 3.995 | W64: 0 | X64: 101.4025 | Y64: 0 | Z64: 0 | AA64: 0.2775 | AB64: 0 | AC64: 0 | AD64: 0.1125 | AE64: 0 | AF64: 0 | AG64: 0 | AH64: -9999 | AI64: 63.8375 | AJ64: 0.02 | AK64: 105.3975 | AL64: 20.5375 | AM64: 19.0975 | AN64: 17.9725 | AO64: 0.1125 | AP64: 22455 | AQ64: 32.495875 | AR64: 0.1038171 | AS64: 344.83721 | AU64: 12
A65: Migr. Dev. | B65: 2100 | C65: S2 Thome | D65: Iteration 1 | E65: N A | F65: N A | G65: N A | H65: 16.6125 | I65: 31.205 | J65: 0 | K65: 0 | L65: 0 | M65: 0 | N65: 16.055 | O65: 17.9225 | P65: 0 | Q65: 0 | R65: 18.4575 | S65: 0 | T65: 0 | U65: 0 | V65: 3.48 | W65: 0 | X65: 123.095 | Y65: 0 | Z65: 0 | AA65: 0.14 | AB65: 0 | AC65: 0 | AD65: 0.0075 | AE65: 0 | AF65: 0 | AG65: 0 | AH65: -9999 | AI65: 47.8175 | AJ65: 0 | AK65: 126.575 | AL65: 18.4575 | AM65: 17.9225 | AN65: 16.195 | AO65: 0.0075 | AP65: 17595 | AQ65: 30.13486 | AR65: 0.098746977 | AS65: 317.37209 | AU65: 12
A66: Migr. Dev. | B66: 2010 | C66: S3 Weesuck | D66: Iteration 1 | E66: N A | F66: N A | G66: N A | H66: 45.8625 | I66: 146.5875 | J66: 0 | K66: 0 | L66: 0 | M66: 0 | N66: 2.895 | O66: 1.875 | P66: 0 | Q66: 0.69 | R66: 0 | S66: 0 | T66: 0 | U66: 0 | V66: 0.3 | W66: 0 | X66: 43.15 | Y66: 0 | Z66: 0 | AA66: 17.1075 | AB66: 0 | AC66: 0 | AD66: 4.03 | AE66: 0 | AF66: 0 | AG66: 0 | AH66: -9999 | AI66: 192.45 | AJ66: 0 | AK66: 43.45 | AL66: 0.69 | AM66: 1.875 | AN66: 20.0025 | AO66: 4.03 | AP66: 3290 | AQ66: 20.981269 | AR66: 0.040041138 | AS66: 126.45954 | AU66: 13
A67: Migr. Dev. | B67: 2025 | C67: S3 Weesuck | D67: Iteration 1 | E67: N A | F67: N A | G67: N A | H67: 45.82 | I67: 145.7025 | J67: 0 | K67: 0 | L67: 0 | M67: 0 | N67: 2.395 | O67: 4.185 | P67: 0 | Q67: 0.62 | R67: 0.3775 | S67: 0 | T67: 0 | U67: 0 | V67: 0.3 | W67: 0 | X67: 43.5 | Y67: 0 | Z67: 0 | AA67: 15.705 | AB67: 0 | AC67: 0 | AD67: 3.8925 | AE67: 0 | AF67: 0 | AG67: 0 | AH67: -9999 | AI67: 191.5225 | AJ67: 0 | AK67: 43.8 | AL67: 0.9975 | AM67: 4.185 | AN67: 18.1 | AO67: 3.8925 | AP67: 6580 | AQ67: 20.583206 | AR67: 0.068027821 | AS67: 128.81503 | AU67: 13
A68: Migr. Dev. | B68: 2040 | C68: S3 Weesuck | D68: Iteration 1 | E68: N A | F68: N A | G68: N A | H68: 45.4175 | I68: 141.11 | J68: 0 | K68: 0 | L68: 0 | M68: 0 | N68: 5.87 | O68: 8.63 | P68: 0 | Q68: 0.525 | R68: 2.0475 | S68: 0 | T68: 0 | U68: 0 | V68: 0.3 | W68: 0 | X68: 44.7925 | Y68: 0 | Z68: 0 | AA68: 10.375 | AB68: 0 | AC68: 0 | AD68: 3.43 | AE68: 0 | AF68: 0 | AG68: 0 | AH68: -9999 | AI68: 186.5275 | AJ68: 0 | AK68: 45.0925 | AL68: 2.5725 | AM68: 8.63 | AN68: 16.245 | AO68: 3.43 | AP68: 10960 | AQ68: 22.525125 | AR68: 0.08201005 | AS68: 143.78613 | AU68: 13
A69: Migr. Dev. | B69: 2055 | C69: S3 Weesuck | D69: Iteration 1 | E69: N A | F69: N A | G69: N A | H69: 43.27 | I69: 131.0775 | J69: 0 | K69: 0 | L69: 0 | M69: 0 | N69: 12.3525 | O69: 13.8575 | P69: 0 | Q69: 0.3825 | R69: 6.475 | S69: 0 | T69: 0 | U69: 0 | V69: 0.3 | W69: 0 | X69: 48.1375 | Y69: 0 | Z69: 0 | AA69: 3.8725 | AB69: 0 | AC69: 0 | AD69: 2.7725 | AE69: 0 | AF69: 0 | AG69: 0 | AH69: -9999 | AI69: 174.3475 | AJ69: 0 | AK69: 48.4375 | AL69: 6.8575 | AM69: 13.8575 | AN69: 16.225 | AO69: 2.7725 | AP69: 17675 | AQ69: 26.202944 | AR69: 0.1088008 | AS69: 173.88728 | AU69: 13
A70: Migr. Dev. | B70: 2070 | C70: S3 Weesuck | D70: Iteration 1 | E70: N A | F70: N A | G70: N A | H70: 39.5825 | I70: 117.2425 | J70: 0 | K70: 0 | L70: 0 | M70: 0 | N70: 17.55 | O70: 16.455 | P70: 0 | Q70: 0.27 | R70: 11.48 | S70: 0 | T70: 0 | U70: 0 | V70: 0.12 | W70: 0 | X70: 56.43 | Y70: 0 | Z70: 0 | AA70: 1.4475 | AB70: 0 | AC70: 0 | AD70: 1.92 | AE70: 0 | AF70: 0 | AG70: 0 | AH70: -9999 | AI70: 156.825 | AJ70: 0 | AK70: 56.55 | AL70: 11.75 | AM70: 16.455 | AN70: 18.9975 | AO70: 1.92 | AP70: 21140 | AQ70: 30.427694 | AR70: 0.11849658 | AS70: 204.92775 | AU70: 13
A71: Migr. Dev. | B71: 2085 | C71: S3 Weesuck | D71: Iteration 1 | E71: N A | F71: N A | G71: N A | H71: 35.4575 | I71: 104.1225 | J71: 0 | K71: 0 | L71: 0 | M71: 0 | N71: 17.2475 | O71: 18.8775 | P71: 0 | Q71: 0.1625 | R71: 14.8175 | S71: 0 | T71: 0 | U71: 0 | V71: 0 | W71: 0 | X71: 69.76 | Y71: 0 | Z71: 0 | AA71: 1.0925 | AB71: 0 | AC71: 0 | AD71: 0.96 | AE71: 0 | AF71: 0 | AG71: 0 | AH71: -9999 | AI71: 139.58 | AJ71: 0 | AK71: 69.76 | AL71: 14.98 | AM71: 18.8775 | AN71: 18.34 | AO71: 0.96 | AP71: 22730 | AQ71: 31.632258 | AR71: 0.12499496 | AS71: 215.13006 | AU71: 13
A72: Migr. Dev. | B72: 2100 | C72: S3 Weesuck | D72: Iteration 1 | E72: N A | F72: N A | G72: N A | H72: 30.86 | I72: 91.2175 | J72: 0 | K72: 0 | L72: 0 | M72: 0 | N72: 17.5025 | O72: 18.305 | P72: 0 | Q72: 0.0225 | R72: 17.8925 | S72: 0 | T72: 0 | U72: 0 | V72: 0 | W72: 0 | X72: 85.7 | Y72: 0 | Z72: 0 | AA72: 0.5675 | AB72: 0 | AC72: 0 | AD72: 0.43 | AE72: 0 | AF72: 0 | AG72: 0 | AH72: -9999 | AI72: 122.0775 | AJ72: 0 | AK72: 85.7 | AL72: 17.915 | AM72: 18.305 | AN72: 18.07 | AO72: 0.43 | AP72: 23950 | AQ72: 30.725744 | AR72: 0.12920962 | AS72: 210.26012 | AU72: 13
A73: Migr. Dev. | B73: 2010 | C73: S4 Smith Pt. | D73: Iteration 1 | E73: N A | F73: N A | G73: N A | H73: 44.62 | I73: 86.675 | J73: 0 | K73: 0 | L73: 0 | M73: 0 | N73: 4.035 | O73: 0.8975 | P73: 0 | Q73: 2.565 | R73: 0 | S73: 0 | T73: 0 | U73: 0 | V73: 0 | W73: 0 | X73: 24.5925 | Y73: 0 | Z73: 0 | AA73: 21.03 | AB73: 0 | AC73: 0 | AD73: 0 | AE73: 0 | AF73: 0 | AG73: 0 | AH73: -9999 | AI73: 131.295 | AJ73: 0 | AK73: 24.5925 | AL73: 2.565 | AM73: 0.8975 | AN73: 25.065 | AO73: 0 | AP73: 1215 | AQ73: 25.767839 | AR73: 0.012903226 | AS73: 451.52174 | AU73: 14
A74: Migr. Dev. | B74: 2025 | C74: S4 Smith Pt. | D74: Iteration 1 | E74: N A | F74: N A | G74: N A | H74: 44.53 | I74: 84.6375 | J74: 0 | K74: 0 | L74: 0 | M74: 0 | N74: 5.2775 | O74: 6.0075 | P74: 0 | Q74: 2.0975 | R74: 0.26 | S74: 0 | T74: 0 | U74: 0 | V74: 0 | W74: 0 | X74: 25.0675 | Y74: 0 | Z74: 0 | AA74: 16.5375 | AB74: 0 | AC74: 0 | AD74: 0 | AE74: 0 | AF74: 0 | AG74: 0 | AH74: -9999 | AI74: 129.1675 | AJ74: 0 | AK74: 25.0675 | AL74: 2.3575 | AM74: 6.0075 | AN74: 21.815 | AO74: 0 | AP74: 3400 | AQ74: 27.093858 | AR74: 0.027495732 | AS74: 483.86957 | AU74: 14
A75: Migr. Dev. | B75: 2040 | C75: S4 Smith Pt. | D75: Iteration 1 | E75: N A | F75: N A | G75: N A | H75: 42.64 | I75: 79.595 | J75: 0 | K75: 0 | L75: 0 | M75: 0 | N75: 8.875 | O75: 15.4775 | P75: 0 | Q75: 0.9975 | R75: 5.515 | S75: 0 | T75: 0 | U75: 0 | V75: 0 | W75: 0 | X75: 26.76 | Y75: 0 | Z75: 0 | AA75: 4.555 | AB75: 0 | AC75: 0 | AD75: 0 | AE75: 0 | AF75: 0 | AG75: 0 | AH75: -9999 | AI75: 122.235 | AJ75: 0 | AK75: 26.76 | AL75: 6.5125 | AM75: 15.4775 | AN75: 13.43 | AO75: 0 | AP75: 18625 | AQ75: 25.795092 | AR75: 0.092017642 | AS75: 502.73913 | AU75: 14
A76: Migr. Dev. | B76: 2055 | C76: S4 Smith Pt. | D76: Iteration 1 | E76: N A | F76: N A | G76: N A | H76: 38.2475 | I76: 69.0125 | J76: 0 | K76: 0 | L76: 0 | M76: 0 | N76: 15.63 | O76: 12.5575 | P76: 0 | Q76: 0.3175 | R76: 15.1025 | S76: 0 | T76: 0 | U76: 0 | V76: 0 | W76: 0 | X76: 33.25 | Y76: 0 | Z76: 0 | AA76: 0.2975 | AB76: 0 | AC76: 0 | AD76: 0 | AE76: 0 | AF76: 0 | AG76: 0 | AH76: -9999 | AI76: 107.26 | AJ76: 0 | AK76: 33.25 | AL76: 15.42 | AM76: 12.5575 | AN76: 15.9275 | AO76: 0 | AP76: 20250 | AQ76: 24.632006 | AR76: 0.11395471 | AS76: 495.3913 | AU76: 14
A77: Migr. Dev. | B77: 2070 | C77: S4 Smith Pt. | D77: Iteration 1 | E77: N A | F77: N A | G77: N A | H77: 29.53 | I77: 50.7 | J77: 0 | K77: 0 | L77: 0 | M77: 0 | N77: 27.05 | O77: 15.9075 | P77: 0 | Q77: 0.035 | R77: 12.0575 | S77: 0 | T77: 0 | U77: 0 | V77: 0 | W77: 0 | X77: 49.1325 | Y77: 0 | Z77: 0 | AA77: 0.0025 | AB77: 0 | AC77: 0 | AD77: 0 | AE77: 0 | AF77: 0 | AG77: 0 | AH77: -9999 | AI77: 80.23 | AJ77: 0 | AK77: 49.1325 | AL77: 12.0925 | AM77: 15.9075 | AN77: 27.0525 | AO77: 0 | AP77: 13380 | AQ77: 38.963415 | AR77: 0.079329609 | AS77: 747.13043 | AU77: 14
A78: Migr. Dev. | B78: 2085 | C78: S4 Smith Pt. | D78: Iteration 1 | E78: N A | F78: N A | G78: N A | H78: 22.1625 | I78: 37.4025 | J78: 0 | K78: 0 | L78: 0 | M78: 0 | N78: 20.6675 | O78: 27.05 | P78: 0 | Q78: 0.0025 | R78: 15.2875 | S78: 0 | T78: 0 | U78: 0 | V78: 0 | W78: 0 | X78: 61.8425 | Y78: 0 | Z78: 0 | AA78: 0 | AB78: 0 | AC78: 0 | AD78: 0 | AE78: 0 | AF78: 0 | AG78: 0 | AH78: -9999 | AI78: 59.565 | AJ78: 0 | AK78: 61.8425 | AL78: 15.29 | AM78: 27.05 | AN78: 20.6675 | AO78: 0 | AP78: 20360 | AQ78: 42.152269 | AR78: 0.097836224 | AS78: 829.86957 | AU78: 14
A79: Migr. Dev. | B79: 2100 | C79: S4 Smith Pt. | D79: Iteration 1 | E79: N A | F79: N A | G79: N A | H79: 12.52 | I79: 21.695 | J79: 0 | K79: 0 | L79: 0 | M79: 0 | N79: 25.35 | O79: 20.665 | P79: 0 | Q79: 0 | R79: 26.6825 | S79: 0 | T79: 0 | U79: 0 | V79: 0 | W79: 0 | X79: 77.5025 | Y79: 0 | Z79: 0 | AA79: 0 | AB79: 0 | AC79: 0 | AD79: 0 | AE79: 0 | AF79: 0 | AG79: 0 | AH79: -9999 | AI79: 34.215 | AJ79: 0 | AK79: 77.5025 | AL79: 26.6825 | AM79: 20.665 | AN79: 25.35 | AO79: 0 | AP79: 26190 | AQ79: 40.471874 | AR79: 0.10096708 | AS79: 800.26087 | AU79: 14
A80: Migr. Dev. | B80: 2010 | C80: S5 Mastic | D80: Iteration 1 | E80: N A | F80: N A | G80: N A | H80: 215.6875 | I80: 522.735 | J80: 3.6575 | K80: 0 | L80: 0.6625 | M80: 4 | N80: 30.5975 | O80: 4.95 | P80: 0 | Q80: 4.4925 | R80: 3.54 | S80: 0 | T80: 0 | U80: 0 | V80: 0.77 | W80: 0 | X80: 302.29 | Y80: 0 | Z80: 0 | AA80: 135.955 | AB80: 0 | AC80: 0 | AD80: 12.6475 | AE80: 0 | AF80: 0 | AG80: 0 | AH80: -9999 | AI80: 738.4225 | AJ80: 4.32 | AK80: 303.06 | AL80: 8.0325 | AM80: 4.95 | AN80: 166.5525 | AO80: 16.6475 | AP80: 21170 | AQ80: 169.74778 | AR80: 0.028820102 | AS80: 314.68349 | AU80: 15
A81: Migr. Dev. | B81: 2025 | C81: S5 Mastic | D81: Iteration 1 | E81: N A | F81: N A | G81: N A | H81: 214.3675 | I81: 520.365 | J81: 3.6575 | K81: 0 | L81: 0.6625 | M81: 3.9775 | N81: 30.905 | O81: 28.14 | P81: 0 | Q81: 3.7525 | R81: 6.8025 | S81: 0 | T81: 0 | U81: 0 | V81: 0.9475 | W81: 0 | X81: 304.4525 | Y81: 0 | Z81: 0 | AA81: 111.5075 | AB81: 0 | AC81: 0 | AD81: 12.4475 | AE81: 0 | AF81: 0 | AG81: 0 | AH81: -9999 | AI81: 734.7325 | AJ81: 4.32 | AK81: 305.4 | AL81: 10.555 | AM81: 28.14 | AN81: 142.4125 | AO81: 16.425 | AP81: 34545 | AQ81: 166.24385 | AR81: 0.040537443 | AS81: 312.94037 | AU81: 15
A82: Migr. Dev. | B82: 2040 | C82: S5 Mastic | D82: Iteration 1 | E82: N A | F82: N A | G82: N A | H82: 203.44 | I82: 497.605 | J82: 3.655 | K82: 0 | L82: 0.59 | M82: 3.6875 | N82: 48.3 | O82: 79.915 | P82: 0 | Q82: 2.66 | R82: 28.8325 | S82: 0 | T82: 0 | U82: 0 | V82: 0.4925 | W82: 0 | X82: 312.19 | Y82: 0 | Z82: 0 | AA82: 49.7925 | AB82: 0 | AC82: 0 | AD82: 10.825 | AE82: 0 | AF82: 0 | AG82: 0 | AH82: -9999 | AI82: 701.045 | AJ82: 4.245 | AK82: 312.6825 | AL82: 31.4925 | AM82: 79.915 | AN82: 98.0925 | AO82: 14.5125 | AP82: 85730 | AQ82: 164.1007 | AR82: 0.079842593 | AS82: 326.61927 | AU82: 15
A83: Migr. Dev. | B83: 2055 | C83: S5 Mastic | D83: Iteration 1 | E83: N A | F83: N A | G83: N A | H83: 179.9325 | I83: 434.625 | J83: 3.3525 | K83: 0 | L83: 0.0375 | M83: 2.94 | N83: 90.185 | O83: 87.9775 | P83: 0 | Q83: 1.06 | R83: 78.0725 | S83: 0 | T83: 0 | U83: 0 | V83: 0.39 | W83: 0 | X83: 344.8125 | Y83: 0 | Z83: 0 | AA83: 10.945 | AB83: 0 | AC83: 0 | AD83: 7.655 | AE83: 0 | AF83: 0 | AG83: 0 | AH83: -9999 | AI83: 614.5575 | AJ83: 3.39 | AK83: 345.2025 | AL83: 79.1325 | AM83: 87.9775 | AN83: 101.13 | AO83: 10.595 | AP83: 135000 | AQ83: 166.80085 | AR83: 0.1073901 | AS83: 346.98624 | AU83: 15
A84: Migr. Dev. | B84: 2070 | C84: S5 Mastic | D84: Iteration 1 | E84: N A | F84: N A | G84: N A | H84: 156.8825 | I84: 375.89 | J84: 2.8875 | K84: 0 | L84: 0 | M84: 1.04 | N84: 82.46 | O84: 100.765 | P84: 0 | Q84: 0.38 | R84: 86.3 | S84: 0 | T84: 0 | U84: 0 | V84: 0.0975 | W84: 0 | X84: 426.4225 | Y84: 0 | Z84: 0 | AA84: 3.29 | AB84: 0 | AC84: 0 | AD84: 5.57 | AE84: 0 | AF84: 0 | AG84: 0 | AH84: -9999 | AI84: 532.7725 | AJ84: 2.8875 | AK84: 426.52 | AL84: 86.68 | AM84: 100.765 | AN84: 85.75 | AO84: 6.61 | AP84: 96010 | AQ84: 165.77387 | AR84: 0.09519341 | AS84: 342.22936 | AU84: 15
A85: Migr. Dev. | B85: 2085 | C85: S5 Mastic | D85: Iteration 1 | E85: N A | F85: N A | G85: N A | H85: 134.05 | I85: 327.85 | J85: 2.4175 | K85: 0 | L85: 0 | M85: 0.105 | N85: 71.3725 | O85: 85.6725 | P85: 0 | Q85: 0.12 | R85: 99.205 | S85: 0 | T85: 0 | U85: 0 | V85: 0.19 | W85: 0 | X85: 515.1425 | Y85: 0 | Z85: 0 | AA85: 1.335 | AB85: 0 | AC85: 0 | AD85: 4.525 | AE85: 0 | AF85: 0 | AG85: 0 | AH85: -9999 | AI85: 461.9 | AJ85: 2.4175 | AK85: 515.3325 | AL85: 99.325 | AM85: 85.6725 | AN85: 72.7075 | AO85: 4.63 | AP85: 94760 | AQ85: 137.61689 | AR85: 0.10778307 | AS85: 290.6055 | AU85: 15
A86: Migr. Dev. | B86: 2100 | C86: S5 Mastic | D86: Iteration 1 | E86: N A | F86: N A | G86: N A | H86: 112.2 | I86: 281.6225 | J86: 2.0675 | K86: 0 | L86: 0 | M86: 0 | N86: 68.4275 | O86: 72.6525 | P86: 0 | Q86: 0.0325 | R86: 83.7025 | S86: 0 | T86: 0 | U86: 0 | V86: 0.0875 | W86: 0 | X86: 616.61 | Y86: 0 | Z86: 0 | AA86: 1.1375 | AB86: 0 | AC86: 0 | AD86: 3.445 | AE86: 0 | AF86: 0 | AG86: 0 | AH86: -9999 | AI86: 393.8225 | AJ86: 2.0675 | AK86: 616.6975 | AL86: 83.735 | AM86: 72.6525 | AN86: 69.565 | AO86: 3.445 | AP86: 79115 | AQ86: 124.67074 | AR86: 0.10130961 | AS86: 260.94954 | AU86: 15
A87: Migr. Dev. | B87: 2010 | C87: S6 Thorne | D87: Iteration 1 | E87: N A | F87: N A | G87: N A | H87: 60.39 | I87: 126.815 | J87: 5.595 | K87: 0 | L87: 0 | M87: 0 | N87: 1.775 | O87: 4.465 | P87: 0 | Q87: 0.025 | R87: 0 | S87: 0 | T87: 0 | U87: 0 | V87: 2.0175 | W87: 0 | X87: 34.355 | Y87: 0 | Z87: 0 | AA87: 26.39 | AB87: 0 | AC87: 0 | AD87: 25.295 | AE87: 0 | AF87: 0 | AG87: 0 | AH87: -9999 | AI87: 187.205 | AJ87: 5.595 | AK87: 36.3725 | AL87: 0.025 | AM87: 4.465 | AN87: 28.165 | AO87: 25.295 | AP87: 3070 | AQ87: 31.891137 | AR87: 0.024180202 | AS87: 362.95884 | AU87: 16
A88: Migr. Dev. | B88: 2025 | C88: S6 Thorne | D88: Iteration 1 | E88: N A | F88: N A | G88: N A | H88: 60.275 | I88: 121.38 | J88: 5.46 | K88: 0 | L88: 0 | M88: 0 | N88: 6.04 | O88: 13.9825 | P88: 0 | Q88: 0.0025 | R88: 1.8675 | S88: 0 | T88: 0 | U88: 0 | V88: 2.0175 | W88: 0 | X88: 34.9375 | Y88: 0 | Z88: 0 | AA88: 17.4125 | AB88: 0 | AC88: 0 | AD88: 23.7475 | AE88: 0 | AF88: 0 | AG88: 0 | AH88: -9999 | AI88: 181.655 | AJ88: 5.46 | AK88: 36.955 | AL88: 1.87 | AM88: 13.9825 | AN88: 23.4525 | AO88: 23.7475 | AP88: 11795 | AQ88: 34.942438 | AR88: 0.058675037 | AS88: 416.40712 | AU88: 16
A89: Migr. Dev. | B89: 2040 | C89: S6 Thorne | D89: Iteration 1 | E89: N A | F89: N A | G89: N A | H89: 59.3475 | I89: 114.145 | J89: 5.3075 | K89: 0 | L89: 0 | M89: 0 | N89: 9.1525 | O89: 18.8725 | P89: 0 | Q89: 0.015 | R89: 13.41 | S89: 0 | T89: 0 | U89: 0 | V89: 1.885 | W89: 0 | X89: 37.4975 | Y89: 0 | Z89: 0 | AA89: 10.7575 | AB89: 0 | AC89: 0 | AD89: 16.7325 | AE89: 0 | AF89: 0 | AG89: 0 | AH89: -9999 | AI89: 173.4925 | AJ89: 5.3075 | AK89: 39.3825 | AL89: 13.425 | AM89: 18.8725 | AN89: 19.91 | AO89: 16.7325 | AP89: 29160 | AQ89: 32.671847 | AR89: 0.1308451 | AS89: 431.396 | AU89: 16
A90: Migr. Dev. | B90: 2055 | C90: S6 Thorne | D90: Iteration 1 | E90: N A | F90: N A | G90: N A | H90: 57.2375 | I90: 105.625 | J90: 5.1175 | K90: 0 | L90: 0 | M90: 0 | N90: 11.2025 | O90: 19.1075 | P90: 0 | Q90: 0.04 | R90: 18.1825 | S90: 0 | T90: 0 | U90: 0 | V90: 1.425 | W90: 0 | X90: 52.0825 | Y90: 0 | Z90: 0 | AA90: 8.145 | AB90: 0 | AC90: 0 | AD90: 8.9575 | AE90: 0 | AF90: 0 | AG90: 0 | AH90: -9999 | AI90: 162.8625 | AJ90: 5.1175 | AK90: 53.5075 | AL90: 18.2225 | AM90: 19.1075 | AN90: 19.3475 | AO90: 8.9575 | AP90: 27895 | AQ90: 32.625 | AR90: 0.12613444 | AS90: 427.75306 | AU90: 16
A91: Migr. Dev. | B91: 2070 | C91: S6 Thorne | D91: Iteration 1 | E91: N A | F91: N A | G91: N A | H91: 47.6825 | I91: 85.1325 | J91: 2.4075 | K91: 0 | L91: 0 | M91: 0 | N91: 32.665 | O91: 19.3 | P91: 0 | Q91: 0.055 | R91: 18.4875 | S91: 0 | T91: 0 | U91: 0 | V91: 1.0075 | W91: 0 | X91: 71.4125 | Y91: 0 | Z91: 0 | AA91: 6.1075 | AB91: 0 | AC91: 0 | AD91: 2.865 | AE91: 0 | AF91: 0 | AG91: 0 | AH91: -9999 | AI91: 132.815 | AJ91: 2.4075 | AK91: 72.42 | AL91: 18.5425 | AM91: 19.3 | AN91: 38.7725 | AO91: 2.865 | AP91: 26930 | AQ91: 52.446839 | AR91: 0.0816996 | AS91: 645.96774 | AU91: 16
A92: Migr. Dev. | B92: 2085 | C92: S6 Thorne | D92: Iteration 1 | E92: N A | F92: N A | G92: N A | H92: 37.7925 | I92: 67.195 | J92: 1.3025 | K92: 0 | L92: 0 | M92: 0 | N92: 28.8525 | O92: 38.77 | P92: 0 | Q92: 0.0575 | R92: 18.5125 | S92: 0 | T92: 0 | U92: 0 | V92: 0.2275 | W92: 0 | X92: 91.5475 | Y92: 0 | Z92: 0 | AA92: 2.2625 | AB92: 0 | AC92: 0 | AD92: 0.6025 | AE92: 0 | AF92: 0 | AG92: 0 | AH92: -9999 | AI92: 104.9875 | AJ92: 1.3025 | AK92: 91.775 | AL92: 18.57 | AM92: 38.77 | AN92: 31.115 | AO92: 0.6025 | AP92: 26825 | AQ92: 62.710527 | AR92: 0.085934034 | AS92: 777.36374 | AU92: 16
A93: Migr. Dev. | B93: 2100 | C93: S6 Thorne | D93: Iteration 1 | E93: N A | F93: N A | G93: N A | H93: 26.955 | I93: 47.82 | J93: 0.625 | K93: 0 | L93: 0 | M93: 0 | N93: 30.8875 | O93: 31.0875 | P93: 0 | Q93: 0.02 | R93: 38.1125 | S93: 0 | T93: 0 | U93: 0 | V93: 0.2275 | W93: 0 | X93: 110.785 | Y93: 0 | Z93: 0 | AA93: 0.5575 | AB93: 0 | AC93: 0 | AD93: 0.045 | AE93: 0 | AF93: 0 | AG93: 0 | AH93: -9999 | AI93: 74.775 | AJ93: 0.625 | AK93: 111.0125 | AL93: 38.1325 | AM93: 31.0875 | AN93: 31.445 | AO93: 0.045 | AP93: 37605 | AQ93: 55.088691 | AR93: 0.099180426 | AS93: 695.57842 | AU93: 16
A94: Migr. Dev. | B94: 2010 | C94: S7 Timber | D94: Iteration 1 | E94: N A | F94: N A | G94: N A | H94: 10.29 | I94: 82.7625 | J94: 2.0225 | K94: 0 | L94: 0 | M94: 0 | N94: 5.055 | O94: 6.675 | P94: 0 | Q94: 0 | R94: 0 | S94: 0 | T94: 0 | U94: 0 | V94: 4.4975 | W94: 0 | X94: 44.7475 | Y94: 0 | Z94: 0 | AA94: 18.1575 | AB94: 0 | AC94: 0 | AD94: 0 | AE94: 0 | AF94: 0 | AG94: 0 | AH94: -9999 | AI94: 93.0525 | AJ94: 2.0225 | AK94: 49.245 | AL94: 0 | AM94: 6.675 | AN94: 23.2125 | AO94: 0 | AP94: 6030 | AQ94: 28.787078 | AR94: 0.035700544 | AS94: 298.875 | AU94: 17
A95: Migr. Dev. | B95: 2025 | C95: S7 Timber | D95: Iteration 1 | E95: N A | F95: N A | G95: N A | H95: 9.7525 | I95: 72.57 | J95: 1.2775 | K95: 0 | L95: 0 | M95: 0 | N95: 13.425 | O95: 13.2625 | P95: 0 | Q95: 0 | R95: 3.785 | S95: 0 | T95: 0 | U95: 0 | V95: 2.3475 | W95: 0 | X95: 47.3375 | Y95: 0 | Z95: 0 | AA95: 10.45 | AB95: 0 | AC95: 0 | AD95: 0 | AE95: 0 | AF95: 0 | AG95: 0 | AH95: -9999 | AI95: 82.3225 | AJ95: 1.2775 | AK95: 49.685 | AL95: 3.785 | AM95: 13.2625 | AN95: 23.875 | AO95: 0 | AP95: 17960 | AQ95: 34.018608 | AR95: 0.072514305 | AS95: 371.375 | AU95: 17
A96: Migr. Dev. | B96: 2040 | C96: S7 Timber | D96: Iteration 1 | E96: N A | F96: N A | G96: N A | H96: 8.745 | I96: 56.6575 | J96: 0.4575 | K96: 0 | L96: 0 | M96: 0 | N96: 19.6525 | O96: 20.7675 | P96: 0 | Q96: 0 | R96: 12.105 | S96: 0 | T96: 0 | U96: 0 | V96: 1.065 | W96: 0 | X96: 53.085 | Y96: 0 | Z96: 0 | AA96: 1.6725 | AB96: 0 | AC96: 0 | AD96: 0 | AE96: 0 | AF96: 0 | AG96: 0 | AH96: -9999 | AI96: 65.4025 | AJ96: 0.4575 | AK96: 54.15 | AL96: 12.105 | AM96: 20.7675 | AN96: 21.325 | AO96: 0 | AP96: 28565 | AQ96: 36.389788 | AR96: 0.11310804 | AS96: 420.925 | AU96: 17
A97: Migr. Dev. | B97: 2055 | C97: S7 Timber | D97: Iteration 1 | E97: N A | F97: N A | G97: N A | H97: 8.2575 | I97: 47.7475 | J97: 0.1075 | K97: 0 | L97: 0 | M97: 0 | N97: 10.5675 | O97: 20.51 | P97: 0 | Q97: 0 | R97: 19.3375 | S97: 0 | T97: 0 | U97: 0 | V97: 0 | W97: 0 | X97: 67.5 | Y97: 0 | Z97: 0 | AA97: 0.18 | AB97: 0 | AC97: 0 | AD97: 0 | AE97: 0 | AF97: 0 | AG97: 0 | AH97: -9999 | AI97: 56.005 | AJ97: 0.1075 | AK97: 67.5 | AL97: 19.3375 | AM97: 20.51 | AN97: 10.7475 | AO97: 0 | AP97: 27935 | AQ97: 25.483222 | AR97: 0.15295529 | AS97: 312.575 | AU97: 17
A98: Migr. Dev. | B98: 2070 | C98: S7 Timber | D98: Iteration 1 | E98: N A | F98: N A | G98: N A | H98: 7.8325 | I98: 41.6125 | J98: 0.065 | K98: 0 | L98: 0 | M98: 0 | N98: 6.6 | O98: 10.6925 | P98: 0 | Q98: 0 | R98: 19.0975 | S98: 0 | T98: 0 | U98: 0 | V98: 0 | W98: 0 | X98: 88.255 | Y98: 0 | Z98: 0 | AA98: 0.0525 | AB98: 0 | AC98: 0 | AD98: 0 | AE98: 0 | AF98: 0 | AG98: 0 | AH98: -9999 | AI98: 49.445 | AJ98: 0.065 | AK98: 88.255 | AL98: 19.0975 | AM98: 10.6925 | AN98: 6.6525 | AO98: 0 | AP98: 20435 | AQ98: 13.658446 | AR98: 0.17673681 | AS98: 173.45 | AU98: 17
A99: Migr. Dev. | B99: 2085 | C99: S7 Timber | D99: Iteration 1 | E99: N A | F99: N A | G99: N A | H99: 7.1625 | I99: 34.9275 | J99: 0.0125 | K99: 0 | L99: 0 | M99: 0 | N99: 7.4025 | O99: 6.62 | P99: 0 | Q99: 0 | R99: 10.1475 | S99: 0 | T99: 0 | U99: 0 | V99: 0 | W99: 0 | X99: 107.905 | Y99: 0 | Z99: 0 | AA99: 0.03 | AB99: 0 | AC99: 0 | AD99: 0 | AE99: 0 | AF99: 0 | AG99: 0 | AH99: -9999 | AI99: 42.09 | AJ99: 0.0125 | AK99: 107.905 | AL99: 10.1475 | AM99: 6.62 | AN99: 7.4325 | AO99: 0 | AP99: 10635 | AQ99: 11.827938 | AR99: 0.13460238 | AS99: 140.525 | AU99: 17
A100: Migr. Dev. | B100: 2100 | C100: S7 Timber | D100: Iteration 1 | E100: N A | F100: N A | G100: N A | H100: 6.4925 | I100: 27.745 | J100: 0 | K100: 0 | L100: 0 | M100: 0 | N100: 7.8575 | O100: 7.415 | P100: 0 | Q100: 0 | R100: 6.275 | S100: 0 | T100: 0 | U100: 0 | V100: 0 | W100: 0 | X100: 118.41 | Y100: 0 | Z100: 0 | AA100: 0.0125 | AB100: 0 | AC100: 0 | AD100: 0 | AE100: 0 | AF100: 0 | AG100: 0 | AH100: -9999 | AI100: 34.2375 | AJ100: 0 | AK100: 118.41 | AL100: 6.275 | AM100: 7.415 | AN100: 7.87 | AO100: 0 | AP100: 8520 | AQ100: 13.380403 | AR100: 0.10762185 | AS100: 152.85 | AU100: 17
A101: Migr. Dev. | B101: 2010 | C101: S8 W. Sayville | D101: Iteration 1 | E101: N A | F101: N A | G101: N A | H101: 23.275 | I101: 101.42 | J101: 22.1625 | K101: 0 | L101: 0 | M101: 0 | N101: 6.7275 | O101: 8.1075 | P101: 0 | Q101: 1.1475 | R101: 0 | S101: 0 | T101: 0 | U101: 0 | V101: 1.71 | W101: 0 | X101: 43.32 | Y101: 0 | Z101: 0 | AA101: 48.2975 | AB101: 0 | AC101: 0 | AD101: 0 | AE101: 0 | AF101: 0 | AG101: 0 | AH101: -9999 | AI101: 124.695 | AJ101: 22.1625 | AK101: 45.03 | AL101: 1.1475 | AM101: 8.1075 | AN101: 55.025 | AO101: 0 | AP101: 6775 | AQ101: 61.584698 | AR101: 0.023965469 | AS101: 841.76667 | AU101: 18
A102: Migr. Dev. | B102: 2025 | C102: S8 W. Sayville | D102: Iteration 1 | E102: N A | F102: N A | G102: N A | H102: 21.0125 | I102: 94.775 | J102: 14.8175 | K102: 0 | L102: 0 | M102: 0 | N102: 19.52 | O102: 25.365 | P102: 0 | Q102: 0.4475 | R102: 4.2 | S102: 0 | T102: 0 | U102: 0 | V102: 1.7375 | W102: 0 | X102: 44.2225 | Y102: 0 | Z102: 0 | AA102: 30.07 | AB102: 0 | AC102: 0 | AD102: 0 | AE102: 0 | AF102: 0 | AG102: 0 | AH102: -9999 | AI102: 115.7875 | AJ102: 14.8175 | AK102: 45.96 | AL102: 4.6475 | AM102: 25.365 | AN102: 49.59 | AO102: 0 | AP102: 23005 | AQ102: 70.642812 | AR102: 0.049883263 | AS102: 999.4 | AU102: 18
A103: Migr. Dev. | B103: 2040 | C103: S8 W. Sayville | D103: Iteration 1 | E103: N A | F103: N A | G103: N A | H103: 17.565 | I103: 80.9625 | J103: 8.4525 | K103: 0 | L103: 0 | M103: 0 | N103: 26.4675 | O103: 40.66 | P103: 0 | Q103: 0.125 | R103: 23.8075 | S103: 0 | T103: 0 | U103: 0 | V103: 1.72 | W103: 0 | X103: 49.635 | Y103: 0 | Z103: 0 | AA103: 6.7725 | AB103: 0 | AC103: 0 | AD103: 0 | AE103: 0 | AF103: 0 | AG103: 0 | AH103: -9999 | AI103: 98.5275 | AJ103: 8.4525 | AK103: 51.355 | AL103: 23.9325 | AM103: 40.66 | AN103: 33.24 | AO103: 0 | AP103: 60840 | AQ103: 63.060048 | AR103: 0.12086604 | AS103: 985.33333 | AU103: 18
A104: Migr. Dev. | B104: 2055 | C104: S8 W. Sayville | D104: Iteration 1 | E104: N A | F104: N A | G104: N A | H104: 14.6175 | I104: 68.54 | J104: 4.6975 | K104: 0 | L104: 0 | M104: 0 | N104: 20.295 | O104: 30.755 | P104: 0 | Q104: 0.105 | R104: 38.6925 | S104: 0 | T104: 0 | U104: 0 | V104: 1.71 | W104: 0 | X104: 75.41 | Y104: 0 | Z104: 0 | AA104: 1.345 | AB104: 0 | AC104: 0 | AD104: 0 | AE104: 0 | AF104: 0 | AG104: 0 | AH104: -9999 | AI104: 83.1575 | AJ104: 4.6975 | AK104: 77.12 | AL104: 38.7975 | AM104: 30.755 | AN104: 21.64 | AO104: 0 | AP104: 49805 | AQ104: 43.103868 | AR104: 0.14589178 | AS104: 698.6 | AU104: 18
A105: Migr. Dev. | B105: 2070 | C105: S8 W. Sayville | D105: Iteration 1 | E105: N A | F105: N A | G105: N A | H105: 11.0575 | I105: 52.4725 | J105: 2.0625 | K105: 0 | L105: 0 | M105: 0 | N105: 22.2525 | O105: 21.3125 | P105: 0 | Q105: 0.0725 | R105: 29.21 | S105: 0 | T105: 0 | U105: 0 | V105: 0.02 | W105: 0 | X105: 117.4 | Y105: 0 | Z105: 0 | AA105: 0.3075 | AB105: 0 | AC105: 0 | AD105: 0 | AE105: 0 | AF105: 0 | AG105: 0 | AH105: -9999 | AI105: 63.53 | AJ105: 2.0625 | AK105: 117.42 | AL105: 29.2825 | AM105: 21.3125 | AN105: 22.56 | AO105: 0 | AP105: 32295 | AQ105: 37.599662 | AR105: 0.11896974 | AS105: 584.96667 | AU105: 18
A106: Migr. Dev. | B106: 2085 | C106: S8 W. Sayville | D106: Iteration 1 | E106: N A | F106: N A | G106: N A | H106: 8.405 | I106: 43.0825 | J106: 1.02 | K106: 0 | L106: 0 | M106: 0 | N106: 13.085 | O106: 22.4625 | P106: 0 | Q106: 0 | R106: 19.9175 | S106: 0 | T106: 0 | U106: 0 | V106: 0 | W106: 0 | X106: 148.1025 | Y106: 0 | Z106: 0 | AA106: 0.0925 | AB106: 0 | AC106: 0 | AD106: 0 | AE106: 0 | AF106: 0 | AG106: 0 | AH106: -9999 | AI106: 51.4875 | AJ106: 1.02 | AK106: 148.1025 | AL106: 19.9175 | AM106: 22.4625 | AN106: 13.1775 | AO106: 0 | AP106: 22815 | AQ106: 30.867235 | AR106: 0.11227553 | AS106: 475.2 | AU106: 18
A107: Migr. Dev. | B107: 2100 | C107: S8 W. Sayville | D107: Iteration 1 | E107: N A | F107: N A | G107: N A | H107: 6.835 | I107: 36.7425 | J107: 0.64 | K107: 0 | L107: 0 | M107: 0 | N107: 8.2875 | O107: 13.1375 | P107: 0 | Q107: 0 | R107: 21.6025 | S107: 0 | T107: 0 | U107: 0 | V107: 0 | W107: 0 | X107: 168.89 | Y107: 0 | Z107: 0 | AA107: 0.0325 | AB107: 0 | AC107: 0 | AD107: 0 | AE107: 0 | AF107: 0 | AG107: 0 | AH107: -9999 | AI107: 43.5775 | AJ107: 0.64 | AK107: 168.89 | AL107: 21.6025 | AM107: 13.1375 | AN107: 8.32 | AO107: 0 | AP107: 17735 | AQ107: 17.993373 | AR107: 0.13557031 | AS107: 286.1 | AU107: 18
A108: Migr. Dev. | B108: 2010 | C108: S9 Pepperrige | D108: Iteration 1 | E108: N A | F108: N A | G108: N A | H108: 171.4475 | I108: 335.84 | J108: 92.895 | K108: 0 | L108: 10.5625 | M108: 0 | N108: 14.975 | O108: 13.695 | P108: 0 | Q108: 0 | R108: 0 | S108: 0 | T108: 0 | U108: 0 | V108: 17.6025 | W108: 0 | X108: 126.17 | Y108: 0 | Z108: 0 | AA108: 84.245 | AB108: 0 | AC108: 0 | AD108: 10.52 | AE108: 0 | AF108: 0 | AG108: 0 | AH108: -9999 | AI108: 507.2875 | AJ108: 103.4575 | AK108: 143.7725 | AL108: 0 | AM108: 13.695 | AN108: 99.22 | AO108: 10.52 | AP108: 12265 | AQ108: 109.77652 | AR108: 0.025479343 | AS108: 460.87755 | AU108: 19
A109: Migr. Dev. | B109: 2025 | C109: S9 Pepperrige | D109: Iteration 1 | E109: N A | F109: N A | G109: N A | H109: 166.05 | I109: 321.9825 | J109: 86.715 | K109: 0 | L109: 10.5625 | M109: 0 | N109: 31.58 | O109: 42.045 | P109: 0 | Q109: 0 | R109: 7.0375 | S109: 0 | T109: 0 | U109: 0 | V109: 17.4775 | W109: 0 | X109: 126.73 | Y109: 0 | Z109: 0 | AA109: 60.175 | AB109: 0 | AC109: 0 | AD109: 7.5975 | AE109: 0 | AF109: 0 | AG109: 0 | AH109: -9999 | AI109: 488.0325 | AJ109: 97.2775 | AK109: 144.2075 | AL109: 7.0375 | AM109: 42.045 | AN109: 91.755 | AO109: 7.5975 | AP109: 39500 | AQ109: 124.73659 | AR109: 0.057047833 | AS109: 546.12245 | AU109: 19
A110: Migr. Dev. | B110: 2040 | C110: S9 Pepperrige | D110: Iteration 1 | E110: N A | F110: N A | G110: N A | H110: 150.9825 | I110: 290.2325 | J110: 81.5225 | K110: 0 | L110: 10.5625 | M110: 0 | N110: 56.66 | O110: 71.5675 | P110: 0 | Q110: 0 | R110: 37.9725 | S110: 0 | T110: 0 | U110: 0 | V110: 17.32 | W110: 0 | X110: 135.805 | Y110: 0 | Z110: 0 | AA110: 21.34 | AB110: 0 | AC110: 0 | AD110: 3.9875 | AE110: 0 | AF110: 0 | AG110: 0 | AH110: -9999 | AI110: 441.215 | AJ110: 92.085 | AK110: 153.125 | AL110: 37.9725 | AM110: 71.5675 | AN110: 78 | AO110: 3.9875 | AP110: 108295 | AQ110: 129.25708 | AR110: 0.11114045 | AS110: 610.47959 | AU110: 19
A111: Migr. Dev. | B111: 2055 | C111: S9 Pepperrige | D111: Iteration 1 | E111: N A | F111: N A | G111: N A | H111: 124.8675 | I111: 240.4775 | J111: 72.5725 | K111: 0 | L111: 10.5625 | M111: 0 | N111: 87.79 | O111: 72.77 | P111: 0 | Q111: 0 | R111: 66.2375 | S111: 0 | T111: 0 | U111: 0 | V111: 17.1575 | W111: 0 | X111: 178.3775 | Y111: 0 | Z111: 0 | AA111: 6.1675 | AB111: 0 | AC111: 0 | AD111: 0.9725 | AE111: 0 | AF111: 0 | AG111: 0 | AH111: -9999 | AI111: 365.345 | AJ111: 83.135 | AK111: 195.535 | AL111: 66.2375 | AM111: 72.77 | AN111: 93.9575 | AO111: 0.9725 | AP111: 109355 | AQ111: 143.50622 | AR111: 0.11378447 | AS111: 680.52041 | AU111: 19
A112: Migr. Dev. | B112: 2070 | C112: S9 Pepperrige | D112: Iteration 1 | E112: N A | F112: N A | G112: N A | H112: 96.5975 | I112: 185.86 | J112: 64.86 | K112: 0 | L112: 10.5625 | M112: 0 | N112: 90.6 | O112: 93.6075 | P112: 0 | Q112: 0 | R112: 67.615 | S112: 0 | T112: 0 | U112: 0 | V112: 16.3025 | W112: 0 | X112: 250.2925 | Y112: 0 | Z112: 0 | AA112: 1.52 | AB112: 0 | AC112: 0 | AD112: 0.135 | AE112: 0 | AF112: 0 | AG112: 0 | AH112: -9999 | AI112: 282.4575 | AJ112: 75.4225 | AK112: 266.595 | AL112: 67.615 | AM112: 93.6075 | AN112: 92.12 | AO112: 0.135 | AP112: 97640 | AQ112: 162.24002 | AR112: 0.10344187 | AS112: 758.07143 | AU112: 19
A113: Migr. Dev. | B113: 2085 | C113: S9 Pepperrige | D113: Iteration 1 | E113: N A | F113: N A | G113: N A | H113: 73.815 | I113: 141.845 | J113: 51.9225 | K113: 0 | L113: 10.5225 | M113: 0 | N113: 79.775 | O113: 92.07 | P113: 0 | Q113: 0 | R113: 89.815 | S113: 0 | T113: 0 | U113: 0 | V113: 10.25 | W113: 0 | X113: 327.51 | Y113: 0 | Z113: 0 | AA113: 0.4275 | AB113: 0 | AC113: 0 | AD113: 0 | AE113: 0 | AF113: 0 | AG113: 0 | AH113: -9999 | AI113: 215.66 | AJ113: 62.445 | AK113: 337.76 | AL113: 89.815 | AM113: 92.07 | AN113: 80.2025 | AO113: 0 | AP113: 100985 | AQ113: 150.28299 | AR113: 0.10447111 | AS113: 703.15306 | AU113: 19
A114: Migr. Dev. | B114: 2100 | C114: S9 Pepperrige | D114: Iteration 1 | E114: N A | F114: N A | G114: N A | H114: 55.4875 | I114: 101.63 | J114: 38.4875 | K114: 0 | L114: 9.8825 | M114: 0 | N114: 72.6175 | O114: 80.175 | P114: 0 | Q114: 0 | R114: 89.27 | S114: 0 | T114: 0 | U114: 0 | V114: 9.195 | W114: 0 | X114: 420.9925 | Y114: 0 | Z114: 0 | AA114: 0.215 | AB114: 0 | AC114: 0 | AD114: 0 | AE114: 0 | AF114: 0 | AG114: 0 | AH114: -9999 | AI114: 157.1175 | AJ114: 48.37 | AK114: 430.1875 | AL114: 89.27 | AM114: 80.175 | AN114: 72.8325 | AO114: 0 | AP114: 83200 | AQ114: 135.78517 | AR114: 0.092590233 | AS114: 624.52041 | AU114: 19
A115: Migr. Dev. | B115: 2010 | C115: S10 Stokes | D115: Iteration 1 | E115: N A | F115: N A | G115: N A | H115: 25.4075 | I115: 58.0175 | J115: 0 | K115: 0 | L115: 0 | M115: 0 | N115: 2.5775 | O115: 2.8725 | P115: 0 | Q115: 0.9475 | R115: 0 | S115: 0 | T115: 0 | U115: 0 | V115: 0.085 | W115: 0 | X115: 15.06 | Y115: 0 | Z115: 0 | AA115: 9.315 | AB115: 0 | AC115: 0 | AD115: 0 | AE115: 0 | AF115: 0 | AG115: 0 | AH115: -9999 | AI115: 83.425 | AJ115: 0 | AK115: 15.145 | AL115: 0.9475 | AM115: 2.8725 | AN115: 11.8925 | AO115: 0 | AP115: 830 | AQ115: 14.441537 | AR115: 0.026549272 | AS115: 144.7549 | AU115: 20
A116: Migr. Dev. | B116: 2025 | C116: S10 Stokes | D116: Iteration 1 | E116: N A | F116: N A | G116: N A | H116: 25.095 | I116: 56.645 | J116: 0 | K116: 0 | L116: 0 | M116: 0 | N116: 2.2 | O116: 7.35 | P116: 0 | Q116: 0.7625 | R116: 0.3225 | S116: 0 | T116: 0 | U116: 0 | V116: 0.065 | W116: 0 | X116: 15.2725 | Y116: 0 | Z116: 0 | AA116: 6.57 | AB116: 0 | AC116: 0 | AD116: 0 | AE116: 0 | AF116: 0 | AG116: 0 | AH116: -9999 | AI116: 81.74 | AJ116: 0 | AK116: 15.3375 | AL116: 1.085 | AM116: 7.35 | AN116: 8.77 | AO116: 0 | AP116: 3810 | AQ116: 14.984755 | AR116: 0.064547146 | AS116: 158.03922 | AU116: 20
A117: Migr. Dev. | B117: 2040 | C117: S10 Stokes | D117: Iteration 1 | E117: N A | F117: N A | G117: N A | H117: 22.7675 | I117: 51.5075 | J117: 0 | K117: 0 | L117: 0 | M117: 0 | N117: 7.475 | O117: 8.45 | P117: 0 | Q117: 0.46 | R117: 5.115 | S117: 0 | T117: 0 | U117: 0 | V117: 0.005 | W117: 0 | X117: 16.3225 | Y117: 0 | Z117: 0 | AA117: 2.18 | AB117: 0 | AC117: 0 | AD117: 0 | AE117: 0 | AF117: 0 | AG117: 0 | AH117: -9999 | AI117: 74.275 | AJ117: 0 | AK117: 16.3275 | AL117: 5.575 | AM117: 8.45 | AN117: 9.655 | AO117: 0 | AP117: 12375 | AQ117: 15.839957 | AR117: 0.10737365 | AS117: 177.5 | AU117: 20
A118: Migr. Dev. | B118: 2055 | C118: S10 Stokes | D118: Iteration 1 | E118: N A | F118: N A | G118: N A | H118: 19.5825 | I118: 44.6225 | J118: 0 | K118: 0 | L118: 0 | M118: 0 | N118: 10.07 | O118: 10.1125 | P118: 0 | Q118: 0.2675 | R118: 6.8425 | S118: 0 | T118: 0 | U118: 0 | V118: 0 | W118: 0 | X118: 21.995 | Y118: 0 | Z118: 0 | AA118: 0.79 | AB118: 0 | AC118: 0 | AD118: 0 | AE118: 0 | AF118: 0 | AG118: 0 | AH118: -9999 | AI118: 64.205 | AJ118: 0 | AK118: 21.995 | AL118: 7.11 | AM118: 10.1125 | AN118: 10.86 | AO118: 0 | AP118: 11555 | AQ118: 17.98906 | AR118: 0.12044344 | AS118: 205.61275 | AU118: 20
A119: Migr. Dev. | B119: 2070 | C119: S10 Stokes | D119: Iteration 1 | E119: N A | F119: N A | G119: N A | H119: 16.4775 | I119: 35.7525 | J119: 0 | K119: 0 | L119: 0 | M119: 0 | N119: 11.975 | O119: 11.195 | P119: 0 | Q119: 0.14 | R119: 8.6025 | S119: 0 | T119: 0 | U119: 0 | V119: 0 | W119: 0 | X119: 29.74 | Y119: 0 | Z119: 0 | AA119: 0.4 | AB119: 0 | AC119: 0 | AD119: 0 | AE119: 0 | AF119: 0 | AG119: 0 | AH119: -9999 | AI119: 52.23 | AJ119: 0 | AK119: 29.74 | AL119: 8.7425 | AM119: 11.195 | AN119: 12.375 | AO119: 0 | AP119: 15740 | AQ119: 19.783694 | AR119: 0.13464149 | AS119: 231.07843 | AU119: 20
A120: Migr. Dev. | B120: 2085 | C120: S10 Stokes | D120: Iteration 1 | E120: N A | F120: N A | G120: N A | H120: 13.0975 | I120: 28.0525 | J120: 0 | K120: 0 | L120: 0 | M120: 0 | N120: 11.08 | O120: 12.1325 | P120: 0 | Q120: 0.05 | R120: 10.305 | S120: 0 | T120: 0 | U120: 0 | V120: 0 | W120: 0 | X120: 39.3225 | Y120: 0 | Z120: 0 | AA120: 0.2425 | AB120: 0 | AC120: 0 | AD120: 0 | AE120: 0 | AF120: 0 | AG120: 0 | AH120: -9999 | AI120: 41.15 | AJ120: 0 | AK120: 39.3225 | AL120: 10.355 | AM120: 12.1325 | AN120: 11.3225 | AO120: 0 | AP120: 16410 | AQ120: 19.565262 | AR120: 0.13877638 | AS120: 229.95098 | AU120: 20
A121: Migr. Dev. | B121: 2100 | C121: S10 Stokes | D121: Iteration 1 | E121: N A | F121: N A | G121: N A | H121: 9.6575 | I121: 21.16 | J121: 0 | K121: 0 | L121: 0 | M121: 0 | N121: 10.3325 | O121: 11.25 | P121: 0 | Q121: 0.015 | R121: 11.1825 | S121: 0 | T121: 0 | U121: 0 | V121: 0 | W121: 0 | X121: 50.61 | Y121: 0 | Z121: 0 | AA121: 0.075 | AB121: 0 | AC121: 0 | AD121: 0 | AE121: 0 | AF121: 0 | AG121: 0 | AH121: -9999 | AI121: 30.8175 | AJ121: 0 | AK121: 50.61 | AL121: 11.1975 | AM121: 11.25 | AN121: 10.4075 | AO121: 0 | AP121: 16760 | AQ121: 18.096685 | AR121: 0.1378968 | AS121: 212.32843 | AU121: 20
A122: Migr. Dev. | B122: 2010 | C122: S11 Captree | D122: Iteration 1 | E122: N A | F122: N A | G122: N A | H122: 11.615 | I122: 48.6875 | J122: 13.405 | K122: 0 | L122: 0 | M122: 0 | N122: 13.975 | O122: 92.8975 | P122: 0 | Q122: 0.1075 | R122: 0.49 | S122: 0 | T122: 0 | U122: 0 | V122: 0 | W122: 0 | X122: 346.075 | Y122: 0 | Z122: 0 | AA122: 175.3275 | AB122: 0 | AC122: 0 | AD122: 1.4025 | AE122: 0 | AF122: 0 | AG122: 0 | AH122: -9999 | AI122: 60.3025 | AJ122: 13.405 | AK122: 346.075 | AL122: 0.5975 | AM122: 92.8975 | AN122: 189.3025 | AO122: 1.4025 | AP122: 62960 | AQ122: 273.46759 | AR122: 0.026800142 | AS122: 728.25806 | AU122: 22
A123: Migr. Dev. | B123: 2025 | C123: S11 Captree | D123: Iteration 1 | E123: N A | F123: N A | G123: N A | H123: 10.7325 | I123: 42.7725 | J123: 11.3525 | K123: 0 | L123: 0 | M123: 0 | N123: 14.8 | O123: 138.4825 | P123: 0 | Q123: 0.0675 | R123: 42.915 | S123: 0 | T123: 0 | U123: 0 | V123: 0 | W123: 0 | X123: 350.9075 | Y123: 0 | Z123: 0 | AA123: 90.6 | AB123: 0 | AC123: 0 | AD123: 1.3525 | AE123: 0 | AF123: 0 | AG123: 0 | AH123: -9999 | AI123: 53.505 | AJ123: 11.3525 | AK123: 350.9075 | AL123: 42.9825 | AM123: 138.4825 | AN123: 105.4 | AO123: 1.3525 | AP123: 179050 | AQ123: 219.04527 | AR123: 0.083511527 | AS123: 629.37419 | AU123: 22
A124: Migr. Dev. | B124: 2040 | C124: S11 Captree | D124: Iteration 1 | E124: N A | F124: N A | G124: N A | H124: 9.2475 | I124: 34.3475 | J124: 8.37 | K124: 0 | L124: 0 | M124: 0 | N124: 16.1475 | O124: 98.5775 | P124: 0 | Q124: 0.02 | R124: 118.755 | S124: 0 | T124: 0 | U124: 0 | V124: 0 | W124: 0 | X124: 402.845 | Y124: 0 | Z124: 0 | AA124: 14.705 | AB124: 0 | AC124: 0 | AD124: 0.9675 | AE124: 0 | AF124: 0 | AG124: 0 | AH124: -9999 | AI124: 43.595 | AJ124: 8.37 | AK124: 402.845 | AL124: 118.775 | AM124: 98.5775 | AN124: 30.8525 | AO124: 0.9675 | AP124: 227560 | AQ124: 98.068217 | AR124: 0.19620644 | AS124: 334.0129 | AU124: 22
A125: Migr. Dev. | B125: 2055 | C125: S11 Captree | D125: Iteration 1 | E125: N A | F125: N A | G125: N A | H125: 8.4325 | I125: 26.8425 | J125: 5.7875 | K125: 0 | L125: 0 | M125: 0 | N125: 12.0775 | O125: 27.5375 | P125: 0 | Q125: 0.005 | R125: 90.1275 | S125: 0 | T125: 0 | U125: 0 | V125: 0 | W125: 0 | X125: 528.96 | Y125: 0 | Z125: 0 | AA125: 3.7875 | AB125: 0 | AC125: 0 | AD125: 0.425 | AE125: 0 | AF125: 0 | AG125: 0 | AH125: -9999 | AI125: 35.275 | AJ125: 5.7875 | AK125: 528.96 | AL125: 90.1325 | AM125: 27.5375 | AN125: 15.865 | AO125: 0.425 | AP125: 69935 | AQ125: 32.002751 | AR125: 0.21408905 | AS125: 112.00645 | AU125: 22
A126: Migr. Dev. | B126: 2070 | C126: S11 Captree | D126: Iteration 1 | E126: N A | F126: N A | G126: N A | H126: 7.825 | I126: 21.325 | J126: 3.5875 | K126: 0 | L126: 0 | M126: 0 | N126: 8.5275 | O126: 13.9425 | P126: 0 | Q126: 0 | R126: 25.425 | S126: 0 | T126: 0 | U126: 0 | V126: 0 | W126: 0 | X126: 621.1175 | Y126: 0 | Z126: 0 | AA126: 2.125 | AB126: 0 | AC126: 0 | AD126: 0.1075 | AE126: 0 | AF126: 0 | AG126: 0 | AH126: -9999 | AI126: 29.15 | AJ126: 3.5875 | AK126: 621.1175 | AL126: 25.425 | AM126: 13.9425 | AN126: 10.6525 | AO126: 0.1075 | AP126: 28655 | AQ126: 18.964446 | AR126: 0.18865623 | AS126: 63.470968 | AU126: 22
A127: Migr. Dev. | B127: 2085 | C127: S11 Captree | D127: Iteration 1 | E127: N A | F127: N A | G127: N A | H127: 7.4975 | I127: 17.635 | J127: 2.2675 | K127: 0 | L127: 0 | M127: 0 | N127: 5.415 | O127: 9.4975 | P127: 0 | Q127: 0 | R127: 12.815 | S127: 0 | T127: 0 | U127: 0 | V127: 0 | W127: 0 | X127: 647.65 | Y127: 0 | Z127: 0 | AA127: 1.1975 | AB127: 0 | AC127: 0 | AD127: 0.0075 | AE127: 0 | AF127: 0 | AG127: 0 | AH127: -9999 | AI127: 25.1325 | AJ127: 2.2675 | AK127: 647.65 | AL127: 12.815 | AM127: 9.4975 | AN127: 6.6125 | AO127: 0.0075 | AP127: 20505 | AQ127: 12.080872 | AR127: 0.20670391 | AS127: 41.574194 | AU127: 22
A128: Migr. Dev. | B128: 2100 | C128: S11 Captree | D128: Iteration 1 | E128: N A | F128: N A | G128: N A | H128: 7.325 | I128: 14.64 | J128: 1.315 | K128: 0 | L128: 0 | M128: 0 | N128: 4.1725 | O128: 5.97 | P128: 0 | Q128: 0 | R128: 8.6075 | S128: 0 | T128: 0 | U128: 0 | V128: 0 | W128: 0 | X128: 661.3625 | Y128: 0 | Z128: 0 | AA128: 0.59 | AB128: 0 | AC128: 0 | AD128: 0 | AE128: 0 | AF128: 0 | AG128: 0 | AH128: -9999 | AI128: 21.965 | AJ128: 1.315 | AK128: 661.3625 | AL128: 8.6075 | AM128: 5.97 | AN128: 4.7625 | AO128: 0 | AP128: 14630 | AQ128: 7.8625983 | AR128: 0.22184952 | AS128: 27.696774 | AU128: 22
A129: Migr. Dev. | B129: 2010 | C129: S12 Shinnecock | D129: Iteration 1 | E129: N A | F129: N A | G129: N A | H129: 29.7175 | I129: 267.9975 | J129: 0 | K129: 0 | L129: 0 | M129: 0 | N129: 5.0925 | O129: 10.4875 | P129: 0 | Q129: 2.3125 | R129: 1.3725 | S129: 0 | T129: 0 | U129: 0 | V129: 0 | W129: 0 | X129: 63.1025 | Y129: 0 | Z129: 0 | AA129: 25.66 | AB129: 0 | AC129: 0 | AD129: 0 | AE129: 0 | AF129: 0 | AG129: 0 | AH129: -9999 | AI129: 297.715 | AJ129: 0 | AK129: 63.1025 | AL129: 3.685 | AM129: 10.4875 | AN129: 30.7525 | AO129: 0 | AP129: 9515 | AQ129: 38.55667 | AR129: 0.05721387 | AS129: 199.22705 | AU129: 23
A130: Migr. Dev. | B130: 2025 | C130: S12 Shinnecock | D130: Iteration 1 | E130: N A | F130: N A | G130: N A | H130: 29.7025 | I130: 264.685 | J130: 0 | K130: 0 | L130: 0 | M130: 0 | N130: 5.0525 | O130: 17.1225 | P130: 0 | Q130: 1.96 | R130: 1.5075 | S130: 0 | T130: 0 | U130: 0 | V130: 0 | W130: 0 | X130: 65.505 | Y130: 0 | Z130: 0 | AA130: 20.2075 | AB130: 0 | AC130: 0 | AD130: 0 | AE130: 0 | AF130: 0 | AG130: 0 | AH130: -9999 | AI130: 294.3875 | AJ130: 0 | AK130: 65.505 | AL130: 3.4675 | AM130: 17.1225 | AN130: 25.26 | AO130: 0 | AP130: 13120 | AQ130: 38.808524 | AR130: 0.072447354 | AS130: 204.74638 | AU130: 23
A131: Migr. Dev. | B131: 2040 | C131: S12 Shinnecock | D131: Iteration 1 | E131: N A | F131: N A | G131: N A | H131: 29.5575 | I131: 256.5625 | J131: 0 | K131: 0 | L131: 0 | M131: 0 | N131: 8.54 | O131: 25.5175 | P131: 0 | Q131: 1.31 | R131: 8.3725 | S131: 0 | T131: 0 | U131: 0 | V131: 0 | W131: 0 | X131: 69.055 | Y131: 0 | Z131: 0 | AA131: 6.8275 | AB131: 0 | AC131: 0 | AD131: 0 | AE131: 0 | AF131: 0 | AG131: 0 | AH131: -9999 | AI131: 286.12 | AJ131: 0 | AK131: 69.055 | AL131: 9.6825 | AM131: 25.5175 | AN131: 15.3675 | AO131: 0 | AP131: 30935 | AQ131: 35.025854 | AR131: 0.11939587 | AS131: 197.51208 | AU131: 23
A132: Migr. Dev. | B132: 2055 | C132: S12 Shinnecock | D132: Iteration 1 | E132: N A | F132: N A | G132: N A | H132: 29.27 | I132: 243.2475 | J132: 0 | K132: 0 | L132: 0 | M132: 0 | N132: 13.725 | O132: 17.6275 | P132: 0 | Q132: 0.7175 | R132: 19.36 | S132: 0 | T132: 0 | U132: 0 | V132: 0 | W132: 0 | X132: 80.2225 | Y132: 0 | Z132: 0 | AA132: 1.5725 | AB132: 0 | AC132: 0 | AD132: 0 | AE132: 0 | AF132: 0 | AG132: 0 | AH132: -9999 | AI132: 272.5175 | AJ132: 0 | AK132: 80.2225 | AL132: 20.0775 | AM132: 17.6275 | AN132: 15.2975 | AO132: 0 | AP132: 30205 | AQ132: 26.887637 | AR132: 0.1517388 | AS132: 159.05797 | AU132: 23
A133: Migr. Dev. | B133: 2070 | C133: S12 Shinnecock | D133: Iteration 1 | E133: N A | F133: N A | G133: N A | H133: 28.6225 | I133: 224.0825 | J133: 0 | K133: 0 | L133: 0 | M133: 0 | N133: 19.8575 | O133: 15.77 | P133: 0 | Q133: 0.29 | R133: 15.525 | S133: 0 | T133: 0 | U133: 0 | V133: 0 | W133: 0 | X133: 101.2925 | Y133: 0 | Z133: 0 | AA133: 0.3025 | AB133: 0 | AC133: 0 | AD133: 0 | AE133: 0 | AF133: 0 | AG133: 0 | AH133: -9999 | AI133: 252.705 | AJ133: 0 | AK133: 101.2925 | AL133: 15.815 | AM133: 15.77 | AN133: 20.16 | AO133: 0 | AP133: 22285 | AQ133: 30.553993 | AR133: 0.12472864 | AS133: 173.57488 | AU133: 23
A134: Migr. Dev. | B134: 2085 | C134: S12 Shinnecock | D134: Iteration 1 | E134: N A | F134: N A | G134: N A | H134: 27.58 | I134: 206.9725 | J134: 0 | K134: 0 | L134: 0 | M134: 0 | N134: 18.17 | O134: 20.07 | P134: 0 | Q134: 0.04 | R134: 15.0475 | S134: 0 | T134: 0 | U134: 0 | V134: 0 | W134: 0 | X134: 117.78 | Y134: 0 | Z134: 0 | AA134: 0.0825 | AB134: 0 | AC134: 0 | AD134: 0 | AE134: 0 | AF134: 0 | AG134: 0 | AH134: -9999 | AI134: 234.5525 | AJ134: 0 | AK134: 117.78 | AL134: 15.0875 | AM134: 20.07 | AN134: 18.2525 | AO134: 0 | AP134: 23370 | AQ134: 32.874061 | AR134: 0.11865092 | AS134: 185.13285 | AU134: 23
A135: Migr. Dev. | B135: 2100 | C135: S12 Shinnecock | D135: Iteration 1 | E135: N A | F135: N A | G135: N A | H135: 25.605 | I135: 185.03 | J135: 0 | K135: 0 | L135: 0 | M135: 0 | N135: 23.92 | O135: 18.2125 | P135: 0 | Q135: 0 | R135: 19.305 | S135: 0 | T135: 0 | U135: 0 | V135: 0 | W135: 0 | X135: 133.635 | Y135: 0 | Z135: 0 | AA135: 0.035 | AB135: 0 | AC135: 0 | AD135: 0 | AE135: 0 | AF135: 0 | AG135: 0 | AH135: -9999 | AI135: 210.635 | AJ135: 0 | AK135: 133.635 | AL135: 19.305 | AM135: 18.2125 | AN135: 23.955 | AO135: 0 | AP135: 22435 | AQ135: 36.886707 | AR135: 0.10496235 | AS135: 203.70773 | AU135: 23
A136: Migr. Dev. | B136: 2010 | C136: L1 Wading | D136: Iteration 1 | E136: N A | F136: N A | G136: N A | H136: 7.9025 | I136: 41.905 | J136: 0.025 | K136: 0 | L136: 0 | M136: 0 | N136: 5.2725 | O136: 6.805 | P136: 0 | Q136: 8.205 | R136: 0 | S136: 0 | T136: 0 | U136: 0 | V136: 2.0975 | W136: 0 | X136: 19.22 | Y136: 0 | Z136: 0 | AA136: 64.735 | AB136: 0 | AC136: 0 | AD136: 0.125 | AE136: 0 | AF136: 0 | AG136: 0 | AH136: -9999 | AI136: 49.8075 | AJ136: 0.025 | AK136: 21.3175 | AL136: 8.205 | AM136: 6.805 | AN136: 70.0075 | AO136: 0.125 | AP136: 8420 | AQ136: 75.087133 | AR136: 0.021923515 | AS136: 629.61066 | AU136: 31
A137: Migr. Dev. | B137: 2025 | C137: L1 Wading | D137: Iteration 1 | E137: N A | F137: N A | G137: N A | H137: 7.39 | I137: 40.085 | J137: 0.025 | K137: 0 | L137: 0 | M137: 0 | N137: 3.51 | O137: 16.95 | P137: 0 | Q137: 8.115 | R137: 0.525 | S137: 0 | T137: 0 | U137: 0 | V137: 2.0975 | W137: 0 | X137: 19.3725 | Y137: 0 | Z137: 0 | AA137: 58.19 | AB137: 0 | AC137: 0 | AD137: 0.0325 | AE137: 0 | AF137: 0 | AG137: 0 | AH137: -9999 | AI137: 47.475 | AJ137: 0.025 | AK137: 21.47 | AL137: 8.64 | AM137: 16.95 | AN137: 61.7 | AO137: 0.0325 | AP137: 10095 | AQ137: 76.333902 | AR137: 0.027438017 | AS137: 644.67213 | AU137: 31
A138: Migr. Dev. | B138: 2040 | C138: L1 Wading | D138: Iteration 1 | E138: N A | F138: N A | G138: N A | H138: 6.935 | I138: 37.8725 | J138: 0.025 | K138: 0 | L138: 0 | M138: 0 | N138: 3.5 | O138: 45.55 | P138: 0 | Q138: 7.6625 | R138: 1.115 | S138: 0 | T138: 0 | U138: 0 | V138: 2.0975 | W138: 0 | X138: 20.1475 | Y138: 0 | Z138: 0 | AA138: 31.375 | AB138: 0 | AC138: 0 | AD138: 0.0125 | AE138: 0 | AF138: 0 | AG138: 0 | AH138: -9999 | AI138: 44.8075 | AJ138: 0.025 | AK138: 22.245 | AL138: 8.7775 | AM138: 45.55 | AN138: 34.875 | AO138: 0.0125 | AP138: 12440 | AQ138: 77.70708 | AR138: 0.030854834 | AS138: 659.22131 | AU138: 31
A139: Migr. Dev. | B139: 2055 | C139: L1 Wading | D139: Iteration 1 | E139: N A | F139: N A | G139: N A | H139: 6.585 | I139: 35.945 | J139: 0.025 | K139: 0 | L139: 0 | M139: 0 | N139: 2.7925 | O139: 71.3125 | P139: 0 | Q139: 6.4975 | R139: 2.0275 | S139: 0 | T139: 0 | U139: 0 | V139: 2.0975 | W139: 0 | X139: 22.0875 | Y139: 0 | Z139: 0 | AA139: 6.9175 | AB139: 0 | AC139: 0 | AD139: 0.005 | AE139: 0 | AF139: 0 | AG139: 0 | AH139: -9999 | AI139: 42.53 | AJ139: 0.025 | AK139: 24.185 | AL139: 8.525 | AM139: 71.3125 | AN139: 9.71 | AO139: 0.005 | AP139: 16860 | AQ139: 77.658547 | AR139: 0.036989725 | AS139: 664.11885 | AU139: 31
A140: Migr. Dev. | B140: 2070 | C140: L1 Wading | D140: Iteration 1 | E140: N A | F140: N A | G140: N A | H140: 6.075 | I140: 33.7525 | J140: 0.025 | K140: 0 | L140: 0 | M140: 0 | N140: 2.8075 | O140: 73.3475 | P140: 0 | Q140: 5.27 | R140: 5.8075 | S140: 0 | T140: 0 | U140: 0 | V140: 2.0975 | W140: 0 | X140: 25.19 | Y140: 0 | Z140: 0 | AA140: 1.92 | AB140: 0 | AC140: 0 | AD140: 0 | AE140: 0 | AF140: 0 | AG140: 0 | AH140: -9999 | AI140: 39.8275 | AJ140: 0.025 | AK140: 27.2875 | AL140: 11.0775 | AM140: 73.3475 | AN140: 4.7275 | AO140: 0 | AP140: 34055 | AQ140: 72.59719 | AR140: 0.05985911 | AS140: 639.95902 | AU140: 31
A141: Migr. Dev. | B141: 2085 | C141: L1 Wading | D141: Iteration 1 | E141: N A | F141: N A | G141: N A | H141: 5.4925 | I141: 31.265 | J141: 0.025 | K141: 0 | L141: 0 | M141: 0 | N141: 3.12 | O141: 41.69 | P141: 0 | Q141: 4.585 | R141: 36.915 | S141: 0 | T141: 0 | U141: 0 | V141: 2.0975 | W141: 0 | X141: 30.0075 | Y141: 0 | Z141: 0 | AA141: 1.095 | AB141: 0 | AC141: 0 | AD141: 0 | AE141: 0 | AF141: 0 | AG141: 0 | AH141: -9999 | AI141: 36.7575 | AJ141: 0.025 | AK141: 32.105 | AL141: 41.5 | AM141: 41.69 | AN141: 4.215 | AO141: 0 | AP141: 62085 | AQ141: 36.791873 | AR141: 0.16301057 | AS141: 376.27049 | AU141: 31
A142: Migr. Dev. | B142: 2100 | C142: L1 Wading | D142: Iteration 1 | E142: N A | F142: N A | G142: N A | H142: 4.9725 | I142: 29.175 | J142: 0.025 | K142: 0 | L142: 0 | M142: 0 | N142: 2.615 | O142: 17.3275 | P142: 0 | Q142: 3.97 | R142: 38.035 | S142: 0 | T142: 0 | U142: 0 | V142: 2.0975 | W142: 0 | X142: 57.25 | Y142: 0 | Z142: 0 | AA142: 0.825 | AB142: 0 | AC142: 0 | AD142: 0 | AE142: 0 | AF142: 0 | AG142: 0 | AH142: -9999 | AI142: 34.1475 | AJ142: 0.025 | AK142: 59.3475 | AL142: 42.005 | AM142: 17.3275 | AN142: 3.44 | AO142: 0 | AP142: 18080 | AQ142: 17.061523 | AR142: 0.14915132 | AS142: 170.22541 | AU142: 31
A143: Migr. Dev. | B143: 2010 | C143: L2 Sunken | D143: Iteration 1 | E143: N A | F143: N A | G143: N A | H143: 30.79 | I143: 143.7225 | J143: 0.835 | K143: 0 | L143: 0 | M143: 0 | N143: 5.1275 | O143: 3.31 | P143: 0 | Q143: 18.425 | R143: 0 | S143: 0 | T143: 0 | U143: 0 | V143: 1.775 | W143: 0 | X143: 59.1225 | Y143: 0 | Z143: 0 | AA143: 31.69 | AB143: 0 | AC143: 0 | AD143: 0 | AE143: 0 | AF143: 0 | AG143: 0 | AH143: -9999 | AI143: 174.5125 | AJ143: 0.835 | AK143: 60.8975 | AL143: 18.425 | AM143: 3.31 | AN143: 36.8175 | AO143: 0 | AP143: 5445 | AQ143: 39.06451 | AR143: 0.026640085 | AS143: 495.40123 | AU143: 32
A144: Migr. Dev. | B144: 2025 | C144: L2 Sunken | D144: Iteration 1 | E144: N A | F144: N A | G144: N A | H144: 29.4275 | I144: 141.15 | J144: 0.7625 | K144: 0 | L144: 0 | M144: 0 | N144: 5.7075 | O144: 10.0275 | P144: 0 | Q144: 16.6225 | R144: 0.005 | S144: 0 | T144: 0 | U144: 0 | V144: 1.8025 | W144: 0 | X144: 60.9 | Y144: 0 | Z144: 0 | AA144: 28.3925 | AB144: 0 | AC144: 0 | AD144: 0 | AE144: 0 | AF144: 0 | AG144: 0 | AH144: -9999 | AI144: 170.5775 | AJ144: 0.7625 | AK144: 62.7025 | AL144: 16.6275 | AM144: 10.0275 | AN144: 34.1 | AO144: 0 | AP144: 7760 | AQ144: 41.983804 | AR144: 0.043940853 | AS144: 544.78395 | AU144: 32
A145: Migr. Dev. | B145: 2040 | C145: L2 Sunken | D145: Iteration 1 | E145: N A | F145: N A | G145: N A | H145: 19.81 | I145: 130.5275 | J145: 0.4375 | K145: 0 | L145: 0 | M145: 0 | N145: 22.91 | O145: 21.8 | P145: 0 | Q145: 14.8925 | R145: 0.06 | S145: 0 | T145: 0 | U145: 0 | V145: 1.415 | W145: 0 | X145: 63.04 | Y145: 0 | Z145: 0 | AA145: 19.905 | AB145: 0 | AC145: 0 | AD145: 0 | AE145: 0 | AF145: 0 | AG145: 0 | AH145: -9999 | AI145: 150.3375 | AJ145: 0.4375 | AK145: 64.455 | AL145: 14.9525 | AM145: 21.8 | AN145: 42.815 | AO145: 0 | AP145: 8245 | AQ145: 62.004927 | AR145: 0.036547241 | AS145: 797.71605 | AU145: 32
A146: Migr. Dev. | B146: 2055 | C146: L2 Sunken | D146: Iteration 1 | E146: N A | F146: N A | G146: N A | H146: 14.605 | I146: 120.585 | J146: 0.25 | K146: 0 | L146: 0 | M146: 0 | N146: 21.095 | O146: 49.9275 | P146: 0 | Q146: 12.955 | R146: 0.2575 | S146: 0 | T146: 0 | U146: 0 | V146: 0.42 | W146: 0 | X146: 66.1075 | Y146: 0 | Z146: 0 | AA146: 8.595 | AB146: 0 | AC146: 0 | AD146: 0 | AE146: 0 | AF146: 0 | AG146: 0 | AH146: -9999 | AI146: 135.19 | AJ146: 0.25 | AK146: 66.5275 | AL146: 13.2125 | AM146: 49.9275 | AN146: 29.69 | AO146: 0 | AP146: 9905 | AQ146: 74.725465 | AR146: 0.052884102 | AS146: 982.9321 | AU146: 32
A147: Migr. Dev. | B147: 2070 | C147: L2 Sunken | D147: Iteration 1 | E147: N A | F147: N A | G147: N A | H147: 11.215 | I147: 112.3975 | J147: 0.2275 | K147: 0 | L147: 0 | M147: 0 | N147: 13.6275 | O147: 73.8625 | P147: 0 | Q147: 10.675 | R147: 1.965 | S147: 0 | T147: 0 | U147: 0 | V147: 0.395 | W147: 0 | X147: 68.7625 | Y147: 0 | Z147: 0 | AA147: 1.67 | AB147: 0 | AC147: 0 | AD147: 0 | AE147: 0 | AF147: 0 | AG147: 0 | AH147: -9999 | AI147: 123.6125 | AJ147: 0.2275 | AK147: 69.1575 | AL147: 12.64 | AM147: 73.8625 | AN147: 15.2975 | AO147: 0 | AP147: 14120 | AQ147: 84.502803 | AR147: 0.045345446 | AS147: 1100.7407 | AU147: 32
A148: Migr. Dev. | B148: 2085 | C148: L2 Sunken | D148: Iteration 1 | E148: N A | F148: N A | G148: N A | H148: 6.36 | I148: 104.37 | J148: 0.2175 | K148: 0 | L148: 0 | M148: 0 | N148: 13.83 | O148: 77.87 | P148: 0 | Q148: 8.1925 | R148: 10.5625 | S148: 0 | T148: 0 | U148: 0 | V148: 0.3425 | W148: 0 | X148: 72.5925 | Y148: 0 | Z148: 0 | AA148: 0.46 | AB148: 0 | AC148: 0 | AD148: 0 | AE148: 0 | AF148: 0 | AG148: 0 | AH148: -9999 | AI148: 110.73 | AJ148: 0.2175 | AK148: 72.935 | AL148: 18.755 | AM148: 77.87 | AN148: 14.29 | AO148: 0 | AP148: 27545 | AQ148: 86.47854 | AR148: 0.052783203 | AS148: 1137.7778 | AU148: 32
A149: Migr. Dev. | B149: 2100 | C149: L2 Sunken | D149: Iteration 1 | E149: N A | F149: N A | G149: N A | H149: 4.6575 | I149: 98.5125 | J149: 0.2025 | K149: 0 | L149: 0 | M149: 0 | N149: 8.33 | O149: 74.3675 | P149: 0 | Q149: 5.91 | R149: 21.005 | S149: 0 | T149: 0 | U149: 0 | V149: 0.3275 | W149: 0 | X149: 81.285 | Y149: 0 | Z149: 0 | AA149: 0.2 | AB149: 0 | AC149: 0 | AD149: 0 | AE149: 0 | AF149: 0 | AG149: 0 | AH149: -9999 | AI149: 103.17 | AJ149: 0.2025 | AK149: 81.6125 | AL149: 26.915 | AM149: 74.3675 | AN149: 8.53 | AO149: 0 | AP149: 28410 | AQ149: 76.926888 | AR149: 0.061232245 | AS149: 1023.4259 | AU149: 32
A150: Migr. Dev. | B150: 2010 | C150: L3 Crab | D150: Iteration 1 | E150: N A | F150: N A | G150: N A | H150: 21.01 | I150: 106.615 | J150: 14.8875 | K150: 0 | L150: 0.2025 | M150: 0 | N150: 4.2975 | O150: 8.06 | P150: 0 | Q150: 7.1 | R150: 1.2275 | S150: 0 | T150: 0 | U150: 0 | V150: 1.9 | W150: 0 | X150: 16.2175 | Y150: 0 | Z150: 0 | AA150: 96.32 | AB150: 0 | AC150: 0 | AD150: 0 | AE150: 0 | AF150: 0 | AG150: 0 | AH150: -9999 | AI150: 127.625 | AJ150: 15.09 | AK150: 18.1175 | AL150: 8.3275 | AM150: 8.06 | AN150: 100.6175 | AO150: 0 | AP150: 8530 | AQ150: 107.02617 | AR150: 0.015504589 | AS150: 658.65152 | AU150: 33
A151: Migr. Dev. | B151: 2025 | C151: L3 Crab | D151: Iteration 1 | E151: N A | F151: N A | G151: N A | H151: 20.1925 | I151: 104.02 | J151: 14.875 | K151: 0 | L151: 0.2025 | M151: 0 | N151: 5.305 | O151: 15.2725 | P151: 0 | Q151: 6.585 | R151: 1.2025 | S151: 0 | T151: 0 | U151: 0 | V151: 1.9 | W151: 0 | X151: 16.8875 | Y151: 0 | Z151: 0 | AA151: 91.395 | AB151: 0 | AC151: 0 | AD151: 0 | AE151: 0 | AF151: 0 | AG151: 0 | AH151: -9999 | AI151: 124.2125 | AJ151: 15.0775 | AK151: 18.7875 | AL151: 7.7875 | AM151: 15.2725 | AN151: 96.7 | AO151: 0 | AP151: 9235 | AQ151: 109.92469 | AR151: 0.017919578 | AS151: 678.62121 | AU151: 33
A152: Migr. Dev. | B152: 2040 | C152: L3 Crab | D152: Iteration 1 | E152: N A | F152: N A | G152: N A | H152: 19.365 | I152: 100.6075 | J152: 14.855 | K152: 0 | L152: 0.2025 | M152: 0 | N152: 6.0325 | O152: 42.4225 | P152: 0 | Q152: 6.0675 | R152: 1.525 | S152: 0 | T152: 0 | U152: 0 | V152: 1.9 | W152: 0 | X152: 17.65 | Y152: 0 | Z152: 0 | AA152: 67.21 | AB152: 0 | AC152: 0 | AD152: 0 | AE152: 0 | AF152: 0 | AG152: 0 | AH152: -9999 | AI152: 119.9725 | AJ152: 15.0575 | AK152: 19.55 | AL152: 7.5925 | AM152: 42.4225 | AN152: 73.2425 | AO152: 0 | AP152: 10705 | AQ152: 113.12547 | AR152: 0.020788484 | AS152: 701 | AU152: 33
A153: Migr. Dev. | B153: 2055 | C153: L3 Crab | D153: Iteration 1 | E153: N A | F153: N A | G153: N A | H153: 17.5775 | I153: 94.8725 | J153: 7.035 | K153: 0 | L153: 0 | M153: 0 | N153: 17.155 | O153: 95.5 | P153: 0 | Q153: 5.4775 | R153: 2.67 | S153: 0 | T153: 0 | U153: 0 | V153: 0.615 | W153: 0 | X153: 20.0775 | Y153: 0 | Z153: 0 | AA153: 16.8575 | AB153: 0 | AC153: 0 | AD153: 0 | AE153: 0 | AF153: 0 | AG153: 0 | AH153: -9999 | AI153: 112.45 | AJ153: 7.035 | AK153: 20.6925 | AL153: 8.1475 | AM153: 95.5 | AN153: 34.0125 | AO153: 0 | AP153: 15360 | AQ153: 126.26162 | AR153: 0.02311746 | AS153: 784.92424 | AU153: 33
A154: Migr. Dev. | B154: 2070 | C154: L3 Crab | D154: Iteration 1 | E154: N A | F154: N A | G154: N A | H154: 14.3125 | I154: 88.715 | J154: 5.9025 | K154: 0 | L154: 0 | M154: 0 | N154: 12.065 | O154: 122.6775 | P154: 0 | Q154: 4.84 | R154: 4.855 | S154: 0 | T154: 0 | U154: 0 | V154: 0.4575 | W154: 0 | X154: 22.505 | Y154: 0 | Z154: 0 | AA154: 1.5075 | AB154: 0 | AC154: 0 | AD154: 0 | AE154: 0 | AF154: 0 | AG154: 0 | AH154: -9999 | AI154: 103.0275 | AJ154: 5.9025 | AK154: 22.9625 | AL154: 9.695 | AM154: 122.6775 | AN154: 13.5725 | AO154: 0 | AP154: 25645 | AQ154: 130.6447 | AR154: 0.035823853 | AS154: 825.75758 | AU154: 33
A155: Migr. Dev. | B155: 2085 | C155: L3 Crab | D155: Iteration 1 | E155: N A | F155: N A | G155: N A | H155: 12.43 | I155: 83.9 | J155: 5.1475 | K155: 0 | L155: 0 | M155: 0 | N155: 8.3875 | O155: 116.3125 | P155: 0 | Q155: 4.1125 | R155: 20.045 | S155: 0 | T155: 0 | U155: 0 | V155: 0.43 | W155: 0 | X155: 26.6825 | Y155: 0 | Z155: 0 | AA155: 0.39 | AB155: 0 | AC155: 0 | AD155: 0 | AE155: 0 | AF155: 0 | AG155: 0 | AH155: -9999 | AI155: 96.33 | AJ155: 5.1475 | AK155: 27.1125 | AL155: 24.1575 | AM155: 116.3125 | AN155: 8.7775 | AO155: 0 | AP155: 71180 | AQ155: 113.99853 | AR155: 0.073822848 | AS155: 758.12121 | AU155: 33
A156: Migr. Dev. | B156: 2100 | C156: L3 Crab | D156: Iteration 1 | E156: N A | F156: N A | G156: N A | H156: 10.0375 | I156: 77.7325 | J156: 3.975 | K156: 0 | L156: 0 | M156: 0 | N156: 10.3025 | O156: 60.8775 | P156: 0 | Q156: 3.3275 | R156: 74.265 | S156: 0 | T156: 0 | U156: 0 | V156: 0 | W156: 0 | X156: 37.2 | Y156: 0 | Z156: 0 | AA156: 0.12 | AB156: 0 | AC156: 0 | AD156: 0 | AE156: 0 | AF156: 0 | AG156: 0 | AH156: -9999 | AI156: 87.77 | AJ156: 3.975 | AK156: 37.2 | AL156: 77.5925 | AM156: 60.8775 | AN156: 10.4225 | AO156: 0 | AP156: 59080 | AQ156: 62.014183 | AR156: 0.10784011 | AS156: 432.12121 | AU156: 33
A157: Migr. Dev. | B157: 2010 | C157: L4 Flax | D157: Iteration 1 | E157: N A | F157: N A | G157: N A | H157: 2.5975 | I157: 36.9975 | J157: 0 | K157: 0 | L157: 0 | M157: 0.2475 | N157: 1.2275 | O157: 7.51 | P157: 0 | Q157: 10.58 | R157: 0.005 | S157: 0 | T157: 0 | U157: 0 | V157: 0.07 | W157: 0 | X157: 31.58 | Y157: 0 | Z157: 0 | AA157: 19.5875 | AB157: 0 | AC157: 0 | AD157: 0 | AE157: 0 | AF157: 0 | AG157: 0 | AH157: -9999 | AI157: 39.595 | AJ157: 0 | AK157: 31.65 | AL157: 10.585 | AM157: 7.51 | AN157: 20.815 | AO157: 0.2475 | AP157: 5960 | AQ157: 27.49543 | AR157: 0.03653863 | AS157: 196.70139 | AU157: 34
A158: Migr. Dev. | B158: 2025 | C158: L4 Flax | D158: Iteration 1 | E158: N A | F158: N A | G158: N A | H158: 2.47 | I158: 35.2875 | J158: 0 | K158: 0 | L158: 0 | M158: 0.2475 | N158: 2.325 | O158: 10.3525 | P158: 0 | Q158: 9.965 | R158: 0.0775 | S158: 0 | T158: 0 | U158: 0 | V158: 0.065 | W158: 0 | X158: 32.2 | Y158: 0 | Z158: 0 | AA158: 17.4125 | AB158: 0 | AC158: 0 | AD158: 0 | AE158: 0 | AF158: 0 | AG158: 0 | AH158: -9999 | AI158: 37.7575 | AJ158: 0 | AK158: 32.265 | AL158: 10.0425 | AM158: 10.3525 | AN158: 19.7375 | AO158: 0.2475 | AP158: 7190 | AQ158: 28.90126 | AR158: 0.044004944 | AS158: 208.95833 | AU158: 34
A159: Migr. Dev. | B159: 2040 | C159: L4 Flax | D159: Iteration 1 | E159: N A | F159: N A | G159: N A | H159: 2.325 | I159: 31.2525 | J159: 0 | K159: 0 | L159: 0 | M159: 0.2175 | N159: 4.9 | O159: 19.1275 | P159: 0 | Q159: 8.6225 | R159: 0.6225 | S159: 0 | T159: 0 | U159: 0 | V159: 0.0625 | W159: 0 | X159: 33.5725 | Y159: 0 | Z159: 0 | AA159: 9.7 | AB159: 0 | AC159: 0 | AD159: 0 | AE159: 0 | AF159: 0 | AG159: 0 | AH159: -9999 | AI159: 33.5775 | AJ159: 0 | AK159: 33.635 | AL159: 9.245 | AM159: 19.1275 | AN159: 14.6 | AO159: 0.2175 | AP159: 8945 | AQ159: 32.129359 | AR159: 0.048549124 | AS159: 234.21875 | AU159: 34
A160: Migr. Dev. | B160: 2055 | C160: L4 Flax | D160: Iteration 1 | E160: N A | F160: N A | G160: N A | H160: 2.1675 | I160: 27.11 | J160: 0 | K160: 0 | L160: 0 | M160: 0.0875 | N160: 5.12 | O160: 27.255 | P160: 0 | Q160: 7.915 | R160: 2.6 | S160: 0 | T160: 0 | U160: 0 | V160: 0 | W160: 0 | X160: 34.6775 | Y160: 0 | Z160: 0 | AA160: 3.47 | AB160: 0 | AC160: 0 | AD160: 0 | AE160: 0 | AF160: 0 | AG160: 0 | AH160: -9999 | AI160: 29.2775 | AJ160: 0 | AK160: 34.6775 | AL160: 10.515 | AM160: 27.255 | AN160: 8.59 | AO160: 0.0875 | AP160: 10420 | AQ160: 33.735629 | AR160: 0.05446323 | AS160: 248.92361 | AU160: 34
A161: Migr. Dev. | B161: 2070 | C161: L4 Flax | D161: Iteration 1 | E161: N A | F161: N A | G161: N A | H161: 1.9575 | I161: 22.4625 | J161: 0 | K161: 0 | L161: 0 | M161: 0.005 | N161: 5.01 | O161: 29.9125 | P161: 0 | Q161: 6.91 | R161: 5.0875 | S161: 0 | T161: 0 | U161: 0 | V161: 0 | W161: 0 | X161: 37.78 | Y161: 0 | Z161: 0 | AA161: 1.2775 | AB161: 0 | AC161: 0 | AD161: 0 | AE161: 0 | AF161: 0 | AG161: 0 | AH161: -9999 | AI161: 24.42 | AJ161: 0 | AK161: 37.78 | AL161: 11.9975 | AM161: 29.9125 | AN161: 6.2875 | AO161: 0.005 | AP161: 11660 | AQ161: 33.895869 | AR161: 0.056539152 | AS161: 251.38889 | AU161: 34
A162: Migr. Dev. | B162: 2085 | C162: L4 Flax | D162: Iteration 1 | E162: N A | F162: N A | G162: N A | H162: 1.7225 | I162: 17.1625 | J162: 0 | K162: 0 | L162: 0 | M162: 0 | N162: 5.64 | O162: 25.1725 | P162: 0 | Q162: 5.685 | R162: 11.44 | S162: 0 | T162: 0 | U162: 0 | V162: 0 | W162: 0 | X162: 43.2875 | Y162: 0 | Z162: 0 | AA162: 0.2925 | AB162: 0 | AC162: 0 | AD162: 0 | AE162: 0 | AF162: 0 | AG162: 0 | AH162: -9999 | AI162: 18.885 | AJ162: 0 | AK162: 43.2875 | AL162: 17.125 | AM162: 25.1725 | AN162: 5.9325 | AO162: 0 | AP162: 17240 | AQ162: 28.012563 | AR162: 0.085259605 | AS162: 216.00694 | AU162: 34
A163: Migr. Dev. | B163: 2100 | C163: L4 Flax | D163: Iteration 1 | E163: N A | F163: N A | G163: N A | H163: 1.4025 | I163: 13.5575 | J163: 0 | K163: 0 | L163: 0 | M163: 0 | N163: 3.9425 | O163: 23.1575 | P163: 0 | Q163: 4.6875 | R163: 10.62 | S163: 0 | T163: 0 | U163: 0 | V163: 0 | W163: 0 | X163: 52.97 | Y163: 0 | Z163: 0 | AA163: 0.065 | AB163: 0 | AC163: 0 | AD163: 0 | AE163: 0 | AF163: 0 | AG163: 0 | AH163: -9999 | AI163: 14.96 | AJ163: 0 | AK163: 52.97 | AL163: 15.3075 | AM163: 23.1575 | AN163: 4.0075 | AO163: 0 | AP163: 10265 | AQ163: 24.909904 | AR163: 0.072648629 | AS163: 188.64583 | AU163: 34
A164: Migr. Dev. | B164: 2010 | C164: P1 Accabonac | D164: Iteration 10 | E164: N A | F164: N A | G164: N A | H164: 39.485 | I164: 221.295 | J164: 1.1025 | K164: 0 | L164: 0.0975 | M164: 0.175 | N164: 2.3925 | O164: 6.3825 | P164: 0 | Q164: 0 | R164: 0 | S164: 10.1025 | T164: 0 | U164: 0 | V164: 0 | W164: 0 | X164: 123.165 | Y164: 0 | Z164: 10.865 | AA164: 105.79 | AB164: 0 | AC164: 0 | AD164: 8.39 | AE164: 0 | AF164: 0 | AG164: 0 | AH164: -9999 | AI164: 260.78 | AJ164: 1.2 | AK164: 134.03 | AL164: 10.1025 | AM164: 6.3825 | AN164: 108.1825 | AO164: 8.565 | AP164: 14710 | AQ164: 110.8837 | AR164: 0.03008541 | AS164: 369.56452 | AU164: 1
A165: Migr. Dev. | B165: 2025 | C165: P1 Accabonac | D165: Iteration 10 | E165: N A | F165: N A | G165: N A | H165: 39.055 | I165: 214.845 | J165: 1.1025 | K165: 0 | L165: 0.0975 | M165: 0.175 | N165: 4.175 | O165: 14.5425 | P165: 0 | Q165: 0 | R165: 0.515 | S165: 14.055 | T165: 0 | U165: 0 | V165: 0 | W165: 0 | X165: 123.32 | Y165: 0 | Z165: 11.075 | AA165: 98.165 | AB165: 0 | AC165: 0 | AD165: 8.12 | AE165: 0 | AF165: 0 | AG165: 0 | AH165: -9999 | AI165: 253.9 | AJ165: 1.2 | AK165: 134.395 | AL165: 14.57 | AM165: 14.5425 | AN165: 102.34 | AO165: 8.295 | AP165: 18255 | AQ165: 112.39909 | AR165: 0.034982808 | AS165: 377.04032 | AU165: 1
A166: Migr. Dev. | B166: 2040 | C166: P1 Accabonac | D166: Iteration 10 | E166: N A | F166: N A | G166: N A | H166: 37.9125 | I166: 194.5125 | J166: 1.1025 | K166: 0 | L166: 0.0625 | M166: 0.175 | N166: 13.7825 | O166: 49.5 | P166: 0 | Q166: 0 | R166: 5.485 | S166: 22.455 | T166: 0 | U166: 0 | V166: 0 | W166: 0 | X166: 124.22 | Y166: 0 | Z166: 11.47 | AA166: 62.9075 | AB166: 0 | AC166: 0 | AD166: 5.6575 | AE166: 0 | AF166: 0 | AG166: 0 | AH166: -9999 | AI166: 232.425 | AJ166: 1.165 | AK166: 135.69 | AL166: 27.94 | AM166: 49.5 | AN166: 76.69 | AO166: 5.8325 | AP166: 39005 | AQ166: 118.41427 | AR166: 0.053290072 | AS166: 407.06452 | AU166: 1
A167: Migr. Dev. | B167: 2055 | C167: P1 Accabonac | D167: Iteration 10 | E167: N A | F167: N A | G167: N A | H167: 36.5875 | I167: 174.1225 | J167: 1.1025 | K167: 0 | L167: 0 | M167: 0.175 | N167: 17.035 | O167: 64.73 | P167: 0 | Q167: 0 | R167: 37.9375 | S167: 26.9875 | T167: 0 | U167: 0 | V167: 0 | W167: 0 | X167: 131.275 | Y167: 0 | Z167: 12.7675 | AA167: 24.1275 | AB167: 0 | AC167: 0 | AD167: 2.395 | AE167: 0 | AF167: 0 | AG167: 0 | AH167: -9999 | AI167: 210.71 | AJ167: 1.1025 | AK167: 144.0425 | AL167: 64.925 | AM167: 64.73 | AN167: 41.1625 | AO167: 2.57 | AP167: 82375 | AQ167: 92.113822 | AR167: 0.10823296 | AS167: 341.58871 | AU167: 1
A168: Migr. Dev. | B168: 2070 | C168: P1 Accabonac | D168: Iteration 10 | E168: N A | F168: N A | G168: N A | H168: 33.225 | I168: 152.5575 | J168: 0.025 | K168: 0 | L168: 0 | M168: 0.175 | N168: 20.5125 | O168: 45.88 | P168: 0 | Q168: 0 | R168: 55.5975 | S168: 26.8425 | T168: 0 | U168: 0 | V168: 0 | W168: 0 | X168: 170.27 | Y168: 0 | Z168: 18.4425 | AA168: 4.93 | AB168: 0 | AC168: 0 | AD168: 0.785 | AE168: 0 | AF168: 0 | AG168: 0 | AH168: -9999 | AI168: 185.7825 | AJ168: 0.025 | AK168: 188.7125 | AL168: 82.44 | AM168: 45.88 | AN168: 25.4425 | AO168: 0.96 | AP168: 58835 | AQ168: 61.086371 | AR168: 0.12007413 | AS168: 230.07258 | AU168: 1
A169: Migr. Dev. | B169: 2085 | C169: P1 Accabonac | D169: Iteration 10 | E169: N A | F169: N A | G169: N A | H169: 28.625 | I169: 129.775 | J169: 0 | K169: 0 | L169: 0 | M169: 0.175 | N169: 22.6175 | O169: 31.385 | P169: 0 | Q169: 0 | R169: 39.1925 | S169: 20.525 | T169: 0 | U169: 0 | V169: 0 | W169: 0 | X169: 226.11 | Y169: 0 | Z169: 29.55 | AA169: 1.12 | AB169: 0 | AC169: 0 | AD169: 0.1675 | AE169: 0 | AF169: 0 | AG169: 0 | AH169: -9999 | AI169: 158.4 | AJ169: 0 | AK169: 255.66 | AL169: 59.7175 | AM169: 31.385 | AN169: 23.7375 | AO169: 0.3425 | AP169: 37700 | AQ169: 47.430129 | AR169: 0.11790768 | AS169: 177.81452 | AU169: 1
A170: Migr. Dev. | B170: 2100 | C170: P1 Accabonac | D170: Iteration 10 | E170: N A | F170: N A | G170: N A | H170: 23.005 | I170: 106.625 | J170: 0 | K170: 0 | L170: 0 | M170: 0.16 | N170: 23.9625 | O170: 29.3125 | P170: 0 | Q170: 0 | R170: 25.4875 | S170: 15.98 | T170: 0 | U170: 0 | V170: 0 | W170: 0 | X170: 265.5275 | Y170: 0 | Z170: 38.9 | AA170: 0.22 | AB170: 0 | AC170: 0 | AD170: 0.0625 | AE170: 0 | AF170: 0 | AG170: 0 | AH170: -9999 | AI170: 129.63 | AJ170: 0 | AK170: 304.4275 | AL170: 41.4675 | AM170: 29.3125 | AN170: 24.1825 | AO170: 0.2225 | AP170: 29960 | AQ170: 46.312662 | AR170: 0.11365204 | AS170: 172.56452 | AU170: 1
A171: Migr. Dev. | B171: 2010 | C171: P2 Nappeauge | D171: Iteration 10 | E171: N A | F171: N A | G171: N A | H171: 98.95 | I171: 1151.4025 | J171: 82.98 | K171: 0 | L171: 14.2 | M171: 1.22 | N171: 33.7575 | O171: 15.0375 | P171: 0 | Q171: 6.83 | R171: 0.2475 | S171: 29.9275 | T171: 0 | U171: 0 | V171: 15.4275 | W171: 0 | X171: 363.0025 | Y171: 0 | Z171: 513.36 | AA171: 102.5925 | AB171: 0 | AC171: 0 | AD171: 6.9 | AE171: 0 | AF171: 0 | AG171: 0 | AH171: -9999 | AI171: 1250.3525 | AJ171: 97.18 | AK171: 891.79 | AL171: 37.005 | AM171: 15.0375 | AN171: 136.35 | AO171: 8.12 | AP171: 4435 | AQ171: 148.14012 | AR171: 0.026204479 | AS171: 357.04599 | AU171: 2
A172: Migr. Dev. | B172: 2025 | C172: P2 Nappeauge | D172: Iteration 10 | E172: N A | F172: N A | G172: N A | H172: 98.2075 | I172: 1125.505 | J172: 82.135 | K172: 0 | L172: 12.7275 | M172: 1.22 | N172: 42.4675 | O172: 47.4575 | P172: 0 | Q172: 6.525 | R172: 2.07 | S172: 29.965 | T172: 0 | U172: 0 | V172: 15.4275 | W172: 0 | X172: 363.6325 | Y172: 0 | Z172: 514.6125 | AA172: 88.51 | AB172: 0 | AC172: 0 | AD172: 5.3725 | AE172: 0 | AF172: 0 | AG172: 0 | AH172: -9999 | AI172: 1223.7125 | AJ172: 94.8625 | AK172: 893.6725 | AL172: 38.56 | AM172: 47.4575 | AN172: 130.9775 | AO172: 6.5925 | AP172: 14700 | AQ172: 169.28841 | AR172: 0.048654365 | AS172: 420.83726 | AU172: 2
A173: Migr. Dev. | B173: 2040 | C173: P2 Nappeauge | D173: Iteration 10 | E173: N A | F173: N A | G173: N A | H173: 94.8975 | I173: 1078.5825 | J173: 75.8275 | K173: 0 | L173: 12.3075 | M173: 1.22 | N173: 60.3825 | O173: 113.905 | P173: 0 | Q173: 5.5825 | R173: 16.155 | S173: 29.545 | T173: 0 | U173: 0 | V173: 15.4275 | W173: 0 | X173: 367.035 | Y173: 0 | Z173: 517.2875 | AA173: 45.245 | AB173: 0 | AC173: 0 | AD173: 2.435 | AE173: 0 | AF173: 0 | AG173: 0 | AH173: -9999 | AI173: 1173.48 | AJ173: 88.135 | AK173: 899.75 | AL173: 51.2825 | AM173: 113.905 | AN173: 105.6275 | AO173: 3.655 | AP173: 66005 | AQ173: 201.68149 | AR173: 0.071292511 | AS173: 517.76533 | AU173: 2
A174: Migr. Dev. | B174: 2055 | C174: P2 Nappeauge | D174: Iteration 10 | E174: N A | F174: N A | G174: N A | H174: 86.515 | I174: 979.025 | J174: 53.8725 | K174: 0 | L174: 10.915 | M174: 1.22 | N174: 131.2325 | O174: 127.81 | P174: 0 | Q174: 3.5275 | R174: 72.6575 | S174: 29.005 | T174: 0 | U174: 0 | V174: 15.3275 | W174: 0 | X174: 385.995 | Y174: 0 | Z174: 520.735 | AA174: 16.9475 | AB174: 0 | AC174: 0 | AD174: 1.05 | AE174: 0 | AF174: 0 | AG174: 0 | AH174: -9999 | AI174: 1065.54 | AJ174: 64.7875 | AK174: 922.0575 | AL174: 105.19 | AM174: 127.81 | AN174: 148.18 | AO174: 2.27 | AP174: 129515 | AQ174: 248.7019 | AR174: 0.084181667 | AS174: 650.91981 | AU174: 2
A175: Migr. Dev. | B175: 2070 | C175: P2 Nappeauge | D175: Iteration 10 | E175: N A | F175: N A | G175: N A | H175: 65.99 | I175: 769.375 | J175: 27.06 | K175: 0 | L175: 10.87 | M175: 1.205 | N175: 176.2875 | O175: 172.58 | P175: 0 | Q175: 1.18 | R175: 98.3025 | S175: 103.9025 | T175: 0 | U175: 0 | V175: 14.77 | W175: 0 | X175: 461.9975 | Y175: 0 | Z175: 526.6575 | AA175: 5.425 | AB175: 0 | AC175: 0 | AD175: 0.2325 | AE175: 0 | AF175: 0 | AG175: 0 | AH175: -9999 | AI175: 835.365 | AJ175: 37.93 | AK175: 1003.425 | AL175: 203.385 | AM175: 172.58 | AN175: 181.7125 | AO175: 1.4375 | AP175: 132895 | AQ175: 322.34882 | AR175: 0.076301521 | AS175: 835.59552 | AU175: 2
A176: Migr. Dev. | B176: 2085 | C176: P2 Nappeauge | D176: Iteration 10 | E176: N A | F176: N A | G176: N A | H176: 50.8025 | I176: 593.3025 | J176: 11.4825 | K176: 0 | L176: 0.0225 | M176: 1.0925 | N176: 160.7325 | O176: 207.565 | P176: 0 | Q176: 0.34 | R176: 141.6875 | S176: 150.16 | T176: 0 | U176: 0 | V176: 14.77 | W176: 0 | X176: 561.92 | Y176: 0 | Z176: 540.075 | AA176: 1.865 | AB176: 0 | AC176: 0 | AD176: 0.0175 | AE176: 0 | AF176: 0 | AG176: 0 | AH176: -9999 | AI176: 644.105 | AJ176: 11.505 | AK176: 1116.765 | AL176: 292.1875 | AM176: 207.565 | AN176: 162.5975 | AO176: 1.11 | AP176: 168095 | AQ176: 327.90409 | AR176: 0.095039797 | AS176: 873.02476 | AU176: 2
A177: Migr. Dev. | B177: 2100 | C177: P2 Nappeauge | D177: Iteration 10 | E177: N A | F177: N A | G177: N A | H177: 38.54 | I177: 502.2925 | J177: 5.05 | K177: 0 | L177: 0.0025 | M177: 0.615 | N177: 75.49 | O177: 192.005 | P177: 0 | Q177: 0.095 | R177: 173.9 | S177: 149.1975 | T177: 0 | U177: 0 | V177: 1.7425 | W177: 0 | X177: 718.415 | Y177: 0 | Z177: 577.68 | AA177: 0.8075 | AB177: 0 | AC177: 0 | AD177: 0.0025 | AE177: 0 | AF177: 0 | AG177: 0 | AH177: -9999 | AI177: 540.8325 | AJ177: 5.0525 | AK177: 1297.8375 | AL177: 323.1925 | AM177: 192.005 | AN177: 76.2975 | AO177: 0.6175 | AP177: 196115 | AQ177: 224.3788 | AR177: 0.13430141 | AS177: 632.78892 | AU177: 2
A178: Migr. Dev. | B178: 2010 | C178: P3 Ashamonaque | D178: Iteration 10 | E178: N A | F178: N A | G178: N A | H178: 82.8575 | I178: 480.9275 | J178: 39.1825 | K178: 0 | L178: 18.2875 | M178: 4.83 | N178: 14.2775 | O178: 4.6825 | P178: 0 | Q178: 16.315 | R178: 0.165 | S178: 0 | T178: 0 | U178: 0 | V178: 7.135 | W178: 0 | X178: 210.4925 | Y178: 0 | Z178: 0 | AA178: 36.5525 | AB178: 0 | AC178: 0 | AD178: 0.385 | AE178: 0 | AF178: 0 | AG178: 0 | AH178: -9999 | AI178: 563.785 | AJ178: 57.47 | AK178: 217.6275 | AL178: 16.48 | AM178: 4.6825 | AN178: 50.83 | AO178: 5.215 | AP178: 9775 | AQ178: 57.01649 | AR178: 0.04840701 | AS178: 781.8662 | AU178: 3
A179: Migr. Dev. | B179: 2025 | C179: P3 Ashamonaque | D179: Iteration 10 | E179: N A | F179: N A | G179: N A | H179: 82.66 | I179: 475.1525 | J179: 38.8925 | K179: 0 | L179: 18.2475 | M179: 4.8325 | N179: 11.61 | O179: 16.58 | P179: 0 | Q179: 15.19 | R179: 0.875 | S179: 0 | T179: 0 | U179: 0 | V179: 7.1525 | W179: 0 | X179: 211.93 | Y179: 0 | Z179: 0 | AA179: 32.795 | AB179: 0 | AC179: 0 | AD179: 0.1725 | AE179: 0 | AF179: 0 | AG179: 0 | AH179: -9999 | AI179: 557.8125 | AJ179: 57.14 | AK179: 219.0825 | AL179: 16.065 | AM179: 16.58 | AN179: 44.405 | AO179: 5.005 | AP179: 21455 | AQ179: 58.957018 | AR179: 0.087302009 | AS179: 858.94366 | AU179: 3
A180: Migr. Dev. | B180: 2040 | C180: P3 Ashamonaque | D180: Iteration 10 | E180: N A | F180: N A | G180: N A | H180: 81.5375 | I180: 456.8675 | J180: 38.5 | K180: 0 | L180: 16.435 | M180: 4.8275 | N180: 24.18 | O180: 34.62 | P180: 0 | Q180: 12.27 | R180: 5.4425 | S180: 0 | T180: 0 | U180: 0 | V180: 7.1525 | W180: 0 | X180: 216.8275 | Y180: 0 | Z180: 0 | AA180: 17.36 | AB180: 0 | AC180: 0 | AD180: 0.07 | AE180: 0 | AF180: 0 | AG180: 0 | AH180: -9999 | AI180: 538.405 | AJ180: 54.935 | AK180: 223.98 | AL180: 17.7125 | AM180: 34.62 | AN180: 41.54 | AO180: 4.8975 | AP180: 32860 | AQ180: 72.094986 | AR180: 0.09134743 | AS180: 1072.6761 | AU180: 3
A181: Migr. Dev. | B181: 2055 | C181: P3 Ashamonaque | D181: Iteration 10 | E181: N A | F181: N A | G181: N A | H181: 77.4 | I181: 421.9725 | J181: 23.93 | K181: 0 | L181: 12.635 | M181: 4.795 | N181: 59.47 | O181: 48.255 | P181: 0 | Q181: 9.3775 | R181: 20.025 | S181: 0 | T181: 0 | U181: 0 | V181: 5.8575 | W181: 0 | X181: 227.8025 | Y181: 0 | Z181: 0 | AA181: 4.5125 | AB181: 0 | AC181: 0 | AD181: 0.0575 | AE181: 0 | AF181: 0 | AG181: 0 | AH181: -9999 | AI181: 499.3725 | AJ181: 36.565 | AK181: 233.66 | AL181: 29.4025 | AM181: 48.255 | AN181: 63.9825 | AO181: 4.8525 | AP181: 54430 | AQ181: 103.47885 | AR181: 0.095546109 | AS181: 1580.8099 | AU181: 3
A182: Migr. Dev. | B182: 2070 | C182: P3 Ashamonaque | D182: Iteration 10 | E182: N A | F182: N A | G182: N A | H182: 66.625 | I182: 332.8125 | J182: 11.23 | K182: 0 | L182: 0.09 | M182: 4.59 | N182: 128.34 | O182: 73.655 | P182: 0 | Q182: 6.715 | R182: 32.97 | S182: 0 | T182: 0 | U182: 0 | V182: 4.34 | W182: 0 | X182: 253.65 | Y182: 0 | Z182: 0 | AA182: 1.025 | AB182: 0 | AC182: 0 | AD182: 0.0475 | AE182: 0 | AF182: 0 | AG182: 0 | AH182: -9999 | AI182: 399.4375 | AJ182: 11.32 | AK182: 257.99 | AL182: 39.685 | AM182: 73.655 | AN182: 129.365 | AO182: 4.6375 | AP182: 57940 | AQ182: 191.73465 | AR182: 0.063445884 | AS182: 2859.4366 | AU182: 3
A183: Migr. Dev. | B183: 2085 | C183: P3 Ashamonaque | D183: Iteration 10 | E183: N A | F183: N A | G183: N A | H183: 53.9875 | I183: 270.5625 | J183: 8.4175 | K183: 0 | L183: 0.025 | M183: 3.9 | N183: 87.62 | O183: 141.6025 | P183: 0 | Q183: 4.1325 | R183: 49.49 | S183: 0 | T183: 0 | U183: 0 | V183: 1.4675 | W183: 0 | X183: 293.84 | Y183: 0 | Z183: 0 | AA183: 1.0025 | AB183: 0 | AC183: 0 | AD183: 0.0425 | AE183: 0 | AF183: 0 | AG183: 0 | AH183: -9999 | AI183: 324.55 | AJ183: 8.4425 | AK183: 295.3075 | AL183: 53.6225 | AM183: 141.6025 | AN183: 88.6225 | AO183: 3.9425 | AP183: 80000 | AQ183: 211.33201 | AR183: 0.079974373 | AS183: 3242.6056 | AU183: 3
A184: Migr. Dev. | B184: 2100 | C184: P3 Ashamonaque | D184: Iteration 10 | E184: N A | F184: N A | G184: N A | H184: 42.58 | I184: 212.535 | J184: 5.8175 | K184: 0 | L184: 0.0175 | M184: 2.885 | N184: 82.7275 | O184: 128.655 | P184: 0 | Q184: 1.9375 | R184: 88.5075 | S184: 0 | T184: 0 | U184: 0 | V184: 1 | W184: 0 | X184: 348.195 | Y184: 0 | Z184: 0 | AA184: 1.1975 | AB184: 0 | AC184: 0 | AD184: 0.035 | AE184: 0 | AF184: 0 | AG184: 0 | AH184: -9999 | AI184: 255.115 | AJ184: 5.835 | AK184: 349.195 | AL184: 90.445 | AM184: 128.655 | AN184: 83.925 | AO184: 2.92 | AP184: 112705 | AQ184: 187.82449 | AR184: 0.10473163 | AS184: 2994.0845 | AU184: 3
A185: Migr. Dev. | B185: 2010 | C185: P4 Orient | D185: Iteration 10 | E185: N A | F185: N A | G185: N A | H185: 77.2775 | I185: 594.75 | J185: 1.7375 | K185: 0 | L185: 1.1625 | M185: 4.4225 | N185: 43.5825 | O185: 29.22 | P185: 0 | Q185: 31.2925 | R185: 2.4325 | S185: 35.28 | T185: 0 | U185: 0 | V185: 5.315 | W185: 0 | X185: 500.37 | Y185: 0 | Z185: 337.6925 | AA185: 149.675 | AB185: 0 | AC185: 0 | AD185: 5.005 | AE185: 0 | AF185: 0 | AG185: 0 | AH185: -9999 | AI185: 672.0275 | AJ185: 2.9 | AK185: 843.3775 | AL185: 69.005 | AM185: 29.22 | AN185: 193.2575 | AO185: 9.4275 | AP185: 37110 | AQ185: 215.97157 | AR185: 0.040771265 | AS185: 444.955 | AU185: 4
A186: Migr. Dev. | B186: 2025 | C186: P4 Orient | D186: Iteration 10 | E186: N A | F186: N A | G186: N A | H186: 76.4675 | I186: 568.7725 | J186: 1.6775 | K186: 0 | L186: 0.89 | M186: 4.4275 | N186: 55.7375 | O186: 52.575 | P186: 0 | Q186: 27.805 | R186: 7.925 | S186: 35.51 | T186: 0 | U186: 0 | V186: 4.9175 | W186: 0 | X186: 505.8425 | Y186: 0 | Z186: 341.07 | AA186: 131.71 | AB186: 0 | AC186: 0 | AD186: 3.8875 | AE186: 0 | AF186: 0 | AG186: 0 | AH186: -9999 | AI186: 645.24 | AJ186: 2.5675 | AK186: 851.83 | AL186: 71.24 | AM186: 52.575 | AN186: 187.4475 | AO186: 8.315 | AP186: 58690 | AQ186: 228.27697 | AR186: 0.055046022 | AS186: 480.045 | AU186: 4
A187: Migr. Dev. | B187: 2040 | C187: P4 Orient | D187: Iteration 10 | E187: N A | F187: N A | G187: N A | H187: 72.82 | I187: 505.565 | J187: 1.325 | K187: 0 | L187: 0.7275 | M187: 4.3675 | N187: 83.225 | O187: 115.14 | P187: 0 | Q187: 20.91 | R187: 30.4675 | S187: 41.64 | T187: 0 | U187: 0 | V187: 4.4375 | W187: 0 | X187: 522.6 | Y187: 0 | Z187: 346.1275 | AA187: 67.75 | AB187: 0 | AC187: 0 | AD187: 2.1125 | AE187: 0 | AF187: 0 | AG187: 0 | AH187: -9999 | AI187: 578.385 | AJ187: 2.0525 | AK187: 873.165 | AL187: 93.0175 | AM187: 115.14 | AN187: 150.975 | AO187: 6.48 | AP187: 118245 | AQ187: 244.57145 | AR187: 0.078585491 | AS187: 532.23 | AU187: 4
A188: Migr. Dev. | B188: 2055 | C188: P4 Orient | D188: Iteration 10 | E188: N A | F188: N A | G188: N A | H188: 68.0925 | I188: 439.8275 | J188: 0.9375 | K188: 0 | L188: 0.1025 | M188: 3.1275 | N188: 80.3275 | O188: 143.1175 | P188: 0 | Q188: 15.9225 | R188: 86.57 | S188: 49.57 | T188: 0 | U188: 0 | V188: 1.7375 | W188: 0 | X188: 564.09 | Y188: 0 | Z188: 351.205 | AA188: 13.62 | AB188: 0 | AC188: 0 | AD188: 0.9675 | AE188: 0 | AF188: 0 | AG188: 0 | AH188: -9999 | AI188: 507.92 | AJ188: 1.04 | AK188: 917.0325 | AL188: 152.0625 | AM188: 143.1175 | AN188: 93.9475 | AO188: 4.095 | AP188: 179010 | AQ188: 205.02557 | AR188: 0.11908157 | AS188: 474.13 | AU188: 4
A189: Migr. Dev. | B189: 2070 | C189: P4 Orient | D189: Iteration 10 | E189: N A | F189: N A | G189: N A | H189: 62.485 | I189: 378.1125 | J189: 0.645 | K189: 0 | L189: 0.0125 | M189: 1.265 | N189: 68.7825 | O189: 106.0925 | P189: 0 | Q189: 10.4525 | R189: 114.4325 | S189: 53.255 | T189: 0 | U189: 0 | V189: 1.3075 | W189: 0 | X189: 659.39 | Y189: 0 | Z189: 359.3875 | AA189: 3.12 | AB189: 0 | AC189: 0 | AD189: 0.475 | AE189: 0 | AF189: 0 | AG189: 0 | AH189: -9999 | AI189: 440.5975 | AJ189: 0.6575 | AK189: 1020.085 | AL189: 178.14 | AM189: 106.0925 | AN189: 71.9025 | AO189: 1.74 | AP189: 135810 | AQ189: 151.00225 | AR189: 0.12833873 | AS189: 355.99 | AU189: 4
A190: Migr. Dev. | B190: 2085 | C190: P4 Orient | D190: Iteration 10 | E190: N A | F190: N A | G190: N A | H190: 55.5975 | I190: 325.7475 | J190: 0.215 | K190: 0 | L190: 0 | M190: 0.3625 | N190: 56.9275 | O190: 85.3475 | P190: 0 | Q190: 7.425 | R190: 81.5225 | S190: 49.0375 | T190: 0 | U190: 0 | V190: 1.12 | W190: 0 | X190: 778.9175 | Y190: 0 | Z190: 375.7675 | AA190: 1.0175 | AB190: 0 | AC190: 0 | AD190: 0.21 | AE190: 0 | AF190: 0 | AG190: 0 | AH190: -9999 | AI190: 381.345 | AJ190: 0.215 | AK190: 1155.805 | AL190: 137.985 | AM190: 85.3475 | AN190: 57.945 | AO190: 0.5725 | AP190: 101955 | AQ190: 122.44644 | AR190: 0.12062929 | AS190: 286.585 | AU190: 4
A191: Migr. Dev. | B191: 2100 | C191: P4 Orient | D191: Iteration 10 | E191: N A | F191: N A | G191: N A | H191: 48.1525 | I191: 285.65 | J191: 0.1175 | K191: 0 | L191: 0 | M191: 0.125 | N191: 47.2375 | O191: 70.7725 | P191: 0 | Q191: 4.335 | R191: 63.6275 | S191: 39.165 | T191: 0 | U191: 0 | V191: 0.765 | W191: 0 | X191: 865.9225 | Y191: 0 | Z191: 392.99 | AA191: 0.2325 | AB191: 0 | AC191: 0 | AD191: 0.1225 | AE191: 0 | AF191: 0 | AG191: 0 | AH191: -9999 | AI191: 333.8025 | AJ191: 0.1175 | AK191: 1259.6775 | AL191: 107.1275 | AM191: 70.7725 | AN191: 47.47 | AO191: 0.2475 | AP191: 82285 | AQ191: 101.34966 | AR191: 0.11780683 | AS191: 236.485 | AU191: 4
A192: Migr. Dev. | B192: 2010 | C192: P5 Mashomack | D192: Iteration 10 | E192: N A | F192: N A | G192: N A | H192: 10.82 | I192: 726.27 | J192: 17.1725 | K192: 0 | L192: 1.2925 | M192: 7.16 | N192: 5.625 | O192: 17.4325 | P192: 0 | Q192: 32.1975 | R192: 0.2275 | S192: 5.6825 | T192: 0 | U192: 0 | V192: 3.465 | W192: 0 | X192: 244.2175 | Y192: 0 | Z192: 37.925 | AA192: 34.685 | AB192: 0 | AC192: 0 | AD192: 1.3625 | AE192: 0 | AF192: 0 | AG192: 0 | AH192: -9999 | AI192: 737.09 | AJ192: 18.465 | AK192: 285.6075 | AL192: 38.1075 | AM192: 17.4325 | AN192: 40.31 | AO192: 8.5225 | AP192: 24480 | AQ192: 57.895943 | AR192: 0.09028928 | AS192: 230.97 | AU192: 5
A193: Migr. Dev. | B193: 2025 | C193: P5 Mashomack | D193: Iteration 10 | E193: N A | F193: N A | G193: N A | H193: 10.7925 | I193: 722.0475 | J193: 17.1675 | K193: 0 | L193: 1.2925 | M193: 7.16 | N193: 7.515 | O193: 24.7025 | P193: 0 | Q193: 29.3975 | R193: 0.825 | S193: 4.6525 | T193: 0 | U193: 0 | V193: 3.43 | W193: 0 | X193: 247.2875 | Y193: 0 | Z193: 38.98 | AA193: 29.0775 | AB193: 0 | AC193: 0 | AD193: 1.2075 | AE193: 0 | AF193: 0 | AG193: 0 | AH193: -9999 | AI193: 732.84 | AJ193: 18.46 | AK193: 289.6975 | AL193: 34.875 | AM193: 24.7025 | AN193: 36.5925 | AO193: 8.3675 | AP193: 28105 | AQ193: 60.52666 | AR193: 0.096442919 | AS193: 245.18 | AU193: 5
A194: Migr. Dev. | B194: 2040 | C194: P5 Mashomack | D194: Iteration 10 | E194: N A | F194: N A | G194: N A | H194: 10.6375 | I194: 710.1025 | J194: 17.165 | K194: 0 | L194: 0.2625 | M194: 7.16 | N194: 14.8925 | O194: 37.97 | P194: 0 | Q194: 23.5675 | R194: 5.6075 | S194: 3.59 | T194: 0 | U194: 0 | V194: 2.905 | W194: 0 | X194: 255.25 | Y194: 0 | Z194: 40.0825 | AA194: 15.3675 | AB194: 0 | AC194: 0 | AD194: 0.975 | AE194: 0 | AF194: 0 | AG194: 0 | AH194: -9999 | AI194: 720.74 | AJ194: 17.4275 | AK194: 298.2375 | AL194: 32.765 | AM194: 37.97 | AN194: 30.26 | AO194: 8.135 | AP194: 43330 | AQ194: 64.832113 | AR194: 0.11554583 | AS194: 272.92 | AU194: 5
A195: Migr. Dev. | B195: 2055 | C195: P5 Mashomack | D195: Iteration 10 | E195: N A | F195: N A | G195: N A | H195: 10.105 | I195: 694 | J195: 17.0575 | K195: 0 | L195: 0.01 | M195: 7.125 | N195: 17.7325 | O195: 36.565 | P195: 0 | Q195: 17.8775 | R195: 22.635 | S195: 3.1525 | T195: 0 | U195: 0 | V195: 2.82 | W195: 0 | X195: 268.265 | Y195: 0 | Z195: 40.6525 | AA195: 7.1925 | AB195: 0 | AC195: 0 | AD195: 0.345 | AE195: 0 | AF195: 0 | AG195: 0 | AH195: -9999 | AI195: 704.105 | AJ195: 17.0675 | AK195: 311.7375 | AL195: 43.665 | AM195: 36.565 | AN195: 24.925 | AO195: 7.47 | AP195: 50990 | AQ195: 56.138432 | AR195: 0.14896888 | AS195: 245.96 | AU195: 5
A196: Migr. Dev. | B196: 2070 | C196: P5 Mashomack | D196: Iteration 10 | E196: N A | F196: N A | G196: N A | H196: 9.5675 | I196: 672.7525 | J196: 16.275 | K196: 0 | L196: 0 | M196: 6.805 | N196: 19.485 | O196: 31.2575 | P196: 0 | Q196: 11.3725 | R196: 26.4 | S196: 5.51 | T196: 0 | U196: 0 | V196: 1.435 | W196: 0 | X196: 300.315 | Y196: 0 | Z196: 41.415 | AA196: 2.89 | AB196: 0 | AC196: 0 | AD196: 0.055 | AE196: 0 | AF196: 0 | AG196: 0 | AH196: -9999 | AI196: 682.32 | AJ196: 16.275 | AK196: 343.165 | AL196: 43.2825 | AM196: 31.2575 | AN196: 22.375 | AO196: 6.86 | AP196: 50345 | AQ196: 47.855895 | AR196: 0.17015098 | AS196: 214.53 | AU196: 5
A197: Migr. Dev. | B197: 2085 | C197: P5 Mashomack | D197: Iteration 10 | E197: N A | F197: N A | G197: N A | H197: 8.9275 | I197: 649.635 | J197: 15.6225 | K197: 0 | L197: 0 | M197: 6.2475 | N197: 22.625 | O197: 28.6575 | P197: 0 | Q197: 5.695 | R197: 23.23 | S197: 5.4725 | T197: 0 | U197: 0 | V197: 1.16 | W197: 0 | X197: 333.9425 | Y197: 0 | Z197: 43.2525 | AA197: 1.0475 | AB197: 0 | AC197: 0 | AD197: 0.02 | AE197: 0 | AF197: 0 | AG197: 0 | AH197: -9999 | AI197: 658.5625 | AJ197: 15.6225 | AK197: 378.355 | AL197: 34.3975 | AM197: 28.6575 | AN197: 23.6725 | AO197: 6.2675 | AP197: 52015 | AQ197: 46.136487 | AR197: 0.1735564 | AS197: 209.32 | AU197: 5
A198: Migr. Dev. | B198: 2100 | C198: P5 Mashomack | D198: Iteration 10 | E198: N A | F198: N A | G198: N A | H198: 8.2975 | I198: 619.865 | J198: 6.44 | K198: 0 | L198: 0 | M198: 5.205 | N198: 30.435 | O198: 29.7125 | P198: 0 | Q198: 2.025 | R198: 21.4875 | S198: 12.68 | T198: 0 | U198: 0 | V198: 0.1 | W198: 0 | X198: 363.415 | Y198: 0 | Z198: 45.1875 | AA198: 0.6675 | AB198: 0 | AC198: 0 | AD198: 0.0175 | AE198: 0 | AF198: 0 | AG198: 0 | AH198: -9999 | AI198: 628.1625 | AJ198: 6.44 | AK198: 408.7025 | AL198: 36.1925 | AM198: 29.7125 | AN198: 31.1025 | AO198: 5.2225 | AP198: 49455 | AQ198: 54.379057 | AR198: 0.14465314 | AS198: 243.26 | AU198: 5
A199: Migr. Dev. | B199: 2010 | C199: P6 Flanders | D199: Iteration 10 | E199: N A | F199: N A | G199: N A | H199: 61.8475 | I199: 389.085 | J199: 6.0675 | K199: 0 | L199: 0.18 | M199: 0 | N199: 6.0225 | O199: 16.7525 | P199: 0 | Q199: 9.2175 | R199: 1.1675 | S199: 0 | T199: 0 | U199: 0 | V199: 5.4725 | W199: 0 | X199: 262.19 | Y199: 0 | Z199: 0 | AA199: 182.8475 | AB199: 0 | AC199: 0 | AD199: 7.8375 | AE199: 0 | AF199: 0 | AG199: 0 | AH199: -9999 | AI199: 450.9325 | AJ199: 6.2475 | AK199: 267.6625 | AL199: 10.385 | AM199: 16.7525 | AN199: 188.87 | AO199: 7.8375 | AP199: 39595 | AQ199: 196.15803 | AR199: 0.039181023 | AS199: 527.23718 | AU199: 6
A200: Migr. Dev. | B200: 2025 | C200: P6 Flanders | D200: Iteration 10 | E200: N A | F200: N A | G200: N A | H200: 61.6975 | I200: 383.425 | J200: 5.9575 | K200: 0 | L200: 0.18 | M200: 0 | N200: 8.6525 | O200: 29.4275 | P200: 0 | Q200: 8.3275 | R200: 3.4975 | S200: 0 | T200: 0 | U200: 0 | V200: 5.445 | W200: 0 | X200: 264.565 | Y200: 0 | Z200: 0 | AA200: 169.8375 | AB200: 0 | AC200: 0 | AD200: 7.675 | AE200: 0 | AF200: 0 | AG200: 0 | AH200: -9999 | AI200: 445.1225 | AJ200: 6.1375 | AK200: 270.01 | AL200: 11.825 | AM200: 29.4275 | AN200: 178.49 | AO200: 7.675 | AP200: 50365 | AQ200: 196.32833 | AR200: 0.046912838 | AS200: 533.12179 | AU200: 6
... 925 more rows

Sheet OutputTable
A1: Site | B1: Year | C1: Utility | D1: Value | E1: Strategy
A2: P1 Accabonac | B2: 2016 | C2: Carbon Sequestration | D2: 9.87512904 | E2: No Migration
A3: P1 Accabonac | B3: 2016 | C3: Nitrogen Sequestration | D3: 9.980695968 | E3: No Migration
A4: P1 Accabonac | B4: 2016 | C4: Phosphorus Sequestration | D4: 8.814478323 | E4: No Migration
A5: P1 Accabonac | B5: 2016 | C5: Marsh Land Recreation | D5: 5.104769583 | E5: No Migration
A6: P1 Accabonac | B6: 2016 | C6: Natural Areas for Underserved Communities | D6: 3.433971437 | E6: No Migration
A7: P1 Accabonac | B7: 2016 | C7: Nekton Habitat Proximate to Fishing Areas | D7: 7.831000527 | E7: No Migration
A8: P1 Accabonac | B8: 2016 | C8: Nekton Habitat (General) | D8: 14.66545729 | E8: No Migration
A9: P1 Accabonac | B9: 2016 | C9: Habitat connectivity / Frag | D9: 22.5226968 | E9: No Migration
A10: P1 Accabonac | B10: 2016 | C10: Bird Habitat (high marsh) | D10: 12.57437888 | E10: No Migration
A11: P1 Accabonac | B11: 2016 | C11: Wave Attenuation | D11: 12.18288147 | E11: No Migration
A12: P1 Accabonac | B12: 2016 | C12: Political/Cultural/Historic value | D12: 5.785270982 | E12: No Migration
A13: P1 Accabonac | B13: 2017 | C13: Carbon Sequestration | D13: 9.866330268 | E13: No Migration
A14: P1 Accabonac | B14: 2017 | C14: Nitrogen Sequestration | D14: 9.970733644 | E14: No Migration
A15: P1 Accabonac | B15: 2017 | C15: Phosphorus Sequestration | D15: 8.804585869 | E15: No Migration
A16: P1 Accabonac | B16: 2017 | C16: Marsh Land Recreation | D16: 5.098574408 | E16: No Migration
A17: P1 Accabonac | B17: 2017 | C17: Natural Areas for Underserved Communities | D17: 3.434176087 | E17: No Migration
A18: P1 Accabonac | B18: 2017 | C18: Nekton Habitat Proximate to Fishing Areas | D18: 7.83189918 | E18: No Migration
A19: P1 Accabonac | B19: 2017 | C19: Nekton Habitat (General) | D19: 14.66714024 | E19: No Migration
A20: P1 Accabonac | B20: 2017 | C20: Habitat connectivity / Frag | D20: 22.52148678 | E20: No Migration
A21: P1 Accabonac | B21: 2017 | C21: Bird Habitat (high marsh) | D21: 12.55330732 | E21: No Migration
A22: P1 Accabonac | B22: 2017 | C22: Wave Attenuation | D22: 12.18360863 | E22: No Migration
A23: P1 Accabonac | B23: 2017 | C23: Political/Cultural/Historic value | D23: 5.785615758 | E23: No Migration
A24: P1 Accabonac | B24: 2018 | C24: Carbon Sequestration | D24: 9.857531496 | E24: No Migration
A25: P1 Accabonac | B25: 2018 | C25: Nitrogen Sequestration | D25: 9.960771321 | E25: No Migration
A26: P1 Accabonac | B26: 2018 | C26: Phosphorus Sequestration | D26: 8.794693416 | E26: No Migration
A27: P1 Accabonac | B27: 2018 | C27: Marsh Land Recreation | D27: 5.092379233 | E27: No Migration
A28: P1 Accabonac | B28: 2018 | C28: Natural Areas for Underserved Communities | D28: 3.434380736 | E28: No Migration
A29: P1 Accabonac | B29: 2018 | C29: Nekton Habitat Proximate to Fishing Areas | D29: 7.832797834 | E29: No Migration
A30: P1 Accabonac | B30: 2018 | C30: Nekton Habitat (General) | D30: 14.66882319 | E30: No Migration
A31: P1 Accabonac | B31: 2018 | C31: Habitat connectivity / Frag | D31: 22.52027677 | E31: No Migration
A32: P1 Accabonac | B32: 2018 | C32: Bird Habitat (high marsh) | D32: 12.53223576 | E32: No Migration
A33: P1 Accabonac | B33: 2018 | C33: Wave Attenuation | D33: 12.18433579 | E33: No Migration
A34: P1 Accabonac | B34: 2018 | C34: Political/Cultural/Historic value | D34: 5.785960534 | E34: No Migration
A35: P1 Accabonac | B35: 2019 | C35: Carbon Sequestration | D35: 9.848732724 | E35: No Migration
A36: P1 Accabonac | B36: 2019 | C36: Nitrogen Sequestration | D36: 9.950808997 | E36: No Migration
A37: P1 Accabonac | B37: 2019 | C37: Phosphorus Sequestration | D37: 8.784800963 | E37: No Migration
A38: P1 Accabonac | B38: 2019 | C38: Marsh Land Recreation | D38: 5.086184057 | E38: No Migration
A39: P1 Accabonac | B39: 2019 | C39: Natural Areas for Underserved Communities | D39: 3.434585385 | E39: No Migration
A40: P1 Accabonac | B40: 2019 | C40: Nekton Habitat Proximate to Fishing Areas | D40: 7.833696487 | E40: No Migration
A41: P1 Accabonac | B41: 2019 | C41: Nekton Habitat (General) | D41: 14.67050614 | E41: No Migration
A42: P1 Accabonac | B42: 2019 | C42: Habitat connectivity / Frag | D42: 22.51906676 | E42: No Migration
A43: P1 Accabonac | B43: 2019 | C43: Bird Habitat (high marsh) | D43: 12.5111642 | E43: No Migration
A44: P1 Accabonac | B44: 2019 | C44: Wave Attenuation | D44: 12.18506295 | E44: No Migration
A45: P1 Accabonac | B45: 2019 | C45: Political/Cultural/Historic value | D45: 5.78630531 | E45: No Migration
A46: P1 Accabonac | B46: 2020 | C46: Carbon Sequestration | D46: 9.839933952 | E46: No Migration
A47: P1 Accabonac | B47: 2020 | C47: Nitrogen Sequestration | D47: 9.940846673 | E47: No Migration
A48: P1 Accabonac | B48: 2020 | C48: Phosphorus Sequestration | D48: 8.77490851 | E48: No Migration
A49: P1 Accabonac | B49: 2020 | C49: Marsh Land Recreation | D49: 5.079988882 | E49: No Migration
A50: P1 Accabonac | B50: 2020 | C50: Natural Areas for Underserved Communities | D50: 3.434790035 | E50: No Migration
A51: P1 Accabonac | B51: 2020 | C51: Nekton Habitat Proximate to Fishing Areas | D51: 7.834595141 | E51: No Migration
A52: P1 Accabonac | B52: 2020 | C52: Nekton Habitat (General) | D52: 14.67218908 | E52: No Migration
A53: P1 Accabonac | B53: 2020 | C53: Habitat connectivity / Frag | D53: 22.51785674 | E53: No Migration
A54: P1 Accabonac | B54: 2020 | C54: Bird Habitat (high marsh) | D54: 12.49009264 | E54: No Migration
A55: P1 Accabonac | B55: 2020 | C55: Wave Attenuation | D55: 12.18579011 | E55: No Migration
A56: P1 Accabonac | B56: 2020 | C56: Political/Cultural/Historic value | D56: 5.786650087 | E56: No Migration
A57: P1 Accabonac | B57: 2021 | C57: Carbon Sequestration | D57: 9.83113518 | E57: No Migration
A58: P1 Accabonac | B58: 2021 | C58: Nitrogen Sequestration | D58: 9.930884349 | E58: No Migration
A59: P1 Accabonac | B59: 2021 | C59: Phosphorus Sequestration | D59: 8.765016056 | E59: No Migration
A60: P1 Accabonac | B60: 2021 | C60: Marsh Land Recreation | D60: 5.073793707 | E60: No Migration
A61: P1 Accabonac | B61: 2021 | C61: Natural Areas for Underserved Communities | D61: 3.434994684 | E61: No Migration
A62: P1 Accabonac | B62: 2021 | C62: Nekton Habitat Proximate to Fishing Areas | D62: 7.835493794 | E62: No Migration
A63: P1 Accabonac | B63: 2021 | C63: Nekton Habitat (General) | D63: 14.67387203 | E63: No Migration
A64: P1 Accabonac | B64: 2021 | C64: Habitat connectivity / Frag | D64: 22.51664673 | E64: No Migration
A65: P1 Accabonac | B65: 2021 | C65: Bird Habitat (high marsh) | D65: 12.46902108 | E65: No Migration
A66: P1 Accabonac | B66: 2021 | C66: Wave Attenuation | D66: 12.18651727 | E66: No Migration
A67: P1 Accabonac | B67: 2021 | C67: Political/Cultural/Historic value | D67: 5.786994863 | E67: No Migration
A68: P1 Accabonac | B68: 2022 | C68: Carbon Sequestration | D68: 9.822336408 | E68: No Migration
A69: P1 Accabonac | B69: 2022 | C69: Nitrogen Sequestration | D69: 9.920922025 | E69: No Migration
A70: P1 Accabonac | B70: 2022 | C70: Phosphorus Sequestration | D70: 8.755123603 | E70: No Migration
A71: P1 Accabonac | B71: 2022 | C71: Marsh Land Recreation | D71: 5.067598531 | E71: No Migration
A72: P1 Accabonac | B72: 2022 | C72: Natural Areas for Underserved Communities | D72: 3.435199333 | E72: No Migration
A73: P1 Accabonac | B73: 2022 | C73: Nekton Habitat Proximate to Fishing Areas | D73: 7.836392448 | E73: No Migration
A74: P1 Accabonac | B74: 2022 | C74: Nekton Habitat (General) | D74: 14.67555498 | E74: No Migration
A75: P1 Accabonac | B75: 2022 | C75: Habitat connectivity / Frag | D75: 22.51543672 | E75: No Migration
A76: P1 Accabonac | B76: 2022 | C76: Bird Habitat (high marsh) | D76: 12.44794952 | E76: No Migration
A77: P1 Accabonac | B77: 2022 | C77: Wave Attenuation | D77: 12.18724442 | E77: No Migration
A78: P1 Accabonac | B78: 2022 | C78: Political/Cultural/Historic value | D78: 5.787339639 | E78: No Migration
A79: P1 Accabonac | B79: 2023 | C79: Carbon Sequestration | D79: 9.813537636 | E79: No Migration
A80: P1 Accabonac | B80: 2023 | C80: Nitrogen Sequestration | D80: 9.910959701 | E80: No Migration
A81: P1 Accabonac | B81: 2023 | C81: Phosphorus Sequestration | D81: 8.74523115 | E81: No Migration
A82: P1 Accabonac | B82: 2023 | C82: Marsh Land Recreation | D82: 5.061403356 | E82: No Migration
A83: P1 Accabonac | B83: 2023 | C83: Natural Areas for Underserved Communities | D83: 3.435403982 | E83: No Migration
A84: P1 Accabonac | B84: 2023 | C84: Nekton Habitat Proximate to Fishing Areas | D84: 7.837291101 | E84: No Migration
A85: P1 Accabonac | B85: 2023 | C85: Nekton Habitat (General) | D85: 14.67723793 | E85: No Migration
A86: P1 Accabonac | B86: 2023 | C86: Habitat connectivity / Frag | D86: 22.5142267 | E86: No Migration
A87: P1 Accabonac | B87: 2023 | C87: Bird Habitat (high marsh) | D87: 12.42687796 | E87: No Migration
A88: P1 Accabonac | B88: 2023 | C88: Wave Attenuation | D88: 12.18797158 | E88: No Migration
A89: P1 Accabonac | B89: 2023 | C89: Political/Cultural/Historic value | D89: 5.787684415 | E89: No Migration
A90: P1 Accabonac | B90: 2024 | C90: Carbon Sequestration | D90: 9.804738864 | E90: No Migration
A91: P1 Accabonac | B91: 2024 | C91: Nitrogen Sequestration | D91: 9.900997377 | E91: No Migration
A92: P1 Accabonac | B92: 2024 | C92: Phosphorus Sequestration | D92: 8.735338696 | E92: No Migration
A93: P1 Accabonac | B93: 2024 | C93: Marsh Land Recreation | D93: 5.055208181 | E93: No Migration
A94: P1 Accabonac | B94: 2024 | C94: Natural Areas for Underserved Communities | D94: 3.435608632 | E94: No Migration
A95: P1 Accabonac | B95: 2024 | C95: Nekton Habitat Proximate to Fishing Areas | D95: 7.838189754 | E95: No Migration
A96: P1 Accabonac | B96: 2024 | C96: Nekton Habitat (General) | D96: 14.67892087 | E96: No Migration
A97: P1 Accabonac | B97: 2024 | C97: Habitat connectivity / Frag | D97: 22.51301669 | E97: No Migration
A98: P1 Accabonac | B98: 2024 | C98: Bird Habitat (high marsh) | D98: 12.4058064 | E98: No Migration
A99: P1 Accabonac | B99: 2024 | C99: Wave Attenuation | D99: 12.18869874 | E99: No Migration
A100: P1 Accabonac | B100: 2024 | C100: Political/Cultural/Historic value | D100: 5.788029191 | E100: No Migration
A101: P1 Accabonac | B101: 2025 | C101: Carbon Sequestration | D101: 9.795940092 | E101: No Migration
A102: P1 Accabonac | B102: 2025 | C102: Nitrogen Sequestration | D102: 9.891035054 | E102: No Migration
A103: P1 Accabonac | B103: 2025 | C103: Phosphorus Sequestration | D103: 8.725446243 | E103: No Migration
A104: P1 Accabonac | B104: 2025 | C104: Marsh Land Recreation | D104: 5.049013006 | E104: No Migration
A105: P1 Accabonac | B105: 2025 | C105: Natural Areas for Underserved Communities | D105: 3.435813281 | E105: No Migration
A106: P1 Accabonac | B106: 2025 | C106: Nekton Habitat Proximate to Fishing Areas | D106: 7.839088408 | E106: No Migration
A107: P1 Accabonac | B107: 2025 | C107: Nekton Habitat (General) | D107: 14.68060382 | E107: No Migration
A108: P1 Accabonac | B108: 2025 | C108: Habitat connectivity / Frag | D108: 22.51180668 | E108: No Migration
A109: P1 Accabonac | B109: 2025 | C109: Bird Habitat (high marsh) | D109: 12.38473484 | E109: No Migration
A110: P1 Accabonac | B110: 2025 | C110: Wave Attenuation | D110: 12.1894259 | E110: No Migration
A111: P1 Accabonac | B111: 2025 | C111: Political/Cultural/Historic value | D111: 5.788373968 | E111: No Migration
A112: P1 Accabonac | B112: 2026 | C112: Carbon Sequestration | D112: 9.754140218 | E112: No Migration
A113: P1 Accabonac | B113: 2026 | C113: Nitrogen Sequestration | D113: 9.843983843 | E113: No Migration
A114: P1 Accabonac | B114: 2026 | C114: Phosphorus Sequestration | D114: 8.678976029 | E114: No Migration
A115: P1 Accabonac | B115: 2026 | C115: Marsh Land Recreation | D115: 5.020005537 | E115: No Migration
A116: P1 Accabonac | B116: 2026 | C116: Natural Areas for Underserved Communities | D116: 3.435941187 | E116: No Migration
A117: P1 Accabonac | B117: 2026 | C117: Nekton Habitat Proximate to Fishing Areas | D117: 7.843781041 | E117: No Migration
A118: P1 Accabonac | B118: 2026 | C118: Nekton Habitat (General) | D118: 14.68939192 | E118: No Migration
A119: P1 Accabonac | B119: 2026 | C119: Habitat connectivity / Frag | D119: 22.50327536 | E119: No Migration
A120: P1 Accabonac | B120: 2026 | C120: Bird Habitat (high marsh) | D120: 12.28717713 | E120: No Migration
A121: P1 Accabonac | B121: 2026 | C121: Wave Attenuation | D121: 12.18988109 | E121: No Migration
A122: P1 Accabonac | B122: 2026 | C122: Political/Cultural/Historic value | D122: 5.788589453 | E122: No Migration
A123: P1 Accabonac | B123: 2027 | C123: Carbon Sequestration | D123: 9.712340345 | E123: No Migration
A124: P1 Accabonac | B124: 2027 | C124: Nitrogen Sequestration | D124: 9.796932632 | E124: No Migration
A125: P1 Accabonac | B125: 2027 | C125: Phosphorus Sequestration | D125: 8.632505814 | E125: No Migration
A126: P1 Accabonac | B126: 2027 | C126: Marsh Land Recreation | D126: 4.990998068 | E126: No Migration
A127: P1 Accabonac | B127: 2027 | C127: Natural Areas for Underserved Communities | D127: 3.436069093 | E127: No Migration
A128: P1 Accabonac | B128: 2027 | C128: Nekton Habitat Proximate to Fishing Areas | D128: 7.848473675 | E128: No Migration
A129: P1 Accabonac | B129: 2027 | C129: Nekton Habitat (General) | D129: 14.69818002 | E129: No Migration
A130: P1 Accabonac | B130: 2027 | C130: Habitat connectivity / Frag | D130: 22.49474405 | E130: No Migration
A131: P1 Accabonac | B131: 2027 | C131: Bird Habitat (high marsh) | D131: 12.18961941 | E131: No Migration
A132: P1 Accabonac | B132: 2027 | C132: Wave Attenuation | D132: 12.19033628 | E132: No Migration
A133: P1 Accabonac | B133: 2027 | C133: Political/Cultural/Historic value | D133: 5.788804938 | E133: No Migration
A134: P1 Accabonac | B134: 2028 | C134: Carbon Sequestration | D134: 9.670540472 | E134: No Migration
A135: P1 Accabonac | B135: 2028 | C135: Nitrogen Sequestration | D135: 9.749881421 | E135: No Migration
A136: P1 Accabonac | B136: 2028 | C136: Phosphorus Sequestration | D136: 8.586035599 | E136: No Migration
A137: P1 Accabonac | B137: 2028 | C137: Marsh Land Recreation | D137: 4.9619906 | E137: No Migration
A138: P1 Accabonac | B138: 2028 | C138: Natural Areas for Underserved Communities | D138: 3.436196998 | E138: No Migration
A139: P1 Accabonac | B139: 2028 | C139: Nekton Habitat Proximate to Fishing Areas | D139: 7.853166308 | E139: No Migration
A140: P1 Accabonac | B140: 2028 | C140: Nekton Habitat (General) | D140: 14.70696812 | E140: No Migration
A141: P1 Accabonac | B141: 2028 | C141: Habitat connectivity / Frag | D141: 22.48621273 | E141: No Migration
A142: P1 Accabonac | B142: 2028 | C142: Bird Habitat (high marsh) | D142: 12.0920617 | E142: No Migration
A143: P1 Accabonac | B143: 2028 | C143: Wave Attenuation | D143: 12.19079147 | E143: No Migration
A144: P1 Accabonac | B144: 2028 | C144: Political/Cultural/Historic value | D144: 5.789020423 | E144: No Migration
A145: P1 Accabonac | B145: 2029 | C145: Carbon Sequestration | D145: 9.628740599 | E145: No Migration
A146: P1 Accabonac | B146: 2029 | C146: Nitrogen Sequestration | D146: 9.702830211 | E146: No Migration
A147: P1 Accabonac | B147: 2029 | C147: Phosphorus Sequestration | D147: 8.539565385 | E147: No Migration
A148: P1 Accabonac | B148: 2029 | C148: Marsh Land Recreation | D148: 4.932983131 | E148: No Migration
A149: P1 Accabonac | B149: 2029 | C149: Natural Areas for Underserved Communities | D149: 3.436324904 | E149: No Migration
A150: P1 Accabonac | B150: 2029 | C150: Nekton Habitat Proximate to Fishing Areas | D150: 7.857858942 | E150: No Migration
A151: P1 Accabonac | B151: 2029 | C151: Nekton Habitat (General) | D151: 14.71575622 | E151: No Migration
A152: P1 Accabonac | B152: 2029 | C152: Habitat connectivity / Frag | D152: 22.47768142 | E152: No Migration
A153: P1 Accabonac | B153: 2029 | C153: Bird Habitat (high marsh) | D153: 11.99450399 | E153: No Migration
A154: P1 Accabonac | B154: 2029 | C154: Wave Attenuation | D154: 12.19124666 | E154: No Migration
A155: P1 Accabonac | B155: 2029 | C155: Political/Cultural/Historic value | D155: 5.789235908 | E155: No Migration
A156: P1 Accabonac | B156: 2030 | C156: Carbon Sequestration | D156: 9.586940726 | E156: No Migration
A157: P1 Accabonac | B157: 2030 | C157: Nitrogen Sequestration | D157: 9.655779 | E157: No Migration
A158: P1 Accabonac | B158: 2030 | C158: Phosphorus Sequestration | D158: 8.49309517 | E158: No Migration
A159: P1 Accabonac | B159: 2030 | C159: Marsh Land Recreation | D159: 4.903975662 | E159: No Migration
A160: P1 Accabonac | B160: 2030 | C160: Natural Areas for Underserved Communities | D160: 3.43645281 | E160: No Migration
A161: P1 Accabonac | B161: 2030 | C161: Nekton Habitat Proximate to Fishing Areas | D161: 7.862551575 | E161: No Migration
A162: P1 Accabonac | B162: 2030 | C162: Nekton Habitat (General) | D162: 14.72454432 | E162: No Migration
A163: P1 Accabonac | B163: 2030 | C163: Habitat connectivity / Frag | D163: 22.4691501 | E163: No Migration
A164: P1 Accabonac | B164: 2030 | C164: Bird Habitat (high marsh) | D164: 11.89694627 | E164: No Migration
A165: P1 Accabonac | B165: 2030 | C165: Wave Attenuation | D165: 12.19170185 | E165: No Migration
A166: P1 Accabonac | B166: 2030 | C166: Political/Cultural/Historic value | D166: 5.789451393 | E166: No Migration
A167: P1 Accabonac | B167: 2031 | C167: Carbon Sequestration | D167: 9.545140853 | E167: No Migration
A168: P1 Accabonac | B168: 2031 | C168: Nitrogen Sequestration | D168: 9.608727789 | E168: No Migration
A169: P1 Accabonac | B169: 2031 | C169: Phosphorus Sequestration | D169: 8.446624956 | E169: No Migration
A170: P1 Accabonac | B170: 2031 | C170: Marsh Land Recreation | D170: 4.874968194 | E170: No Migration
A171: P1 Accabonac | B171: 2031 | C171: Natural Areas for Underserved Communities | D171: 3.436580716 | E171: No Migration
A172: P1 Accabonac | B172: 2031 | C172: Nekton Habitat Proximate to Fishing Areas | D172: 7.867244209 | E172: No Migration
A173: P1 Accabonac | B173: 2031 | C173: Nekton Habitat (General) | D173: 14.73333242 | E173: No Migration
A174: P1 Accabonac | B174: 2031 | C174: Habitat connectivity / Frag | D174: 22.46061878 | E174: No Migration
A175: P1 Accabonac | B175: 2031 | C175: Bird Habitat (high marsh) | D175: 11.79938856 | E175: No Migration
A176: P1 Accabonac | B176: 2031 | C176: Wave Attenuation | D176: 12.19215704 | E176: No Migration
A177: P1 Accabonac | B177: 2031 | C177: Political/Cultural/Historic value | D177: 5.789666878 | E177: No Migration
A178: P1 Accabonac | B178: 2032 | C178: Carbon Sequestration | D178: 9.503340979 | E178: No Migration
A179: P1 Accabonac | B179: 2032 | C179: Nitrogen Sequestration | D179: 9.561676578 | E179: No Migration
A180: P1 Accabonac | B180: 2032 | C180: Phosphorus Sequestration | D180: 8.400154741 | E180: No Migration
A181: P1 Accabonac | B181: 2032 | C181: Marsh Land Recreation | D181: 4.845960725 | E181: No Migration
A182: P1 Accabonac | B182: 2032 | C182: Natural Areas for Underserved Communities | D182: 3.436708622 | E182: No Migration
A183: P1 Accabonac | B183: 2032 | C183: Nekton Habitat Proximate to Fishing Areas | D183: 7.871936842 | E183: No Migration
A184: P1 Accabonac | B184: 2032 | C184: Nekton Habitat (General) | D184: 14.74212052 | E184: No Migration
A185: P1 Accabonac | B185: 2032 | C185: Habitat connectivity / Frag | D185: 22.45208747 | E185: No Migration
A186: P1 Accabonac | B186: 2032 | C186: Bird Habitat (high marsh) | D186: 11.70183084 | E186: No Migration
A187: P1 Accabonac | B187: 2032 | C187: Wave Attenuation | D187: 12.19261223 | E187: No Migration
A188: P1 Accabonac | B188: 2032 | C188: Political/Cultural/Historic value | D188: 5.789882363 | E188: No Migration
A189: P1 Accabonac | B189: 2033 | C189: Carbon Sequestration | D189: 9.461541106 | E189: No Migration
A190: P1 Accabonac | B190: 2033 | C190: Nitrogen Sequestration | D190: 9.514625367 | E190: No Migration
A191: P1 Accabonac | B191: 2033 | C191: Phosphorus Sequestration | D191: 8.353684526 | E191: No Migration
A192: P1 Accabonac | B192: 2033 | C192: Marsh Land Recreation | D192: 4.816953256 | E192: No Migration
A193: P1 Accabonac | B193: 2033 | C193: Natural Areas for Underserved Communities | D193: 3.436836527 | E193: No Migration
A194: P1 Accabonac | B194: 2033 | C194: Nekton Habitat Proximate to Fishing Areas | D194: 7.876629476 | E194: No Migration
A195: P1 Accabonac | B195: 2033 | C195: Nekton Habitat (General) | D195: 14.75090862 | E195: No Migration
A196: P1 Accabonac | B196: 2033 | C196: Habitat connectivity / Frag | D196: 22.44355615 | E196: No Migration
A197: P1 Accabonac | B197: 2033 | C197: Bird Habitat (high marsh) | D197: 11.60427313 | E197: No Migration
A198: P1 Accabonac | B198: 2033 | C198: Wave Attenuation | D198: 12.19306742 | E198: No Migration
A199: P1 Accabonac | B199: 2033 | C199: Political/Cultural/Historic value | D199: 5.790097849 | E199: No Migration
A200: P1 Accabonac | B200: 2034 | C200: Carbon Sequestration | D200: 9.419741233 | E200: No Migration
... 4300 more rows

Sheet CatSummary
A1: Site | B1: Year | C1: LandCover | D1: Value | E1: Strategy
A2: P1 Accabonac | B2: 2016 | C2: Aggregated Non Tidal | D2: 645.8521609 | E2: No Migration
A3: P1 Accabonac | B3: 2016 | C3: Aggregated Freshwater Non-Tidal | D3: 2.959724848 | E3: No Migration
A4: P1 Accabonac | B4: 2016 | C4: Aggregated Open Water | D4: 331.8389354 | E4: No Migration
A5: P1 Accabonac | B5: 2016 | C5: Aggregated Low Tidal | D5: 25.0653922 | E5: No Migration
A6: P1 Accabonac | B6: 2016 | C6: Aggregated Saltmarsh | D6: 22.9758229 | E6: No Migration
A7: P1 Accabonac | B7: 2016 | C7: Aggregated Transitional | D7: 258.5448495 | E7: No Migration
A8: P1 Accabonac | B8: 2016 | C8: Aggregated Freshwater Tidal | D8: 20.54779388 | E8: No Migration
A9: P1 Accabonac | B9: 2017 | C9: Aggregated Non Tidal | D9: 645.8521609 | E9: No Migration
A10: P1 Accabonac | B10: 2017 | C10: Aggregated Freshwater Non-Tidal | D10: 2.959214164 | E10: No Migration
A11: P1 Accabonac | B11: 2017 | C11: Aggregated Open Water | D11: 331.8591815 | E11: No Migration
A12: P1 Accabonac | B12: 2017 | C12: Aggregated Low Tidal | D12: 25.06918938 | E12: No Migration
A13: P1 Accabonac | B13: 2017 | C13: Aggregated Saltmarsh | D13: 23.42588347 | E13: No Migration
A14: P1 Accabonac | B14: 2017 | C14: Aggregated Transitional | D14: 258.1115921 | E14: No Migration
A15: P1 Accabonac | B15: 2017 | C15: Aggregated Freshwater Tidal | D15: 20.50745811 | E15: No Migration
A16: P1 Accabonac | B16: 2018 | C16: Aggregated Non Tidal | D16: 645.8521609 | E16: No Migration
A17: P1 Accabonac | B17: 2018 | C17: Aggregated Freshwater Non-Tidal | D17: 2.958703481 | E17: No Migration
A18: P1 Accabonac | B18: 2018 | C18: Aggregated Open Water | D18: 331.8794277 | E18: No Migration
A19: P1 Accabonac | B19: 2018 | C19: Aggregated Low Tidal | D19: 25.07298656 | E19: No Migration
A20: P1 Accabonac | B20: 2018 | C20: Aggregated Saltmarsh | D20: 23.87594405 | E20: No Migration
A21: P1 Accabonac | B21: 2018 | C21: Aggregated Transitional | D21: 257.6783347 | E21: No Migration
A22: P1 Accabonac | B22: 2018 | C22: Aggregated Freshwater Tidal | D22: 20.46712233 | E22: No Migration
A23: P1 Accabonac | B23: 2019 | C23: Aggregated Non Tidal | D23: 645.8521609 | E23: No Migration
A24: P1 Accabonac | B24: 2019 | C24: Aggregated Freshwater Non-Tidal | D24: 2.958192797 | E24: No Migration
A25: P1 Accabonac | B25: 2019 | C25: Aggregated Open Water | D25: 331.8996738 | E25: No Migration
A26: P1 Accabonac | B26: 2019 | C26: Aggregated Low Tidal | D26: 25.07678374 | E26: No Migration
A27: P1 Accabonac | B27: 2019 | C27: Aggregated Saltmarsh | D27: 24.32600462 | E27: No Migration
A28: P1 Accabonac | B28: 2019 | C28: Aggregated Transitional | D28: 257.2450772 | E28: No Migration
A29: P1 Accabonac | B29: 2019 | C29: Aggregated Freshwater Tidal | D29: 20.42678656 | E29: No Migration
A30: P1 Accabonac | B30: 2020 | C30: Aggregated Non Tidal | D30: 645.8521609 | E30: No Migration
A31: P1 Accabonac | B31: 2020 | C31: Aggregated Freshwater Non-Tidal | D31: 2.957682113 | E31: No Migration
A32: P1 Accabonac | B32: 2020 | C32: Aggregated Open Water | D32: 331.9199199 | E32: No Migration
A33: P1 Accabonac | B33: 2020 | C33: Aggregated Low Tidal | D33: 25.08058092 | E33: No Migration
A34: P1 Accabonac | B34: 2020 | C34: Aggregated Saltmarsh | D34: 24.77606519 | E34: No Migration
A35: P1 Accabonac | B35: 2020 | C35: Aggregated Transitional | D35: 256.8118198 | E35: No Migration
A36: P1 Accabonac | B36: 2020 | C36: Aggregated Freshwater Tidal | D36: 20.38645079 | E36: No Migration
A37: P1 Accabonac | B37: 2021 | C37: Aggregated Non Tidal | D37: 645.8521609 | E37: No Migration
A38: P1 Accabonac | B38: 2021 | C38: Aggregated Freshwater Non-Tidal | D38: 2.95717143 | E38: No Migration
A39: P1 Accabonac | B39: 2021 | C39: Aggregated Open Water | D39: 331.9401661 | E39: No Migration
A40: P1 Accabonac | B40: 2021 | C40: Aggregated Low Tidal | D40: 25.0843781 | E40: No Migration
A41: P1 Accabonac | B41: 2021 | C41: Aggregated Saltmarsh | D41: 25.22612577 | E41: No Migration
A42: P1 Accabonac | B42: 2021 | C42: Aggregated Transitional | D42: 256.3785624 | E42: No Migration
A43: P1 Accabonac | B43: 2021 | C43: Aggregated Freshwater Tidal | D43: 20.34611502 | E43: No Migration
A44: P1 Accabonac | B44: 2022 | C44: Aggregated Non Tidal | D44: 645.8521609 | E44: No Migration
A45: P1 Accabonac | B45: 2022 | C45: Aggregated Freshwater Non-Tidal | D45: 2.956660746 | E45: No Migration
A46: P1 Accabonac | B46: 2022 | C46: Aggregated Open Water | D46: 331.9604122 | E46: No Migration
A47: P1 Accabonac | B47: 2022 | C47: Aggregated Low Tidal | D47: 25.08817528 | E47: No Migration
A48: P1 Accabonac | B48: 2022 | C48: Aggregated Saltmarsh | D48: 25.67618634 | E48: No Migration
A49: P1 Accabonac | B49: 2022 | C49: Aggregated Transitional | D49: 255.9453049 | E49: No Migration
A50: P1 Accabonac | B50: 2022 | C50: Aggregated Freshwater Tidal | D50: 20.30577924 | E50: No Migration
A51: P1 Accabonac | B51: 2023 | C51: Aggregated Non Tidal | D51: 645.8521609 | E51: No Migration
A52: P1 Accabonac | B52: 2023 | C52: Aggregated Freshwater Non-Tidal | D52: 2.956150062 | E52: No Migration
A53: P1 Accabonac | B53: 2023 | C53: Aggregated Open Water | D53: 331.9806583 | E53: No Migration
A54: P1 Accabonac | B54: 2023 | C54: Aggregated Low Tidal | D54: 25.09197246 | E54: No Migration
A55: P1 Accabonac | B55: 2023 | C55: Aggregated Saltmarsh | D55: 26.12624691 | E55: No Migration
A56: P1 Accabonac | B56: 2023 | C56: Aggregated Transitional | D56: 255.5120475 | E56: No Migration
A57: P1 Accabonac | B57: 2023 | C57: Aggregated Freshwater Tidal | D57: 20.26544347 | E57: No Migration
A58: P1 Accabonac | B58: 2024 | C58: Aggregated Non Tidal | D58: 645.8521609 | E58: No Migration
A59: P1 Accabonac | B59: 2024 | C59: Aggregated Freshwater Non-Tidal | D59: 2.955639379 | E59: No Migration
A60: P1 Accabonac | B60: 2024 | C60: Aggregated Open Water | D60: 332.0009045 | E60: No Migration
A61: P1 Accabonac | B61: 2024 | C61: Aggregated Low Tidal | D61: 25.09576964 | E61: No Migration
A62: P1 Accabonac | B62: 2024 | C62: Aggregated Saltmarsh | D62: 26.57630749 | E62: No Migration
A63: P1 Accabonac | B63: 2024 | C63: Aggregated Transitional | D63: 255.0787901 | E63: No Migration
A64: P1 Accabonac | B64: 2024 | C64: Aggregated Freshwater Tidal | D64: 20.2251077 | E64: No Migration
A65: P1 Accabonac | B65: 2025 | C65: Aggregated Non Tidal | D65: 645.8521609 | E65: No Migration
A66: P1 Accabonac | B66: 2025 | C66: Aggregated Freshwater Non-Tidal | D66: 2.955128695 | E66: No Migration
A67: P1 Accabonac | B67: 2025 | C67: Aggregated Open Water | D67: 332.0211506 | E67: No Migration
A68: P1 Accabonac | B68: 2025 | C68: Aggregated Low Tidal | D68: 25.09956682 | E68: No Migration
A69: P1 Accabonac | B69: 2025 | C69: Aggregated Saltmarsh | D69: 27.02636806 | E69: No Migration
A70: P1 Accabonac | B70: 2025 | C70: Aggregated Transitional | D70: 254.6455326 | E70: No Migration
A71: P1 Accabonac | B71: 2025 | C71: Aggregated Freshwater Tidal | D71: 20.18477192 | E71: No Migration
A72: P1 Accabonac | B72: 2026 | C72: Aggregated Non Tidal | D72: 645.8521609 | E72: No Migration
A73: P1 Accabonac | B73: 2026 | C73: Aggregated Freshwater Non-Tidal | D73: 2.949873595 | E73: No Migration
A74: P1 Accabonac | B74: 2026 | C74: Aggregated Open Water | D74: 332.0905707 | E74: No Migration
A75: P1 Accabonac | B75: 2026 | C75: Aggregated Low Tidal | D75: 25.19010609 | E75: No Migration
A76: P1 Accabonac | B76: 2026 | C76: Aggregated Saltmarsh | D76: 29.04279428 | E76: No Migration
A77: P1 Accabonac | B77: 2026 | C77: Aggregated Transitional | D77: 252.6396248 | E77: No Migration
A78: P1 Accabonac | B78: 2026 | C78: Aggregated Freshwater Tidal | D78: 20.01954929 | E78: No Migration
A79: P1 Accabonac | B79: 2027 | C79: Aggregated Non Tidal | D79: 645.8521609 | E79: No Migration
A80: P1 Accabonac | B80: 2027 | C80: Aggregated Freshwater Non-Tidal | D80: 2.944618496 | E80: No Migration
A81: P1 Accabonac | B81: 2027 | C81: Aggregated Open Water | D81: 332.1599907 | E81: No Migration
A82: P1 Accabonac | B82: 2027 | C82: Aggregated Low Tidal | D82: 25.28064537 | E82: No Migration
A83: P1 Accabonac | B83: 2027 | C83: Aggregated Saltmarsh | D83: 31.0592205 | E83: No Migration
A84: P1 Accabonac | B84: 2027 | C84: Aggregated Transitional | D84: 250.6337171 | E84: No Migration
A85: P1 Accabonac | B85: 2027 | C85: Aggregated Freshwater Tidal | D85: 19.85432665 | E85: No Migration
A86: P1 Accabonac | B86: 2028 | C86: Aggregated Non Tidal | D86: 645.8521609 | E86: No Migration
A87: P1 Accabonac | B87: 2028 | C87: Aggregated Freshwater Non-Tidal | D87: 2.939363396 | E87: No Migration
A88: P1 Accabonac | B88: 2028 | C88: Aggregated Open Water | D88: 332.2294107 | E88: No Migration
A89: P1 Accabonac | B89: 2028 | C89: Aggregated Low Tidal | D89: 25.37118464 | E89: No Migration
A90: P1 Accabonac | B90: 2028 | C90: Aggregated Saltmarsh | D90: 33.07564672 | E90: No Migration
A91: P1 Accabonac | B91: 2028 | C91: Aggregated Transitional | D91: 248.6278093 | E91: No Migration
A92: P1 Accabonac | B92: 2028 | C92: Aggregated Freshwater Tidal | D92: 19.68910401 | E92: No Migration
A93: P1 Accabonac | B93: 2029 | C93: Aggregated Non Tidal | D93: 645.8521609 | E93: No Migration
A94: P1 Accabonac | B94: 2029 | C94: Aggregated Freshwater Non-Tidal | D94: 2.934108296 | E94: No Migration
A95: P1 Accabonac | B95: 2029 | C95: Aggregated Open Water | D95: 332.2988307 | E95: No Migration
A96: P1 Accabonac | B96: 2029 | C96: Aggregated Low Tidal | D96: 25.46172391 | E96: No Migration
A97: P1 Accabonac | B97: 2029 | C97: Aggregated Saltmarsh | D97: 35.09207294 | E97: No Migration
A98: P1 Accabonac | B98: 2029 | C98: Aggregated Transitional | D98: 246.6219015 | E98: No Migration
A99: P1 Accabonac | B99: 2029 | C99: Aggregated Freshwater Tidal | D99: 19.52388137 | E99: No Migration
A100: P1 Accabonac | B100: 2030 | C100: Aggregated Non Tidal | D100: 645.8521609 | E100: No Migration
A101: P1 Accabonac | B101: 2030 | C101: Aggregated Freshwater Non-Tidal | D101: 2.928853197 | E101: No Migration
A102: P1 Accabonac | B102: 2030 | C102: Aggregated Open Water | D102: 332.3682508 | E102: No Migration
A103: P1 Accabonac | B103: 2030 | C103: Aggregated Low Tidal | D103: 25.55226318 | E103: No Migration
A104: P1 Accabonac | B104: 2030 | C104: Aggregated Saltmarsh | D104: 37.10849916 | E104: No Migration
A105: P1 Accabonac | B105: 2030 | C105: Aggregated Transitional | D105: 244.6159937 | E105: No Migration
A106: P1 Accabonac | B106: 2030 | C106: Aggregated Freshwater Tidal | D106: 19.35865873 | E106: No Migration
A107: P1 Accabonac | B107: 2031 | C107: Aggregated Non Tidal | D107: 645.8521609 | E107: No Migration
A108: P1 Accabonac | B108: 2031 | C108: Aggregated Freshwater Non-Tidal | D108: 2.923598097 | E108: No Migration
A109: P1 Accabonac | B109: 2031 | C109: Aggregated Open Water | D109: 332.4376708 | E109: No Migration
A110: P1 Accabonac | B110: 2031 | C110: Aggregated Low Tidal | D110: 25.64280245 | E110: No Migration
A111: P1 Accabonac | B111: 2031 | C111: Aggregated Saltmarsh | D111: 39.12492539 | E111: No Migration
A112: P1 Accabonac | B112: 2031 | C112: Aggregated Transitional | D112: 242.6100859 | E112: No Migration
A113: P1 Accabonac | B113: 2031 | C113: Aggregated Freshwater Tidal | D113: 19.19343609 | E113: No Migration
A114: P1 Accabonac | B114: 2032 | C114: Aggregated Non Tidal | D114: 645.8521609 | E114: No Migration
A115: P1 Accabonac | B115: 2032 | C115: Aggregated Freshwater Non-Tidal | D115: 2.918342997 | E115: No Migration
A116: P1 Accabonac | B116: 2032 | C116: Aggregated Open Water | D116: 332.5070908 | E116: No Migration
A117: P1 Accabonac | B117: 2032 | C117: Aggregated Low Tidal | D117: 25.73334173 | E117: No Migration
A118: P1 Accabonac | B118: 2032 | C118: Aggregated Saltmarsh | D118: 41.14135161 | E118: No Migration
A119: P1 Accabonac | B119: 2032 | C119: Aggregated Transitional | D119: 240.6041781 | E119: No Migration
A120: P1 Accabonac | B120: 2032 | C120: Aggregated Freshwater Tidal | D120: 19.02821345 | E120: No Migration
A121: P1 Accabonac | B121: 2033 | C121: Aggregated Non Tidal | D121: 645.8521609 | E121: No Migration
A122: P1 Accabonac | B122: 2033 | C122: Aggregated Freshwater Non-Tidal | D122: 2.913087898 | E122: No Migration
A123: P1 Accabonac | B123: 2033 | C123: Aggregated Open Water | D123: 332.5765109 | E123: No Migration
A124: P1 Accabonac | B124: 2033 | C124: Aggregated Low Tidal | D124: 25.823881 | E124: No Migration
A125: P1 Accabonac | B125: 2033 | C125: Aggregated Saltmarsh | D125: 43.15777783 | E125: No Migration
A126: P1 Accabonac | B126: 2033 | C126: Aggregated Transitional | D126: 238.5982703 | E126: No Migration
A127: P1 Accabonac | B127: 2033 | C127: Aggregated Freshwater Tidal | D127: 18.86299081 | E127: No Migration
A128: P1 Accabonac | B128: 2034 | C128: Aggregated Non Tidal | D128: 645.8521609 | E128: No Migration
A129: P1 Accabonac | B129: 2034 | C129: Aggregated Freshwater Non-Tidal | D129: 2.907832798 | E129: No Migration
A130: P1 Accabonac | B130: 2034 | C130: Aggregated Open Water | D130: 332.6459309 | E130: No Migration
A131: P1 Accabonac | B131: 2034 | C131: Aggregated Low Tidal | D131: 25.91442027 | E131: No Migration
A132: P1 Accabonac | B132: 2034 | C132: Aggregated Saltmarsh | D132: 45.17420405 | E132: No Migration
A133: P1 Accabonac | B133: 2034 | C133: Aggregated Transitional | D133: 236.5923626 | E133: No Migration
A134: P1 Accabonac | B134: 2034 | C134: Aggregated Freshwater Tidal | D134: 18.69776817 | E134: No Migration
A135: P1 Accabonac | B135: 2035 | C135: Aggregated Non Tidal | D135: 645.8521609 | E135: No Migration
A136: P1 Accabonac | B136: 2035 | C136: Aggregated Freshwater Non-Tidal | D136: 2.902577698 | E136: No Migration
A137: P1 Accabonac | B137: 2035 | C137: Aggregated Open Water | D137: 332.7153509 | E137: No Migration
A138: P1 Accabonac | B138: 2035 | C138: Aggregated Low Tidal | D138: 26.00495954 | E138: No Migration
A139: P1 Accabonac | B139: 2035 | C139: Aggregated Saltmarsh | D139: 47.19063027 | E139: No Migration
A140: P1 Accabonac | B140: 2035 | C140: Aggregated Transitional | D140: 234.5864548 | E140: No Migration
A141: P1 Accabonac | B141: 2035 | C141: Aggregated Freshwater Tidal | D141: 18.53254553 | E141: No Migration
A142: P1 Accabonac | B142: 2036 | C142: Aggregated Non Tidal | D142: 645.8521609 | E142: No Migration
A143: P1 Accabonac | B143: 2036 | C143: Aggregated Freshwater Non-Tidal | D143: 2.897322599 | E143: No Migration
A144: P1 Accabonac | B144: 2036 | C144: Aggregated Open Water | D144: 332.784771 | E144: No Migration
A145: P1 Accabonac | B145: 2036 | C145: Aggregated Low Tidal | D145: 26.09549881 | E145: No Migration
A146: P1 Accabonac | B146: 2036 | C146: Aggregated Saltmarsh | D146: 49.20705649 | E146: No Migration
A147: P1 Accabonac | B147: 2036 | C147: Aggregated Transitional | D147: 232.580547 | E147: No Migration
A148: P1 Accabonac | B148: 2036 | C148: Aggregated Freshwater Tidal | D148: 18.36732289 | E148: No Migration
A149: P1 Accabonac | B149: 2037 | C149: Aggregated Non Tidal | D149: 645.8521609 | E149: No Migration
A150: P1 Accabonac | B150: 2037 | C150: Aggregated Freshwater Non-Tidal | D150: 2.892067499 | E150: No Migration
A151: P1 Accabonac | B151: 2037 | C151: Aggregated Open Water | D151: 332.854191 | E151: No Migration
A152: P1 Accabonac | B152: 2037 | C152: Aggregated Low Tidal | D152: 26.18603809 | E152: No Migration
A153: P1 Accabonac | B153: 2037 | C153: Aggregated Saltmarsh | D153: 51.22348271 | E153: No Migration
A154: P1 Accabonac | B154: 2037 | C154: Aggregated Transitional | D154: 230.5746392 | E154: No Migration
A155: P1 Accabonac | B155: 2037 | C155: Aggregated Freshwater Tidal | D155: 18.20210025 | E155: No Migration
A156: P1 Accabonac | B156: 2038 | C156: Aggregated Non Tidal | D156: 645.8521609 | E156: No Migration
A157: P1 Accabonac | B157: 2038 | C157: Aggregated Freshwater Non-Tidal | D157: 2.886812399 | E157: No Migration
A158: P1 Accabonac | B158: 2038 | C158: Aggregated Open Water | D158: 332.923611 | E158: No Migration
A159: P1 Accabonac | B159: 2038 | C159: Aggregated Low Tidal | D159: 26.27657736 | E159: No Migration
A160: P1 Accabonac | B160: 2038 | C160: Aggregated Saltmarsh | D160: 53.23990893 | E160: No Migration
A161: P1 Accabonac | B161: 2038 | C161: Aggregated Transitional | D161: 228.5687314 | E161: No Migration
A162: P1 Accabonac | B162: 2038 | C162: Aggregated Freshwater Tidal | D162: 18.03687761 | E162: No Migration
A163: P1 Accabonac | B163: 2039 | C163: Aggregated Non Tidal | D163: 645.8521609 | E163: No Migration
A164: P1 Accabonac | B164: 2039 | C164: Aggregated Freshwater Non-Tidal | D164: 2.8815573 | E164: No Migration
A165: P1 Accabonac | B165: 2039 | C165: Aggregated Open Water | D165: 332.9930311 | E165: No Migration
A166: P1 Accabonac | B166: 2039 | C166: Aggregated Low Tidal | D166: 26.36711663 | E166: No Migration
A167: P1 Accabonac | B167: 2039 | C167: Aggregated Saltmarsh | D167: 55.25633515 | E167: No Migration
A168: P1 Accabonac | B168: 2039 | C168: Aggregated Transitional | D168: 226.5628236 | E168: No Migration
A169: P1 Accabonac | B169: 2039 | C169: Aggregated Freshwater Tidal | D169: 17.87165497 | E169: No Migration
A170: P1 Accabonac | B170: 2040 | C170: Aggregated Non Tidal | D170: 645.8521609 | E170: No Migration
A171: P1 Accabonac | B171: 2040 | C171: Aggregated Freshwater Non-Tidal | D171: 2.8763022 | E171: No Migration
A172: P1 Accabonac | B172: 2040 | C172: Aggregated Open Water | D172: 333.0624511 | E172: No Migration
A173: P1 Accabonac | B173: 2040 | C173: Aggregated Low Tidal | D173: 26.4576559 | E173: No Migration
A174: P1 Accabonac | B174: 2040 | C174: Aggregated Saltmarsh | D174: 57.27276138 | E174: No Migration
A175: P1 Accabonac | B175: 2040 | C175: Aggregated Transitional | D175: 224.5569159 | E175: No Migration
A176: P1 Accabonac | B176: 2040 | C176: Aggregated Freshwater Tidal | D176: 17.70643233 | E176: No Migration
A177: P1 Accabonac | B177: 2041 | C177: Aggregated Non Tidal | D177: 645.8521609 | E177: No Migration
A178: P1 Accabonac | B178: 2041 | C178: Aggregated Freshwater Non-Tidal | D178: 2.856929168 | E178: No Migration
A179: P1 Accabonac | B179: 2041 | C179: Aggregated Open Water | D179: 333.3512015 | E179: No Migration
A180: P1 Accabonac | B180: 2041 | C180: Aggregated Low Tidal | D180: 27.15320706 | E180: No Migration
A181: P1 Accabonac | B181: 2041 | C181: Aggregated Saltmarsh | D181: 59.87373095 | E181: No Migration
A182: P1 Accabonac | B182: 2041 | C182: Aggregated Transitional | D182: 221.2491519 | E182: No Migration
A183: P1 Accabonac | B183: 2041 | C183: Aggregated Freshwater Tidal | D183: 17.44829821 | E183: No Migration
A184: P1 Accabonac | B184: 2042 | C184: Aggregated Non Tidal | D184: 645.8521609 | E184: No Migration
A185: P1 Accabonac | B185: 2042 | C185: Aggregated Freshwater Non-Tidal | D185: 2.837556136 | E185: No Migration
A186: P1 Accabonac | B186: 2042 | C186: Aggregated Open Water | D186: 333.6399519 | E186: No Migration
A187: P1 Accabonac | B187: 2042 | C187: Aggregated Low Tidal | D187: 27.84875821 | E187: No Migration
A188: P1 Accabonac | B188: 2042 | C188: Aggregated Saltmarsh | D188: 62.47470052 | E188: No Migration
A189: P1 Accabonac | B189: 2042 | C189: Aggregated Transitional | D189: 217.9413878 | E189: No Migration
A190: P1 Accabonac | B190: 2042 | C190: Aggregated Freshwater Tidal | D190: 17.19016409 | E190: No Migration
A191: P1 Accabonac | B191: 2043 | C191: Aggregated Non Tidal | D191: 645.8521609 | E191: No Migration
A192: P1 Accabonac | B192: 2043 | C192: Aggregated Freshwater Non-Tidal | D192: 2.818183104 | E192: No Migration
A193: P1 Accabonac | B193: 2043 | C193: Aggregated Open Water | D193: 333.9287024 | E193: No Migration
A194: P1 Accabonac | B194: 2043 | C194: Aggregated Low Tidal | D194: 28.54430936 | E194: No Migration
A195: P1 Accabonac | B195: 2043 | C195: Aggregated Saltmarsh | D195: 65.07567009 | E195: No Migration
A196: P1 Accabonac | B196: 2043 | C196: Aggregated Transitional | D196: 214.6336238 | E196: No Migration
A197: P1 Accabonac | B197: 2043 | C197: Aggregated Freshwater Tidal | D197: 16.93202997 | E197: No Migration
A198: P1 Accabonac | B198: 2044 | C198: Aggregated Non Tidal | D198: 645.8521609 | E198: No Migration
A199: P1 Accabonac | B199: 2044 | C199: Aggregated Freshwater Non-Tidal | D199: 2.798810072 | E199: No Migration
A200: P1 Accabonac | B200: 2044 | C200: Aggregated Open Water | D200: 334.2174528 | E200: No Migration
... 4300 more rows

Sheet Land Purchase Calculations
D1: DATA IN PIVOT TABLE IN HA
T2: Rough Assumption 500,000 per acre purchase, 1.5 million developed for purchase and restoration
D4: Values
A5: Site Desc. | B5: Strategy | C5: Date | D5: Average of Aggregated Saltmarsh | E5: Average of Aggregated Transitional | G5: Site | H5: Scenario | I5: Total Marsh | L5: Sum of Total Marsh | M5: Column Labels | V5: rough estimate cost in millions
A6: L1 Wading | B6: Migr. Dev. | C6: 2100 | D6: 58.4481 | E6: 15.45825 | G6: L1 Wading | H6: =B6 -> Migr. Dev. | I6: =SUM(D6:E6) -> 73.90635 | L6: Row Labels | M6: Migr. Dev. | N6: Migr. Undev. | O6: No Migration | P6: Thin Layer | R6: Site | S6: HA Undev Migr | T6: HA dev Migr | V6: Migr. Undev | W6: Migr. Dev
B7: Migr. Undev. | C7: 2100 | D7: 56.7713 | E7: 15.0163 | G7: =IF(ISBLANK(A7),G6,A7) -> L1 Wading | H7: =B7 -> Migr. Undev. | I7: =SUM(D7:E7) -> 71.7876 | L7: L1 Wading | M7: 66.6191 | N7: 64.5586 | O7: 59.033 | P7: 59.623 | R7: =L7 -> L1 Wading | S7: =N7-7 -> 57.5586 | T7: =M7-N7 -> 2.0605 | V7: =S7*2.47*0.5 -> 71.084871 | W7: =V7+T7*1.5 -> 74.175621
B8: No Migration | C8: 2100 | D8: 51.14265 | E8: 12.86575 | G8: =IF(ISBLANK(A8),G7,A8) -> L1 Wading | H8: No Migration | I8: 64.0084 | L8: L2 Sunken | M8: 79.1767 | N8: 62.85285 | O8: 36.4267 | P8: 36.69055 | R8: =L8 -> L2 Sunken | S8: =N8-7 -> 55.85285 | T8: =M8-N8 -> 16.32385 | V8: =S8*2.47*0.5 -> 68.97826975 | W8: =V8+T8*1.5 -> 93.46404475
B9: Thin Layer | C9: 2100 | D9: 51.7328 | E9: 12.8656 | G9: L1 Wading | H9: Thin Layer | I9: 64.5984 | L9: L3 Crab | M9: 124.99545 | N9: 119.9758 | O9: 104.85705 | P9: 105.56005 | R9: L3 Crab | S9: 112.9758 | T9: 5.01965 | V9: 139.525113 | W9: 147.054588
A10: L2 Sunken | B10: Migr. Dev. | C10: 2100 | D10: 57.05705 | E10: 22.11965 | G10: L2 Sunken | H10: Migr. Dev. | I10: 79.1767 | L10: L4 Flax | M10: 35.49905 | N10: 34.9045 | O10: 21.8241 | P10: 22.99115 | R10: L4 Flax | S10: 27.9045 | T10: 0.59455 | V10: 34.4620575 | W10: 35.3538825
B11: Migr. Undev. | C11: 2100 | D11: 45.52665 | E11: 17.3262 | G11: L2 Sunken | H11: Migr. Undev. | I11: 62.85285 | L11: P1 Accabonac | M11: 101.2037 | N11: 97.964 | O11: 57.1736 | P11: 57.68855 | R11: P1 Accabonac | S11: 90.964 | T11: 3.2397 | V11: 112.34054 | W11: 117.20009
B12: No Migration | C12: 2100 | D12: 27.8705 | E12: 8.5562 | G12: L2 Sunken | H12: No Migration | I12: 36.4267 | L12: P2 Nappeauge | M12: 333.0635 | N12: 314.66825 | O12: 102.087 | P12: 103.38655 | R12: P2 Nappeauge | S12: 307.66825 | T12: 18.39525 | V12: 379.9702888 | W12: 407.5631638
B13: Thin Layer | C13: 2100 | D13: 28.1346 | E13: 8.55595 | G13: L2 Sunken | H13: Thin Layer | I13: 36.69055 | L13: P3 Ashamonaque | M13: 145.8104 | N13: 135.73695 | O13: 43.8251 | P13: 44.0708 | R13: P3 Ashamonaque | S13: 128.73695 | T13: 10.07345 | V13: 158.9901333 | W13: 174.1003083
A14: L3 Crab | B14: Migr. Dev. | C14: 2100 | D14: 90.94195 | E14: 34.0535 | G14: L3 Crab | H14: Migr. Dev. | I14: 124.99545 | L14: P4 Orient | M14: 215.0338 | N14: 205.901 | O14: 75.6406 | P14: 78.6051 | R14: P4 Orient | S14: 198.901 | T14: 9.1328 | V14: 245.642735 | W14: 259.341935
B15: Migr. Undev. | C15: 2100 | D15: 87.9412 | E15: 32.0346 | G15: L3 Crab | H15: Migr. Undev. | I15: 119.9758 | L15: P5 Mashomack | M15: 72.683 | N15: 71.47235 | O15: 29.32595 | P15: 31.5021 | R15: P5 Mashomack | S15: 64.47235 | T15: 1.21065 | V15: 79.62335225 | W15: 81.43932725
B16: No Migration | C16: 2100 | D16: 77.95945 | E16: 26.8976 | G16: L3 Crab | H16: No Migration | I16: 104.85705 | L16: P6 Flanders | M16: 149.90395 | N16: 143.3367 | O16: 76.1361 | P16: 77.27445 | R16: P6 Flanders | S16: 136.3367 | T16: 6.56725 | V16: 168.3758245 | W16: 178.2266995
B17: Thin Layer | C17: 2100 | D17: 78.6619 | E17: 26.89815 | G17: L3 Crab | H17: Thin Layer | I17: 105.56005 | L17: P7 Cedar Beach | M17: 24.1779 | N17: 20.6852 | O17: 6.1235 | P17: 6.1692 | R17: P7 Cedar Beach | S17: 13.6852 | T17: 3.4927 | V17: 16.901222 | W17: 22.140272
A18: L4 Flax | B18: Migr. Dev. | C18: 2100 | D18: 27.11575 | E18: 8.3833 | G18: L4 Flax | H18: Migr. Dev. | I18: 35.49905 | L18: S1 Carmans | M18: 199.93975 | N18: 191.32755 | O18: 104.64505 | P18: 105.2863 | R18: S1 Carmans | S18: 184.32755 | T18: 8.6122 | V18: 227.6445243 | W18: 240.5628243
B19: Migr. Undev. | C19: 2100 | D19: 26.7151 | E19: 8.1894 | G19: L4 Flax | H19: Migr. Undev. | I19: 34.9045 | L19: S10 Stokes | M19: 32.0715 | N19: 23.83805 | O19: 5.0141 | P19: 5.03945 | R19: S10 Stokes | S19: 16.83805 | T19: 8.23345 | V19: 20.79499175 | W19: 33.14516675
B20: No Migration | C20: 2100 | D20: 17.80265 | E20: 4.02145 | G20: L4 Flax | H20: No Migration | I20: 21.8241 | L20: S11 Captree | M20: 52.69035 | N20: 50.9788 | O20: 38.43445 | P20: 41.5777 | R20: S11 Captree | S20: 43.9788 | T20: 1.71155 | V20: 54.313818 | W20: 56.881143
B21: Thin Layer | C21: 2100 | D21: 18.9696 | E21: 4.02155 | G21: L4 Flax | H21: Thin Layer | I21: 22.99115 | L21: S12 Shinnecock | M21: 54.8362 | N21: 53.29755 | O21: 14.71935 | P21: 15.7062 | R21: S12 Shinnecock | S21: 46.29755 | T21: 1.53865 | V21: 57.17747425 | W21: 59.48544925
A22: P1 Accabonac | B22: Migr. Dev. | C22: 2100 | D22: 60.10685 | E22: 41.09685 | G22: P1 Accabonac | H22: Migr. Dev. | I22: 101.2037 | L22: S2 Thome | M22: 35.0035 | N22: 28.3512 | O22: 10.9201 | P22: 10.9569 | R22: S2 Thome | S22: 21.3512 | T22: 6.6523 | V22: 26.368732 | W22: 36.347182
B23: Migr. Undev. | C23: 2100 | D23: 58.8154 | E23: 39.1486 | G23: P1 Accabonac | H23: Migr. Undev. | I23: 97.964 | L23: S3 Weesuck | M23: 44.5999 | N23: 37.94145 | O23: 11.0686 | P23: 11.17105 | R23: S3 Weesuck | S23: 30.94145 | T23: 6.65845 | V23: 38.21269075 | W23: 48.20036575
B24: No Migration | C24: 2100 | D24: 35.56825 | E24: 21.60535 | G24: P1 Accabonac | H24: No Migration | I24: 57.1736 | L24: S4 Smith Pt. | M24: 37.33845 | N24: 27.107 | O24: 4.81565 | P24: 4.82455 | R24: S4 Smith Pt. | S24: 20.107 | T24: 10.23145 | V24: 24.832145 | W24: 40.17932
B25: Thin Layer | C25: 2100 | D25: 36.08045 | E25: 21.6081 | G25: P1 Accabonac | H25: Thin Layer | I25: 57.68855 | L25: S5 Mastic | M25: 189.59745 | N25: 146.9405 | O25: 46.40255 | P25: 46.61385 | R25: S5 Mastic | S25: 139.9405 | T25: 42.65695 | V25: 172.8265175 | W25: 236.8119425
A26: P2 Nappeauge | B26: Migr. Dev. | C26: 2100 | D26: 203.5104 | E26: 129.5531 | G26: P2 Nappeauge | H26: Migr. Dev. | I26: 333.0635 | L26: S6 Thorne | M26: 53.54755 | N26: 44.8669 | O26: 14.7874 | P26: 14.83905 | R26: S6 Thorne | S26: 37.8669 | T26: 8.68065 | V26: 46.7656215 | W26: 59.7865965
B27: Migr. Undev. | C27: 2100 | D27: 192.9709 | E27: 121.69735 | G27: P2 Nappeauge | H27: Migr. Undev. | I27: 314.66825 | L27: S7 Timber | M27: 25.12355 | N27: 23.7568 | O27: 3.8168 | P27: 3.9125 | R27: S7 Timber | S27: 16.7568 | T27: 1.36675 | V27: 20.694648 | W27: 22.744773
B28: No Migration | C28: 2100 | D28: 69.08005 | E28: 33.00695 | G28: P2 Nappeauge | H28: No Migration | I28: 102.087 | L28: S8 W. Sayville | M28: 47.17575 | N28: 41.24175 | O28: 17.632 | P28: 17.6499 | R28: S8 W. Sayville | S28: 34.24175 | T28: 5.934 | V28: 42.28856125 | W28: 51.18956125
B29: Thin Layer | C29: 2100 | D29: 70.30115 | E29: 33.0854 | G29: P2 Nappeauge | H29: Thin Layer | I29: 103.38655 | L29: S9 Pepperrige | M29: 157.16285 | N29: 116.98115 | O29: 37.68635 | P29: 37.8174 | R29: S9 Pepperrige | S29: 109.98115 | T29: 40.1817 | V29: 135.8267203 | W29: 196.0992703
A30: P3 Ashamonaque | B30: Migr. Dev. | C30: 2100 | D30: 105.0511 | E30: 82.21185 | G30: P3 Ashamonaque | H30: Migr. Dev. | I30: 187.26295 | L30: Grand Total | M30: 2277.25335 | N30: 2058.6849 | O30: 922.3951 | P30: 938.95635
B31: Migr. Undev. | C31: 2100 | D31: 97.6897 | E31: 73.413 | G31: P3 Ashamonaque | H31: Migr. Undev. | I31: 171.1027
B32: No Migration | C32: 2100 | D32: 36.11315 | E32: 17.4351 | G32: P3 Ashamonaque | H32: No Migration | I32: 53.54825
B33: Thin Layer | C33: 2100 | D33: 36.52615 | E33: 17.4492 | G33: P3 Ashamonaque | H33: Thin Layer | I33: 53.97535
A34: P4 Orient | B34: Migr. Dev. | C34: 2100 | D34: 135.9239 | E34: 79.1099 | G34: P4 Orient | H34: Migr. Dev. | I34: 215.0338
B35: Migr. Undev. | C35: 2100 | D35: 130.887 | E35: 75.014 | G35: P4 Orient | H35: Migr. Undev. | I35: 205.901
B36: No Migration | C36: 2100 | D36: 52.6921 | E36: 22.9485 | G36: P4 Orient | H36: No Migration | I36: 75.6406
B37: Thin Layer | C37: 2100 | D37: 55.54475 | E37: 23.06035 | G37: P4 Orient | H37: Thin Layer | I37: 78.6051
A38: P5 Mashomack | B38: Migr. Dev. | C38: 2100 | D38: 44.8479 | E38: 27.8351 | G38: P5 Mashomack | H38: Migr. Dev. | I38: 72.683
B39: Migr. Undev. | C39: 2100 | D39: 44.19795 | E39: 27.2744 | G39: P5 Mashomack | H39: Migr. Undev. | I39: 71.47235
B40: No Migration | C40: 2100 | D40: 20.1402 | E40: 9.18575 | G40: P5 Mashomack | H40: No Migration | I40: 29.32595
B41: Thin Layer | C41: 2100 | D41: 22.3052 | E41: 9.1969 | G41: P5 Mashomack | H41: Thin Layer | I41: 31.5021
A42: P6 Flanders | B42: Migr. Dev. | C42: 2100 | D42: 115.74075 | E42: 83.40255 | G42: P6 Flanders | H42: Migr. Dev. | I42: 199.1433
B43: Migr. Undev. | C43: 2100 | D43: 110.3256 | E43: 78.028 | G43: P6 Flanders | H43: Migr. Undev. | I43: 188.3536
B44: No Migration | C44: 2100 | D44: 60.74895 | E44: 38.6086 | G44: P6 Flanders | H44: No Migration | I44: 99.35755
B45: Thin Layer | C45: 2100 | D45: 62.3913 | E45: 38.6124 | G45: P6 Flanders | H45: Thin Layer | I45: 101.0037
A46: P7 Cedar Beach | B46: Migr. Dev. | C46: 2100 | D46: 15.01485 | E46: 9.16305 | G46: P7 Cedar Beach | H46: Migr. Dev. | I46: 24.1779
B47: Migr. Undev. | C47: 2100 | D47: 13.12105 | E47: 7.56415 | G47: P7 Cedar Beach | H47: Migr. Undev. | I47: 20.6852
B48: No Migration | C48: 2100 | D48: 4.8508 | E48: 1.2727 | G48: P7 Cedar Beach | H48: No Migration | I48: 6.1235
B49: Thin Layer | C49: 2100 | D49: 4.89475 | E49: 1.27445 | G49: P7 Cedar Beach | H49: Thin Layer | I49: 6.1692
A50: S1 Carmans | B50: Migr. Dev. | C50: 2100 | D50: 109.95825 | E50: 89.9815 | G50: S1 Carmans | H50: Migr. Dev. | I50: 199.93975
B51: Migr. Undev. | C51: 2100 | D51: 105.24435 | E51: 86.0832 | G51: S1 Carmans | H51: Migr. Undev. | I51: 191.32755
B52: No Migration | C52: 2100 | D52: 59.133 | E52: 45.51205 | G52: S1 Carmans | H52: No Migration | I52: 104.64505
B53: Thin Layer | C53: 2100 | D53: 59.77295 | E53: 45.51335 | G53: S1 Carmans | H53: Thin Layer | I53: 105.2863
A54: S10 Stokes | B54: Migr. Dev. | C54: 2100 | D54: 19.72025 | E54: 12.35125 | G54: S10 Stokes | H54: Migr. Dev. | I54: 32.0715
B55: Migr. Undev. | C55: 2100 | D55: 14.89285 | E55: 8.9452 | G55: S10 Stokes | H55: Migr. Undev. | I55: 23.83805
B56: No Migration | C56: 2100 | D56: 3.9741 | E56: 1.04 | G56: S10 Stokes | H56: No Migration | I56: 5.0141
B57: Thin Layer | C57: 2100 | D57: 4.0159 | E57: 1.02355 | G57: S10 Stokes | H57: Thin Layer | I57: 5.03945
A58: S11 Captree | B58: Migr. Dev. | C58: 2100 | D58: 33.66005 | E58: 19.0303 | G58: S11 Captree | H58: Migr. Dev. | I58: 52.69035
B59: Migr. Undev. | C59: 2100 | D59: 32.54735 | E59: 18.43145 | G59: S11 Captree | H59: Migr. Undev. | I59: 50.9788
B60: No Migration | C60: 2100 | D60: 25.0287 | E60: 13.40575 | G60: S11 Captree | H60: No Migration | I60: 38.43445
B61: Thin Layer | C61: 2100 | D61: 28.17285 | E61: 13.40485 | G61: S11 Captree | H61: Thin Layer | I61: 41.5777
A62: S12 Shinnecock | B62: Migr. Dev. | C62: 2100 | D62: 33.43865 | E62: 21.39755 | G62: S12 Shinnecock | H62: Migr. Dev. | I62: 54.8362
B63: Migr. Undev. | C63: 2100 | D63: 32.77615 | E63: 20.5214 | G63: S12 Shinnecock | H63: Migr. Undev. | I63: 53.29755
B64: No Migration | C64: 2100 | D64: 11.6036 | E64: 3.11575 | G64: S12 Shinnecock | H64: No Migration | I64: 14.71935
B65: Thin Layer | C65: 2100 | D65: 12.58015 | E65: 3.12605 | G65: S12 Shinnecock | H65: Thin Layer | I65: 15.7062
A66: S2 Thome | B66: Migr. Dev. | C66: 2100 | D66: 23.2845 | E66: 19.4507 | G66: S2 Thome | H66: Migr. Dev. | I66: 42.7352
B67: Migr. Undev. | C67: 2100 | D67: 19.8973 | E67: 16.0134 | G67: S2 Thome | H67: Migr. Undev. | I67: 35.9107
B68: No Migration | C68: 2100 | D68: 6.42355 | E68: 5.0576 | G68: S2 Thome | H68: No Migration | I68: 11.48115
B69: Thin Layer | C69: 2100 | D69: 6.4611 | E69: 5.05995 | G69: S2 Thome | H69: Thin Layer | I69: 11.52105
A70: S3 Weesuck | B70: Migr. Dev. | C70: 2100 | D70: 24.48895 | E70: 20.11095 | G70: S3 Weesuck | H70: Migr. Dev. | I70: 44.5999
B71: Migr. Undev. | C71: 2100 | D71: 21.2028 | E71: 16.73865 | G71: S3 Weesuck | H71: =B71 -> Migr. Undev. | I71: =SUM(D71:E71) -> 37.94145
B72: No Migration | C72: 2100 | D72: 6.84985 | E72: 4.21875 | G72: =IF(ISBLANK(A72),G71,A72) -> S3 Weesuck | H72: No Migration | I72: 11.0686
B73: Thin Layer | C73: 2100 | D73: 6.9565 | E73: 4.21455 | G73: S3 Weesuck | H73: Thin Layer | I73: 11.17105
A74: S4 Smith Pt. | B74: Migr. Dev. | C74: 2100 | D74: 18.56745 | E74: 18.771 | G74: S4 Smith Pt. | H74: Migr. Dev. | I74: 37.33845
B75: Migr. Undev. | C75: 2100 | D75: 13.8211 | E75: 13.2859 | G75: S4 Smith Pt. | H75: Migr. Undev. | I75: 27.107
B76: No Migration | C76: 2100 | D76: 2.9881 | E76: 1.82755 | G76: S4 Smith Pt. | H76: No Migration | I76: 4.81565
B77: Thin Layer | C77: 2100 | D77: 2.99735 | E77: 1.8272 | G77: S4 Smith Pt. | H77: Thin Layer | I77: 4.82455
A78: S5 Mastic | B78: Migr. Dev. | C78: 2100 | D78: 108.86625 | E78: 80.7312 | G78: S5 Mastic | H78: Migr. Dev. | I78: 189.59745
B79: Migr. Undev. | C79: 2100 | D79: 85.3737 | E79: 61.5668 | G79: S5 Mastic | H79: Migr. Undev. | I79: 146.9405
B80: No Migration | C80: 2100 | D80: 29.18895 | E80: 17.2136 | G80: S5 Mastic | H80: No Migration | I80: 46.40255
B81: Thin Layer | C81: 2100 | D81: 29.40125 | E81: 17.2126 | G81: S5 Mastic | H81: Thin Layer | I81: 46.61385
A82: S6 Thorne | B82: Migr. Dev. | C82: 2100 | D82: 22.93055 | E82: 22.89475 | G82: S6 Thorne | H82: Migr. Dev. | I82: 45.8253
B83: Migr. Undev. | C83: 2100 | D83: 19.4474 | E83: 17.86795 | G83: S6 Thorne | H83: Migr. Undev. | I83: 37.31535
B84: No Migration | C84: 2100 | D84: 8.4285 | E84: 5.7959 | G84: S6 Thorne | H84: No Migration | I84: 14.2244
B85: Thin Layer | C85: 2100 | D85: 8.4765 | E85: 5.79645 | G85: S6 Thorne | H85: Thin Layer | I85: 14.27295
A86: S7 Timber | B86: Migr. Dev. | C86: 2100 | D86: 15.21245 | E86: 9.9111 | G86: S7 Timber | H86: Migr. Dev. | I86: 25.12355
B87: Migr. Undev. | C87: 2100 | D87: 14.4235 | E87: 9.3333 | G87: S7 Timber | H87: Migr. Undev. | I87: 23.7568
B88: No Migration | C88: 2100 | D88: 2.58775 | E88: 1.22905 | G88: S7 Timber | H88: No Migration | I88: 3.8168
B89: Thin Layer | C89: 2100 | D89: 2.6832 | E89: 1.2293 | G89: S7 Timber | H89: Thin Layer | I89: 3.9125
A90: S8 W. Sayville | B90: Migr. Dev. | C90: 2100 | D90: 27.1066 | E90: 20.06915 | G90: S8 W. Sayville | H90: Migr. Dev. | I90: 47.17575
B91: Migr. Undev. | C91: 2100 | D91: 23.7335 | E91: 17.50825 | G91: S8 W. Sayville | H91: Migr. Undev. | I91: 41.24175
B92: No Migration | C92: 2100 | D92: 10.72045 | E92: 6.91155 | G92: S8 W. Sayville | H92: No Migration | I92: 17.632
B93: Thin Layer | C93: 2100 | D93: 10.73385 | E93: 6.91605 | G93: S8 W. Sayville | H93: Thin Layer | I93: 17.6499
A94: S9 Pepperrige | B94: Migr. Dev. | C94: 2100 | D94: 82.95335 | E94: 74.2095 | G94: S9 Pepperrige | H94: Migr. Dev. | I94: 157.16285
B95: Migr. Undev. | C95: 2100 | D95: 62.3081 | E95: 54.67305 | G95: S9 Pepperrige | H95: Migr. Undev. | I95: 116.98115
B96: No Migration | C96: 2100 | D96: 20.97995 | E96: 16.7064 | G96: S9 Pepperrige | H96: No Migration | I96: 37.68635
B97: Thin Layer | C97: 2100 | D97: 21.10955 | E97: 16.70785 | G97: S9 Pepperrige | H97: Thin Layer | I97: 37.8174
A98: Grand Total | D98: 43.97124891 | E98: 26.23987283

Sheet Current and Future
A1: Utility | B1: (All)
A3: Sum of Value | B3: Column Labels
B4: 2016 | Y4: 2100
A5: Row Labels | B5: L1 Wading | C5: L2 Sunken | D5: L3 Crab | E5: L4 Flax | F5: P1 Accabonac | G5: P2 Nappeauge | H5: P3 Ashamonaque | I5: P4 Orient | J5: P5 Mashomack | K5: P6 Flanders | L5: P7 Cedar Beach | M5: S1 Carmans | N5: S10 Stokes | O5: S11 Captree | P5: S12 Shinnecock | Q5: S2 Thome | R5: S3 Weesuck | S5: S4 Smith Pt. | T5: S5 Mastic | U5: S6 Thorne | V5: S7 Timber | W5: S8 W. Sayville | X5: S9 Pepperrige | Y5: L1 Wading | Z5: L2 Sunken | AA5: L3 Crab | AB5: L4 Flax | AC5: P1 Accabonac | AD5: P2 Nappeauge | AE5: P3 Ashamonaque | AF5: P4 Orient | AG5: P5 Mashomack | AH5: P6 Flanders | AI5: P7 Cedar Beach | AJ5: S1 Carmans | AK5: S10 Stokes | AL5: S11 Captree | AM5: S12 Shinnecock | AN5: S2 Thome | AO5: S3 Weesuck | AP5: S4 Smith Pt. | AQ5: S5 Mastic | AR5: S6 Thorne | AS5: S7 Timber | AT5: S8 W. Sayville | AU5: S9 Pepperrige
A6: Migr. All Dry | B6: 87.47315695 | C6: 59.88285983 | D6: 122.654135 | E6: 40.46095196 | F6: 114.9395733 | G6: 114.8273405 | H6: 74.90360725 | I6: 172.9812891 | J6: 55.72020242 | K6: 156.8259861 | L6: 40.37392146 | M6: 330.1392815 | N6: 43.23195304 | O6: 164.0010591 | P6: 52.048616 | Q6: 61.76895208 | R6: 44.00566318 | S6: 62.21828436 | T6: 196.6303738 | U6: 64.09031432 | V6: 60.96622808 | W6: 127.5325102 | X6: 133.6215647 | Y6: 69.69638856 | Z6: 81.51649445 | AA6: 110.3597981 | AB6: 40.7743173 | AC6: 86.62855503 | AD6: 174.0603588 | AE6: 162.3158248 | AF6: 140.9999786 | AG6: 56.31542087 | AH6: 126.3689671 | AI6: 45.87521419 | AJ6: 160.8689164 | AK6: 55.53527847 | AL6: 46.47820046 | AM6: 54.06307671 | AN6: 64.01699001 | AO6: 56.2304648 | AP6: 73.51598213 | AQ6: 158.3721578 | AR6: 73.42269248 | AS6: 50.04622219 | AT6: 89.6955471 | AU6: 155.7103686
A7: Migr. Undeveloped | B7: 87.04037332 | C7: 59.74368375 | D7: 122.454049 | E7: 40.44828879 | F7: 114.8322409 | G7: 114.4598992 | H7: 74.49189061 | I7: 172.5187716 | J7: 55.70389518 | K7: 156.6654649 | L7: 39.88391192 | M7: 329.2117375 | N7: 42.05568947 | O7: 163.720984 | P7: 52.02129801 | Q7: 60.83619377 | R7: 43.62472206 | S7: 62.06689738 | T7: 190.0130402 | U7: 64.00241094 | V7: 60.69287782 | W7: 126.1760715 | X7: 131.0302869 | Y7: 68.30683162 | Z7: 69.04104401 | AA7: 106.5682088 | AB7: 40.43489628 | AC7: 84.32637481 | AD7: 165.0696893 | AE7: 149.6779816 | AF7: 135.5958751 | AG7: 55.74096622 | AH7: 120.4090809 | AI7: 42.24339211 | AJ7: 154.9851589 | AK7: 46.56530736 | AL7: 45.66789276 | AM7: 53.06022384 | AN7: 57.02370578 | AO7: 50.85590238 | AP7: 59.0367177 | AQ7: 126.724149 | AR7: 63.39214142 | AS7: 48.46068266 | AT7: 80.98561803 | AU7: 120.552386
A8: No Migration | B8: 86.08298615 | C8: 58.68654275 | D8: 121.4121329 | E8: 39.918592 | F8: 112.7707303 | G8: 110.52029 | H8: 71.33714402 | I8: 163.1993723 | J8: 54.31690957 | K8: 153.1638504 | L8: 38.65497715 | M8: 321.601446 | N8: 40.36999523 | O8: 158.661962 | P8: 50.01919107 | Q8: 57.73821601 | R8: 42.20777817 | S8: 60.43248776 | T8: 177.0966547 | U8: 61.40250349 | V8: 55.09386211 | W8: 122.310172 | X8: 123.6611144 | Y8: 63.20211709 | Z8: 48.85309082 | AA8: 95.64388821 | AB8: 33.23338778 | AC8: 58.2127871 | AD8: 67.2316683 | AE8: 61.41404228 | AF8: 63.46066711 | AG8: 36.7273577 | AH8: 73.80543383 | AI8: 27.49746332 | AJ8: 97.78368692 | AK8: 26.60161748 | AL8: 39.98323236 | AM8: 29.76083922 | AN8: 33.1409371 | AO8: 30.0352747 | AP8: 28.23296483 | AQ8: 55.97035409 | AR8: 37.3412961 | AS8: 25.88595701 | AT8: 47.00740684 | AU8: 53.87887411
A9: Thin Layer Depo. | B9: 86.19510407 | C9: 58.6876859 | D9: 121.4307274 | E9: 39.92113448 | F9: 112.7971821 | G9: 111.2131309 | H9: 71.51928368 | I9: 165.3908293 | J9: 54.4711298 | K9: 153.6416009 | L9: 38.51784239 | M9: 322.1283712 | N9: 40.02844243 | O9: 160.9830245 | P9: 50.39670022 | Q9: 57.9004142 | R9: 42.19199627 | S9: 60.45189544 | T9: 177.4331299 | U9: 61.64515309 | V9: 55.43407053 | W9: 122.4091815 | X9: 123.837214 | Y9: 63.51711979 | Z9: 49.0243818 | AA9: 96.04280306 | AB9: 33.79112994 | AC9: 58.47235301 | AD9: 67.73654037 | AE9: 61.68310874 | AF9: 64.80530641 | AG9: 37.52576331 | AH9: 74.49593931 | AI9: 27.53973675 | AJ9: 98.11176998 | AK9: 26.62100995 | AL9: 41.19769113 | AM9: 30.26043335 | AN9: 33.17614357 | AO9: 30.09718144 | AP9: 28.24341732 | AQ9: 56.08513832 | AR9: 37.38826767 | AS9: 25.97985099 | AT9: 47.03234566 | AU9: 53.96801086
A10: Grand Total | B10: 346.7916205 | C10: 237.0007722 | D10: 487.9510443 | E10: 160.7489672 | F10: 455.3397266 | G10: 451.0206606 | H10: 292.2519256 | I10: 674.0902622 | J10: 220.212137 | K10: 620.2969022 | L10: 157.4306529 | M10: 1303.080836 | N10: 165.6860802 | O10: 647.3670295 | P10: 204.4858053 | Q10: 238.2437761 | R10: 172.0301597 | S10: 245.1695649 | T10: 741.1731986 | U10: 251.1403818 | V10: 232.1870385 | W10: 498.4279352 | X10: 512.15018 | Y10: 264.7224571 | Z10: 248.4350111 | AA10: 408.6146981 | AB10: 148.2337313 | AC10: 287.64007 | AD10: 474.0982568 | AE10: 435.0909575 | AF10: 404.8618272 | AG10: 186.3095081 | AH10: 395.0794211 | AI10: 143.1558064 | AJ10: 511.7495322 | AK10: 155.3232133 | AL10: 173.3270167 | AM10: 167.1445731 | AN10: 187.3577765 | AO10: 167.2188233 | AP10: 189.029082 | AQ10: 397.1517993 | AR10: 211.5443977 | AS10: 150.3727128 | AT10: 264.7209176 | AU10: 384.1096396
B15: =B5 -> L1 Wading | C15: =C5 -> L2 Sunken | D15: L3 Crab | E15: L4 Flax | F15: P1 Accabonac | G15: P2 Nappeauge | H15: P3 Ashamonaque | I15: P4 Orient | J15: P5 Mashomack | K15: P6 Flanders | L15: P7 Cedar Beach | M15: S1 Carmans | N15: S10 Stokes | O15: S11 Captree | P15: S12 Shinnecock | Q15: S2 Thome | R15: S3 Weesuck | S15: S4 Smith Pt. | T15: S5 Mastic | U15: S6 Thorne | V15: S7 Timber | W15: S8 W. Sayville | X15: S9 Pepperrige
A16: Utility 2016 | B16: =B8 -> 86.08298615 | C16: =C8 -> 58.68654275 | D16: 121.4121329 | E16: 39.918592 | F16: 112.7707303 | G16: 110.52029 | H16: 71.33714402 | I16: 163.1993723 | J16: 54.31690957 | K16: 153.1638504 | L16: 38.65497715 | M16: 321.601446 | N16: 40.36999523 | O16: 158.661962 | P16: 50.01919107 | Q16: 57.73821601 | R16: 42.20777817 | S16: 60.43248776 | T16: 177.0966547 | U16: 61.40250349 | V16: 55.09386211 | W16: 122.310172 | X16: 123.6611144
A17: Utility 2100 no adaptation | B17: =Y8 -> 63.20211709 | C17: =Z8 -> 48.85309082 | D17: 95.64388821 | E17: 33.23338778 | F17: 58.2127871 | G17: 67.2316683 | H17: 61.41404228 | I17: 63.46066711 | J17: 36.7273577 | K17: 73.80543383 | L17: 27.49746332 | M17: 97.78368692 | N17: 26.60161748 | O17: 39.98323236 | P17: 29.76083922 | Q17: 33.1409371 | R17: 30.0352747 | S17: 28.23296483 | T17: 55.97035409 | U17: 37.3412961 | V17: 25.88595701 | W17: 47.00740684 | X17: 53.87887411
A18: Utility 2100 Migr Undev | B18: =Y7 -> 68.30683162 | C18: =Z7 -> 69.04104401 | D18: 106.5682088 | E18: 40.43489628 | F18: 84.32637481 | G18: 165.0696893 | H18: 149.6779816 | I18: 135.5958751 | J18: 55.74096622 | K18: 120.4090809 | L18: 42.24339211 | M18: 154.9851589 | N18: 46.56530736 | O18: 45.66789276 | P18: 53.06022384 | Q18: 57.02370578 | R18: 50.85590238 | S18: 59.0367177 | T18: 126.724149 | U18: 63.39214142 | V18: 48.46068266 | W18: 80.98561803 | X18: 120.552386
A19: Utility 2100 Migr All Dry | B19: =Y6 -> 69.69638856 | C19: =Z6 -> 81.51649445 | D19: 110.3597981 | E19: 40.7743173 | F19: 86.62855503 | G19: 174.0603588 | H19: 162.3158248 | I19: 140.9999786 | J19: 56.31542087 | K19: 126.3689671 | L19: 45.87521419 | M19: 160.8689164 | N19: 55.53527847 | O19: 46.47820046 | P19: 54.06307671 | Q19: 64.01699001 | R19: 56.2304648 | S19: 73.51598213 | T19: 158.3721578 | U19: 73.42269248 | V19: 50.04622219 | W19: 89.6955471 | X19: 155.7103686
A20: Utility 2100 Migr & TLD | B20: =B19+Y9-Y8 -> 70.01139126 | C20: =C19+Z9-Z8 -> 81.68778544 | D20: 110.7587129 | E20: 41.33205945 | F20: 86.88812095 | G20: 174.5652309 | H20: 162.5848913 | I20: 142.3446179 | J20: 57.11382648 | K20: 127.0594726 | L20: 45.91748762 | M20: 161.1969994 | N20: 55.55467093 | O20: 47.69265924 | P20: 54.56267083 | Q20: 64.05219649 | R20: 56.29237153 | S20: 73.52643463 | T20: 158.4869421 | U20: 73.46966405 | V20: 50.14011617 | W20: 89.72048591 | X20: 155.7995054

Sheet LCPivot (hidden)
F1: ="Expected Value: Land Cover of '"&B2&"' Over Time: '"&B3&"'" -> Expected Value: Land Cover of 'S11 Captree' Over Time: 'Thin Layer Depo.'
A2: Site | B2: S11 Captree
A3: Strategy | B3: Thin Layer Depo.
A5: Sum of Value | B5: Column Labels
A6: Row Labels | B6: Aggregated Saltmarsh | C6: Aggregated Transitional | D6: Aggregated Freshwater Tidal
A7: 2016 | B7: 237.1134082 | C7: 430.8170161 | D7: 3.393690649
A8: 2017 | B8: 240.1129499 | C8: 426.0940488 | D8: 3.388040181
A9: 2018 | B9: 243.1124916 | C9: 421.3710815 | D9: 3.382389714
A10: 2019 | B10: 246.1120333 | C10: 416.6481143 | D10: 3.376739246
A11: 2020 | B11: 249.111575 | C11: 411.925147 | D11: 3.371088778
A12: 2021 | B12: 252.1111167 | C12: 407.2021797 | D12: 3.365438311
A13: 2022 | B13: 255.1106584 | C13: 402.4792124 | D13: 3.359787843
A14: 2023 | B14: 258.1102001 | C14: 397.7562451 | D14: 3.354137375
A15: 2024 | B15: 261.1097418 | C15: 393.0332778 | D15: 3.348486908
A16: 2025 | B16: 264.1092835 | C16: 388.3103105 | D16: 3.34283644
A17: 2026 | B17: 267.467564 | C17: 379.4768587 | D17: 3.326000353
A18: 2027 | B18: 270.8258445 | C18: 370.6434068 | D18: 3.309164265
A19: 2028 | B19: 274.184125 | C19: 361.8099549 | D19: 3.292328178
A20: 2029 | B20: 277.5424055 | C20: 352.976503 | D20: 3.275492091
A21: 2030 | B21: 280.900686 | C21: 344.1430511 | D21: 3.258656003
A22: 2031 | B22: 284.2589665 | C22: 335.3095992 | D22: 3.241819916
A23: 2032 | B23: 287.617247 | C23: 326.4761474 | D23: 3.224983829
A24: 2033 | B24: 290.9755275 | C24: 317.6426955 | D24: 3.208147741
A25: 2034 | B25: 294.333808 | C25: 308.8092436 | D25: 3.191311654
A26: 2035 | B26: 297.6920885 | C26: 299.9757917 | D26: 3.174475567
A27: 2036 | B27: 301.050369 | C27: 291.1423398 | D27: 3.157639479
A28: 2037 | B28: 304.4086495 | C28: 282.308888 | D28: 3.140803392
A29: 2038 | B29: 307.76693 | C29: 273.4754361 | D29: 3.123967305
A30: 2039 | B30: 311.1252105 | C30: 264.6419842 | D30: 3.107131217
A31: 2040 | B31: 314.483491 | C31: 255.8085323 | D31: 3.09029513
A32: 2041 | B32: 310.4546829 | C32: 248.7784362 | D32: 3.060560162
A33: 2042 | B33: 306.4258747 | C33: 241.7483402 | D33: 3.030825193
A34: 2043 | B34: 302.3970665 | C34: 234.7182441 | D34: 3.001090225
A35: 2044 | B35: 298.3682584 | C35: 227.688148 | D35: 2.971355257
A36: 2045 | B36: 294.3394502 | C36: 220.658052 | D36: 2.941620288
A37: 2046 | B37: 290.3106421 | C37: 213.6279559 | D37: 2.91188532
A38: 2047 | B38: 286.2818339 | C38: 206.5978598 | D38: 2.882150352
A39: 2048 | B39: 282.2530258 | C39: 199.5677638 | D39: 2.852415383
A40: 2049 | B40: 278.2242176 | C40: 192.5376677 | D40: 2.822680415
A41: 2050 | B41: 274.1954094 | C41: 185.5075717 | D41: 2.792945447
A42: 2051 | B42: 270.1666013 | C42: 178.4774756 | D42: 2.763210478
A43: 2052 | B43: 266.1377931 | C43: 171.4473795 | D43: 2.73347551
A44: 2053 | B44: 262.108985 | C44: 164.4172835 | D44: 2.703740542
A45: 2054 | B45: 258.0801768 | C45: 157.3871874 | D45: 2.674005573
A46: 2055 | B46: 254.0513687 | C46: 150.3570913 | D46: 2.644270605
A47: 2056 | B47: 248.9578839 | C47: 145.8445834 | D47: 2.60466791
A48: 2057 | B48: 243.8643991 | C48: 141.3320754 | D48: 2.565065216
A49: 2058 | B49: 238.7709144 | C49: 136.8195674 | D49: 2.525462521
A50: 2059 | B50: 233.6774296 | C50: 132.3070595 | D50: 2.485859826
A51: 2060 | B51: 228.5839449 | C51: 127.7945515 | D51: 2.446257132
A52: 2061 | B52: 223.4904601 | C52: 123.2820436 | D52: 2.406654437
A53: 2062 | B53: 218.3969753 | C53: 118.7695356 | D53: 2.367051742
A54: 2063 | B54: 213.3034906 | C54: 114.2570277 | D54: 2.327449048
A55: 2064 | B55: 208.2100058 | C55: 109.7445197 | D55: 2.287846353
A56: 2065 | B56: 203.1165211 | C56: 105.2320117 | D56: 2.248243658
A57: 2066 | B57: 198.0230363 | C57: 100.7195038 | D57: 2.208640964
A58: 2067 | B58: 192.9295515 | C58: 96.20699583 | D58: 2.169038269
A59: 2068 | B59: 187.8360668 | C59: 91.69448788 | D59: 2.129435574
A60: 2069 | B60: 182.742582 | C60: 87.18197992 | D60: 2.08983288
A61: 2070 | B61: 177.6490973 | C61: 82.66947196 | D61: 2.050230185
A62: 2071 | B62: 173.2378694 | C62: 80.51932075 | D62: 2.012060699
A63: 2072 | B63: 168.8266415 | C63: 78.36916954 | D63: 1.973891214
A64: 2073 | B64: 164.4154137 | C64: 76.21901833 | D64: 1.935721728
A65: 2074 | B65: 160.0041858 | C65: 74.06886712 | D65: 1.897552242
A66: 2075 | B66: 155.592958 | C66: 71.91871591 | D66: 1.859382757
A67: 2076 | B67: 151.1817301 | C67: 69.7685647 | D67: 1.821213271
A68: 2077 | B68: 146.7705023 | C68: 67.61841349 | D68: 1.783043785
A69: 2078 | B69: 142.3592744 | C69: 65.46826228 | D69: 1.7448743
A70: 2079 | B70: 137.9480466 | C70: 63.31811107 | D70: 1.706704814
A71: 2080 | B71: 133.5368187 | C71: 61.16795986 | D71: 1.668535328
A72: 2081 | B72: 129.1255909 | C72: 59.01780865 | D72: 1.630365843
A73: 2082 | B73: 124.714363 | C73: 56.86765744 | D73: 1.592196357
A74: 2083 | B74: 120.3031351 | C74: 54.71750623 | D74: 1.554026871
A75: 2084 | B75: 115.8919073 | C75: 52.56735502 | D75: 1.515857386
A76: 2085 | B76: 111.4806794 | C76: 50.41720381 | D76: 1.4776879
A77: 2086 | B77: 108.6897355 | C77: 49.26432719 | D77: 1.44785409
A78: 2087 | B78: 105.8987916 | C78: 48.11145058 | D78: 1.418020279
A79: 2088 | B79: 103.1078477 | C79: 46.95857396 | D79: 1.388186469
A80: 2089 | B80: 100.3169039 | C80: 45.80569735 | D80: 1.358352659
A81: 2090 | B81: 97.52595995 | C81: 44.65282074 | D81: 1.328518848
A82: 2091 | B82: 94.73501606 | C82: 43.49994412 | D82: 1.298685038
A83: 2092 | B83: 91.94407216 | C83: 42.34706751 | D83: 1.268851228
A84: 2093 | B84: 89.15312827 | C84: 41.19419089 | D84: 1.239017417
A85: 2094 | B85: 86.36218437 | C85: 40.04131428 | D85: 1.209183607
A86: 2095 | B86: 83.57124047 | C86: 38.88843766 | D86: 1.179349797
A87: 2096 | B87: 80.78029658 | C87: 37.73556105 | D87: 1.149515986
A88: 2097 | B88: 77.98935268 | C88: 36.58268444 | D88: 1.119682176
A89: 2098 | B89: 75.19840878 | C89: 35.42980782 | D89: 1.089848366
A90: 2099 | B90: 72.40746489 | C90: 34.27693121 | D90: 1.060014555
A91: 2100 | B91: 69.61652099 | C91: 33.12405459 | D91: 1.030180745

Sheet PivotSiteTime (2) (hidden)
J1: =IF(C2="(All)","Utility by Strategy over Time","Utility at '"&C2&"' by Strategy over Time") -> Utility at 'S11 Captree' by Strategy over Time
B2: Site | C2: S11 Captree
B3: Utility | C3: (All)
B5: Sum of Value | C5: Column Labels
B6: Row Labels | C6: Migr. All Dry | D6: Migr. Undeveloped | E6: No Migration | F6: Thin Layer Depo.
B7: 2016 | C7: 164.0010591 | D7: 163.720984 | E7: 158.661962 | F7: 160.9830245
B8: 2017 | C8: 163.1676102 | D8: 162.8751431 | E8: 157.9958283 | F8: 160.3468627
B9: 2018 | C9: 162.3341612 | D9: 162.0293022 | E9: 157.3296945 | F9: 159.710701
B10: 2019 | C10: 161.5007123 | D10: 161.1834613 | E10: 156.6635608 | F10: 159.0745393
B11: 2020 | C11: 160.6672634 | D11: 160.3376204 | E11: 155.9974271 | F11: 158.4383775
B12: 2021 | C12: 159.8338145 | D12: 159.4917795 | E12: 155.3312934 | F12: 157.8022158
B13: 2022 | C13: 159.0003656 | D13: 158.6459386 | E13: 154.6651596 | F13: 157.166054
B14: 2023 | C14: 158.1669167 | D14: 157.8000977 | E14: 153.9990259 | F14: 156.5298923
B15: 2024 | C15: 157.3334677 | D15: 156.9542568 | E15: 153.3328922 | F15: 155.8937306
B16: 2025 | C16: 156.5000188 | D16: 156.1084159 | E16: 152.6667584 | F16: 155.2575688
B17: 2026 | C17: 155.0355991 | D17: 154.6247828 | E17: 151.1021041 | F17: 153.7415352
B18: 2027 | C18: 153.5711793 | D18: 153.1411496 | E18: 149.5374498 | F18: 152.2255015
B19: 2028 | C19: 152.1067596 | D19: 151.6575165 | E19: 147.9727955 | F19: 150.7094678
B20: 2029 | C20: 150.6423398 | D20: 150.1738833 | E20: 146.4081411 | F20: 149.1934342
B21: 2030 | C21: 149.1779201 | D21: 148.6902501 | E21: 144.8434868 | F21: 147.6774005
B22: 2031 | C22: 147.7135003 | D22: 147.206617 | E22: 143.2788325 | F22: 146.1613668
B23: 2032 | C23: 146.2490806 | D23: 145.7229838 | E23: 141.7141782 | F23: 144.6453332
B24: 2033 | C24: 144.7846608 | D24: 144.2393506 | E24: 140.1495238 | F24: 143.1292995
B25: 2034 | C25: 143.3202411 | D25: 142.7557175 | E25: 138.5848695 | F25: 141.6132659
B26: 2035 | C26: 141.8558213 | D26: 141.2720843 | E26: 137.0202152 | F26: 140.0972322
B27: 2036 | C27: 140.3914016 | D27: 139.7884512 | E27: 135.4555609 | F27: 138.5811985
B28: 2037 | C28: 138.9269818 | D28: 138.304818 | E28: 133.8909065 | F28: 137.0651649
B29: 2038 | C29: 137.4625621 | D29: 136.8211848 | E29: 132.3262522 | F29: 135.5491312
B30: 2039 | C30: 135.9981424 | D30: 135.3375517 | E30: 130.7615979 | F30: 134.0330975
B31: 2040 | C31: 134.5337226 | D31: 133.8539185 | E31: 129.1969436 | F31: 132.5170639
B32: 2041 | C32: 132.3851225 | D32: 131.6868286 | E32: 126.9468868 | F32: 130.2724485
B33: 2042 | C33: 130.2365223 | D33: 129.5197388 | E33: 124.69683 | F33: 128.0278331
B34: 2043 | C34: 128.0879222 | D34: 127.3526489 | E34: 122.4467731 | F34: 125.7832178
B35: 2044 | C35: 125.939322 | D35: 125.185559 | E35: 120.1967163 | F35: 123.5386024
B36: 2045 | C36: 123.7907219 | D36: 123.0184691 | E36: 117.9466595 | F36: 121.293987
B37: 2046 | C37: 121.6421218 | D37: 120.8513793 | E37: 115.6966027 | F37: 119.0493717
B38: 2047 | C38: 119.4935216 | D38: 118.6842894 | E38: 113.4465459 | F38: 116.8047563
B39: 2048 | C39: 117.3449215 | D39: 116.5171995 | E39: 111.1964891 | F39: 114.5601409
B40: 2049 | C40: 115.1963213 | D40: 114.3501096 | E40: 108.9464323 | F40: 112.3155256
B41: 2050 | C41: 113.0477212 | D41: 112.1830198 | E41: 106.6963755 | F41: 110.0709102
B42: 2051 | C42: 110.8991211 | D42: 110.0159299 | E42: 104.4463187 | F42: 107.8262948
B43: 2052 | C43: 108.7505209 | D43: 107.84884 | E43: 102.1962619 | F43: 105.5816795
B44: 2053 | C44: 106.6019208 | D44: 105.6817502 | E44: 99.94620508 | F44: 103.3370641
B45: 2054 | C45: 104.4533206 | D45: 103.5146603 | E45: 97.69614827 | F45: 101.0924487
B46: 2055 | C46: 102.3047205 | D46: 101.3475704 | E46: 95.44609146 | F46: 98.84783334
B47: 2056 | C47: 100.5325568 | D47: 99.56683677 | E47: 93.62044477 | F47: 96.95803757
B48: 2057 | C48: 98.76039303 | D48: 97.78610312 | E48: 91.79479807 | F48: 95.06824179
B49: 2058 | C49: 96.98822931 | D49: 96.00536948 | E49: 89.96915138 | F49: 93.17844601
B50: 2059 | C50: 95.21606558 | D50: 94.22463584 | E50: 88.14350468 | F50: 91.28865024
B51: 2060 | C51: 93.44390185 | D51: 92.4439022 | E51: 86.31785799 | F51: 89.39885446
B52: 2061 | C52: 91.67173813 | D52: 90.66316855 | E52: 84.49221129 | F52: 87.50905869
B53: 2062 | C53: 89.8995744 | D53: 88.88243491 | E53: 82.6665646 | F53: 85.61926291
B54: 2063 | C54: 88.12741067 | D54: 87.10170127 | E54: 80.8409179 | F54: 83.72946714
B55: 2064 | C55: 86.35524695 | D55: 85.32096762 | E55: 79.01527121 | F55: 81.83967136
B56: 2065 | C56: 84.58308322 | D56: 83.54023398 | E56: 77.18962451 | F56: 79.94987559
B57: 2066 | C57: 82.81091949 | D57: 81.75950034 | E57: 75.36397781 | F57: 78.06007981
B58: 2067 | C58: 81.03875577 | D58: 79.9787667 | E58: 73.53833112 | F58: 76.17028403
B59: 2068 | C59: 79.26659204 | D59: 78.19803305 | E59: 71.71268442 | F59: 74.28048826
B60: 2069 | C60: 77.49442831 | D60: 76.41729941 | E60: 69.88703773 | F60: 72.39069248
B61: 2070 | C61: 75.72226459 | D61: 74.63656577 | E61: 68.06139103 | F61: 70.50089671
B62: 2071 | C62: 74.52371715 | D62: 73.44518231 | E62: 66.88597678 | F62: 69.2767591
B63: 2072 | C63: 73.32516971 | D63: 72.25379885 | E63: 65.71056252 | F63: 68.0526215
B64: 2073 | C64: 72.12662226 | D64: 71.06241539 | E64: 64.53514827 | F64: 66.82848389
B65: 2074 | C65: 70.92807482 | D65: 69.87103193 | E65: 63.35973401 | F65: 65.60434629
B66: 2075 | C66: 69.72952738 | D66: 68.67964847 | E66: 62.18431976 | F66: 64.38020869
B67: 2076 | C67: 68.53097994 | D67: 67.48826502 | E67: 61.0089055 | F67: 63.15607108
B68: 2077 | C68: 67.3324325 | D68: 66.29688156 | E68: 59.83349125 | F68: 61.93193348
B69: 2078 | C69: 66.13388506 | D69: 65.1054981 | E69: 58.65807699 | F69: 60.70779587
B70: 2079 | C70: 64.93533762 | D70: 63.91411464 | E70: 57.48266274 | F70: 59.48365827
B71: 2080 | C71: 63.73679018 | D71: 62.72273118 | E71: 56.30724848 | F71: 58.25952066
B72: 2081 | C72: 62.53824273 | D72: 61.53134772 | E72: 55.13183422 | F72: 57.03538306
B73: 2082 | C73: 61.33969529 | D73: 60.33996426 | E73: 53.95641997 | F73: 55.81124545
B74: 2083 | C74: 60.14114785 | D74: 59.14858081 | E74: 52.78100571 | F74: 54.58710785
B75: 2084 | C75: 58.94260041 | D75: 57.95719735 | E75: 51.60559146 | F75: 53.36297025
B76: 2085 | C76: 57.74405297 | D76: 56.76581389 | E76: 50.4301772 | F76: 52.13883264
B77: 2086 | C77: 56.99299614 | D77: 56.02595248 | E77: 49.73371421 | F77: 51.40942321
B78: 2087 | C78: 56.2419393 | D78: 55.28609107 | E78: 49.03725122 | F78: 50.68001377
B79: 2088 | C79: 55.49088247 | D79: 54.54622966 | E79: 48.34078823 | F79: 49.95060434
B80: 2089 | C80: 54.73982563 | D80: 53.80636825 | E80: 47.64432524 | F80: 49.22119491
B81: 2090 | C81: 53.9887688 | D81: 53.06650684 | E81: 46.94786225 | F81: 48.49178547
B82: 2091 | C82: 53.23771197 | D82: 52.32664544 | E82: 46.25139926 | F82: 47.76237604
B83: 2092 | C83: 52.48665513 | D83: 51.58678403 | E83: 45.55493628 | F83: 47.0329666
B84: 2093 | C84: 51.7355983 | D84: 50.84692262 | E84: 44.85847329 | F84: 46.30355717
B85: 2094 | C85: 50.98454146 | D85: 50.10706121 | E85: 44.1620103 | F85: 45.57414774
B86: 2095 | C86: 50.23348463 | D86: 49.3671998 | E86: 43.46554731 | F86: 44.8447383
B87: 2096 | C87: 49.4824278 | D87: 48.62733839 | E87: 42.76908432 | F87: 44.11532887
B88: 2097 | C88: 48.73137096 | D88: 47.88747698 | E88: 42.07262133 | F88: 43.38591943
B89: 2098 | C89: 47.98031413 | D89: 47.14761557 | E89: 41.37615834 | F89: 42.65651
B90: 2099 | C90: 47.22925729 | D90: 46.40775416 | E90: 40.67969535 | F90: 41.92710057
B91: 2100 | C91: 46.47820046 | D91: 45.66789276 | E91: 39.98323236 | F91: 41.19769113

Sheet PivotSiteTime (hidden)
J1: =IF(C2="(All)","Utility by Site over Time, Strategy: "&C3,"Utility of '"&C2&"' by Site over Time, Strategy: "&C3) -> Utility of 'Wave Attenuation' by Site over Time, Strategy: No Migration
B2: Utility | C2: Wave Attenuation
B3: Strategy | C3: No Migration
B5: Sum of Value | C5: Column Labels
B6: Row Labels | C6: L1 Wading | D6: L2 Sunken | E6: L3 Crab | F6: L4 Flax | G6: P1 Accabonac | H6: P2 Nappeauge | I6: P3 Ashamonaque | J6: P4 Orient | K6: P5 Mashomack | L6: P6 Flanders | M6: P7 Cedar Beach | N6: S1 Carmans | O6: S10 Stokes | P6: S11 Captree | Q6: S12 Shinnecock | R6: S2 Thome | S6: S3 Weesuck | T6: S4 Smith Pt. | U6: S5 Mastic | V6: S6 Thorne | W6: S7 Timber | X6: S8 W. Sayville | Y6: S9 Pepperrige
B7: 2016 | C7: 13.60917639 | D7: 10.76637174 | E7: 21.56716041 | F7: 3.232226608 | G7: 12.18288147 | H7: 2.079124192 | I7: 12.9861007 | J7: 8.942472879 | K7: 0 | L7: 8.629797125 | M7: 7.507196681 | N7: 24.96153907 | O7: 6.922781137 | P7: 0.7491446041 | Q7: 4.469755359 | R7: 13.2495265 | S7: 4.269593597 | T7: 19.55236287 | U7: 17.46477651 | V7: 15.750386 | W7: 11.54664236 | X7: 45.46733771 | Y7: 23.38119613
B8: 2017 | C8: 13.60830024 | D8: 10.76646996 | E8: 21.56683226 | F8: 3.232186705 | G8: 12.18360863 | H8: 2.079962019 | I8: 12.98115777 | J8: 8.940871073 | K8: 0 | L8: 8.626961813 | M8: 7.50009106 | N8: 24.95377047 | O8: 6.918174807 | P8: 0.7469525627 | Q8: 4.46744109 | R8: 13.24445687 | S8: 4.266327148 | T8: 19.5269447 | U8: 17.45179295 | V8: 15.7463282 | W8: 11.51163306 | X8: 45.48406001 | Y8: 23.38478024
B9: 2018 | C9: 13.60742409 | D9: 10.76656818 | E9: 21.56650411 | F9: 3.232146802 | G9: 12.18433579 | H9: 2.080799846 | I9: 12.97621485 | J9: 8.939269267 | K9: 0 | L9: 8.6241265 | M9: 7.49298544 | N9: 24.94600187 | O9: 6.913568477 | P9: 0.7447605213 | Q9: 4.465126821 | R9: 13.23938724 | S9: 4.263060698 | T9: 19.50152653 | U9: 17.43880939 | V9: 15.74227039 | W9: 11.47662376 | X9: 45.50078232 | Y9: 23.38836434
B10: 2019 | C10: 13.60654794 | D10: 10.76666641 | E10: 21.56617595 | F10: 3.232106899 | G10: 12.18506295 | H10: 2.081637674 | I10: 12.97127193 | J10: 8.937667461 | K10: 0 | L10: 8.621291188 | M10: 7.485879819 | N10: 24.93823327 | O10: 6.908962147 | P10: 0.7425684798 | Q10: 4.462812552 | R10: 13.23431761 | S10: 4.259794249 | T10: 19.47610836 | U10: 17.42582583 | V10: 15.73821258 | W10: 11.44161446 | X10: 45.51750463 | Y10: 23.39194844
B11: 2020 | C11: 13.6056718 | D11: 10.76676463 | E11: 21.5658478 | F11: 3.232066996 | G11: 12.18579011 | H11: 2.082475501 | I11: 12.966329 | J11: 8.936065656 | K11: 0 | L11: 8.618455875 | M11: 7.478774199 | N11: 24.93046467 | O11: 6.904355817 | P11: 0.7403764384 | Q11: 4.460498283 | R11: 13.22924798 | S11: 4.256527799 | T11: 19.4506902 | U11: 17.41284226 | V11: 15.73415477 | W11: 11.40660516 | X11: 45.53422694 | Y11: 23.39553254
B12: 2021 | C12: 13.60479565 | D12: 10.76686285 | E12: 21.56551965 | F12: 3.232027094 | G12: 12.18651727 | H12: 2.083313328 | I12: 12.96138608 | J12: 8.93446385 | K12: 0 | L12: 8.615620562 | M12: 7.471668578 | N12: 24.92269607 | O12: 6.899749487 | P12: 0.738184397 | Q12: 4.458184014 | R12: 13.22417835 | S12: 4.25326135 | T12: 19.42527203 | U12: 17.3998587 | V12: 15.73009697 | W12: 11.37159586 | X12: 45.55094925 | Y12: 23.39911665
B13: 2022 | C13: 13.6039195 | D13: 10.76696107 | E13: 21.5651915 | F13: 3.231987191 | G13: 12.18724442 | H13: 2.084151156 | I13: 12.95644316 | J13: 8.932862044 | K13: 0 | L13: 8.61278525 | M13: 7.464562958 | N13: 24.91492747 | O13: 6.895143158 | P13: 0.7359923556 | Q13: 4.455869746 | R13: 13.21910872 | S13: 4.249994901 | T13: 19.39985386 | U13: 17.38687514 | V13: 15.72603916 | W13: 11.33658656 | X13: 45.56767155 | Y13: 23.40270075
B14: 2023 | C14: 13.60304335 | D14: 10.7670593 | E14: 21.56486335 | F14: 3.231947288 | G14: 12.18797158 | H14: 2.084988983 | I14: 12.95150023 | J14: 8.931260238 | K14: 0 | L14: 8.609949937 | M14: 7.457457337 | N14: 24.90715887 | O14: 6.890536828 | P14: 0.7338003142 | Q14: 4.453555477 | R14: 13.21403909 | S14: 4.246728451 | T14: 19.37443569 | U14: 17.37389158 | V14: 15.72198135 | W14: 11.30157726 | X14: 45.58439386 | Y14: 23.40628485
B15: 2024 | C15: 13.6021672 | D15: 10.76715752 | E15: 21.5645352 | F15: 3.231907385 | G15: 12.18869874 | H15: 2.08582681 | I15: 12.94655731 | J15: 8.929658432 | K15: 0 | L15: 8.607114624 | M15: 7.450351716 | N15: 24.89939026 | O15: 6.885930498 | P15: 0.7316082727 | Q15: 4.451241208 | R15: 13.20896946 | S15: 4.243462002 | T15: 19.34901752 | U15: 17.36090801 | V15: 15.71792355 | W15: 11.26656796 | X15: 45.60111617 | Y15: 23.40986895
B16: 2025 | C16: 13.60129105 | D16: 10.76725574 | E16: 21.56420705 | F16: 3.231867482 | G16: 12.1894259 | H16: 2.086664638 | I16: 12.94161439 | J16: 8.928056626 | K16: 0 | L16: 8.604279312 | M16: 7.443246096 | N16: 24.89162166 | O16: 6.881324168 | P16: 0.7294162313 | Q16: 4.448926939 | R16: 13.20389984 | S16: 4.240195552 | T16: 19.32359936 | U16: 17.34792445 | V16: 15.71386574 | W16: 11.23155866 | X16: 45.61783848 | Y16: 23.41345306
B17: 2026 | C17: 13.59850259 | D17: 10.76793966 | E17: 21.56376572 | F17: 3.2314274 | G17: 12.18988109 | H17: 2.088355493 | I17: 12.9551016 | J17: 8.916727739 | K17: 0 | L17: 8.598497902 | M17: 7.427484652 | N17: 24.82416358 | O17: 6.8640443 | P17: 0.7227753945 | Q17: 4.441160277 | R17: 13.18250569 | S17: 4.237838008 | T17: 19.22254676 | U17: 17.29783862 | V17: 15.6720028 | W17: 11.13347752 | X17: 45.48747812 | Y17: 23.34521977
B18: 2027 | C18: 13.59571413 | D18: 10.76862358 | E18: 21.56332439 | F18: 3.230987318 | G18: 12.19033628 | H18: 2.090046349 | I18: 12.96858881 | J18: 8.905398852 | K18: 0 | L18: 8.592716493 | M18: 7.411723208 | N18: 24.75670549 | O18: 6.846764432 | P18: 0.7161345577 | Q18: 4.433393615 | R18: 13.16111155 | S18: 4.235480464 | T18: 19.12149416 | U18: 17.24775278 | V18: 15.63013987 | W18: 11.03539638 | X18: 45.35711777 | Y18: 23.27698649
B19: 2028 | C19: 13.59292567 | D19: 10.76930749 | E19: 21.56288306 | F19: 3.230547236 | G19: 12.19079147 | H19: 2.091737205 | I19: 12.98207601 | J19: 8.894069965 | K19: 0 | L19: 8.586935084 | M19: 7.395961764 | N19: 24.6892474 | O19: 6.829484564 | P19: 0.7094937209 | Q19: 4.425626953 | R19: 13.13971741 | S19: 4.23312292 | T19: 19.02044157 | U19: 17.19766694 | V19: 15.58827694 | W19: 10.93731523 | X19: 45.22675741 | Y19: 23.20875321
B20: 2029 | C20: 13.59013721 | D20: 10.76999141 | E20: 21.56244173 | F20: 3.230107153 | G20: 12.19124666 | H20: 2.093428061 | I20: 12.99556322 | J20: 8.882741078 | K20: 0 | L20: 8.581153674 | M20: 7.38020032 | N20: 24.62178931 | O20: 6.812204696 | P20: 0.702852884 | Q20: 4.417860291 | R20: 13.11832327 | S20: 4.230765376 | T20: 18.91938897 | U20: 17.14758111 | V20: 15.54641401 | W20: 10.83923409 | X20: 45.09639705 | Y20: 23.14051993
B21: 2030 | C21: 13.58734875 | D21: 10.77067533 | E21: 21.5620004 | F21: 3.229667071 | G21: 12.19170185 | H21: 2.095118916 | I21: 13.00905043 | J21: 8.871412192 | K21: 0 | L21: 8.575372265 | M21: 7.364438877 | N21: 24.55433122 | O21: 6.794924828 | P21: 0.6962120472 | Q21: 4.41009363 | R21: 13.09692913 | S21: 4.228407832 | T21: 18.81833637 | U21: 17.09749527 | V21: 15.50455107 | W21: 10.74115295 | X21: 44.9660367 | Y21: 23.07228665
B22: 2031 | C22: 13.58456029 | D22: 10.77135924 | E22: 21.56155907 | F22: 3.229226989 | G22: 12.19215704 | H22: 2.096809772 | I22: 13.02253764 | J22: 8.860083305 | K22: 0 | L22: 8.569590856 | M22: 7.348677433 | N22: 24.48687313 | O22: 6.77764496 | P22: 0.6895712104 | Q22: 4.402326968 | R22: 13.07553499 | S22: 4.226050288 | T22: 18.71728378 | U22: 17.04740944 | V22: 15.46268814 | W22: 10.64307181 | X22: 44.83567634 | Y22: 23.00405336
B23: 2032 | C23: 13.58177183 | D23: 10.77204316 | E23: 21.56111775 | F23: 3.228786907 | G23: 12.19261223 | H23: 2.098500628 | I23: 13.03602485 | J23: 8.848754418 | K23: 0 | L23: 8.563809446 | M23: 7.332915989 | N23: 24.41941504 | O23: 6.760365092 | P23: 0.6829303736 | Q23: 4.394560306 | R23: 13.05414085 | S23: 4.223692744 | T23: 18.61623118 | U23: 16.9973236 | V23: 15.42082521 | W23: 10.54499066 | X23: 44.70531599 | Y23: 22.93582008
B24: 2033 | C24: 13.57898336 | D24: 10.77272707 | E24: 21.56067642 | F24: 3.228346824 | G24: 12.19306742 | H24: 2.100191483 | I24: 13.04951206 | J24: 8.837425531 | K24: 0 | L24: 8.558028037 | M24: 7.317154545 | N24: 24.35195696 | O24: 6.743085224 | P24: 0.6762895368 | Q24: 4.386793644 | R24: 13.03274671 | S24: 4.2213352 | T24: 18.51517858 | U24: 16.94723777 | V24: 15.37896227 | W24: 10.44690952 | X24: 44.57495563 | Y24: 22.8675868
B25: 2034 | C25: 13.5761949 | D25: 10.77341099 | E25: 21.56023509 | F25: 3.227906742 | G25: 12.19352261 | H25: 2.101882339 | I25: 13.06299927 | J25: 8.826096644 | K25: 0 | L25: 8.552246628 | M25: 7.301393101 | N25: 24.28449887 | O25: 6.725805356 | P25: 0.6696487 | Q25: 4.379026982 | R25: 13.01135257 | S25: 4.218977656 | T25: 18.41412599 | U25: 16.89715193 | V25: 15.33709934 | W25: 10.34882838 | X25: 44.44459527 | Y25: 22.79935352
B26: 2035 | C26: 13.57340644 | D26: 10.77409491 | E26: 21.55979376 | F26: 3.22746666 | G26: 12.1939778 | H26: 2.103573195 | I26: 13.07648648 | J26: 8.814767757 | K26: 0 | L26: 8.546465218 | M26: 7.285631657 | N26: 24.21704078 | O26: 6.708525488 | P26: 0.6630078631 | Q26: 4.37126032 | R26: 12.98995843 | S26: 4.216620112 | T26: 18.31307339 | U26: 16.8470661 | V26: 15.29523641 | W26: 10.25074723 | X26: 44.31423492 | Y26: 22.73112024
B27: 2036 | C27: 13.57061798 | D27: 10.77477882 | E27: 21.55935243 | F27: 3.227026578 | G27: 12.19443299 | H27: 2.105264051 | I27: 13.08997368 | J27: 8.80343887 | K27: 0 | L27: 8.540683809 | M27: 7.269870213 | N27: 24.14958269 | O27: 6.69124562 | P27: 0.6563670263 | Q27: 4.363493658 | R27: 12.96856429 | S27: 4.214262568 | T27: 18.21202079 | U27: 16.79698026 | V27: 15.25337348 | W27: 10.15266609 | X27: 44.18387456 | Y27: 22.66288695
B28: 2037 | C28: 13.56782952 | D28: 10.77546274 | E28: 21.5589111 | F28: 3.226586495 | G28: 12.19488818 | H28: 2.106954906 | I28: 13.10346089 | J28: 8.792109983 | K28: 0 | L28: 8.5349024 | M28: 7.25410877 | N28: 24.0821246 | O28: 6.673965752 | P28: 0.6497261895 | Q28: 4.355726996 | R28: 12.94717015 | S28: 4.211905024 | T28: 18.1109682 | U28: 16.74689443 | V28: 15.21151054 | W28: 10.05458495 | X28: 44.0535142 | Y28: 22.59465367
B29: 2038 | C29: 13.56504106 | D29: 10.77614666 | E29: 21.55846978 | F29: 3.226146413 | G29: 12.19534337 | H29: 2.108645762 | I29: 13.1169481 | J29: 8.780781096 | K29: 0 | L29: 8.52912099 | M29: 7.238347326 | N29: 24.01466651 | O29: 6.656685884 | P29: 0.6430853527 | Q29: 4.347960334 | R29: 12.92577601 | S29: 4.20954748 | T29: 18.0099156 | U29: 16.69680859 | V29: 15.16964761 | W29: 9.956503805 | X29: 43.92315385 | Y29: 22.52642039
B30: 2039 | C30: 13.5622526 | D30: 10.77683057 | E30: 21.55802845 | F30: 3.225706331 | G30: 12.19579856 | H30: 2.110336618 | I30: 13.13043531 | J30: 8.769452209 | K30: 0 | L30: 8.523339581 | M30: 7.222585882 | N30: 23.94720842 | O30: 6.639406016 | P30: 0.6364445159 | Q30: 4.340193672 | R30: 12.90438187 | S30: 4.207189936 | T30: 17.908863 | U30: 16.64672276 | V30: 15.12778468 | W30: 9.858422662 | X30: 43.79279349 | Y30: 22.45818711
B31: 2040 | C31: 13.55946414 | D31: 10.77751449 | E31: 21.55758712 | F31: 3.225266249 | G31: 12.19625375 | H31: 2.112027473 | I31: 13.14392252 | J31: 8.758123322 | K31: 0 | L31: 8.517558172 | M31: 7.206824438 | N31: 23.87975033 | O31: 6.622126148 | P31: 0.6298036791 | Q31: 4.33242701 | R31: 12.88298773 | S31: 4.204832392 | T31: 17.80781041 | U31: 16.59663692 | V31: 15.08592174 | W31: 9.760341519 | X31: 43.66243314 | Y31: 22.38995383
B32: 2041 | C32: 13.5544367 | D32: 10.77812838 | E32: 21.56036033 | F32: 3.222840624 | G32: 12.16566704 | H32: 2.108696928 | I32: 13.14236307 | J32: 8.705927022 | K32: 0 | L32: 8.491195032 | M32: 7.146576395 | N32: 23.61391992 | O32: 6.558709347 | P32: 0.6171390366 | Q32: 4.304557557 | R32: 12.77691746 | S32: 4.191474683 | T32: 17.52687558 | U32: 16.42147201 | V32: 14.93410634 | W32: 9.568963141 | X32: 43.12971334 | Y32: 22.13700989
B33: 2042 | C33: 13.54940926 | D33: 10.77874227 | E33: 21.56313354 | F33: 3.220414999 | G33: 12.13508032 | H33: 2.105366383 | I33: 13.14080362 | J33: 8.653730722 | K33: 0 | L33: 8.464831893 | M33: 7.086328352 | N33: 23.3480895 | O33: 6.495292546 | P33: 0.6044743941 | Q33: 4.276688105 | R33: 12.6708472 | S33: 4.178116974 | T33: 17.24594076 | U33: 16.2463071 | V33: 14.78229093 | W33: 9.377584762 | X33: 42.59699355 | Y33: 21.88406595
B34: 2043 | C34: 13.54438181 | D34: 10.77935615 | E34: 21.56590675 | F34: 3.217989375 | G34: 12.10449361 | H34: 2.102035837 | I34: 13.13924417 | J34: 8.601534422 | K34: 0 | L34: 8.438468754 | M34: 7.026080309 | N34: 23.08225908 | O34: 6.431875745 | P34: 0.5918097517 | Q34: 4.248818652 | R34: 12.56477693 | S34: 4.164759265 | T34: 16.96500593 | U34: 16.07114219 | V34: 14.63047552 | W34: 9.186206383 | X34: 42.06427375 | Y34: 21.63112201
B35: 2044 | C35: 13.53935437 | D35: 10.77997004 | E35: 21.56867996 | F35: 3.21556375 | G35: 12.07390689 | H35: 2.098705292 | I35: 13.13768472 | J35: 8.549338123 | K35: 0 | L35: 8.412105614 | M35: 6.965832266 | N35: 22.81642866 | O35: 6.368458944 | P35: 0.5791451092 | Q35: 4.220949199 | R35: 12.45870667 | S35: 4.151401556 | T35: 16.68407111 | U35: 15.89597729 | V35: 14.47866012 | W35: 8.994828004 | X35: 41.53155396 | Y35: 21.37817807
B36: 2045 | C36: 13.53432693 | D36: 10.78058393 | E36: 21.57145317 | F36: 3.213138125 | G36: 12.04332018 | H36: 2.095374746 | I36: 13.13612527 | J36: 8.497141823 | K36: 0 | L36: 8.385742475 | M36: 6.905584224 | N36: 22.55059824 | O36: 6.305042143 | P36: 0.5664804668 | Q36: 4.193079746 | R36: 12.3526364 | S36: 4.138043847 | T36: 16.40313628 | U36: 15.72081238 | V36: 14.32684471 | W36: 8.803449625 | X36: 40.99883416 | Y36: 21.12523413
B37: 2046 | C37: 13.52929949 | D37: 10.78119782 | E37: 21.57422638 | F37: 3.2107125 | G37: 12.01273347 | H37: 2.092044201 | I37: 13.13456583 | J37: 8.444945523 | K37: 0 | L37: 8.359379336 | M37: 6.845336181 | N37: 22.28476782 | O37: 6.241625342 | P37: 0.5538158243 | Q37: 4.165210293 | R37: 12.24656614 | S37: 4.124686137 | T37: 16.12220146 | U37: 15.54564747 | V37: 14.1750293 | W37: 8.612071246 | X37: 40.46611437 | Y37: 20.87229019
B38: 2047 | C38: 13.52427205 | D38: 10.78181171 | E38: 21.57699959 | F38: 3.208286876 | G38: 11.98214675 | H38: 2.088713655 | I38: 13.13300638 | J38: 8.392749223 | K38: 0 | L38: 8.333016196 | M38: 6.785088138 | N38: 22.01893741 | O38: 6.178208542 | P38: 0.5411511819 | Q38: 4.13734084 | R38: 12.14049587 | S38: 4.111328428 | T38: 15.84126664 | U38: 15.37048256 | V38: 14.0232139 | W38: 8.420692868 | X38: 39.93339457 | Y38: 20.61934625
B39: 2048 | C39: 13.51924461 | D39: 10.7824256 | E39: 21.5797728 | F39: 3.205861251 | G39: 11.95156004 | H39: 2.08538311 | I39: 13.13144693 | J39: 8.340552923 | K39: 0 | L39: 8.306653057 | M39: 6.724840095 | N39: 21.75310699 | O39: 6.114791741 | P39: 0.5284865394 | Q39: 4.109471387 | R39: 12.03442561 | S39: 4.097970719 | T39: 15.56033181 | U39: 15.19531765 | V39: 13.87139849 | W39: 8.229314489 | X39: 39.40067478 | Y39: 20.36640231
B40: 2049 | C40: 13.51421717 | D40: 10.78303949 | E40: 21.58254601 | F40: 3.203435626 | G40: 11.92097332 | H40: 2.082052565 | I40: 13.12988748 | J40: 8.288356623 | K40: 0 | L40: 8.280289918 | M40: 6.664592052 | N40: 21.48727657 | O40: 6.05137494 | P40: 0.5158218969 | Q40: 4.081601934 | R40: 11.92835534 | S40: 4.08461301 | T40: 15.27939699 | U40: 15.02015274 | V40: 13.71958308 | W40: 8.03793611 | X40: 38.86795498 | Y40: 20.11345837
B41: 2050 | C41: 13.50918973 | D41: 10.78365337 | E41: 21.58531922 | F41: 3.201010002 | G41: 11.89038661 | H41: 2.078722019 | I41: 13.12832803 | J41: 8.236160323 | K41: 0 | L41: 8.253926778 | M41: 6.604344009 | N41: 21.22144615 | O41: 5.987958139 | P41: 0.5031572545 | Q41: 4.053732482 | R41: 11.82228508 | S41: 4.071255301 | T41: 14.99846216 | U41: 14.84498783 | V41: 13.56776767 | W41: 7.846557731 | X41: 38.33523519 | Y41: 19.86051443
B42: 2051 | C42: 13.50416229 | D42: 10.78426726 | E42: 21.58809243 | F42: 3.198584377 | G42: 11.85979989 | H42: 2.075391474 | I42: 13.12676858 | J42: 8.183964023 | K42: 0 | L42: 8.227563639 | M42: 6.544095966 | N42: 20.95561573 | O42: 5.924541338 | P42: 0.490492612 | Q42: 4.025863029 | R42: 11.71621481 | S42: 4.057897591 | T42: 14.71752734 | U42: 14.66982292 | V42: 13.41595227 | W42: 7.655179352 | X42: 37.8025154 | Y42: 19.60757049
B43: 2052 | C43: 13.49913485 | D43: 10.78488115 | E43: 21.59086564 | F43: 3.196158752 | G43: 11.82921318 | H43: 2.072060928 | I43: 13.12520913 | J43: 8.131767723 | K43: 0 | L43: 8.201200499 | M43: 6.483847923 | N43: 20.68978531 | O43: 5.861124537 | P43: 0.4778279696 | Q43: 3.997993576 | R43: 11.61014454 | S43: 4.044539882 | T43: 14.43659251 | U43: 14.49465801 | V43: 13.26413686 | W43: 7.463800974 | X43: 37.2697956 | Y43: 19.35462656
B44: 2053 | C44: 13.49410741 | D44: 10.78549504 | E44: 21.59363885 | F44: 3.193733127 | G44: 11.79862647 | H44: 2.068730383 | I44: 13.12364968 | J44: 8.079571423 | K44: 0 | L44: 8.17483736 | M44: 6.42359988 | N44: 20.42395489 | O44: 5.797707736 | P44: 0.4651633271 | Q44: 3.970124123 | R44: 11.50407428 | S44: 4.031182173 | T44: 14.15565769 | U44: 14.3194931 | V44: 13.11232145 | W44: 7.272422595 | X44: 36.73707581 | Y44: 19.10168262
B45: 2054 | C45: 13.48907997 | D45: 10.78610893 | E45: 21.59641206 | F45: 3.191307503 | G45: 11.76803975 | H45: 2.065399837 | I45: 13.12209023 | J45: 8.027375123 | K45: 0 | L45: 8.148474221 | M45: 6.363351837 | N45: 20.15812448 | O45: 5.734290936 | P45: 0.4524986847 | Q45: 3.94225467 | R45: 11.39800401 | S45: 4.017824464 | T45: 13.87472286 | U45: 14.14432819 | V45: 12.96050605 | W45: 7.081044216 | X45: 36.20435601 | Y45: 18.84873868
B46: 2055 | C46: 13.48405253 | D46: 10.78672282 | E46: 21.59918527 | F46: 3.188881878 | G46: 11.73745304 | H46: 2.062069292 | I46: 13.12053078 | J46: 7.975178823 | K46: 0 | L46: 8.122111081 | M46: 6.303103794 | N46: 19.89229406 | O46: 5.670874135 | P46: 0.4398340422 | Q46: 3.914385217 | R46: 11.29193375 | S46: 4.004466755 | T46: 13.59378804 | U46: 13.96916328 | V46: 12.80869064 | W46: 6.889665837 | X46: 35.67163622 | Y46: 18.59579474
B47: 2056 | C47: 13.47333827 | D47: 10.78568421 | E47: 21.61092973 | F47: 3.181110439 | G47: 11.63165014 | H47: 2.047756868 | I47: 13.15261076 | J47: 7.86169017 | K47: 0 | L47: 8.044791925 | M47: 6.205481178 | N47: 19.54339377 | O47: 5.578057147 | P47: 0.4292887917 | Q47: 3.856547708 | R47: 11.14518035 | S47: 3.964893118 | T47: 13.29261348 | U47: 13.71346223 | V47: 12.67101856 | W47: 6.729377697 | X47: 35.07001609 | Y47: 18.31992922
B48: 2057 | C48: 13.46262401 | D48: 10.7846456 | E48: 21.62267419 | F48: 3.173339 | G48: 11.52584724 | H48: 2.033444444 | I48: 13.18469073 | J48: 7.748201517 | K48: 0 | L48: 7.967472768 | M48: 6.107858562 | N48: 19.19449347 | O48: 5.485240159 | P48: 0.4187435413 | Q48: 3.7987102 | R48: 10.99842695 | S48: 3.92531948 | T48: 12.99143892 | U48: 13.45776118 | V48: 12.53334648 | W48: 6.569089557 | X48: 34.46839596 | Y48: 18.04406371
B49: 2058 | C49: 13.45190975 | D49: 10.78360699 | E49: 21.63441865 | F49: 3.16556756 | G49: 11.42004434 | H49: 2.019132021 | I49: 13.21677071 | J49: 7.634712864 | K49: 0 | L49: 7.890153611 | M49: 6.010235945 | N49: 18.84559318 | O49: 5.392423172 | P49: 0.4081982908 | Q49: 3.740872691 | R49: 10.85167354 | S49: 3.885745843 | T49: 12.69026437 | U49: 13.20206013 | V49: 12.3956744 | W49: 6.408801417 | X49: 33.86677583 | Y49: 17.7681982
B50: 2059 | C50: 13.44119549 | D50: 10.78256839 | E50: 21.64616311 | F50: 3.157796121 | G50: 11.31424144 | H50: 2.004819597 | I50: 13.24885068 | J50: 7.521224211 | K50: 0 | L50: 7.812834454 | M50: 5.912613329 | N50: 18.49669289 | O50: 5.299606184 | P50: 0.3976530404 | Q50: 3.683035182 | R50: 10.70492014 | S50: 3.846172206 | T50: 12.38908981 | U50: 12.94635908 | V50: 12.25800232 | W50: 6.248513277 | X50: 33.26515569 | Y50: 17.49233268
B51: 2060 | C51: 13.43048123 | D51: 10.78152978 | E51: 21.65790757 | F51: 3.150024682 | G51: 11.20843855 | H51: 1.990507173 | I51: 13.28093065 | J51: 7.407735558 | K51: 0 | L51: 7.735515297 | M51: 5.814990712 | N51: 18.1477926 | O51: 5.206789196 | P51: 0.3871077899 | Q51: 3.625197674 | R51: 10.55816674 | S51: 3.806598569 | T51: 12.08791525 | U51: 12.69065803 | V51: 12.12033024 | W51: 6.088225136 | X51: 32.66353556 | Y51: 17.21646717
B52: 2061 | C52: 13.41976697 | D52: 10.78049117 | E52: 21.66965203 | F52: 3.142253243 | G52: 11.10263565 | H52: 1.976194749 | I52: 13.31301063 | J52: 7.294246905 | K52: 0 | L52: 7.65819614 | M52: 5.717368096 | N52: 17.7988923 | O52: 5.113972209 | P52: 0.3765625394 | Q52: 3.567360165 | R52: 10.41141334 | S52: 3.767024932 | T52: 11.7867407 | U52: 12.43495697 | V52: 11.98265815 | W52: 5.927936996 | X52: 32.06191543 | Y52: 16.94060165
B53: 2062 | C53: 13.40905271 | D53: 10.77945256 | E53: 21.68139649 | F53: 3.134481804 | G53: 10.99683275 | H53: 1.961882325 | I53: 13.3450906 | J53: 7.180758252 | K53: 0 | L53: 7.580876983 | M53: 5.61974548 | N53: 17.44999201 | O53: 5.021155221 | P53: 0.366017289 | Q53: 3.509522656 | R53: 10.26465994 | S53: 3.727451295 | T53: 11.48556614 | U53: 12.17925592 | V53: 11.84498607 | W53: 5.767648856 | X53: 31.4602953 | Y53: 16.66473614
B54: 2063 | C54: 13.39833845 | D54: 10.77841396 | E54: 21.69314096 | F54: 3.126710364 | G54: 10.89102985 | H54: 1.947569901 | I54: 13.37717057 | J54: 7.067269599 | K54: 0 | L54: 7.503557826 | M54: 5.522122863 | N54: 17.10109172 | O54: 4.928338233 | P54: 0.3554720385 | Q54: 3.451685148 | R54: 10.11790654 | S54: 3.687877658 | T54: 11.18439158 | U54: 11.92355487 | V54: 11.70731399 | W54: 5.607360716 | X54: 30.85867517 | Y54: 16.38887062
B55: 2064 | C55: 13.38762419 | D55: 10.77737535 | E55: 21.70488542 | F55: 3.118938925 | G55: 10.78522695 | H55: 1.933257477 | I55: 13.40925055 | J55: 6.953780946 | K55: 0 | L55: 7.426238669 | M55: 5.424500247 | N55: 16.75219143 | O55: 4.835521245 | P55: 0.344926788 | Q55: 3.393847639 | R55: 9.971153133 | S55: 3.648304021 | T55: 10.88321703 | U55: 11.66785382 | V55: 11.56964191 | W55: 5.447072576 | X55: 30.25705504 | Y55: 16.11300511
B56: 2065 | C56: 13.37690993 | D56: 10.77633674 | E56: 21.71662988 | F56: 3.111167486 | G56: 10.67942406 | H56: 1.918945054 | I56: 13.44133052 | J56: 6.840292293 | K56: 0 | L56: 7.348919513 | M56: 5.32687763 | N56: 16.40329113 | O56: 4.742704258 | P56: 0.3343815376 | Q56: 3.336010131 | R56: 9.824399732 | S56: 3.608730384 | T56: 10.58204247 | U56: 11.41215277 | V56: 11.43196983 | W56: 5.286784436 | X56: 29.65543491 | Y56: 15.8371396
B57: 2066 | C57: 13.36619567 | D57: 10.77529813 | E57: 21.72837434 | F57: 3.103396047 | G57: 10.57362116 | H57: 1.90463263 | I57: 13.4734105 | J57: 6.72680364 | K57: 0 | L57: 7.271600356 | M57: 5.229255014 | N57: 16.05439084 | O57: 4.64988727 | P57: 0.3238362871 | Q57: 3.278172622 | R57: 9.67764633 | S57: 3.569156746 | T57: 10.28086791 | U57: 11.15645172 | V57: 11.29429775 | W57: 5.126496295 | X57: 29.05381478 | Y57: 15.56127408
B58: 2067 | C58: 13.35548141 | D58: 10.77425953 | E58: 21.7401188 | F58: 3.095624608 | G58: 10.46781826 | H58: 1.890320206 | I58: 13.50549047 | J58: 6.613314987 | K58: 0 | L58: 7.194281199 | M58: 5.131632397 | N58: 15.70549055 | O58: 4.557070282 | P58: 0.3132910367 | Q58: 3.220335113 | R58: 9.530892928 | S58: 3.529583109 | T58: 9.979693355 | U58: 10.90075067 | V58: 11.15662567 | W58: 4.966208155 | X58: 28.45219465 | Y58: 15.28540857
B59: 2068 | C59: 13.34476715 | D59: 10.77322092 | E59: 21.75186326 | F59: 3.087853169 | G59: 10.36201536 | H59: 1.876007782 | I59: 13.53757044 | J59: 6.499826334 | K59: 0 | L59: 7.116962042 | M59: 5.034009781 | N59: 15.35659026 | O59: 4.464253295 | P59: 0.3027457862 | Q59: 3.162497605 | R59: 9.384139526 | S59: 3.490009472 | T59: 9.678518798 | U59: 10.64504961 | V59: 11.01895359 | W59: 4.805920015 | X59: 27.85057452 | Y59: 15.00954305
B60: 2069 | C60: 13.33405289 | D60: 10.77218231 | E60: 21.76360772 | F60: 3.080081729 | G60: 10.25621246 | H60: 1.861695358 | I60: 13.56965042 | J60: 6.386337681 | K60: 0 | L60: 7.039642885 | M60: 4.936387165 | N60: 15.00768997 | O60: 4.371436307 | P60: 0.2922005357 | Q60: 3.104660096 | R60: 9.237386124 | S60: 3.450435835 | T60: 9.377344241 | U60: 10.38934856 | V60: 10.88128151 | W60: 4.645631875 | X60: 27.24895438 | Y60: 14.73367754
B61: 2070 | C61: 13.32333863 | D61: 10.7711437 | E61: 21.77535218 | F61: 3.07231029 | G61: 10.15040957 | H61: 1.847382934 | I61: 13.60173039 | J61: 6.272849027 | K61: 0 | L61: 6.962323728 | M61: 4.838764548 | N61: 14.65878967 | O61: 4.278619319 | P61: 0.2816552853 | Q61: 3.046822587 | R61: 9.090632723 | S61: 3.410862198 | T61: 9.076169684 | U61: 10.13364751 | V61: 10.74360942 | W61: 4.485343735 | X61: 26.64733425 | Y61: 14.45781202
B62: 2071 | C62: 13.28859579 | D62: 10.75703428 | E62: 21.77932817 | F62: 3.057257754 | G62: 10.0094335 | H62: 1.83009783 | I62: 13.58473676 | J62: 6.161728755 | K62: 0 | L62: 6.864613951 | M62: 4.767724352 | N62: 14.36726413 | O62: 4.198276536 | P62: 0.2744739259 | Q62: 2.990929947 | R62: 8.932512059 | S62: 3.363333209 | T62: 8.859249183 | U62: 9.910310751 | V62: 10.61655057 | W62: 4.370139535 | X62: 26.11290294 | Y62: 14.2139817
B63: 2072 | C63: 13.25385294 | D63: 10.74292486 | E63: 21.78330415 | F63: 3.042205218 | G63: 9.868457428 | H63: 1.812812725 | I63: 13.56774313 | J63: 6.050608482 | K63: 0 | L63: 6.766904173 | M63: 4.696684156 | N63: 14.07573858 | O63: 4.117933753 | P63: 0.2672925666 | Q63: 2.935037307 | R63: 8.774391395 | S63: 3.315804219 | T63: 8.642328682 | U63: 9.686973991 | V63: 10.48949172 | W63: 4.254935335 | X63: 25.57847163 | Y63: 13.97015137
